Workbook

Sheet CAPA
B1: SPARTA | C1: Ver. | D1: Ver. 22/10/2021 | R1: DF | S1: Sudeste/Centro Oeste
B2: Helenístico LX | C2: 0.93 | D2: 0.93 | M2: =C23 -> 120 | N2: =C22 -> 369
C3: Macro Ver. | D3: Macro Ver.
C4: 3.97 | D4: 3.94
B6: CERON | L6: CodigoSamp | M6: Empresa | N6: Nome Completo | O6: IdSgtAg | P6: CodigoSamp | Q6: Supridora/suprida | R6: Financeiro 243 (TUSD) | S6: Databse Fin. 243
B7: =VLOOKUP(B6,TabEmpresas[],2,FALSE) -> CERON - Centrais Elétricas de Rondônia S/A. | C7: Reajuste | G7: Últ. Atualização | L7: 396 | M7: AES SUL | N7: AES-SUL - AES SUL Distribuidora Gaúcha de Energia S/A. | O7: 101 | P7: 396 | Q7: NÃO SUPRIDA
B8: CÓDIGO DA EMPRESA | C8: ="D" & TEXT(C23-100,"00") -> D20 | F8: Info iniciais | G8: 2021-11-30T12:10:27 | H8: PNT= 19,99% | L8: 7019 | M8: AME | N8: Amazonas Distribuidora de Energia S/A | O8: 102 | P8: 7019 | Q8: NÃO SUPRIDA
B9: Data do Reajuste/Revisão Anterior | C9: 44178 | F9: Energia do ano anterior (CM compra, MWh Mercado, R$ Mercado) | L9: 383 | M9: AMPLA | N9: AMPLA - Ampla Energia e Serviços S/A | O9: 103 | P9: 383 | Q9: NÃO SUPRIDA
B10: Data de Reajuste/Revisão em Processamento | C10: 44543 | F10: Perda de RB /Perdas Regulatórias /TUSDgONS-RB | L10: 391 | M10: BANDEIRANTE | N10: BANDEIRANTE - Bandeirante Energia S/A. | O10: 104 | P10: 391 | Q10: NÃO SUPRIDA
F11: Financeiros ano anterior (CVA 5º dia útil, RTE restante) | L11: 370 | M11: BOAVISTA | N11: Boa Vista - Boa Vista Energia S/A | O11: 105 | P11: 370 | Q11: NÃO SUPRIDA
F12: Encargos ano anterior (não RTE) | L12: 386 | M12: BRAGANTINA | N12: BRAGANTINA- Empresa Elétrica Bragantina S/A. | O12: 142 | P12: 386 | Q12: NÃO SUPRIDA
F13: Dados da Revisão, Fator X e DecFec | L13: 5216 | M13: CAIUA | N13: CAIUÁ-D - Caiuá Distribuição de Energia S/A | O13: 106 | P13: 5216 | Q13: NÃO SUPRIDA
F14: Previsão de Subsidios dos Processos Anteriores | L14: 31 | M14: CEA | N14: CEA - Companhia de Eletricidade do Amapá | O14: 107 | P14: 31 | Q14: NÃO SUPRIDA
B15: Período de Referencia final | C15: =DATE(YEAR($C$10),MONTH($C$10)-1,1) -> 44501 | F15: Conexão ano anterior | L15: 44 | M15: CEAL | N15: CEAL - Companhia Energética de Alagoas | O15: 108 | P15: 44 | Q15: NÃO SUPRIDA
B16: Período de Referencia inicial | C16: =DATE(YEAR($C$10)-1,MONTH($C$10),1) -> 44166 | F16: Energia (CCEAR, Bil., Itaipu) | G16: 2021-11-30T12:27:48 | H16: GSF= 85,74% | L16: 5160 | M16: CEB | N16: CEB-DIS - CEB Distribuição S/A | O16: 109 | P16: 5160 | Q16: NÃO SUPRIDA
B17: Índice IGPM na data Revisão/Reajuste | C17: =VLOOKUP(C15,Índices!$B$7:$F$500,2,FALSE) -> 1099.787368 | F17: CCEAR | L17: 5707 | M17: CEEE | N17: CEEE-D - Companhia Estadual de Distribuição de Energia Elétrica | O17: 110 | P17: 5707 | Q17: NÃO SUPRIDA
B18: Índice IPCA na data Revisão/Reajuste | C18: =VLOOKUP(C15,Índices!$B$7:$F$500,3,FALSE) -> 6056.053465 | L18: 5697 | M18: CELESC | N18: CELESC-DIS - Celesc Distribuição S.A. | O18: 111 | P18: 5697 | Q18: NÃO SUPRIDA
B19: IGPM para o período de Referência | C19: =VLOOKUP(DATE(YEAR($C$10),MONTH($C$10)-1,1),Índices!$B$7:$F$500,2,FALSE)/VLOOKUP(DATE(YEAR($C$9),MONTH($C$9)-1,1),Índices!$B$7:$F$500,2,FALSE)-1 -> 0.1878202939 | F19: Itaipu (Energia, Transporte, MUST) | L19: 6072 | M19: CELG | N19: CELG-D - Celg Distribuição S.A. | O19: 112 | P19: 6072 | Q19: NÃO SUPRIDA
B20: IPCA para o período de Referência | C20: =VLOOKUP(DATE(YEAR(C10),MONTH(C10)-1,1),Índices!$B$7:$F$500,3,FALSE)/VLOOKUP(DATE(YEAR($C$9),MONTH($C$9)-1,1),Índices!$B$7:$F$500,3,FALSE)-1 -> 0.1038059581 | F20: Cotas Lei/Angra | L20: 371 | M20: CELPA | N20: CELPA - Centrais Elétricas do Pará S/A. | O20: 113 | P20: 371 | Q20: NÃO SUPRIDA
B21: Dados Gerenciais | F21: Encargos DRP | G21: 2021-11-24T08:49:04 | L21: 43 | M21: CELPE | N21: CELPE - Companhia Energética de Pernambuco | O21: 114 | P21: 43 | Q21: NÃO SUPRIDA
B22: IdAgente | C22: =VLOOKUP(B6,TabEmpresas[],4,FALSE) -> 369 | F22: Indicadores Econômicos / Dólar | G22: 2021-11-30T12:04:32 | L22: 32 | M22: CELTINS | N22: CELTINS - Companhia de Energia Elétrica do Estado do Tocantins | O22: 115 | P22: 32 | Q22: NÃO SUPRIDA
B23: ID Concessão | C23: =VLOOKUP(B6,TabEmpresas[],3,FALSE) -> 120 | F23: Tudo de Mercado | G23: 2021-11-22T12:54:21 | H23: outubro 2021, com ajuste em janeiro/2021 | L23: 37 | M23: CEMAR | N23: CEMAR - Companhia Energética do Maranhão | O23: 116 | P23: 37 | Q23: NÃO SUPRIDA
F24: Rede Básica e Conexão | G24: 2021-11-24T08:51:01 | L24: 405 | M24: CEMAT | N24: CEMAT - Centrais Elétricas Matogrossenses S/A. | O24: 117 | P24: 405 | Q24: NÃO SUPRIDA
B25: Quadro para vínculos | F25: Histórico de Tarifas B1 Residencial | G25: 2021-10-13T08:50:05 | L25: 4950 | M25: CEMIG | N25: CEMIG-D - CEMIG Distribuição S/A | O25: 118 | P25: 4950 | Q25: NÃO SUPRIDA
B26: Descrição | C26: valor | F26: CVA | G26: 2021-11-30T12:05:35 | H26: CVA E | L26: 38 | M26: CEPISA | N26: CEPISA - Companhia Energética do Piauí | O26: 119 | P26: 38 | Q26: NÃO SUPRIDA
B27: (Exemplo) Efeito Consumidor Geral | C27: =LnkTxtEfeito -> 0.06930324114 | F27: CUSD | G27: 2021-10-25T17:16:45 | H27: NA | L27: 369 | M27: CERON | N27: CERON - Centrais Elétricas de Rondônia S/A. | O27: 120 | P27: 369 | Q27: NÃO SUPRIDA
B28: Contrato de concessão | C28: 002/2018 | L28: 28 | M28: CERR | N28: CERR - Companhia Energética de Roraima | O28: 121 | P28: 28 | Q28: NÃO SUPRIDA
C29: 48500.005030/2020-50 | L29: 103 | M29: CHESP | N29: CHESP - Companhia Hidroelétrica São Patrício | O29: 123 | P29: 103 | Q29: SUPRIDA
B30: Período de Referencia | C30: =TEXT(C16,"mmmm/aaaa")& " a "&TEXT(C15,"mmmm/aaaa") -> dezembro/2020 a novembro/2021 | L30: 75 | M30: CNEE | N30: CNEE - Companhia Nacional de Energia Elétrica | O30: 127 | P30: 75 | Q30: NÃO SUPRIDA
B31: Neutralidade Total | L31: 82 | M31: COCEL | N31: COCEL - Companhia Campolarguense de Energia | O31: 128 | P31: 82 | Q31: SUPRIDA
B32: CVA Saldo a Compensar | C32: =SUM(Financeiros!D27:D43) -> -677379.4686 | L32: 47 | M32: COELBA | N32: COELBA - Companhia de Eletricidade do Estado da Bahia | O32: 129 | P32: 47 | Q32: NÃO SUPRIDA
B33: Reversão CDE | L33: 39 | M33: COELCE | N33: COELCE - Companhia Energética do Ceará | O33: 130 | P33: 39 | Q33: NÃO SUPRIDA
B34: Diretor Relator Sorteado | C34: Efrain Pereira da Cruz | L34: 2904 | M34: COOPERALIANÇA | N34: COOPERALIANÇA - Cooperativa Aliança | O34: 131 | P34: 2904 | Q34: SUPRIDA
L35: 2866 | M35: COPEL | N35: COPEL-DIS - Copel Distribuição S/A | O35: 132 | P35: 2866 | Q35: NÃO SUPRIDA
L36: 40 | M36: COSERN | N36: COSERN - Companhia Energética do Rio Grande do Norte | O36: 133 | P36: 40 | Q36: NÃO SUPRIDA
L37: 69 | M37: CPFL Jaguari | N37: CPFL Jaguari - Companhia Jaguari de Energia | O37: 124 | P37: 69 | Q37: NÃO SUPRIDA
L38: 71 | M38: CPFL Leste Paulista | N38: =TabEmpresas[[#This Row],[Empresa]]&" - Companhia Leste Paulista de Energia " -> CPFL Leste Paulista - Companhia Leste Paulista de Energia | O38: 134 | P38: 71 | Q38: NÃO SUPRIDA
L39: 70 | M39: CPFL Mococa | N39: =TabEmpresas[[#This Row],[Empresa]]&" - Companhia Luz e Força de Mococa " -> CPFL Mococa - Companhia Luz e Força de Mococa | O39: 125 | P39: 70 | Q39: NÃO SUPRIDA
L40: 72 | M40: CPFL Santa Cruz | N40: =TabEmpresas[[#This Row],[Empresa]]&" - Companhia Luz e Força Santa Cruz " -> CPFL Santa Cruz - Companhia Luz e Força Santa Cruz | O40: 126 | P40: 72 | Q40: NÃO SUPRIDA
L41: 73 | M41: CPFL Sul Paulista | N41: =TabEmpresas[[#This Row],[Empresa]]&" - Companhia Sul Paulista de Energia " -> CPFL Sul Paulista - Companhia Sul Paulista de Energia | O41: 137 | P41: 73 | Q41: NÃO SUPRIDA
L42: 63 | M42: CPFL Paulista | N42: CPFL-Paulista - Companhia Paulista de Força e Luz | O42: 136 | P42: 63 | Q42: NÃO SUPRIDA
L43: 2937 | M43: CPFL Piratininga | N43: CPFL- Piratininga - Companhia Piratininga de Força e Luz | O43: 135 | P43: 2937 | Q43: NÃO SUPRIDA
L44: 95 | M44: DEMEI | N44: DEMEI - Departamento Municipal de Energia de Ijuí | O44: 138 | P44: 95 | Q44: SUPRIDA
L45: 51 | M45: DMED | N45: =TabEmpresas[[#This Row],[Empresa]]&" - DME Distribuição S.A" -> DMED - DME Distribuição S.A | O45: 139 | P45: 51 | Q45: NÃO SUPRIDA
L46: 6611 | M46: EBO | N46: EBO - Energisa Borborema – Distribuidora de Energia S.A. | O46: 140 | P46: 6611 | Q46: NÃO SUPRIDA
B47: Deslocar mercado | C47: Não | L47: 5217 | M47: EDEVP | N47: EDEVP - Empresa de Distribuição de Energia Vale Paranapanema S/A | O47: 141 | P47: 5217 | Q47: NÃO SUPRIDA
B48: Data de processamento em simulação | L48: 385 | M48: ELEKTRO | N48: ELEKTRO - Elektro Eletricidade e Serviços S/A. | O48: 145 | P48: 385 | Q48: NÃO SUPRIDA
L49: 26 | M49: ELETROACRE | N49: ELETROACRE - Companhia de Eletricidade do Acre | O49: 146 | P49: 26 | Q49: NÃO SUPRIDA
L50: 398 | M50: ELETROCAR | N50: ELETROCAR - Centrais Elétricas de Carazinho S/A. | O50: 147 | P50: 398 | Q50: SUPRIDA
L51: 390 | M51: ELETROPAULO | N51: ELETROPAULO - Eletropaulo Metropolitana Eletricidade de São Paulo S/A | O51: 148 | P51: 390 | Q51: NÃO SUPRIDA
L52: 6585 | M52: EMG | N52: EMG - Energisa Minas Gerais - Distribuidora de Energia S.A. | O52: 150 | P52: 6585 | Q52: NÃO SUPRIDA
L53: 404 | M53: ENERSUL | N53: ENERSUL - Empresa Energética de Mato Grosso do Sul S/A. | O53: 151 | P53: 404 | Q53: NÃO SUPRIDA
L54: 6612 | M54: ENF | N54: ENF - Energisa Nova Friburgo - Distribuidora de Energia S.A. | O54: 152 | P54: 6612 | Q54: SUPRIDA
L55: 6600 | M55: EPB | N55: EPB - Energisa Paraíba - Distribuidora de Energia | O55: 153 | P55: 6600 | Q55: NÃO SUPRIDA
L56: 380 | M56: ESCELSA | N56: ESCELSA - Espírito Santo Centrais Elétricas S/A. | O56: 154 | P56: 380 | Q56: NÃO SUPRIDA
L57: 6587 | M57: ESE | N57: ESE - Energisa Sergipe - Distribuidora de Energia S.A. | O57: 155 | P57: 6587 | Q57: NÃO SUPRIDA
L58: 83 | M58: FORCEL | N58: FORCEL - Força e Luz Coronel Vivida Ltda | O58: 156 | P58: 83 | Q58: SUPRIDA
L59: 399 | M59: HIDROPAN | N59: HIDROPAN - Hidroelétrica Panambi S/A. | O59: 157 | P59: 399 | Q59: SUPRIDA
L60: 87 | M60: IENERGIA | N60: IENERGIA - Iguaçu Distribuidora de Energia Elétrica Ltda | O60: 158 | P60: 87 | Q60: NÃO SUPRIDA
L61: 213 | M61: JARI | N61: JARI - Jari Celulose S/A | O61: 159 | P61: 213 | Q61: NÃO SUPRIDA
L62: 88 | M62: JOÃO CESA | N62: JOÃO CESA - Empresa Força e Luz João Cesa Ltda | O62: 143 | P62: 88 | Q62: SUPRIDA
L63: 382 | M63: LIGHT | N63: LIGHT - Light Serviços de Eletricidade S/A. | O63: 160 | P63: 382 | Q63: NÃO SUPRIDA
L64: 401 | M64: MUX Energia | N64: MUX Energia - Muxfeldt Marin & Cia. Ltda | O64: 161 | P64: 401 | Q64: SUPRIDA
L65: 84 | M65: OESTE | N65: CFLO - Companhia Força e Luz do Oeste | O65: 122 | P65: 84 | Q65: SUPRIDA
L66: 397 | M66: RGE | N66: RGE - Rio Grande Energia S/A. | O66: 162 | P66: 397 | Q66: NÃO SUPRIDA
L67: 381 | M67: SANTA MARIA | N67: SANTA MARIA - Empresa Luz e Força Santa Maria S/A. | O67: 149 | P67: 381 | Q67: SUPRIDA
L68: 46 | M68: SULGIPE | N68: SULGIPE - Companhia Sul Sergipana de Eletricidade | O68: 163 | P68: 46 | Q68: SUPRIDA
L69: 400 | M69: UHENPAL | N69: UHENPAL - Usina Hidroelétrica Nova Palma Ltda. | O69: 164 | P69: 400 | Q69: SUPRIDA
L70: 86 | M70: URUSSANGA | N70: URUSSANGA - Empresa Força e Luz Urussanga Ltda | O70: 144 | P70: 86 | Q70: SUPRIDA
L71: 1000040 | M71: ENERGISA Sul Sudeste | N71: ENERGISA SUL SUDESTE | O71: 165 | P71: 1000040 | Q71: NÃO SUPRIDA
L72: 1000041 | M72: NOVA SANTA CRUZ | N72: NOVA SANTA CRUZ | O72: 166 | P72: 1000041 | Q72: NÃO SUPRIDA
Q73: NÃO SUPRIDA
Q74: NÃO SUPRIDA

Sheet BD
B1: Banco de Dados | M1: Anexo II | N1: =Resultado!$D$6 -> 0.06323810398
B2: =CAPA!B6 -> CERON | M2: Anexo I | N2: =Resultado!$D$8 -> -0.02442419927
B5: Informações do ano anterior | G5: Dados de abertura (Neutralidade e CVA saldo a compensar) | L5: Dados de Energia | S5: Dados para Revisão
B7: Encargos | G7: Encargo | H7: Valor | I7: Norma | L7: Cotas | M7: Valor da "Cota" | N7: Ano | O7: Custo Médio da Cota | S7: item | T7: Descrição | U7: Detalhe | V7: Valor
B8: CDE Energia: Conta ACR | C8: 1e-06 | G8: CCC | L8: Angra | M8: 0.008592726719 | N8: 2021 | O8: 249.64 | S8: 201 | T8: Financeiro de RTP | U8: Conselho de Consumidor | V8: 0.001
B9: CDE Energia: Decreto | C9: 0 | G9: CDE | H9: 69888824.44 | I9: REH 2.864/2021 | S9: 202 | T9: Financeiro de RTP | U9: Conselho de Consumidor | V9: 0.205
B10: TFSEE | C10: 2295732.056 | G10: CFURH | S10: 203 | T10: Financeiro de RTP | U10: Conselho de Consumidor | V10: 0.794
B11: CDE | C11: 70745871.53 | G11: ESS/EER | H11: 24957046.14 | I11: DSP nº 2.690/2021 | L11: Ano | M11: Cota Itaipu
G12: PROINFA | H12: 29123785.25 | I12: ReH 2.815/2020
B13: ESS/ERR | C13: 36020441.2 | G13: ONS | H13: 88632.32143 | I13: Contribuição 2021
B14: PROINFA | C14: 22780919.25 | G14: TFSEE
B15: P&D | C15: 14597447.93 | G15: EER | H15: 22478148.65 | I15: DSP nº 2.690/2021
B16: ONS | C16: 0 | G16: TFSEE Fator de Carga | H16: 0.867
G17: CDE Covid | H17: 112405540.7 | I17: DSP 939/2021
B18: Pmix | C18: 185.0802635 | G18: CDE Covid TUSD%
B19: PN2020 | C19: 0.1999 | D19: Contrato 02/2018 - Cláusula 20, Subclausula 3ª, III | G19: CDE Covid TE%
B20: PN2021 | C20: 0.1999
B21: PT | C21: 0.1115 | D21: REH 2.349/2017 | G21: Informações de Postergação
B22: Perda RB total | C22: 0.0224551698 | L22: Mês | M22: Potência | N22: Tarifa | O22: Perdas | P22: Energia
G23: Tipo | H23: Valor
B24: CVA RB | C24: 17272176.18 | G24: Data Postergada | H24: 44543
B25: CVA CCC | C25: 0 | G25: Data Anterior | H25: 44543
B26: CVA CDE | C26: 27108862.98 | G26: Diferença de Dias | H26: 0
B27: CVA CFURH | G27: MesesAdin | H27: 0
B28: CVA ESS\ERR | C28: -32905868.26 | G28: Reversão Subvenção CDE
B29: CVA PROINFA | C29: -5150910.021 | G29: Data 4CRT | H29: 43060 | I29: 3CRT-26/11/2013(REH1.657/2013)
B30: CVA TRANS. ITAIPU | C30: 0
B31: CVA ENERGIA | C31: -37281767.38
B32: CVA CDE E | C32: -13335695.18
G35: Nome | H35: Valor
G36: TUSDg Export DRP | H36: 12409372.8 | L36: Mês | M36: Potência | N36: Tarifa DRA | O36: Tarifa DRP | P36: Colunas1
G37: TUSDg ONS DRP | H37: 316216.8
G38: TUSDg ONS DRA | H38: 387436.8
B39: Rede Básica | G39: TUSDg Export DRA | H39: 8046435.6
C40: 1939298.961 | D40: Conexão
G42: Fator X | H42: Valor
G43: fatorx_t | H43: 0
B44: Mercado | G44: fatorx_pd | H44: 0
C45: 3365563.29
C46: 1687931794 | G46: DecFec Processo Anterior | H46: Valor
G47: DEC A-2 | H47: 0
B48: 2021 | C48: 76403.61747 | D48: REH 2815/2020-A. III | G48: DEC A-1 | H48: 0
B49: Detalhamento de Encargos ESS e CDE | G49: FEC A-2 | H49: 0
G50: FEC A-1 | H50: 0 | L50: Dado | M50: Valor | N50: Início | O50: Fim
L51: MUST | M51: 9039 | N51: 44013 | O51: 44377
G52: Dados de dólar | H52: Valor | L52: MUST | M52: 7919 | N52: 44378 | O52: 44742
B53: Ciclo de Revisão | C53: 5 | D53: 5 | G53: Dólar médio | H53: 5.555184211 | L53: Potência Max | M53: 11215 | N53: 43831 | O53: 44196
G54: Data Inicial | H54: 44498 | L54: Potência Max | M54: 10935 | N54: 44197 | O54: 44561
G55: Data Final | H55: 44526
G56: Último Dado Diponível | H56: 44526 | L56: Dados de perda | M56: Valor | O56: Agente | P56: Ressarcimento P&D
B57: Subsídios Concedidos (sem ajuste) | L57: Perdas RB | M57: 91097.7321
B58: Mês de Início | C58: Carga Fonte | D58: Geração | E58: Distribuição | F58: Água, Esgoto e Saneamento | G58: Rural | H58: Irrigante/Aquicultor | L58: Perdas DITs | M58: 0
B59: 2020-12-01 | C59: 1112446.303 | D59: 700313.9842 | E59: 0 | F59: 166717.7267 | G59: 2664291.061 | H59: 207547.2367
B60: 2021-12-01 | C60: 1123823.729 | D60: 765491.4808 | E60: 0 | F60: 127935.7975 | G60: 2097135.473 | H60: 217902.865
L62: Informações de DR1
L63: fator PB1 | M63: 1.02037251
L64: Informações de RI
B65: Data | C65: Tipo | D65: Valor | E65: Valor IGPM | F65: Valor IPCA | G65: EixoRef
B66: =DATE(YEAR(CAPA!C10),MONTH(CAPA!C10),1) -> 2021-12-01 | C66: =IF(CAPA!C7="Revisão",1,0) -> 0 | D66: =Resultado!L11 -> 546.0308069 | E66: =IFERROR(VLOOKUP(EDATE($B66,-1),Índices!$B$6:$F$500,2,FALSE)/VLOOKUP(EDATE(MIN($B$67:$B$81),-1),Índices!$B$6:$F$500,2,FALSE)*VLOOKUP(MIN($B$67:$B$81),$B$67:$D$81,3,FALSE),0) -> 907.302535 | F66: =IFERROR(VLOOKUP(EDATE($B66,-1),Índices!$B$6:$F$500,3,FALSE)/VLOOKUP(EDATE(MIN($B$67:$B$81),-1),Índices!$B$6:$F$500,3,FALSE)*VLOOKUP(MIN($B$67:$B$81),$B$67:$D$81,3,FALSE),0) -> 699.1113815 | G66: =IF(B66<>"",150+1,"") -> 151 | L66: Tipo | M66: % RI | O66: Data | P66: Fat Bandeiras
B67: 2020-12-01 | C67: Revisão | D67: 514.38 | L67: PctRIResidencial | M67: 0.00855 | O67: 44166 | P67: 10365829.27
B68: 2019-12-01 | C68: Reajuste | D68: 576.82 | L68: PctRIIndustrial | M68: 0.005 | O68: 44197 | P68: 6109671.28
B69: 2019-04-01 | C69: RTE | D69: 581.37 | L69: PctRICOMERCIAL | M69: 0.00481 | O69: 44228 | P69: 2753855.03
B70: 2018-12-01 | C70: Reajuste | D70: 617.58 | L70: PctRIRURAL | M70: 0.00808 | O70: 44256 | P70: 2717155.87
B71: 2017-11-01 | C71: Reajuste | D71: 494 | L71: PctRILUMPUBLICA | M71: 0.0001 | O71: 44287 | P71: 3010252.35
B72: 2017-04-01 | C72: RTE | D72: 455.67 | L72: PctRIPODERPUBLICO | M72: 0.00112 | O72: 44317 | P72: 6883397.12
B73: 2016-11-01 | C73: Reajuste | D73: 461.05 | L73: PctRISERVPUBLICO | M73: 9e-05 | O73: 44348 | P73: 12182462.72
B74: 2015-11-01 | C74: Reajuste | D74: 492.35 | O74: 44378 | P74: 17765721.94
B75: 2015-03-01 | C75: RTE | D75: 437.32 | L75: Tipo | M75: % RI Anterior | O75: 44409 | P75: 22838452.09
B76: 2014-11-01 | C76: Reajuste | D76: 377.85 | L76: PctRIResidencial | M76: 0.00855 | O76: 44440 | P76: 30793510.12 | Q76: 30793510.12
B77: 2013-11-01 | C77: Revisão | D77: 391.94 | L77: PctRIIndustrial | M77: 0.005 | O77: 44470 | P77: 30793510.12
B78: 2013-01-01 | C78: RTE | D78: 338.62 | L78: PctRICOMERCIAL | M78: 0.00481 | O78: 44501 | P78: 30793510.12
B79: 2012-11-01 | C79: Reajuste | D79: 412.97 | L79: PctRIRURAL | M79: 0.00808
B80: 2011-11-01 | C80: Reajuste | D80: 388.95 | L80: PctRILUMPUBLICA | M80: 0.0001
L81: PctRIPODERPUBLICO | M81: 0.00112
L82: PctRISERVPUBLICO | M82: 9e-05
B84: Tabela de Resumo de Montante DRP ano anterior/ Montante Apurado pelo Mercado
B85: detalhe_grupo | C85: GrupoTarifa | D85: tipoBase | E85: tipofatura | F85: ValorCTAnterior_Sum | G85: ValorAnt_Sum | L85: Prcesso Anterior | N85: RTE
L86: MWh | M86: R$ | N86: MWh | O86: R$ | S86: DthEfetivaPagamento | T86: VlrGarantiaFinanceira
I87: BILATERAL | K87: valor | L87: 461618.4 | M87: 117490345.8 | S87: 44136 | T87: 16757.3
I88: CCEAR-DISP | J88: Existente | K88: valor | L88: 533484.5735 | M88: 153576166.5 | S88: 44166 | T88: 16757.3
I89: CCEAR-DISP | J89: Nova | K89: valor | L89: 586204.6975 | M89: 129047239.3 | S89: 44197 | T89: 16757.3
H90: Belo Monte | I90: CCEAR-QTD | J90: =H90 -> Belo Monte | K90: valor | L90: 190326.3821 | M90: 25548177.02 | S90: 44228 | T90: 16757.3
I91: CCEAR-QTD | J91: Existente | K91: valor | L91: 329964.5529 | M91: 55554451.98 | S91: 44256 | T91: 16632.4
I92: CCEAR-QTD | J92: Madeira | K92: valor | L92: 353050.601 | M92: 49147110.2 | S92: 44287 | T92: 16632.4
I93: CCEAR-QTD | J93: Nova | K93: valor | L93: 364515.541 | M93: 54525172.33 | S93: 44317 | T93: 16632.4
I94: CCEN | K94: valor | L94: 120950.8205 | M94: 32626483.83 | S94: 44348 | T94: 16632.4
I95: CCGF | K95: valor | L95: 866580.4294 | M95: 99451170.2 | S95: 44378 | T95: 17972.28
I96: PROINFA | K96: valor | L96: 72902.01455 | S96: 44409 | T96: 17972.28
I97: SOBRA/EXPOSIÇÃO | K97: valor | L97: 328114.9853 | M97: 61798313.48 | S97: 44440 | T97: 17972.28
S98: 44470 | T98: 17972.28
V105: Empresa | W105: AT | X105: MT | Y105: BT
V106: 167 | W106: 0.02134 | X106: 0.35825 | Y106: 0.62041
V107: 102 | W107: 0.064 | X107: 0.32003 | Y107: 0.61596
V108: 103 | W108: 0.02996 | X108: 0.27106 | Y108: 0.69898
V109: 104 | W109: 0.07171 | X109: 0.2909 | Y109: 0.63739
V110: 105 | W110: 0.00823 | X110: 0.24677 | Y110: 0.745
I111: Agente | J111: idagente | K111: indexador | L111: database | M111: RAP do ciclo | N111: Colunas1 | O111: RAP atualizada | V111: 165 | W111: 0.00795 | X111: 0.22554 | Y111: 0.76651
O112: =M112*VLOOKUP(CAPA!C15,Índices!$B$6:$F$626,IF(BD!K112="IPCA",3,2),FALSE)/VLOOKUP(L112,Índices!$B$6:$F$626,IF(BD!K112="IPCA",3,2),FALSE) ->  | V112: 108 | W112: 0.06098 | X112: 0.1711 | Y112: 0.76792
O113: =M113*VLOOKUP(CAPA!C16,Índices!$B$6:$F$626,IF(BD!K113="IPCA",3,2),FALSE)/VLOOKUP(L113,Índices!$B$6:$F$626,IF(BD!K113="IPCA",3,2),FALSE) ->  | V113: 109 | W113: 0.01034 | X113: 0.24366 | Y113: 0.746
O114: =M114*VLOOKUP(CAPA!C17,Índices!$B$6:$F$626,IF(BD!K114="IPCA",3,2),FALSE)/VLOOKUP(L114,Índices!$B$6:$F$626,IF(BD!K114="IPCA",3,2),FALSE) ->  | V114: 110 | W114: 0.01165 | X114: 0.24322 | Y114: 0.74513
O115: =M115*VLOOKUP(CAPA!C18,Índices!$B$6:$F$626,IF(BD!K115="IPCA",3,2),FALSE)/VLOOKUP(L115,Índices!$B$6:$F$626,IF(BD!K115="IPCA",3,2),FALSE) ->  | V115: 111 | W115: 0.03791 | X115: 0.37961 | Y115: 0.58248
O116: =M116*VLOOKUP(CAPA!C19,Índices!$B$6:$F$626,IF(BD!K116="IPCA",3,2),FALSE)/VLOOKUP(L116,Índices!$B$6:$F$626,IF(BD!K116="IPCA",3,2),FALSE) ->  | V116: 112 | W116: 0.02273 | X116: 0.26361 | Y116: 0.71367
O117: =M117*VLOOKUP(CAPA!C20,Índices!$B$6:$F$626,IF(BD!K117="IPCA",3,2),FALSE)/VLOOKUP(L117,Índices!$B$6:$F$626,IF(BD!K117="IPCA",3,2),FALSE) ->  | V117: 113 | W117: 0.01263 | X117: 0.23345 | Y117: 0.75392
O118: =M118*VLOOKUP(CAPA!C21,Índices!$B$6:$F$626,IF(BD!K118="IPCA",3,2),FALSE)/VLOOKUP(L118,Índices!$B$6:$F$626,IF(BD!K118="IPCA",3,2),FALSE) ->  | V118: 114 | W118: 0.01726 | X118: 0.23794 | Y118: 0.7448
O119: =M119*VLOOKUP(CAPA!C22,Índices!$B$6:$F$626,IF(BD!K119="IPCA",3,2),FALSE)/VLOOKUP(L119,Índices!$B$6:$F$626,IF(BD!K119="IPCA",3,2),FALSE) ->  | V119: 115 | W119: 0.00993 | X119: 0.23087 | Y119: 0.7592
O120: =M120*VLOOKUP(CAPA!C23,Índices!$B$6:$F$626,IF(BD!K120="IPCA",3,2),FALSE)/VLOOKUP(L120,Índices!$B$6:$F$626,IF(BD!K120="IPCA",3,2),FALSE) ->  | S120: iddet1 | T120: valor | V120: 116 | W120: 0.00806 | X120: 0.16835 | Y120: 0.82359
O121: =M121*VLOOKUP(CAPA!C24,Índices!$B$6:$F$626,IF(BD!K121="IPCA",3,2),FALSE)/VLOOKUP(L121,Índices!$B$6:$F$626,IF(BD!K121="IPCA",3,2),FALSE) ->  | S121: 56 | T121: 44519 | V121: 117 | W121: 0.03028 | X121: 0.29131 | Y121: 0.67841
O122: =M122*VLOOKUP(CAPA!C25,Índices!$B$6:$F$626,IF(BD!K122="IPCA",3,2),FALSE)/VLOOKUP(L122,Índices!$B$6:$F$626,IF(BD!K122="IPCA",3,2),FALSE) ->  | S122: 57 | T122: 44515 | V122: 118 | W122: 0.04215 | X122: 0.2081 | Y122: 0.74975
O123: =M123*VLOOKUP(CAPA!C26,Índices!$B$6:$F$626,IF(BD!K123="IPCA",3,2),FALSE)/VLOOKUP(L123,Índices!$B$6:$F$626,IF(BD!K123="IPCA",3,2),FALSE) ->  | S123: 58 | T123: 44470 | V123: 119 | W123: 0.01807 | X123: 0.11713 | Y123: 0.8648
O124: =M124*VLOOKUP(CAPA!C27,Índices!$B$6:$F$626,IF(BD!K124="IPCA",3,2),FALSE)/VLOOKUP(L124,Índices!$B$6:$F$626,IF(BD!K124="IPCA",3,2),FALSE) ->  | V124: 120 | W124: - | X124: 0.17688 | Y124: 0.82312
O125: =M125*VLOOKUP(CAPA!C28,Índices!$B$6:$F$626,IF(BD!K125="IPCA",3,2),FALSE)/VLOOKUP(L125,Índices!$B$6:$F$626,IF(BD!K125="IPCA",3,2),FALSE) ->  | V125: 123 | W125: - | X125: 0.13612 | Y125: 0.86388
O126: =M126*VLOOKUP(CAPA!C29,Índices!$B$6:$F$626,IF(BD!K126="IPCA",3,2),FALSE)/VLOOKUP(L126,Índices!$B$6:$F$626,IF(BD!K126="IPCA",3,2),FALSE) ->  | V126: 166 | W126: 0.04257 | X126: 0.29652 | Y126: 0.66092
O127: =M127*VLOOKUP(CAPA!C30,Índices!$B$6:$F$626,IF(BD!K127="IPCA",3,2),FALSE)/VLOOKUP(L127,Índices!$B$6:$F$626,IF(BD!K127="IPCA",3,2),FALSE) ->  | V127: 128 | W127: - | X127: 0.40427 | Y127: 0.59573
O128: =M128*VLOOKUP(CAPA!C31,Índices!$B$6:$F$626,IF(BD!K128="IPCA",3,2),FALSE)/VLOOKUP(L128,Índices!$B$6:$F$626,IF(BD!K128="IPCA",3,2),FALSE) ->  | V128: 129 | W128: 0.02905 | X128: 0.24895 | Y128: 0.722
O129: =M129*VLOOKUP(CAPA!C32,Índices!$B$6:$F$626,IF(BD!K129="IPCA",3,2),FALSE)/VLOOKUP(L129,Índices!$B$6:$F$626,IF(BD!K129="IPCA",3,2),FALSE) ->  | V129: 130 | W129: 0.0175 | X129: 0.14397 | Y129: 0.83853
O130: =M130*VLOOKUP(CAPA!C33,Índices!$B$6:$F$626,IF(BD!K130="IPCA",3,2),FALSE)/VLOOKUP(L130,Índices!$B$6:$F$626,IF(BD!K130="IPCA",3,2),FALSE) ->  | S130: Nível | T130: Mercado Faturado A-6 | V130: 131 | W130: - | X130: 0.30099 | Y130: 0.69901
O131: =M131*VLOOKUP(CAPA!C34,Índices!$B$6:$F$626,IF(BD!K131="IPCA",3,2),FALSE)/VLOOKUP(L131,Índices!$B$6:$F$626,IF(BD!K131="IPCA",3,2),FALSE) ->  | S131: AT | T131: 35866.134 | V131: 132 | W131: 0.02757 | X131: 0.26424 | Y131: 0.70819
O132: =M132*VLOOKUP(CAPA!C35,Índices!$B$6:$F$626,IF(BD!K132="IPCA",3,2),FALSE)/VLOOKUP(L132,Índices!$B$6:$F$626,IF(BD!K132="IPCA",3,2),FALSE) ->  | S132: BT | T132: 2069414.143 | V132: 133 | W132: 0.01856 | X132: 0.19536 | Y132: 0.78608
S133: MT | T133: 828501.964 | V133: 135 | W133: 0.04788 | X133: 0.27054 | Y133: 0.68158
V134: 136 | W134: 0.06732 | X134: 0.35547 | Y134: 0.57721
V135: 138 | W135: - | X135: 0.07651 | Y135: 0.92349
V136: 139 | W136: - | X136: 0.35483 | Y136: 0.64517
V137: 140 | W137: 0.01004 | X137: 0.21058 | Y137: 0.77938
V138: 143 | W138: - | X138: 0.20409 | Y138: 0.79591
V139: 144 | W139: - | X139: 0.48131 | Y139: 0.51869
A140: NumBar | B140: Nome Conexão | C140: Tensão | D140: Posto Tarifário | E140: Tarifas RB - DRA | F140: Tarifa RB - DRP | G140: Tarifas Fronteira - DRA | H140: Tarifa Fronteira - DRP | I140: M01 | J140: M02 | K140: M03 | L140: M04 | M140: M05 | N140: M06 | O140: M07 | P140: M08 | Q140: M09 | R140: M10 | S140: M11 | T140: M12 | V140: 145 | W140: 0.03725 | X140: 0.29306 | Y140: 0.66969
A141: 6935 | B141: ABUNA - 13,8 kV (A) | C141: 13,8 | D141: Ponta | E141: 3268 | F141: 2470 | G141: 3123 | H141: 4166 | I141: 1.45 | J141: 1.52 | K141: 1.52 | L141: 1.52 | M141: 1.52 | N141: 1.52 | O141: 1.52 | P141: 1.52 | Q141: 1.52 | R141: 1.52 | S141: 1.52 | T141: 1.52 | W141: - | X141: 0.14124 | Y141: 0.85876
A142: 6931 | B142: ABUNA - 138 kV (A) | C142: 138 | D142: Ponta | E142: 3268 | F142: 2470 | G142: 3123 | H142: 4166 | I142: 34.32 | J142: 36.39 | K142: 36.39 | L142: 36.39 | M142: 36.39 | N142: 36.39 | O142: 36.39 | P142: 32.751 | Q142: 32.751 | R142: 32.751 | S142: 32.751 | T142: 32.751 | V142: 147 | W142: - | X142: 0.20977 | Y142: 0.79023
B143: JARU - 138 kV (A) | C143: 138 | D143: Ponta | F143: 3210 | H143: 5555 | I143: 0 | J143: 0 | K143: 0 | L143: 0 | M143: 0 | N143: 0 | O143: 5.454 | P143: 16.362 | Q143: 16.362 | R143: 16.362 | S143: 16.362 | T143: 16.362 | V143: 148 | W143: 0.03455 | X143: 0.23757 | Y143: 0.72788
A144: 6841 | B144: JI-PARANA - 138 kV (A) | C144: 138 | D144: Ponta | E144: 4143 | F144: 3249 | G144: 346 | H144: 470 | I144: 112.6 | J144: 119.4 | K144: 119.4 | L144: 119.4 | M144: 119.4 | N144: 119.4 | O144: 119.4 | P144: 118.34 | Q144: 118.34 | R144: 118.34 | S144: 118.34 | T144: 118.34 | V144: 149 | W144: - | X144: 0.17399 | Y144: 0.82601
A145: 6821 | B145: PIMENTA BUENO - 138 kV (A) | C145: 138 | D145: Ponta | E145: 4087 | F145: 3296 | G145: 1637 | H145: 2115 | I145: 25.2 | J145: 25.2 | K145: 25.2 | L145: 25.2 | M145: 25.2 | N145: 25.2 | O145: 25.2 | P145: 22.68 | Q145: 22.68 | R145: 22.68 | S145: 22.68 | T145: 22.68 | V145: 150 | W145: 0.03635 | X145: 0.17413 | Y145: 0.78952
B146: SAMUEL - 230 kV (A) | C146: 230 | D146: Ponta | F146: 0 | H146: 0 | I146: 0 | J146: 0 | K146: 0 | L146: 0 | M146: 0 | N146: 0 | O146: 0 | P146: 0 | Q146: 0 | R146: 0 | S146: 0 | T146: 0 | V146: 151 | W146: 0.02735 | X146: 0.28351 | Y146: 0.68915
A147: 6881 | B147: ARIQUEMES - 69 kV (A) | C147: 69 | D147: Ponta | E147: 3784 | F147: 2892 | G147: 1524 | H147: 1769 | I147: 67.16 | J147: 71.21 | K147: 71.21 | L147: 71.21 | M147: 71.21 | N147: 71.21 | O147: 71.21 | P147: 70.287 | Q147: 70.287 | R147: 70.287 | S147: 70.287 | T147: 70.287 | V147: 152 | W147: 0.00215 | X147: 0.1412 | Y147: 0.85665
A148: 6871 | B148: JARU - 69 kV (A) | C148: 69 | D148: Ponta | E148: 4066 | F148: 3210 | G148: 7820 | H148: 6857 | I148: 27 | J148: 33.428 | K148: 33.428 | L148: 33.428 | M148: 33.428 | N148: 33.428 | O148: 33.428 | P148: 33.428 | Q148: 33.428 | R148: 33.428 | S148: 33.428 | T148: 33.428 | V148: 153 | W148: 0.03606 | X148: 0.17601 | Y148: 0.78793
A149: 6842 | B149: JI-PARANA - 69 kV (A) | C149: 69 | D149: Ponta | E149: 4143 | F149: 3249 | G149: 1698 | H149: 1978 | I149: 108.4 | J149: 115 | K149: 115 | L149: 115 | M149: 115 | N149: 115 | O149: 115 | P149: 109.25 | Q149: 109.25 | R149: 109.25 | S149: 109.25 | T149: 109.25 | V149: 154 | W149: 0.12913 | X149: 0.26626 | Y149: 0.60462
A150: 6901 | B150: PORTO VELHO - 69 kV (A) | C150: 69 | D150: Ponta | E150: 3061 | F150: 2262 | G150: 659 | H150: 981 | I150: 293.75 | J150: 311.5 | K150: 311.5 | L150: 311.5 | M150: 311.5 | N150: 311.5 | O150: 311.5 | P150: 284.114 | Q150: 284.114 | R150: 284.114 | S150: 284.114 | T150: 284.114 | V150: 155 | W150: 0.04008 | X150: 0.23225 | Y150: 0.72768
A151: 6863 | B151: UHE JIRAU - 69 kV (A) | C151: 69 | D151: Ponta | E151: 3167 | F151: 2378 | H151: 0 | I151: 9.56 | J151: 10.13 | K151: 10.13 | L151: 10.13 | M151: 10.13 | N151: 10.13 | O151: 10.13 | P151: 9.117 | Q151: 9.117 | R151: 9.117 | S151: 9.117 | T151: 9.117 | V151: 156 | W151: - | X151: 0.35985 | Y151: 0.64015
A152: 6801 | B152: VILHENA - 69 kV (A) | C152: 69 | D152: Ponta | E152: 4030 | F152: 3398 | G152: 717 | H152: 969 | I152: 41.7 | J152: 44.2 | K152: 44.2 | L152: 44.2 | M152: 44.2 | N152: 44.2 | O152: 44.2 | P152: 39.78 | Q152: 39.78 | R152: 39.78 | S152: 39.78 | T152: 39.78 | V152: 157 | W152: - | X152: 0.15963 | Y152: 0.84037
A153: 6935 | B153: ABUNA - 13,8 kV (A) | C153: 13,8 | D153: Fora Ponta | E153: 2904 | F153: 1791 | G153: 3123 | H153: 4166 | I153: 1.62 | J153: 1.651 | K153: 1.651 | L153: 1.651 | M153: 1.651 | N153: 1.651 | O153: 1.651 | P153: 1.651 | Q153: 1.651 | R153: 1.651 | S153: 1.651 | T153: 1.651 | V153: 158 | W153: - | X153: 0.33049 | Y153: 0.66951
A154: 6931 | B154: ABUNA - 138 kV (A) | C154: 138 | D154: Fora Ponta | E154: 2904 | F154: 1791 | G154: 3123 | H154: 4166 | I154: 36.1 | J154: 38.26 | K154: 38.26 | L154: 38.26 | M154: 38.26 | N154: 38.26 | O154: 38.26 | P154: 34.434 | Q154: 34.434 | R154: 34.434 | S154: 34.434 | T154: 34.434 | V154: 160 | W154: 0.1013 | X154: 0.22818 | Y154: 0.67051
B155: JARU - 138 kV (A) | C155: 138 | D155: Fora Ponta | F155: 2721 | H155: 5555 | I155: 0 | J155: 0 | K155: 0 | L155: 0 | M155: 0 | N155: 0 | O155: 6.006 | P155: 18.018 | Q155: 18.018 | R155: 18.018 | S155: 18.018 | T155: 18.018 | V155: 161 | W155: - | X155: 0.28355 | Y155: 0.71645
A156: 6841 | B156: JI-PARANA - 138 kV (A) | C156: 138 | D156: Fora Ponta | E156: 3986 | F156: 2792 | G156: 346 | H156: 470 | I156: 123.9 | J156: 131.4 | K156: 131.4 | L156: 131.4 | M156: 131.4 | N156: 131.4 | O156: 131.4 | P156: 126.56 | Q156: 126.56 | R156: 126.56 | S156: 126.56 | T156: 126.56 | V156: 163 | W156: 0.03507 | X156: 0.1664 | Y156: 0.79853
A157: 6821 | B157: PIMENTA BUENO - 138 kV (A) | C157: 138 | D157: Fora Ponta | E157: 3928 | F157: 2871 | G157: 1637 | H157: 2115 | I157: 28.35 | J157: 30 | K157: 30 | L157: 30 | M157: 30 | N157: 30 | O157: 30 | P157: 27 | Q157: 27 | R157: 27 | S157: 27 | T157: 27 | V157: 164 | W157: - | X157: 0.12897 | Y157: 0.87103
B158: SAMUEL - 230 kV (A) | C158: 230 | D158: Fora Ponta | F158: 0 | H158: 0 | I158: 0 | J158: 0 | K158: 0 | L158: 0 | M158: 0 | N158: 0 | O158: 0 | P158: 0 | Q158: 0 | R158: 0 | S158: 0 | T158: 0
A159: 6881 | B159: ARIQUEMES - 69 kV (A) | C159: 69 | D159: Fora Ponta | E159: 3553 | F159: 2337 | G159: 1524 | H159: 1769 | I159: 76.54 | J159: 81.15 | K159: 81.15 | L159: 81.15 | M159: 81.15 | N159: 81.15 | O159: 81.15 | P159: 73.035 | Q159: 73.035 | R159: 73.035 | S159: 73.035 | T159: 73.035
A160: 6871 | B160: JARU - 69 kV (A) | C160: 69 | D160: Fora Ponta | E160: 3891 | F160: 2721 | G160: 7820 | H160: 6857 | I160: 31 | J160: 33.496 | K160: 33.496 | L160: 33.496 | M160: 33.496 | N160: 33.496 | O160: 33.496 | P160: 33.496 | Q160: 33.496 | R160: 33.496 | S160: 33.496 | T160: 33.496
A161: 6842 | B161: JI-PARANA - 69 kV (A) | C161: 69 | D161: Fora Ponta | E161: 3986 | F161: 2792 | G161: 1698 | H161: 1978 | I161: 116.3 | J161: 123.3 | K161: 123.3 | L161: 123.3 | M161: 123.3 | N161: 123.3 | O161: 123.3 | P161: 110.97 | Q161: 110.97 | R161: 110.97 | S161: 110.97 | T161: 110.97
A162: 6901 | B162: PORTO VELHO - 69 kV (A) | C162: 69 | D162: Fora Ponta | E162: 2672 | F162: 1546 | G162: 659 | H162: 981 | I162: 304.2 | J162: 322.6 | K162: 322.6 | L162: 322.6 | M162: 322.6 | N162: 322.6 | O162: 322.6 | P162: 290.34 | Q162: 290.34 | R162: 290.34 | S162: 290.34 | T162: 290.34
A163: 6863 | B163: UHE JIRAU - 69 kV (A) | C163: 69 | D163: Fora Ponta | E163: 2791 | F163: 1682 | H163: 0 | I163: 9.41 | J163: 9.98 | K163: 9.98 | L163: 9.98 | M163: 9.98 | N163: 9.98 | O163: 9.98 | P163: 8.982 | Q163: 8.982 | R163: 8.982 | S163: 8.982 | T163: 8.982
A164: 6801 | B164: VILHENA - 69 kV (A) | C164: 69 | D164: Fora Ponta | E164: 3869 | F164: 3017 | G164: 717 | H164: 969 | I164: 53.3 | J164: 56.5 | K164: 56.5 | L164: 56.5 | M164: 56.5 | N164: 56.5 | O164: 56.5 | P164: 50.85 | Q164: 50.85 | R164: 50.85 | S164: 50.85 | T164: 50.85
B441: Transmissora | C441: Indice de atualização | D441: ENCARGO DE CONEXÃO repassável | E441: Instalações com Estabelecimento de RAP que entraram em operação | F441: PA para repasse a tarifa | G441: PA Qualidade DIT | H441: ENCARGO DE CONEXÃO ou PA não rapassável a tarifa (REN 67/2004 ou 68/2004) | I441: PA Empreendimento Autorizado sem estabelecimento prévio de RAP | J441: Contrato | K441: Estimativa Total do Encargo de Conexão
B442: ARGO III | C442: IPCA | D442: 1072066.083 | E442: 0 | F442: 0 | G442: 0 | H442: 208314.1205 | I442: 0 | J442: 049/2017
B443: ELETRONORTE | C443: IPCA | D443: 1212688.78 | E443: 0 | F443: 967112.73 | G443: 0 | H443: 0 | I443: 0 | J443: 058/2001
B457: Tabela de Financeiros para o cálculo da Neutralidade | G457: Tabela de Financeiros para o cálculo da Neutralidade de RB | M457: Tabela de Financeiros para o cálculo da Neutralidade CVA processamento
B458: Grupo Tarifa | C458: Detalhe Grupo | D458: Valor | E458: Percentual | G458: Tipo | H458: Detalhe | I458: Posto | J458: Unidade | K458: Valor | M458: Grupo Tarifa | N458: Detalhe Grupo | O458: Valor | P458: Percentual
B459: ENCARGO | C459: CDE | D459: -3315182.353 | G459: CUSTO | H459: CONEXÃO D | J459: R$ | K459: 0 | M459: ENCARGO | N459: CDE | O459: 26176889.87
B460: ENCARGO | C460: CDE Energia | D460: 112112.1518 | G460: CUSTO | H460: CONEXÃO T | J460: R$ | K460: 1939298.961 | M460: ENCARGO | N460: CDE Energia | O460: -13472152.09
B461: ENCARGO | C461: ESS/ERR | D461: 642973.116 | G461: CUSTO | H461: EUSD | J461: R$ | K461: 0 | M461: ENCARGO | N461: ESS/ERR | O461: -33289932.03
B462: ENCARGO | C462: ONS | D462: 248.7480719 | G462: CUSTO | H462: EUST - FR | J462: R$ | K462: 22804457.03 | M462: ENCARGO | N462: PROINFA | O462: -4975952.613
B463: ENCARGO | C463: P&D | D463: -7463.295256 | G463: CUSTO | H463: EUST - ITAIPU | J463: R$ | K463: 0 | M463: ENERGIA | N463: ENERGIA REQUERIDA SEM PERDAS | O463: -28412536.5
B464: ENCARGO | C464: PROINFA | D464: -1602198.918 | G464: CUSTO | H464: EUST - RB | J464: R$ | K464: 61928594.92 | M464: ENERGIA | N464: PERDAS NA RB (sobre as perdas na D) | O464: -196891.5432
B465: ENCARGO | C465: TFSEE | D465: -85032.15785 | G465: CUSTO | H465: TRANSPORTE ITAIPU | J465: R$ | K465: 0 | M465: ENERGIA | N465: PERDAS NA RB (sobre o mercado cativo) | O465: -638008.3318
B466: ENERGIA | C466: ENERGIA REQUERIDA SEM PERDAS | D466: -55425919.83 | G466: CUSTO | H466: TUSDg ONS (A2) | J466: R$ | K466: 387436.8 | M466: ENERGIA | N466: PERDAS NÃO TÉCNICAS | O466: -4400166.911
B467: ENERGIA | C467: PERDAS NA RB (sobre as perdas na D) | D467: -384087.3161 | G467: CUSTO | H467: TUSDg T (A2) | J467: R$ | K467: 8046435.6 | M467: ENERGIA | N467: PERDAS TÉCNICAS | O467: -4368038.582
B468: ENERGIA | C468: PERDAS NA RB (sobre o mercado cativo) | D468: -1244598.441 | G468: PARÂMETRO | I468: FORA PONTA | J468: MW | K468: 9282.395 | M468: TRANSPORTE TERCEIROS | N468: EUST - RB | O468: 16050177.82
B469: ENERGIA | C469: PERDAS NÃO TÉCNICAS | D469: -8583651.038 | G469: PARÂMETRO | I469: PONTA | J469: MW | K469: 8560.965
B470: ENERGIA | C470: PERDAS TÉCNICAS | D470: -8520976.514 | G470: PARÂMETRO | H470: EUST - FR | I470: FORA PONTA | J470: R$ | K470: 11935491.77
B471: ENERGIA | C471: reservado para energia | D471: -1952579.368 | G471: PARÂMETRO | H471: EUST - FR | I471: PONTA | J471: R$ | K471: 10868965.26
B472: Receita Irrecuperável | D472: -345919.7752 | G472: PARÂMETRO | H472: EUST - RB | I472: FORA PONTA | J472: R$ | K472: 31096594.79
B473: TRANSPORTE TERCEIROS | C473: CONEXÃO T | D473: -39468.63732 | G473: PARÂMETRO | H473: EUST - RB | I473: PONTA | J473: R$ | K473: 30832000.13
B474: TRANSPORTE TERCEIROS | C474: EUST - FR | D474: 859732.4536
B475: TRANSPORTE TERCEIROS | C475: EUST - RB | D475: 600916.3368
B476: TRANSPORTE TERCEIROS | C476: TUSDg ONS (A2) | D476: 34615.10789
B477: TRANSPORTE TERCEIROS | C477: TUSDg T (A2) | D477: 624142.8955
B478: Parcela B | D478: -7190529.31
G479: Tabela CUSTOS_BE_FR_ONS_T
G480: Nome | H480: Valor
G481: BE_TUSDG_ONS | H481: 245376
G482: BE_TUSDG_T | H482: 9639954
G483: BE_TUSD_FR | H483: 21352999.43
G484: Evento | H484: 0
B552: Empresa | C552: idsgtag | D552: dtConv | E552: VlrMontante | F552: VlrTarOutros | G552: VlrTarB4a | H552: VlrTarB4b
B553: CERON | C553: 120 | D553: 20422 | E553: 30342.43 | F553: 0.4408758507 | G553: 0.2336642009 | H553: 0.2645255104
C554: 114 | F554: 0.39 | G554: 0.21 | H554: 0.23
B559: Grupo Tarifa | C559: Detalhe Grupo | D559: Det3 | E559: Valor | G559: Grupo Tarifa | H559: Detalhe Grupo | I559: Det3 | J559: Valor
B560: ENCARGO | C560: CDE | D560: Covid CVA Saldo a Compensar | E560: 2232634.019 | G560: ENCARGO | H560: CDE | I560: Covid CVA | J560: -1209363.347
B561: ENCARGO | C561: CDE | D561: Covid Neutralidade | E561: -761675.2283 | G561: ENCARGO | H561: ESS/ERR | I561: Covid CVA | J561: -47355.93417
B562: ENCARGO | C562: CDE Energia | D562: Covid Neutralidade | E562: -1.564811937e-06 | G562: ENCARGO | H562: PROINFA | I562: Covid CVA | J562: 227663.8675
B563: ENCARGO | C563: ESS/ERR | D563: Covid CVA Saldo a Compensar | E563: 1227877.196 | G563: ENERGIA | H563: ENERGIA REQUERIDA SEM PERDAS | I563: Covid CVA | J563: -263373.3375
B564: ENCARGO | C564: ESS/ERR | D564: Covid Neutralidade | E564: -209408.5342 | G564: ENERGIA | H564: PERDAS NA RB (sobre as perdas na D) | I564: Covid CVA | J564: -1825.109239
B565: ENCARGO | C565: ONS | D565: Covid Neutralidade | E565: 32.23388433 | G565: ENERGIA | H565: PERDAS NA RB (sobre o mercado cativo) | I565: Covid CVA | J565: -5914.093016
B566: ENCARGO | C566: PROINFA | D566: Covid CVA Saldo a Compensar | E566: -268529.5055 | G566: ENERGIA | H566: PERDAS NÃO TÉCNICAS | I566: Covid CVA | J566: -40787.86295
B567: ENCARGO | C567: PROINFA | D567: Covid Neutralidade | E567: -146569.2035 | G567: ENERGIA | H567: PERDAS TÉCNICAS | I567: Covid CVA | J567: -40490.04563
B568: ENCARGO | C568: TFSEE | D568: Covid Neutralidade | E568: -11141.55103 | G568: TRANSPORTE TERCEIROS | H568: EUST - RB | I568: Covid CVA | J568: -1398735.145
B569: ENERGIA | C569: ENERGIA REQUERIDA SEM PERDAS | D569: Covid CVA Saldo a Compensar | E569: -4165607.151
B570: ENERGIA | C570: ENERGIA REQUERIDA SEM PERDAS | D570: Covid Demais Componentes | E570: -8144279.965
B571: ENERGIA | C571: PERDAS NA RB (sobre as perdas na D) | D571: Covid CVA Saldo a Compensar | E571: -28866.5822
B572: ENERGIA | C572: PERDAS NA RB (sobre as perdas na D) | D572: Covid Demais Componentes | E572: -56437.75769
B573: ENERGIA | C573: PERDAS NA RB (sobre o mercado cativo) | D573: Covid CVA Saldo a Compensar | E573: -93539.41592
B574: ENERGIA | C574: PERDAS NA RB (sobre o mercado cativo) | D574: Covid Demais Componentes | E574: -182881.1895
... 6 more rows

Sheet Entrada
B1: Entrada de parâmetros para cálculo tarifário
B4: Energia | D4: Últ. Atualização | F4: Parâmetros para Revisão | P4: ="Caso de OR para a empresa é: " &IF(BD!C53=4,"caso 1","caso 3") -> Caso de OR para a empresa é: caso 3
D6: 44482 | F6: CAPEX - Ativos de Distribuição | J6: Custo Operacional Real do(s) último(s) ano(s) | P6: Outras Receitas - Caso 1 e 2
B7: Montante de Geração Própria | D7: 44482 | F7: (1) Ativo Imobilizado em Serviço (Valor Novo de Reposição) | G7: =G71*VLOOKUP(DATE(YEAR(CAPA!$C$10),MONTH(CAPA!$C$10)-1,1),Índices!$B$135:$D$638,3,0)/VLOOKUP(DATE(YEAR($G$70),MONTH($G$70)-1,1),Índices!$B$135:$D$638,3,0) ->  | J7: Ano do Custo Operacional | P7: Tipo de Receita | Q7: =UDEROR!G12 -> 2021-11-01 | R7: =UDEROR!H12 -> 2021-10-01 | S7: =UDEROR!I12 -> 2021-09-01 | T7: =UDEROR!J12 -> 2021-08-01 | U7: =UDEROR!K12 -> 2021-07-01 | V7: =UDEROR!L12 -> 2021-06-01 | W7: =UDEROR!M12 -> 2021-05-01 | X7: =UDEROR!N12 -> 2021-04-01 | Y7: =UDEROR!O12 -> 2021-03-01 | Z7: =UDEROR!P12 -> 2021-02-01 | AA7: =UDEROR!Q12 -> 2021-01-01 | AB7: =UDEROR!R12 -> 2020-12-01 | AC7: =UDEROR!S12 -> 00:00:00 | AD7: =UDEROR!T12 -> 00:00:00 | AE7: =UDEROR!U12 -> 00:00:00 | AF7: =UDEROR!V12 -> 00:00:00 | AG7: =UDEROR!W12 -> 00:00:00 | AH7: =UDEROR!X12 -> 00:00:00 | AI7: =UDEROR!Y12 -> 00:00:00 | AJ7: =UDEROR!Z12 -> 00:00:00 | AK7: =UDEROR!AA12 -> 00:00:00 | AL7: =UDEROR!AB12 -> 00:00:00 | AM7: =UDEROR!AC12 -> 00:00:00 | AN7: =UDEROR!AD12 -> 00:00:00 | AO7: =UDEROR!AE12 -> 00:00:00 | AP7: =UDEROR!AF12 -> 00:00:00 | AQ7: =UDEROR!AG12 -> 00:00:00 | AR7: =UDEROR!AH12 -> 00:00:00 | AS7: =UDEROR!AI12 -> 00:00:00 | AT7: =UDEROR!AJ12 -> 00:00:00 | AU7: =UDEROR!AK12 -> 00:00:00 | AV7: =UDEROR!AL12 -> 00:00:00 | AW7: =UDEROR!AM12 -> 00:00:00 | AX7: =UDEROR!AN12 -> 00:00:00 | AY7: =UDEROR!AO12 -> 00:00:00 | AZ7: =UDEROR!AP12 -> 00:00:00 | BA7: =UDEROR!AQ12 -> 00:00:00 | BB7: =UDEROR!AR12 -> 00:00:00 | BC7: =UDEROR!AS12 -> 00:00:00 | BD7: =UDEROR!AT12 -> 00:00:00
B8: Custo médio da Geração Própria | D8: 44482 | F8: (2) Índice de Aproveitamento Integral | G8: =G72*VLOOKUP(DATE(YEAR(CAPA!$C$10),MONTH(CAPA!$C$10)-1,1),Índices!$B$135:$D$638,3,0)/VLOOKUP(DATE(YEAR($G$70),MONTH($G$70)-1,1),Índices!$B$135:$D$638,3,0) ->  | J8: CONTA PESSOAL | P8: Serviços Cobráveis | Q8: 473850.92 | R8: 473850.92 | S8: 229820.01 | T8: 677027.17 | U8: 347905.64 | V8: 322872.91 | W8: 272940.88 | X8: 244892.6 | Y8: 243244.47 | Z8: 154890.94 | AA8: 102262.27 | AB8: 61643.89
D9: 44482 | F9: (3) Obrigações Especiais Bruta | G9: =G73*VLOOKUP(DATE(YEAR(CAPA!$C$10),MONTH(CAPA!$C$10)-1,1),Índices!$B$135:$D$638,3,0)/VLOOKUP(DATE(YEAR($G$70),MONTH($G$70)-1,1),Índices!$B$135:$D$638,3,0) ->  | J9: BMP - 610530501; 610550501; 610532501; 610552501 | K9: Remuneração | P9: Arrecadação de convênios ou valores pela fatura
D10: 44482 | F10: (4) Bens Totalmente Depreciados | G10: =G74*VLOOKUP(DATE(YEAR(CAPA!$C$10),MONTH(CAPA!$C$10)-1,1),Índices!$B$135:$D$638,3,0)/VLOOKUP(DATE(YEAR($G$70),MONTH($G$70)-1,1),Índices!$B$135:$D$638,3,0) ->  | J10: BMP - 610530502; 610550502; 610532502; 610552502 | K10: Encargos | P10: Arrecadação de faturas de terceiros por estrutura própria
F11: (5) Base de Remuneração Bruta = (1)-(2)-(3)-(4) | G11: =G7-G8-G9-G10 ->  | J11: BMP - 610530503; 610550503; 610532503; 610552503 | K11: Previdência Privada - Corrente | P11: Veiculação de publicidade
F12: (6) Depreciação Acumulada | G12: =G76*VLOOKUP(DATE(YEAR(CAPA!$C$10),MONTH(CAPA!$C$10)-1,1),Índices!$B$135:$D$638,3,0)/VLOOKUP(DATE(YEAR($G$70),MONTH($G$70)-1,1),Índices!$B$135:$D$638,3,0) ->  | J12: BMP - 610530508; 610550508; 610532508; 610552508 | K12: Outros Benefícios | P12: Aluguel ou cessão onerosa de imóveis e espaços físicos
F13: (7) AIS Líquido (Valor de Mercado em Uso) | G13: =G7-G12 ->  | J13: BMP - 610530506; 610550506; 610532506; 610552506 | K13: Despesas Rescisórias | P13: Compartilhamento de infraestrutura | Q13: 971259.8 | R13: 971259.8 | S13: 7767839.66 | T13: 512305.77 | U13: 513694.95 | V13: 509291.61 | W13: 506786.63 | X13: 485260.75 | Y13: 458479.37 | Z13: 394171.26 | AA13: 392073.77 | AB13: 167126.75
F14: (8) Índice de Aproveitamento Depreciado | G14: =G78*VLOOKUP(DATE(YEAR(CAPA!$C$10),MONTH(CAPA!$C$10)-1,1),Índices!$B$135:$D$638,3,0)/VLOOKUP(DATE(YEAR($G$70),MONTH($G$70)-1,1),Índices!$B$135:$D$638,3,0) ->  | J14: BMP - 610530507; 610550507; 610532507; 610552507 | K14: Participação nos Lucros e Resultados - PLR | P14: Serviços de avaliação técnica e aferição de medidores.
F15: (9) Valor da Base de Remuneração (VBR) | G15: =G13-G14 ->  | J15: BMP - 610530599; 610550599; 610532599; 610552599 | K15: Outros | P15: Operacionalização de serviço de créditos tributários
F16: (10) Almoxarifado em Operação | G16: =G80*VLOOKUP(DATE(YEAR(CAPA!$C$10),MONTH(CAPA!$C$10)-1,1),Índices!$B$135:$D$638,3,0)/VLOOKUP(DATE(YEAR($G$70),MONTH($G$70)-1,1),Índices!$B$135:$D$638,3,0) ->  | J16: BMP - 610530510; 610550510; 610532510; 610552510 | K16: (-) Créditos de Tributos Recuperáveis | P16: Elaboração de projeto, construção, operação, manutenção ou reforma de:
F17: (11) Ativo Diferido | G17: =G81*VLOOKUP(DATE(YEAR(CAPA!$C$10),MONTH(CAPA!$C$10)-1,1),Índices!$B$135:$D$638,3,0)/VLOOKUP(DATE(YEAR($G$70),MONTH($G$70)-1,1),Índices!$B$135:$D$638,3,0) ->  | J17: BMP - 6105306; 6105506; 6105326; 6105526 | K17: Administradores | P17: (1) redes de distribuição de energia elétrica destinadas à regularização fundiária de interesse específico e ao atendimento dos empreendimentos de múltiplas unidades consumidoras;
F18: (12) Obrigações Especiais Líquida | G18: =G82*VLOOKUP(DATE(YEAR(CAPA!$C$10),MONTH(CAPA!$C$10)-1,1),Índices!$B$135:$D$638,3,0)/VLOOKUP(DATE(YEAR($G$70),MONTH($G$70)-1,1),Índices!$B$135:$D$638,3,0) ->  | K18: Subtotal | L18: =SUM(L9:L17) -> 0 | M18: =SUM(M9:M17) -> 0 | P18: (2) redes de energia elétrica destinadas ao acesso dos sistemas de distribuição ou transmissão;
F19: (13) Terrenos e Servidões | G19: =G83*VLOOKUP(DATE(YEAR(CAPA!$C$10),MONTH(CAPA!$C$10)-1,1),Índices!$B$135:$D$638,3,0)/VLOOKUP(DATE(YEAR($G$70),MONTH($G$70)-1,1),Índices!$B$135:$D$638,3,0) ->  | J19: CONTA MATERIAIS | P19: (3) subestações de energia;
F20: (14) Base de Rem. Líquida Total = (1)-(6)-(8)+(10)+(11)-(12)+(13) | G20: =G15+G16+G17-G18+G19 ->  | J20: BMP - 610530701; 610550701; 610532701; 610552701 | K20: Materiais | P20: (4) instalações elétricas internas de unidades consumidoras;
F21: (15) Saldo RGR PLPT | G21: =G85*VLOOKUP(DATE(YEAR(CAPA!$C$10),MONTH(CAPA!$C$10)-1,1),Índices!$B$135:$D$638,3,0)/VLOOKUP(DATE(YEAR($G$70),MONTH($G$70)-1,1),Índices!$B$135:$D$638,3,0) ->  | J21: BMP - 610530799; 610550799; 610532799; 610552799 | K21: Outros | P21: (5) banco de capacitores:
F22: (16) Saldo RGR Demais Investimentos | G22: =G86*VLOOKUP(DATE(YEAR(CAPA!$C$10),MONTH(CAPA!$C$10)-1,1),Índices!$B$135:$D$638,3,0)/VLOOKUP(DATE(YEAR($G$70),MONTH($G$70)-1,1),Índices!$B$135:$D$638,3,0) ->  | J22: BMP - 610530710; 610550710; 610532710; 610552710 | K22: (-) Créditos de Tributos Recuperáveis | P22: (6) padrões de entrada de unidades consumidoras atendidas em baixa tensão;
F23: (17) Taxa de Depreciação | G23: =G87 -> 0 | K23: Subtotal | L23: =SUM(L20:L22) -> 0 | M23: =SUM(M20:M22) -> 0 | P23: (7) sistemas de medição de energia elétrica;
F24: (18) Quota de Reintegração Regulatória = (5) * (17) | G24: =G23*G11 ->  | J24: CONTA TERCEIROS | P24: (8) geradores, incluindo-se unidades de microgeração e minigeração distribuída;
J25: RIT - RP 800 - Célula F20 | K25: Manut. e Conserv. Bens e Instalações vinculadas ao Serviço Concedido | P25: (9) sistemas de iluminação pública.
F26: Gasto do Conselho de Consumidores | J26: RIT - RP 800 - Célula F21 | K26: Auditoria e Consultoria | P26: Eficientização do consumo de energia elétrica e instalação de cogeração qualificada, desde que não enquadráveis nos projetos de Pesquisa e Desenvolvimento (P&D) ou de Eficiência Energética estabelecidos em lei
F27: =Indexador!D132 -> Despesa 2020 | H27: 44482 | J27: RIT - RP 800 - Célula F22 | K27: Serviços Jurídicos | P27: Serviços de comunicação de dados
F28: =Indexador!E132 -> Despesa 2019 | H28: 44482 | J28: RIT - RP 800 - Célula F23 | K28: Serviços de Informática | P28: Serviços de consultoria
F29: =Indexador!F132 -> Despesa 2018 | H29: 44482 | J29: RIT - RP 800 - Célula F26 | K29: Viagens (Passagens Aéreas, etc) | P29: Receita proveniente da comercialização de resultados de projetos de P&D
F30: =Indexador!G132 -> Despesa 2017 | H30: 44482 | J30: RIT - RP 800 - Célula F27 | K30: Transportes (inclui Fretes)
F31: =Indexador!H132 -> Despesa 2016 | H31: 44482 | J31: RIT - RP 800 - Célula F28 | K31: Propaganda e Publicidade (exceto Publicações Oficiais) | P31: Outras Receitas - Caso 3
F32: Perdas Regulatórias | H32: 44287 | J32: RIT - RP 800 - Célula F29 | K32: Publicações Oficiais | P32: Alíquota ISS
F33: Perdas Não Técnicas | H33: 44318 | J33: RIT - RP 800 - Célula F30 | K33: Serviço de Engenharia e Supervisão de Obras
F34: Perdas Técnicas | H34: 44318 | J34: RIT - RP 800 - Célula F31 | K34: Gestão Comercial | P34: Tipo de Receita | Q34: =Q7 -> 2021-11-01 | R34: 2021-10-01 | S34: 2021-09-01 | T34: 2021-08-01 | U34: 2021-07-01 | V34: 2021-06-01 | W34: 2021-05-01 | X34: 2021-04-01 | Y34: 2021-03-01 | Z34: 2021-02-01 | AA34: 2021-01-01 | AB34: 2020-12-01
H35: 44287 | J35: RIT - RP 800 - Célula F32 | K35: Outros Serviços Terceirizados | P35: Serviços Cobráveis
F36: Dados da Revisão Anterior - Componente Pd | H36: 44287 | J36: RIT - RP 800 - Célula F33 | K36: (-) Créditos de Tributos Recuperáveis | P36: Encargos de Conexão
F37: Data Base Ativos e Consumidores | H37: 44287 | J37: RIT - RP 800 - Célula F34 | K37: Transferências da Administração Central | P37: Compartilhamento de Infraestrutura
F38: Mercado AT (MWh) | H38: 44287 | K38: Subtotal | L38: =SUM(L25:L37) -> 0 | M38: =SUM(M25:M37) -> 0 | P38: Sistemas de Comunicação (PLC)
F39: Mercado MT (MWh) | H39: 44287 | J39: CONTA SEGUROS | P39: Serviços de Consultoria
F40: Mercado BT (MWh) | H40: 44287 | J40: BMP - 610531001; 610551001; 610533001; 610553001 | K40: Seguros | P40: Serviços de O&M
F41: Número de unidades consumidoras | H41: 44287 | J41: BMP - 610531099; 610551099; 610533099; 610553099 | K41: Outros | P41: Serviços de Comunicação
H42: 44287 | J42: BMP - 610531010; 610551010; 610533010; 610553010 | K42: (-) Créditos de Tributos Recuperáveis | P42: Serviços de Engenharia
F43: OPEX | K43: Subtotal | L43: =SUM(L40:L42) -> 0 | M43: =SUM(M40:M42) -> 0 | P43: Convênios
F44: Extensão de redes subterrâneas (Km) | H44: 44309 | J44: CONTA TRIBUTOS
F45: Extensão de rede de distribuição aérea (Km) | H45: 44309 | J45: BMP - 6105316; 6105516; 6105336; 6105536 | K45: Tributos | Q45: =Q34 -> 2021-11-01 | R45: =R34 -> 2021-10-01 | S45: 2021-09-01 | T45: 2021-08-01 | U45: 2021-07-01 | V45: 2021-06-01 | W45: 2021-05-01 | X45: 2021-04-01 | Y45: 2021-03-01 | Z45: 2021-02-01 | AA45: 2021-01-01 | AB45: 2020-12-01
F46: Extensão de rede de alta tensão (Km) | H46: 44309 | K46: (+) Créditos de Tributos Recuperáveis | L46: =L45 -> 0 | M46: =M45 -> 0 | P46: Ultrapassagem de Demanda | Q46: 677226.95 | R46: 677226.95 | S46: 627614.78 | T46: 581191.71 | U46: 555807.55 | V46: 520070.07 | W46: 568677 | X46: 534906.12 | Y46: 232115.09 | Z46: 570608.58 | AA46: 452427.28 | AB46: 453699.55
F47: ="% PNT / BT Real de "&IF(MONTH(LnkTxtDRPData)>6,YEAR(LnkTxtDRPData)-1,YEAR(LnkTxtDRPData)-2) & " (Medido)" -> % PNT / BT Real de 2020 (Medido) | H47: 44319 | J47: CONTA OUTROS | P47: Excedente Reativo | Q47: 683487.29 | R47: 683487.29 | S47: 698726.83 | T47: 736919.8 | U47: 734951.13 | V47: 709358.66 | W47: 813705.05 | X47: 790820.01 | Y47: 533217.94 | Z47: 754644.61 | AA47: 821201.83 | AB47: 955327.99
F48: ="% PNT / BT Real de "&IF(MONTH(LnkTxtDRPData)>6,YEAR(LnkTxtDRPData)-1,YEAR(LnkTxtDRPData)-2)-1 & " (Medido)" -> % PNT / BT Real de 2019 (Medido) | H48: 44319 | J48: BMP - 610531901; 610551901; 610533901; 610553901 | K48: Indenização por Perdas e Danos
F49: ="% PNT / BT Real de "&IF(MONTH(LnkTxtDRPData)>6,YEAR(LnkTxtDRPData)-1,YEAR(LnkTxtDRPData)-2)-2 & " (Medido)" -> % PNT / BT Real de 2018 (Medido) | H49: 44319 | J49: BMP - 610531902; 610551902; 610533902; 610553902 | K49: Consumo Próprio de Energia
F50: ="DEC Apurado "&IF(MONTH(LnkTxtDRPData)>3,YEAR(LnkTxtDRPData)-1,YEAR(LnkTxtDRPData)-2) -> DEC Apurado 2020 | H50: 44319 | J50: BMP - 610531905 | K50: Despesas com Conselho de Consumidores | P50: UDER "Limbo"
F51: ="DEC Apurado "&IF(MONTH(LnkTxtDRPData)>3,YEAR(LnkTxtDRPData)-1,YEAR(LnkTxtDRPData)-2)-1 -> DEC Apurado 2019 | H51: 44319 | J51: BMP - 610531903; 610551903; 610533903; 610553903 | K51: Taxa de Arrecadação
F52: ="DEC Apurado "&IF(MONTH(LnkTxtDRPData)>3,YEAR(LnkTxtDRPData)-1,YEAR(LnkTxtDRPData)-2)-2 -> DEC Apurado 2018 | H52: 44319 | J52: BMP - 610531904; 610551904; 610533904; 610553904 | K52: Taxas Bancárias | P52: Preenchimento necessário apenas para cálculos de concessionárias que passaram por alteração contratual, conforme parágrafo 38 do Proret 2.1A.
F53: Meta de % PNT / BT (Medido) | H53: 44319 | J53: BMP - 610531910; 610551910; 610533910; 610553910 | K53: (-) Créditos de Tributos Recuperáveis | P53: Mês correspondente à Data de Referência de Alteração Contratual - DRAC
F54: DEC 8 anos (Limite V8) | H54: 44319 | K54: Subtotal | L54: =SUM(L48:L53) -> 0 | M54: =SUM(M48:M53) -> 0 | P54: Sexto mês anterior à data da última RTP
J55: Demais
K56: Condenações Trabalhistas | P56: Preenchimento necessário apenas para cálculos de concessionárias que passaram por alteração contratual, conforme parágrafo 38 do Proret 2.1A.
F57: Dados da última Revisão Tarifária | K57: Gastos com CCEE | Q57: =Q53 -> 00:00:00 | R57: =DATE(YEAR(Q57),MONTH(Q57)-1,1) ->  | X57: =DATE(YEAR(W57),MONTH(W57)-1,1) ->  | Y57: =DATE(YEAR(X57),MONTH(X57)-1,1) ->  | Z57: =DATE(YEAR(Y57),MONTH(Y57)-1,1) ->  | AA57: =DATE(YEAR(Z57),MONTH(Z57)-1,1) ->  | AB57: =DATE(YEAR(AA57),MONTH(AA57)-1,1) ->  | AC57: =DATE(YEAR(AB57),MONTH(AB57)-1,1) ->  | AD57: =DATE(YEAR(AC57),MONTH(AC57)-1,1) ->  | AE57: =DATE(YEAR(AD57),MONTH(AD57)-1,1) ->  | AF57: =DATE(YEAR(AE57),MONTH(AE57)-1,1) ->  | AG57: =DATE(YEAR(AF57),MONTH(AF57)-1,1) ->  | AH57: =DATE(YEAR(AG57),MONTH(AG57)-1,1) ->  | AI57: =DATE(YEAR(AH57),MONTH(AH57)-1,1) -> 
F58: Custos Operacionais (CO3) | J58: BMP - 611511401 | K58: Perdas na Alienação e Desativação | P58: Ultrapassagem de Demanda (valores brutos)
F59: Receitas Irrecuperáveis - Encargos Setoriais (Vi) | J59: BMP - 611112103 | K59: Ganhos na Alienação de Materiais | P59: Excedente Reativo (valores brutos)
F60: Demais Receitas Irrecuperáveis (Vse)
F61: Remuneração do Capital (RC)
F62: Quota de Reintegração Regulatória (QRR)
F63: Custo anual das instalações móveis e imóveis (CAIMI)
F64: Ajuste em função dos investimentos realizados (valor negativo)
F65: Índice de Produtividade + Mecanismo de Qualidade
F66: Outras Receitas (OR) (inserir o valor positivo)
F67: Componente T - Última Revisão
F70: Base de Ativios - SFF
F71: (1) Ativo Imobilizado em Serviço (Valor Novo de Reposição)
F72: (2) Índice de Aproveitamento Integral
F73: (3) Obrigações Especiais Bruta
F74: (4) Bens Totalmente Depreciados
F75: (5) Base de Remuneração Bruta = (1)-(2)-(3)-(4) | G75: =G71-G72-G73-G74 -> 0
F76: (6) Depreciação Acumulada
F77: (7) AIS Líquido (Valor de Mercado em Uso) | G77: =G71-G76 -> 0
F78: (8) Índice de Aproveitamento Depreciado
F79: (9) Valor da Base de Remuneração (VBR) | G79: =G77-G78 -> 0
F80: (10) Almoxarifado em Operação
F81: (11) Ativo Diferido | G81: =G102*I81 -> 0
F82: (12) Obrigações Especiais Líquida
F83: (13) Terrenos e Servidões
F84: (14) Base de Rem. Líquida Total = (9)+(10)+(11)-(12)+(13) | G84: =G79+G80+G81-G82+G83 -> 0
F85: (15) Saldo RGR PLPT | G85: 0
F86: (16) Saldo RGR Demais Investimentos
F87: (17) Taxa de Depreciação
F88: (18) Quota de Reintegração Regulatória = (5) * (17) | G88: =G87*G75 -> 0
F91: Base de Ativios - Ciclo anterior
F92: (1) Ativo Imobilizado em Serviço (Valor Novo de Reposição)
F93: (2) Índice de Aproveitamento Integral
F94: (3) Obrigações Especiais Bruta
F95: (4) Bens Totalmente Depreciados
F96: (5) Base de Remuneração Bruta = (1)-(2)-(3)-(4)
F97: (6) Depreciação Acumulada
F98: (7) AIS Líquido (Valor de Mercado em Uso)
F99: (8) Índice de Aproveitamento Depreciado
F100: (9) Valor da Base de Remuneração (VBR)
F101: (10) Almoxarifado em Operação
F102: (11) Ativo Diferido
F103: (12) Obrigações Especiais Líquida
F104: (13) Terrenos e Servidões
F105: (14) Base de Rem. Líquida Total = (1)-(6)-(8)+(10)+(11)-(12)+(13)
F106: (15) Saldo RGR PLPT
F107: (16) Saldo RGR Demais Investimentos
F109: (17) Taxa de Depreciação
F110: (18) Quota de Reintegração Regulatória = (5) * (17)
F113: Dados do último Reajuste Anual - Contrato Novo
F114: Parcela B sem desconto UDEROR | G114: =SUM(G115:G118) -> 0
F115: Outras Receitas (OR)
F116: Excedente de Reativos (ER)
F117: Ultrapassagem de Demanda (UD)
F118: Parcela B
F119: Fator PB | G119: =G114/G118 -> 
F121: Dados do último Ciclo - Contrato Novo
F122: Número de processos até o primeiro reajuste contrato novo | G122: 0
F123: Número de processos no contrato novo antes da atual revisão | G123: =4-G122 -> 4
F125: Participação dos componentes da Parcela B no Ano Teste
F126: Descrição | G126: Valor
F127: Custos Operacionais | G127: =(G58*(1-G65)-(SUM(G58:G63)*(1-G65)-G66)*(1-(1-G67)^G122)-((SUM(G58:G63)*(1-G65)-G66)*(1-G67)^G122+G66-SUM(G59:G60)*(1-G65))*(1-(1-G67)^G123))/((((SUM(G58:G63)*(1-G65)-G66)*(1-G67)^G122)+G66-SUM(G59:G60)*(1-G65))*(1-G67)^G123) -> 
F128: Anuidades | G128: =(G63*(1-G65)/((((SUM(G58:G63)*(1-G65)-G66)*(1-G67)^G122)+G66-SUM(G59:G60)*(1-G65))*(1-G67)^G123)) -> 
F129: Remuneração | G129: =(G61*(1-G65)/((((SUM(G58:G63)*(1-G65)-G66)*(1-G67)^G122)+G66-SUM(G59:G60)*(1-G65))*(1-G67)^G123)) -> 
F130: Depreciação | G130: =(G62*(1-G65)/((((SUM(G58:G63)*(1-G65)-G66)*(1-G67)^G122)+G66-SUM(G59:G60)*(1-G65))*(1-G67)^G123)) -> 

Sheet Resultado
B1: =LnkTxtNomeCompleto -> CERON - Centrais Elétricas de Rondônia S/A.
B2: Resultado | F2: Parâmetros a serem considerados para os Reajustes subsequentes
B4: RA1 | D4: =D40+D45 -> 1807099787 | F4: FATOR X | K4: Última versão enviada: | L4: 26
B5: RA0 | D5: =Mercado!D24 -> 1699619098 | F5: Componente T do Fator X | G5: ='VPB e Fator X'!C36 ->  | K5: Data de envio | L5: 2021-11-30T13:59:49
B6: Índice de Reposição/Reajuste (Anexo II) | D6: =D4/D5-1 -> 0.06323810398 | F6: Componente Pd do Fator X | G6: ='VPB e Fator X'!C33 -> 0.01098854806
B7: Componentes Financeiros | D7: =Financeiros!E8 -> -0.08766230325 | K7: Efeito Consumidor
B8: Índice de Reposição/Reajuste com Financeiros (Anexo I) | D8: =D6+D7 -> -0.02442419927 | F8: PERDAS | K8: Efeito Grupo A - Alta tensão | L8: 0.06847212772
F9: Perdas Não Técnicas | G9: =Entrada!G33 -> 0 | K9: Efeito Grupo B - Baixa tensão | L9: 0.06951117712
D10: DRP | F10: Perdas Técnicas | G10: =Entrada!G34 -> 0 | K10: Efeito tarifário médio AT+BT | L10: 0.06930324114
B11: TOTAL (Parcela A + Parcela B) | D11: =D45+D40 -> 1807099787 | K11: Tarifa B1 - Residencial (R$) | L11: 546.0308069
D12: =Financeiros!D8 -> -148992524.8
K13: Subvenção da CDE para descontos tarifários (Valores anuais)
K14: Subsídio Carga Fonte Incentivada | L14: 13517823.35
K15: Subsídio Geração Fonte Incentivada | L15: 9521560.357
B16: Parcela A | F16: Formação da Parcela B e Reposicionamento (Resumo) | K16: Subsídio Distribuição | L16: 0
K17: Subsídio Água, Esgoto e Saneamento | L17: 1473503.857
C18: Processo Anterior | D18: Processo Atual | K18: Subsídio Rural | L18: 23955186.89
B19: ENCARGOS | C19: =SUM(C20:C28) -> 145416249 | D19: =SUM(D20:D28) -> 253375537.4 | F19: Custo de Administração, Operação e Manutenção (CAOM) | G19: =SUM(G20:G20) ->  | K19: Subsídio Irrigante/Aquicultor | L19: 2105113.868
B20: Reserva Global de Reversão – RGR | D20: =Encargos!C16 -> 0 | F20: Custos Operacionais (CO) | G20: ='VPB e Fator X'!C121+Encargos!C14 -> 
B21: Conta de Consumo de Combustíveis – CCC | D21: =Encargos!C9 -> 0 | F21: Custo Anual dos Ativos (CAA) | G21: =SUM(G22:G24) ->  | K21: Versão de Mercado
B22: Taxa de Fisc. de Serviços de E.E. – TFSEE | C22: ='Votos e NTs'!BM268 -> 2326374.643 | D22: =Encargos!C17 -> 2434479.931 | F22: Remuneração do Capital (RC) | G22: ='VPB e Fator X'!C95 ->  | K22: Status de Sincronização de BDL | L22: Trabalha na pasta de rede
B23: Conta de Desenvolvimento Energético – CDE | C23: ='Votos e NTs'!BM269+'Votos e NTs'!BM270+'Votos e NTs'!BM271 -> 69912691.92 | D23: =Encargos!C10 -> 182294365.2 | F23: Quota de Reintegração Regulatória (QRR) | G23: ='VPB e Fator X'!C77 ->  | K23: Última Sincronização
B24: Compensação financeira - CFURH | C24: ='Votos e NTs'!BM272 -> 0 | D24: =Encargos!C11 -> 0 | F24: Custo anual das instalações móveis e imóveis (CAIMI) | G24: ='VPB e Fator X'!C67 -> 
B25: Encargos Serv. Sist. - ESS e Energ. Reserv. - EER | C25: ='Votos e NTs'!BM273 -> 35926272.41 | D25: =Encargos!C12 -> 24957046.14 | F25: Parcela B (VPB) | G25: =SUM(G21,G19) -> 
B26: PROINFA | C26: ='Votos e NTs'!BM274 -> 22511217.95 | D26: =Encargos!C13 -> 29123785.25 | F26: Índice de Produtividade da Parcela B | G26: ='VPB e Fator X'!C33 -> 0.01098854806
B27: P&D e Eficiência Energética | C27: ='Votos e NTs'!BM275 -> 14739692.08 | D27: =Encargos!C15 -> 14565860.94 | F27: Mecanismo de Incentivo à Qualidade | G27: ='VPB1'!F42 -> -0.006046124006
F28: Parcela B com ajustes | G28: =(1-G26-G27)*G25 -> 
B29: TRANSPORTE | C29: =SUM(C30:C37) -> 98357469.21 | D29: =SUM(D30:D37) -> 92447091.43 | F29: Outras Receitas (OR) | G29: =UDEROR!C2 -> 10763935.63
B30: Rede Básica | C30: ='Votos e NTs'!BM278 -> 62673767.17 | D30: ='RB e Conexão'!E6 -> 46533404.32 | F30: Ultrapassagem de Demanda (UD) | G30: =UDEROR!C6+'VPB e Fator X'!D179 -> 3290985.705
B31: Rede Básica Fronteira | C31: ='Votos e NTs'!BM279 -> 21850181.82 | D31: ='RB e Conexão'!E7 -> 29756913.93 | F31: Excedente de Reativos (ER) | G31: =UDEROR!C7+'VPB e Fator X'!D180 -> 4580549.213
B32: Rede Básica ONS (A2) | C32: ='Votos e NTs'!BM280 -> 294904.3167 | D32: =VLOOKUP("TUSDg ONS DRP",TUSDG[],2,FALSE) -> 316216.8 | F32: Parcela B deduzidas as outras receitas | G32: =G28-SUM(G29:G31) -> 
B33: Rede Básica Export. (A2) | C33: ='Votos e NTs'!BM281 -> 11585746.15 | D33: =VLOOKUP("TUSDg Export DRP",TUSDG[],2,FALSE) -> 12409372.8
B34: MUST Itaipu | C34: ='Votos e NTs'!BM282 -> 0 | D34: ='RB e Conexão'!E8 -> 0 | F34: 1. Receita Requerida (RR) | G34: =G28+D40 -> 
B35: Transporte de Itaipu | C35: ='Votos e NTs'!BM283 -> 0 | D35: =SUMPRODUCT(itaiputransporte[Potência],itaiputransporte[Tarifa DRP]) -> 0 | F35: 2. Outras Receitas (OR) | G35: =G29 -> 10763935.63
B36: Conexão | C36: ='Votos e NTs'!BM284 -> 1952869.75 | D36: ='RB e Conexão'!E9 -> 3431183.576 | F36: 3. Receita Verificada (RV) | G36: =Mercado!D24 -> 1699619098
B37: Uso do sistema de distribuição e CCD | C37: ='Votos e NTs'!BM285 -> 0 | D37: =CUSD!D14+CUSD!E14 -> 0
B38: ENERGIA | C38: ='Votos e NTs'!BM286 -> 779327515.5 | D38: =Energia!D15 -> 749067123.9
B39: RECEITA IRRECUPERÁVEL | C39: ='Votos e NTs'!BM287 -> 12958080.02 | D39: =Mercado!H38 -> 16161239.51
B40: VPA (ENCARGO + TRANSPORTE + ENERGIA+RI) | C40: =C19+C29+C38+C39 -> 1036059314 | D40: =D19+D29+D38+D39 -> 1111050992
B42: Parcela B
D44: VPB1
B45: ="Parcela B "&IF(CAPA!C7="Revisão","(menos Outras Receitas)",) -> Parcela B | C45: ='Votos e NTs'!BM288 -> 663559784.2 | D45: =IF(CAPA!$C$7="Revisão",Resultado!$G$32,'VPB1'!$C$43) -> 696048794.8

Sheet Votos e NTs
B2: Tabelas | D2: Gráficos
B4: Consumidores | D4: Análise de Impacto da RTA na Tarfia | K4: Composição da Receita | P4: Composição da Receita com Tributos | U4: Composição da Receita com detalhamento de Encargos | Z4: Evolução da Tarifa B1 Residencial
B5: Mercado
B6: Encargos
B7: Custo do Transporte de Energia
B8: Perdas
B9: Energia Requerida
B10: Energia na DRA
B11: Contratos
B12: Fator X
B13: Parcela B
B14: CVA em Processamento
B15: Financeiros
B16: Subsídios
B17: Efeito Médio AT + BT
B18: Avaliação RTA
B19: Variação do Custo de Energia
B20: Dados dos Gráficos
E23: Impacto da RTA na Tarifa | K23: Composição da Receita | P23: Composição da Receita com Tributos | U23: Composição da Receita com detalhamento de Encargos | Z23: Data | AA23: Tipo | AC23: B1 - Residencial | AD23: IGPM | AE23: IPCA | AF23: Data
E24: Encargos Setoriais | H24: =IF(CAPA!C7="Reajuste",BP267,'NT Revisao'!AT195) -> 0.06351969602 | K24: Custo de Distribuição | M24: =Resultado!D45 -> 696048794.8 | P24: Custo de Distribuição | R24: =M24/$R$32 -> 0.2837992783 | U24: Custo de Distribuição | W24: =Resultado!D45 -> 696048794.8 | Z24: =YEAR(BD!B80) -> 2011 | AA24: =(BD!C80) -> Reajuste | AB24: =CONCATENATE(AA24," ",Z24) -> Reajuste 2011 | AC24: =BD!D80 -> 388.95 | AD24: =AC24 -> 388.95 | AE24: =AD24 -> 388.95 | AF24: =DATE(YEAR(BD!B80),MONTH(BD!B80)-1,1) -> 2011-10-01
E25: Custo de Transporte | H25: =IF(CAPA!C7="Reajuste",BP277,'NT Revisao'!AT205) -> -0.003477471972 | K25: Custo de Energia | M25: =Resultado!D38 -> 749067123.9 | P25: Custo de Energia | R25: =M25/$R$32 -> 0.3054163885 | U25: Custo de Energia | W25: =Resultado!D38 -> 749067123.9 | Z25: =YEAR(BD!B79) -> 2012 | AA25: =(BD!C79) -> Reajuste | AB25: Reajuste 2012 | AC25: =BD!D79 -> 412.97 | AD25: =AD24*VLOOKUP(AF25,Índices!$B$135:$F$627,2,0)/VLOOKUP(AF24,Índices!$B$135:$F$627,2,0) -> 418.2037892 | AE25: =AE24*VLOOKUP(AF25,Índices!$B$135:$F$627,3,0)/VLOOKUP(AF24,Índices!$B$135:$F$627,3,0) -> 410.1471101 | AF25: =DATE(YEAR(BD!B79),MONTH(BD!B79)-1,1) -> 2012-10-01
E26: Custo de Energia | H26: =IF(CAPA!C7="Reajuste",BP286,'NT Revisao'!AT214) -> -0.01780421955 | K26: Custo de Transporte | M26: =Resultado!D29 -> 92447091.43 | P26: Custo de Transmissão | R26: =M26/$R$32 -> 0.03769336003 | U26: Custo de Transmissão | W26: =Resultado!D29 -> 92447091.43 | Z26: =YEAR(BD!B78) -> 2013 | AA26: =(BD!C78) -> RTE | AB26: RTE 2013 | AC26: =BD!D78 -> 338.62 | AD26: =AD25*VLOOKUP(AF26,Índices!$B$135:$F$627,2,0)/VLOOKUP(AF25,Índices!$B$135:$F$627,2,0) -> 420.9476726 | AE26: =AE25*VLOOKUP(AF26,Índices!$B$135:$F$627,3,0)/VLOOKUP(AF25,Índices!$B$135:$F$627,3,0) -> 415.8683211 | AF26: =DATE(YEAR(BD!B78),MONTH(BD!B78)-1,1) -> 2012-12-01
E27: Receitas Irrecuperáveis | H27: =IF(CAPA!C7="Reajuste",BP287,'NT Revisao'!AT215) -> 0.001884633737 | K27: Encargos Setoriais | M27: =Resultado!D19 -> 253375537.4 | P27: Encargos Setoriais | R27: =M27/$R$32 -> 0.1033085542 | U27: Receitas Irrecuperáveis | W27: =Resultado!D39 -> 16161239.51 | Z27: =YEAR(BD!B77) -> 2013 | AA27: =(BD!C77) -> Revisão | AB27: Revisão 2013 | AC27: =BD!D77 -> 391.94 | AD27: =AD26*VLOOKUP(AF27,Índices!$B$135:$F$627,2,0)/VLOOKUP(AF26,Índices!$B$135:$F$627,2,0) -> 440.2266292 | AE27: =AE26*VLOOKUP(AF27,Índices!$B$135:$F$627,3,0)/VLOOKUP(AF26,Índices!$B$135:$F$627,3,0) -> 434.0893856 | AF27: =DATE(YEAR(BD!B77),MONTH(BD!B77)-1,1) -> 2013-10-01
E28: Distribuição | H28: =IF(CAPA!C7="Reajuste",BP288,'NT Revisao'!AT216) -> 0.01911546574 | K28: Receitas Irrecuperáveis | M28: =Resultado!D39 -> 16161239.51 | P28: Receitas Irrecuperáveis | R28: =M28/R32 -> 0.006589406005 | U28: PROINFA | W28: =Resultado!D26 -> 29123785.25 | Z28: =YEAR(BD!B76) -> 2014 | AA28: =(BD!C76) -> Reajuste | AB28: Reajuste 2014 | AC28: =BD!D76 -> 377.85 | AD28: =AD27*VLOOKUP(AF28,Índices!$B$135:$F$627,2,0)/VLOOKUP(AF27,Índices!$B$135:$F$627,2,0) -> 453.240688 | AE28: =AE27*VLOOKUP(AF28,Índices!$B$135:$F$627,3,0)/VLOOKUP(AF27,Índices!$B$135:$F$627,3,0) -> 462.6838969 | AF28: =DATE(YEAR(BD!B76),MONTH(BD!B76)-1,1) -> 2014-10-01
E29: Componentes Financeiros | H29: =IF(CAPA!C7="Reajuste",BP291,'NT Revisao'!AT225) -> -0.08766230325 | P29: ICMS | R29: =Mercado!G9 -> 0.2006745782 | U29: CDE | W29: =Resultado!D23 -> 182294365.2 | Z29: =YEAR(BD!B75) -> 2015 | AA29: =(BD!C75) -> RTE | AB29: RTE 2015 | AC29: =BD!D75 -> 437.32 | AD29: =AD28*VLOOKUP(AF29,Índices!$B$135:$F$627,2,0)/VLOOKUP(AF28,Índices!$B$135:$F$627,2,0) -> 465.2919952 | AE29: =AE28*VLOOKUP(AF29,Índices!$B$135:$F$627,3,0)/VLOOKUP(AF28,Índices!$B$135:$F$627,3,0) -> 480.2700408 | AF29: =DATE(YEAR(BD!B75),MONTH(BD!B75)-1,1) -> 2015-02-01
E30: Retirada dos Financeiros Anteriores | H30: =IF(CAPA!C7="Reajuste",BP343,'NT Revisao'!AT277) -> 0.09372744041 | P30: PIS/COFINS | R30: =Mercado!$G$10 -> 0.06251843471 | U30: ESS/EER | W30: =Resultado!D25 -> 24957046.14 | Z30: =YEAR(BD!B74) -> 2015 | AA30: =(BD!C74) -> Reajuste | AB30: Reajuste 2015 | AC30: =BD!D74 -> 492.35 | AD30: =AD29*VLOOKUP(AF30,Índices!$B$135:$F$627,2,0)/VLOOKUP(AF29,Índices!$B$135:$F$627,2,0) -> 498.9742768 | AE30: =AE29*VLOOKUP(AF30,Índices!$B$135:$F$627,3,0)/VLOOKUP(AF29,Índices!$B$135:$F$627,3,0) -> 508.6232823 | AF30: =DATE(YEAR(BD!B74),MONTH(BD!B74)-1,1) -> 2015-10-01
E31: Efeito Médio Consumidor | H31: =BP344 -> 0.06930324114 | P31: Tributos por dentro | R31: =LnkTxtPisCofins+LnkTxtICMS -> 0.263193013 | U31: Outros | W31: =Resultado!D27+Resultado!D28+Resultado!D24+Resultado!D22 -> 17000340.87 | Z31: =YEAR(BD!B73) -> 2016 | AA31: =(BD!C73) -> Reajuste | AB31: Reajuste 2016 | AC31: =BD!D73 -> 461.05 | AD31: =AD30*VLOOKUP(AF31,Índices!$B$135:$F$627,2,0)/VLOOKUP(AF30,Índices!$B$135:$F$627,2,0) -> 542.7765876 | AE31: =AE30*VLOOKUP(AF31,Índices!$B$135:$F$627,3,0)/VLOOKUP(AF30,Índices!$B$135:$F$627,3,0) -> 548.6706053 | AF31: =DATE(YEAR(BD!B73),MONTH(BD!B73)-1,1) -> 2016-10-01
P32: Receita com Tributos | R32: =SUM(W24:W31)/(1-R29-R30) -> 2452609461 | Z32: =YEAR(BD!B72) -> 2017 | AA32: =(BD!C72) -> RTE | AB32: RTE 2017 | AC32: =BD!D72 -> 455.67 | AD32: =AD31*VLOOKUP(AF32,Índices!$B$135:$F$627,2,0)/VLOOKUP(AF31,Índices!$B$135:$F$627,2,0) -> 549.5991718 | AE32: =AE31*VLOOKUP(AF32,Índices!$B$135:$F$627,3,0)/VLOOKUP(AF31,Índices!$B$135:$F$627,3,0) -> 556.616347 | AF32: =DATE(YEAR(BD!B72),MONTH(BD!B72)-1,1) -> 2017-03-01
P33: Tributos Totais por Fora | R33: =(R29+R30)/(1-R29-R30) -> 0.3572075422 | Z33: =YEAR(BD!B71) -> 2017 | AA33: =(BD!C71) -> Reajuste | AB33: Reajuste 2017 | AC33: =BD!D71 -> 494 | AD33: =AD32*VLOOKUP(AF33,Índices!$B$135:$F$627,2,0)/VLOOKUP(AF32,Índices!$B$135:$F$627,2,0) -> 535.1413981 | AE33: =AE32*VLOOKUP(AF33,Índices!$B$135:$F$627,3,0)/VLOOKUP(AF32,Índices!$B$135:$F$627,3,0) -> 563.491959 | AF33: =DATE(YEAR(BD!B71),MONTH(BD!B71)-1,1) -> 2017-10-01
Z34: =YEAR(BD!B70) -> 2018 | AA34: =(BD!C70) -> Reajuste | AB34: Reajuste 2018 | AC34: =BD!D70 -> 617.58 | AD34: =AD33*VLOOKUP(AF34,Índices!$B$135:$F$627,2,0)/VLOOKUP(AF33,Índices!$B$135:$F$627,2,0) -> 589.9976153 | AE34: =AE33*VLOOKUP(AF34,Índices!$B$135:$F$627,3,0)/VLOOKUP(AF33,Índices!$B$135:$F$627,3,0) -> 587.9329357 | AF34: =DATE(YEAR(BD!B70),MONTH(BD!B70)-1,1) -> 2018-11-01
Z35: =YEAR(BD!B69) -> 2019 | AA35: =(BD!C69) -> RTE | AB35: RTE 2019 | AC35: =BD!D69 -> 581.37 | AD35: =AD34*VLOOKUP(AF35,Índices!$B$135:$F$627,2,0)/VLOOKUP(AF34,Índices!$B$135:$F$627,2,0) -> 596.2187892 | AE35: =AE34*VLOOKUP(AF35,Índices!$B$135:$F$627,3,0)/VLOOKUP(AF34,Índices!$B$135:$F$627,3,0) -> 597.6876236 | AF35: =DATE(YEAR(BD!B69),MONTH(BD!B69)-1,1) -> 2019-03-01
Z36: =YEAR(BD!B68) -> 2019 | AA36: =(BD!C68) -> Reajuste | AB36: Reajuste 2019 | AC36: =BD!D68 -> 576.82 | AD36: =AD35*VLOOKUP(AF36,Índices!$B$135:$F$627,2,0)/VLOOKUP(AF35,Índices!$B$135:$F$627,2,0) -> 583.6246451 | AE36: =AE35*VLOOKUP(AF36,Índices!$B$135:$F$627,3,0)/VLOOKUP(AF35,Índices!$B$135:$F$627,3,0) -> 588.814898 | AF36: =DATE(YEAR(BD!B68),MONTH(BD!B87)-1,1) -> 2018-12-01
Z37: =YEAR(BD!B67) -> 2020 | AA37: =(BD!C67) -> Revisão | AB37: =CONCATENATE(IF(AA37=1,"Revisão","Reajuste")," ",Z37) -> Reajuste 2020 | AC37: =BD!D67 -> 514.38 | AD37: =AD36*VLOOKUP(AF37,Índices!$B$135:$F$627,2,0)/VLOOKUP(AF36,Índices!$B$135:$F$627,2,0) -> 763.8382166 | AE37: =AE36*VLOOKUP(AF37,Índices!$B$135:$F$627,3,0)/VLOOKUP(AF36,Índices!$B$135:$F$627,3,0) -> 633.3643847 | AF37: =DATE(YEAR(BD!B67),MONTH(BD!B67)-1,1) -> 2020-11-01
Z38: =YEAR(BD!B66) -> 2021 | AA38: =(BD!C66) -> 0 | AB38: =CONCATENATE(IF(AA38=1,"Revisão","Reajuste")," ",Z38) -> Reajuste 2021 | AC38: =BD!D66 -> 546.0308069 | AD38: =AD37*VLOOKUP(AF38,Índices!$B$135:$F$627,2,0)/VLOOKUP(AF37,Índices!$B$135:$F$627,2,0) -> 907.302535 | AE38: =AE37*VLOOKUP(AF38,Índices!$B$135:$F$627,3,0)/VLOOKUP(AF37,Índices!$B$135:$F$627,3,0) -> 699.1113815 | AF38: =DATE(YEAR(BD!B66),MONTH(BD!B66)-1,1) -> 2021-11-01
AC39: =AC38/AC24-1 -> 0.4038586113 | AD39: =AD38/AD24-1 -> 1.332697095 | AE39: =AE38/AE24-1 -> 0.7974325272
B40: TabCons | E40: Voltar
B41: Classe de Consumo | C41: Nº de Unidades Consumidoras* | D41: Consumo de Energia (MWh) | E41: Participação no Consumo (%)
B42: Residencial | C42: =Mercado!E30 -> 496856 | D42: =Mercado!F30 -> 141411.007 | E42: =D42/$D$50 -> 0.4553102049
B43: Industrial | C43: =Mercado!E31 -> 1547 | D43: =Mercado!F31 -> 41111.094 | E43: 0.1323680598
B44: Comercial | C44: =Mercado!E32 -> 44290 | D44: =Mercado!F32 -> 56019.056 | E44: 0.1803681935
B45: Rural | C45: =Mercado!E33 -> 126717 | D45: =Mercado!F33 -> 34846.375 | E45: 0.1121971371
B46: Iluminação Pública | C46: =Mercado!E34 -> 168 | D46: =Mercado!F34 -> 12503.791 | E46: 0.0402592681
B47: Poder Público | C47: =Mercado!E35 -> 4773 | D47: =Mercado!F35 -> 18832.53 | E47: 0.06063632015
B48: Serviço Público | C48: =Mercado!E36 -> 317 | D48: =Mercado!F36 -> 4832.903 | E48: 0.01556081172
B49: Demais classes | C49: =Mercado!E37 -> 165 | D49: =Mercado!F37 -> 1024.921 | E49: 0.00330000472
B50: Total | C50: =SUM(C42:C49) -> 674833 | D50: =SUM(D42:D49) -> 310581.677 | E50: =SUM(E42:E49) -> 1
B51: * Nota: dados do último mês informado pela empresa
G53: TabMercado | I53: Voltar
G54: Subgrupos | H54: Mercado (MWh) | I54: Receita (R$) | J54: Colunas1
G55: Fornecimento | H55: =SUM(H56:H62) -> 3139797.097 | I55: =SUM(I56:I62) -> 1624252548 | J55: =IF(ABS(H55)+ABS(I55)>0,1,0) -> 1
G56: A1 (230 kV ou mais) | H56: =Mercado!C10 -> 0 | I56: =Mercado!D10 -> 0 | J56: 0
G57: A2 (88 a 138 kV) | H57: =Mercado!C11 -> 0 | I57: =Mercado!D11 -> 0 | J57: 0
G58: A3 (69 kV) | H58: =Mercado!C12 -> 34019.136 | I58: =Mercado!D12 -> 9513139.027 | J58: 1
G59: A3a (30 kV a 44 kV) | H59: =Mercado!C13 -> 25975.357 | I59: =Mercado!D13 -> 10823614.49 | J59: 1
G60: A4 (2,3 kV a 25 kV) | H60: =Mercado!C14 -> 571133.123 | I60: =Mercado!D14 -> 247298610.2 | J60: 1
G61: As | H61: =Mercado!C15 -> 0 | I61: =Mercado!D15 -> 0 | J61: 0
G62: BT (menor que 2,3 kV) | H62: =Mercado!C16 -> 2508669.481 | I62: =Mercado!D16 -> 1356617184 | J62: 1
G63: Suprimento | H63: =Mercado!C17 -> 0 | I63: =Mercado!D17 -> 0 | J63: 0
G64: Livres A1 | H64: =Mercado!C18 -> 0 | I64: =Mercado!D18 -> 15.729 | J64: 1
G65: Demais Livres | H65: =Mercado!C19 -> 240011.742 | I65: =Mercado!D19 -> 46205400.05 | J65: 1
G66: Distribuição | H66: =Mercado!C20 -> 6150.31 | I66: =Mercado!D20 -> 683629.4561 | J66: 1
G67: Geração | H67: =Mercado!C21 -> 0 | I67: =Mercado!D21 -> 28477504.8 | J67: 1
G68: Total | H68: =SUM(H56:H67) -> 3385959.149 | I68: =SUM(I56:I67) -> 1699619098
K70: TabEnc | N70: Voltar
K71: Encargos Setoriais | L71: Processo Anterior (R$) | M71: Processo Atual (R$) | N71: Dispositivo Legal | O71: Colunas1
K72: Taxa de Fisc. de Serviços de E.E. – TFSEE | L72: =Resultado!C22 -> 2326374.643 | M72: =Resultado!D22 -> 2434479.931 | N72: =Encargos!D17 -> Conforme módulo 5.5 do PRORET | O72: =IF(ABS(L72)+ABS(M72)>0,1,0) -> 1
K73: Conta de Desenvolvimento Energético – CDE | L73: =Resultado!C23 -> 69912691.92 | M73: =Resultado!D23 -> 182294365.2 | N73: =Encargos!D10 -> REH 2.864/2021 e DSP 939/2021 | O73: 1
K74: Compensação financeira - CFURH | L74: 0 | M74: 0 | N74: 0 | O74: 0
K75: Encargos Serv. Sist. - ESS e Energ. Reserv. - EER | L75: =Resultado!C25 -> 35926272.41 | M75: =Resultado!D25 -> 24957046.14 | N75: =Encargos!D12 -> DSP nº 2.690/2021 | O75: 1
K76: PROINFA | L76: =Resultado!C26 -> 22511217.95 | M76: =Resultado!D26 -> 29123785.25 | N76: =Encargos!$D$13 -> ReH 2.815/2020 | O76: 1
K77: P&D e Eficiência Energética | L77: =Resultado!C27 -> 14739692.08 | M77: =Resultado!D27 -> 14565860.94 | N77: Res. Normativa nº 316/2008 | O77: 1
K78: Contribuição ONS | L78: 0 | M78: 0 | N78: 0 | O78: 0
K79: Total de Encargos Tarifários | L79: =SUM(L72:L78) -> 145416249 | M79: =SUM(M72:M78) -> 253375537.4
P81: TabTrans | R81: Voltar
P82: Componente | Q82: Processo Anterior (R$) | R82: Processo Atual (R$) | S82: Colunas1
P83: Rede Básica | Q83: =+Resultado!C30 -> 62673767.17 | R83: =+Resultado!D30 -> 46533404.32 | S83: =IF(ABS(Q83)+ABS(R83)>0,1,0) -> 1
P84: Rede Básica Fronteira | Q84: =+Resultado!C31 -> 21850181.82 | R84: =+Resultado!D31 -> 29756913.93 | S84: 1
P85: Rede Básica ONS (A2) | Q85: =+Resultado!C32 -> 294904.3167 | R85: =+Resultado!D32 -> 316216.8 | S85: 1
P86: Rede Básica Export. (A2) | Q86: =+Resultado!C33 -> 11585746.15 | R86: =+Resultado!D33 -> 12409372.8 | S86: 1
P87: MUST Itaipu | Q87: =+Resultado!C34 -> 0 | R87: =+Resultado!D34 -> 0 | S87: 0
P88: Transporte de Itaipu | Q88: =+Resultado!C35 -> 0 | R88: =+Resultado!D35 -> 0 | S88: 0
P89: Conexão | Q89: =+Resultado!C36 -> 1952869.75 | R89: =+Resultado!D36 -> 3431183.576 | S89: 1
P90: Uso do sistema de distribuição | Q90: =+Resultado!C37 -> 0 | R90: =+Resultado!D37 -> 0 | S90: 0
P91: Total dos Custos de Transporte | Q91: =SUM(Q83:Q90) -> 98357469.21 | R91: =SUM(R83:R90) -> 92447091.43
T93: TabPerdas | W93: Voltar
T94: Perdas | U94: DRA | V94: DRP | W94: Referência
T95: Não Técnica (s/ Baixa Tensão) | U95: =Neutralidade!H14 -> 0.1999 | V95: =Energia!H13 -> 0.1999 | W95: Contrato de Concessão 002/2018
T96: Técnica (s/ merc. injetado) | U96: =Neutralidade!H15 -> 0.1115 | V96: =Energia!H14 -> 0.1115 | W96: REH 1.657/2013; REH 2.349/2017
T97: Rede Básica (s/ merc. Injetado) | U97: =Neutralidade!H16 -> 0.02206223866 | V97: =Energia!H15 -> 0.02206223866 | W97: CCEE (últimos 12 meses)
T98: Mercado Baixa Tensão (MWh) | U98: =Mercado!$C$16 -> 2508669.481 | V98: =Mercado!$C$16 -> 2508669.481 | W98: SAMP
Y100: TabEnergia | AA100: Voltar
Y101: Descrição | Z101: Processo Anterior (MWh) | AA101: Processo Atual (MWh)
Y102: Mercado Total | Z102: =AA102 -> 3139797.097 | AA102: =Z103+Z104 -> 3139797.097 | AB102: Colunas1
Y103: Fornecimento | Z103: =Energia!H5 -> 3139797.097 | AA103: =Z103 -> 3139797.097 | AB103: =IF(Z103<>0,1,0) -> 1
Y104: Suprimento | Z104: 0 | AA104: =Z104 -> 0 | AB104: =IF(Z104<>0,1,0) -> 0
Y105: Consumidores Livres | Z105: =Energia!H7 -> 246162.052 | AA105: =Z105 -> 246162.052 | AB105: =IF(Z105<>0,1,0) -> 1
Y106: Consumidores Rede B. | Z106: 0 | AA106: =Z106 -> 0 | AB106: =IF(Z106<>0,1,0) -> 0
Y107: Perdas Totais | Z107: =Z108+Z109 -> 1080425.222 | AA107: =AA108+AA109 -> 1080425.222 | AB107: =IF(Z107<>0,1,0) -> 1
Y108: Perdas Rede Básica | Z108: =SUM(Neutralidade!H19:H20) -> 91097.7321 | AA108: =SUM(Energia!H18:H19) -> 91097.7321 | AB108: 1
Y109: Perdas na Distribuição | Z109: =SUM(Z110:Z111) -> 989327.4894 | AA109: =SUM(AA110:AA111) -> 989327.4894 | AB109: 1
Y110: Perda Não Técnica | Z110: =Neutralidade!H17 -> 501483.0293 | AA110: =Energia!H16 -> 501483.0293 | AB110: 1
Y111: Perda Técnica | Z111: =Neutralidade!H18 -> 487844.4602 | AA111: =Energia!H17 -> 487844.4602 | AB111: 1
Y112: Energia Requerida | Z112: =Z102+Z107 -> 4220222.319 | AA112: =AA102+AA107 -> 4220222.319
AC114: TabEDRA | AE114: Voltar
AC115: Energia Requerida (MWh) | AD115: Tarifa Média (R$/MWh) | AE115: Energia Requerida (R$)
AC116: ='Votos e NTs'!Z112 -> 4220222.319 | AD116: =Energia!C14 -> 185.0802635 | AE116: =AD116*AC116 -> 781079858.9
AG118: TabContratos | AK118: Voltar
AG119: Contratos | AH119: Montante Contratado (MWh) | AI119: Montante Considerado (MWh) | AJ119: Tarifa (R$/MWh) | AK119: Despesa (R$) | AL119: Colunas1 | AM119: Colunas2
AG120: AMBIENTE REGULADO - CCEAR | AH120: =SUM(AH121:AH125) -> 1609552.815 | AI120: =SUM(AI121:AI125) -> 2366795.447 | AJ120: =AK120/AI120 -> 196.508532 | AK120: =SUM(AK121:AK125) -> 465095498.9 | AL120: =IF(AI120=0,0,1) -> 1
AG121: Existente - CCEAR-DSP | AH121: =SUMPRODUCT((Energia!$J$49:$J$140),(Energia!$T$49:$T$140=18)*(INT(Energia!$S$49:$S$140/10000)=2)) -> 45304.914 | AI121: =SUMPRODUCT((Energia!$K$49:$K$140),(Energia!$T$49:$T$140=18)*(INT(Energia!$S$49:$S$140/10000)=2)) -> 66619.4133 | AJ121: =IFERROR(AK121/AI121,"") -> 289.3366283 | AK121: =(SUMPRODUCT((Energia!$L$49:$L$140),(Energia!$T$49:$T$140=18)*(INT(Energia!$S$49:$S$140/10000)=2))) -> 19275436.42 | AL121: 1
AG122: Existente - CCEAR-QTD | AH122: =SUMPRODUCT((Energia!$J$49:$J$140),(Energia!$T$49:$T$140=1)*(INT(Energia!$S$49:$S$140/10000)=2)) -> 37577.93876 | AI122: =SUMPRODUCT((Energia!$K$49:$K$140),(Energia!$T$49:$T$140=1)*(INT(Energia!$S$49:$S$140/10000)=2)) -> 55257.14569 | AJ122: =IFERROR(AK122/AI122,"") -> 175.1333151 | AK122: =(SUMPRODUCT((Energia!$L$49:$L$140),(Energia!$T$49:$T$140=1)*(INT(Energia!$S$49:$S$140/10000)=2))) -> 9677367.11 | AL122: 1
AG123: Nova e Alternativa- CCEAR-DSP | AH123: =SUMPRODUCT((Energia!$J$49:$J$140),(Energia!$T$49:$T$140=18)*(INT(Energia!$S$49:$S$140/10000)=1))+SUMPRODUCT((Energia!$J$49:$J$140),(Energia!$T$49:$T$140=18)*(INT(Energia!$S$49:$S$140/10000)=3)) -> 618777.4381 | AI123: =SUMPRODUCT((Energia!$K$49:$K$140),(Energia!$T$49:$T$140=18)*(INT(Energia!$S$49:$S$140/10000)=1))+SUMPRODUCT((Energia!$K$49:$K$140),(Energia!$T$49:$T$140=18)*(INT(Energia!$S$49:$S$140/10000)=3)) -> 909892.2445 | AJ123: 255.3004103 | AK123: =(SUMPRODUCT((Energia!$L$49:$L$140),(Energia!$T$49:$T$140=18)*(INT(Energia!$S$49:$S$140/10000)=1))+SUMPRODUCT((Energia!$L$49:$L$140),(Energia!$T$49:$T$140=18)*(INT(Energia!$S$49:$S$140/10000)=3))) -> 232295863.3 | AL123: 1
AG124: Nova e Alternativa- CCEAR-QTD | AH124: =SUMPRODUCT((Energia!$J$49:$J$140),(Energia!$T$49:$T$140=1)*(INT(Energia!$S$49:$S$140/10000)=1))+SUMPRODUCT((Energia!$J$49:$J$140),(Energia!$T$49:$T$140=1)*(INT(Energia!$S$49:$S$140/10000)=3)) -> 364515.541 | AI124: =SUMPRODUCT((Energia!$K$49:$K$140),(Energia!$T$49:$T$140=1)*(INT(Energia!$S$49:$S$140/10000)=1))+SUMPRODUCT((Energia!$K$49:$K$140),(Energia!$T$49:$T$140=1)*(INT(Energia!$S$49:$S$140/10000)=3)) -> 536008.3341 | AJ124: 157.7381234 | AK124: =(SUMPRODUCT((Energia!$L$49:$L$140),(Energia!$T$49:$T$140=1)*(INT(Energia!$S$49:$S$140/10000)=1))+SUMPRODUCT((Energia!$L$49:$L$140),(Energia!$T$49:$T$140=1)*(INT(Energia!$S$49:$S$140/10000)=3))) -> 84548948.76 | AL124: 1
AG125: Madeira e Belo Monte | AH125: =SUMPRODUCT((Energia!$J$49:$J$140)*(INT(Energia!$S$49:$S$140/10000)=5)) -> 543376.983 | AI125: =SUMPRODUCT((Energia!$K$49:$K$140)*(INT(Energia!$S$49:$S$140/10000)=5)) -> 799018.3097 | AJ125: 149.3055689 | AK125: =(SUMPRODUCT((Energia!L49:L140)*(INT(Energia!S49:S140/10000)=5))) -> 119297883.3 | AL125: 1
AG126: Bilaterais | AH126: =SUM(AH127:AH142) -> 198927.744 | AI126: =SUM(AI127:AI142) -> 292516.8249 | AJ126: =AK126/AI126 -> 272.3333068 | AK126: =SUM(AK127:AK142) -> 79662074.21 | AL126: 1
AG127: =Energia!B145 -> Eletrogoes S.A (RONDON II) | AH127: =Energia!H145 -> 0 | AI127: =Energia!M145 -> 0 | AJ127: =Energia!L145 -> 272.3008333 | AK127: =AJ127*AI127 -> 0 | AL127: 0
AG128: =Energia!B146 -> Propower Geradora LTDA (MACHADINHO I) | AH128: =Energia!H146 -> 0 | AI128: =Energia!M146 -> 0 | AJ128: =Energia!L146 -> 272.3008333 | AK128: =AJ128*AI128 -> 0 | AL128: 0
AG129: =Energia!B147 -> Maurício Martinuv (MARTINUV) | AH129: =Energia!H147 -> 7621.2 | AI129: =Energia!M147 -> 11206.72854 | AJ129: =Energia!L147 -> 272.3008333 | AK129: 3051601.52 | AL129: 0 | AM129: =IF(AI129=0,0,1) -> 1
AG130: =Energia!B148 -> Propower Geradora LTDA (CACHOEIRA FORMOSA) | AH130: =Energia!H148 -> 0 | AI130: =Energia!M148 -> 0 | AJ130: =Energia!L148 -> 272.3008333 | AK130: 0 | AL130: 0
AG131: =Energia!B149 -> Hid. Chupinguaia LTDA (CASCATA CHUPINGUAIA) | AH131: =Energia!H149 -> 41960.4 | AI131: =Energia!M149 -> 61701.41344 | AJ131: =Energia!L149 -> 272.3008333 | AK131: 16801346.3 | AL131: 0
AG132: =Energia!B150 -> Eletrossol Hidr. Cassol LTDA (MONTE BELO) | AH132: =Energia!H150 -> 0 | AI132: =Energia!M150 -> 0 | AJ132: =Energia!L150 -> 272.3008333 | AK132: 0 | AL132: 0
AG133: =Energia!B151 -> Hidroluz Centrais Elétricas LTDA (SALDANHA) | AH133: =Energia!H151 -> 29784 | AI133: =Energia!M151 -> 43796.41038 | AJ133: =Energia!L151 -> 272.3008333 | AK133: 11925799.04 | AL133: 0
AG134: =Energia!B152 -> Eletricidade de Rondônia S.A (ALTA FLORESTA) | AH134: =Energia!H152 -> 26805.6 | AI134: =Energia!M152 -> 39416.76934 | AJ134: =Energia!L152 -> 272.3008333 | AK134: 10733219.14 | AL134: 0
AG135: =Energia!B153 -> Eletrogóes S.A (CACHOEIRA) | AH135: =Energia!H153 -> 55888.8 | AI135: =Energia!M153 -> 82182.67594 | AJ135: =Energia!L153 -> 272.3008333 | AK135: 22378411.15 | AL135: 0
AG136: =Energia!B154 -> Termo Norte (TERMO NORTE II) | AH136: =Energia!H154 -> 0 | AI136: =Energia!M154 -> 0 | AJ136: =Energia!L154 -> 272.3008333 | AK136: 0 | AL136: 0
AG137: =Energia!B155 -> Consórcio Novo Horizonte (diversas) | AH137: =Energia!H155 -> 19773 | AI137: =Energia!M155 -> 29075.5581 | AJ137: =Energia!L155 -> 272.3008333 | AK137: 7917298.7 | AL137: 0
AG138: =Energia!B156 -> Consórcio Brasil Bio Fuels - LEILÃO Nº10/2015 (Diversas | AH138: =Energia!H156 -> 13315.2 | AI138: =Energia!M156 -> 19579.5717 | AJ138: =Energia!L156 -> 272.3008333 | AK138: 5331533.69 | AL138: 0
AG139: =Energia!B157 -> Consórcio Brasil Bio Fuels - LEILÃO Nº03/2021(Diversas) | AH139: =Energia!H157 -> 3779.544 | AI139: =Energia!M157 -> 5557.697424 | AJ139: =Energia!L157 -> 274.01 | AK139: 1522864.671 | AL139: 0
AG140: =Energia!B158 -> 0 | AH140: =Energia!H158 -> 0 | AI140: =Energia!M158 -> 0 | AJ140: =Energia!L158 -> 0 | AK140: 0 | AL140: 0
AG141: 0 | AH141: =Energia!H159 -> 0 | AI141: =Energia!M159 -> 0 | AJ141: =Energia!L159 -> 0 | AK141: 0 | AL141: 0
AG142: 0 | AH142: 0 | AI142: 0 | AJ142: 0 | AK142: 0 | AL142: 0
AG143: =Energia!B20 -> Energia Base | AH143: =SUM(AH144:AH148) -> 1085950.726 | AI143: =SUM(AI144:AI148) -> 1560910.046 | AJ143: =AK143/AI143 -> 130.8913037 | AK143: =SUM(AK144:AK148) -> 204309550.8 | AL143: 1
AG144: Geração Própria | AH144: =Energia!H33 -> 0 | AI144: =Energia!C21 -> 0 | AJ144: =Energia!D21 -> 0 | AK144: =AJ144*AI144 -> 0 | AL144: 0
AG145: =Energia!B22 -> Cota Angra I/Angra II | AH145: =Energia!H34 -> 119078.4308 | AI145: =Energia!C22 -> 175100.9879 | AJ145: =Energia!D22 -> 249.64 | AK145: =AJ145*AI145 -> 43712210.63 | AL145: 1
AG146: =Energia!B23 -> Cotas Lei n º 12783/2013 | AH146: =Energia!H35 -> 890468.6781 | AI146: =Energia!C23 -> 1309405.441 | AJ146: =Energia!D23 -> 122.6490552 | AK146: =AJ146*AI146 -> 160597340.2 | AL146: 1
AG147: =Energia!B24 -> Itaipu (tirando as perdas) | AH147: =Energia!H36 -> 0 | AI147: =Energia!C24 -> 0 | AJ147: =Energia!D24 -> 0 | AK147: =AJ147*AI147 -> 0 | AL147: 0
AG148: =Energia!B25 -> PROINFA | AH148: =Energia!C25 -> 76403.61747 | AI148: =Energia!C25 -> 76403.61747 | AJ148: =Energia!D25 -> 0 | AK148: =AJ148*AI148 -> 0 | AL148: 1
AG149: Total | AH149: =AH120+AH126+AH143 -> 2894431.285 | AI149: =AI120+AI126+AI143 -> 4220222.319 | AJ149: =AK149/AI149 -> 177.494707 | AK149: =AK120+AK126+AK143 -> 749067123.9
AM151: TabFatorX | AN151: Voltar
AM152: Componentes | AN152: Valor
AM153: Componente Pd do Fator X | AN153: ='VPB1'!F40 -> 0
AM154: Componente T do Fator X | AN154: ='VPB1'!F41 -> 0
AM155: Componente Q do Fator X | AN155: ='VPB1'!F42 -> -0.006046124006
AM156: Fator X | AN156: ='VPB1'!F43 -> -0.006046124006
AP158: TabParcelaB | AR158: Voltar
AP159: Descrição | AQ159: Valores | AR159: Referência
AP160: (1) Parcela B Ano Anterior | AQ160: =+'VPB1'!C37 -> 663559784.2 | AR160: TUSD aplicada ao Mercado
AP161: (2) Fator DR1/Fator PB | AQ161: =+'VPB1'!C38 -> 1.02037251 | AR161: SGT/ANEEL
AP162: (3) Parcela B econômica = (1)*(2) | AQ162: =+'VPB1'!C39 -> 643945510.3 | AR162: SGT/ANEEL
AP163: (4) IPCA | AQ163: =+LnkTxtIPCA -> 0.1038059581 | AR163: Indicador econômico oficial
AP164: (5) Fator X | AQ164: =+AQ165+AQ166+AQ167 -> -0.006046124006
AP165: (5.1) Componente Pd do Fator X | AQ165: =+LnkTxtFatorPd -> 0 | AR165: Contrato de Concessão 002/2018 | AS165: <-cuidado para verificar se é Reajuste depois de revisão. Se for reajuste pós revisão, deve se aplicar o Pd Expost.
AP166: (5.2) Componente T do Fator X | AQ166: =+LnkTxtFatorT -> 0 | AR166: REH 2.349/2017
AP167: (5.3) Componente Q do Fator X | AQ167: =+LnkTxtFatorQ -> -0.006046124006 | AR167: PRORET 2.5 A
AP168: (6) UDEROR | AQ168: =SUM(AQ169:AQ171) -> 18635470.55
AP169: (6.1) Outras Receitas (OR) | AQ169: =+'VPB1'!C40 -> 10763935.63 | AR169: Valores fiscalizados - SFF
AP170: (6.2) Excedente de Reativos (ER) | AQ170: =+'VPB1'!C41 -> 4580549.213 | AR170: Valores fiscalizados - SFF
AP171: (6.3) Ultrapassagem de Demanda (UD) | AQ171: =+'VPB1'!C42 -> 3290985.705 | AR171: Valores fiscalizados - SFF
AP172: (5) ONS | AQ172: 0 | AR172: REA 6.981/2018
AP173: Parcela B - DRP (R$) = (3)*[{1)+(4)-(5)]-(6) | AQ173: =Resultado!D45 -> 696048794.8
AT175: TabCVA | AW175: Voltar
AT176: Descrição | AU176: Delta (R$) | AV176: 5° Dia Útil Anterior (R$) | AW176: 12 Meses Subseqüentes (R$) | AX176: Colunas1
AT177: CVA CCC | AU177: 0 | AV177: 0 | AW177: 0 | AX177: =IF(AU177<>0,1,0) -> 0
AT178: ="CVA "&CVA!B10 -> CVA CDE | AU178: =CVA!C10 -> 5706556.537 | AV178: =CVA!D10 -> 5995465.743 | AW178: =CVA!E10 -> 6238299.459 | AX178: 1
AT179: ="CVA "&CVA!B11 -> CVA CDE Energia | AU179: =CVA!C11 -> 0 | AV179: =CVA!D11 -> 0 | AW179: =CVA!E11 -> 0 | AX179: 0
AT180: ="CVA "&CVA!B12 -> CVA Rede Básica | AU180: =CVA!C12 -> 13622906.89 | AV180: =CVA!D12 -> 14098758.9 | AW180: =CVA!E12 -> 14669799.45 | AX180: 1
AT181: ="CVA "&CVA!B13 -> CVA Compra Energia | AU181: =CVA!C13 -> 167650760 | AV181: =CVA!D13 -> 171135609.5 | AW181: =CVA!E13 -> 178067097 | AX181: 1
AT182: CVA CFURH | AU182: 0 | AV182: 0 | AW182: 0 | AX182: 0
AT183: ="CVA "&CVA!B15 -> CVA Transporte Itaipu | AU183: =CVA!C15 -> 0 | AV183: =CVA!D15 -> 0 | AW183: =CVA!E15 -> 0 | AX183: 0
AT184: ="CVA "&CVA!B16 -> CVA Proinfa | AU184: =CVA!C16 -> 6018902.367 | AV184: =CVA!D16 -> 6178303.837 | AW184: =CVA!E16 -> 6428543.025 | AX184: 1
AT185: ="CVA "&CVA!B17 -> CVA ESS/ERR | AU185: =CVA!C17 -> 66915687.46 | AV185: =CVA!D17 -> 68540220.15 | AW185: =CVA!E17 -> 71316297.45 | AX185: 1
AT186: Total | AU186: =SUM(AU177:AU185) -> 259914813.3 | AV186: =SUM(AV177:AV185) -> 265948358.1 | AW186: =SUM(AW177:AW185) -> 276720036.4
AY188: TabFin | BA188: Voltar
AY189: Componentes Financeiros | AZ189: Valor (R$) | BA189: Participação | BB189: Colunas1 | BC189: Coluna1 | BD189: Coluna2 | BE189: Coluna3
AY190: CVA em processamento - Energia | AZ190: =SUMIFS(Financeiros[Valor],Financeiros[idDet1],19,Financeiros[id_Grupo_TARIFA],2,Financeiros[idDet2],60,Financeiros[idDet3],999) -> 178067097 | BA190: =AZ190/Financeiros!$D$5 -> 0.1047688257 | BB190: =IF(AZ190<>0,1,0) -> 1 | BE190: =Filtro063724[[#This Row],[Coluna1]]-Filtro063724[[#This Row],[Coluna2]] -> 0
AY191: CVA em processamento - Transporte | AZ191: =SUMIFS(Financeiros[Valor],Financeiros[idDet1],19,Financeiros[id_Grupo_TARIFA],1,Financeiros[idDet2],60, Financeiros[idDet3],999) -> 14669799.45 | BA191: =AZ191/Financeiros!$D$5 -> 0.008631227705 | BB191: 1 | BE191: =Filtro063724[[#This Row],[Coluna1]]-Filtro063724[[#This Row],[Coluna2]] -> 0
AY192: CVA em processamento - Encargos Setoriais | AZ192: =SUMIFS(Financeiros[Valor],Financeiros[idDet1],19,Financeiros[id_Grupo_TARIFA],3,Financeiros[idDet2],60,Financeiros[idDet3],999) -> 83983139.94 | BA192: =AZ192/Financeiros!$D$5 -> 0.04941291848 | BB192: 1 | BE192: =Filtro063724[[#This Row],[Coluna1]]-Filtro063724[[#This Row],[Coluna2]] -> 0
AY193: Saldo a Compensar CVA-Ano Anterior + Ajustes | AZ193: =SUMIFS(Financeiros[Valor],Financeiros[idDet1],19,Financeiros[idDet2],64, Financeiros[idDet3],999) -> -677379.4686 | BA193: =AZ193/Financeiros!$D$5 -> -0.0003985478096 | BB193: 1 | BE193: =Filtro063724[[#This Row],[Coluna1]]-Filtro063724[[#This Row],[Coluna2]] -> 0
AY194: Neutralidade de Parcela A- Energia | AZ194: =Financeiros!D44+Financeiros!D45+Financeiros!D46+Financeiros!D47+Financeiros!D48 -> 1827445.826 | BA194: =AZ194/Financeiros!$D$5 -> 0.001075209045 | BB194: 1 | BE194: =Filtro063724[[#This Row],[Coluna1]]-Filtro063724[[#This Row],[Coluna2]] -> 0
AY195: Neutralidade de Parcela A - Transporte | AZ195: =SUMIFS(Financeiros[Valor],Financeiros[idDet1],20,Financeiros[id_Grupo_TARIFA],1,Financeiros[idDet2],60, Financeiros[idDet3],999) -> 2615492.797 | BA195: =AZ195/Financeiros!$D$5 -> 0.001538869974 | BB195: 1 | BE195: =Filtro063724[[#This Row],[Coluna1]]-Filtro063724[[#This Row],[Coluna2]] -> 0
AY196: Neutralidade de Parcela A - Encargos Setoriais | AZ196: =SUMIFS(Financeiros[Valor],Financeiros[idDet1],20,Financeiros[id_Grupo_TARIFA],3,Financeiros[idDet2],60, Financeiros[idDet3],999)+SUMIFS(Financeiros[Valor],Financeiros[idDet1],20,Financeiros[id_Grupo_TARIFA],4,Financeiros[idDet2],60, Financeiros[idDet3],999) -> 1218669.103 | BA196: =AZ196/Financeiros!$D$5 -> 0.0007170248351 | BB196: 1 | BE196: =Filtro063724[[#This Row],[Coluna1]]-Filtro063724[[#This Row],[Coluna2]] -> 0
AY197: Neutralidade de Parcela A - Receita Irrecuperável | AZ197: =SUMIFS(Financeiros[Valor],Financeiros[idDet1],20,Financeiros[id_Grupo_TARIFA],5,Financeiros[idDet2],60, Financeiros[idDet3],999) -> 2579624.775 | BA197: =AZ197/Financeiros!$D$5 -> 0.001517766409 | BB197: 1 | BC197: =SUM(AZ194:AZ197) -> 8241232.502 | BD197: =SUM(Financeiros!D44:D69) -> 8142687.867 | BE197: =Filtro063724[[#This Row],[Coluna1]]-Filtro063724[[#This Row],[Coluna2]] -> 98544.63512
AY198: Sobrecontratação/exposição de energia | AZ198: =SUMIFS(Financeiros[Valor],Financeiros[idDet1],22,Financeiros[id_Grupo_TARIFA],2,Financeiros[idDet2],60, Financeiros[idDet3],106)+SUMIFS(Financeiros[Valor],Financeiros[idDet1],22,Financeiros[id_Grupo_TARIFA],2,Financeiros[idDet2],60, Financeiros[idDet3],101) -> -119300583.4 | BA198: =AZ198/Financeiros!$D$5 -> -0.07019254108 | BB198: 1 | BE198: =Filtro063724[[#This Row],[Coluna1]]-Filtro063724[[#This Row],[Coluna2]] -> 0
AY199: Garantias financeiras na contratação regulada de energia (CCEAR) | AZ199: =SUMIFS(Financeiros[Valor],Financeiros[idDet1],22,Financeiros[id_Grupo_TARIFA],2,Financeiros[idDet2],60, Financeiros[idDet3],102) -> 211156.3673 | BA199: =AZ199/Financeiros!$D$5 -> 0.0001242374644 | BB199: 1 | BE199: =Filtro063724[[#This Row],[Coluna1]]-Filtro063724[[#This Row],[Coluna2]] -> 0
AY200: Previsão de Risco Hidrológico | AZ200: =SUMIFS(Financeiros[Valor],Financeiros[idDet1],22,Financeiros[id_Grupo_TARIFA],2,Financeiros[idDet2],60, Financeiros[idDet3],220) -> 53631102.76 | BA200: =AZ200/Financeiros!$D$5 -> 0.03155477767 | BB200: 1 | BE200: =Filtro063724[[#This Row],[Coluna1]]-Filtro063724[[#This Row],[Coluna2]] -> 0
AY201: Ajuste Liminar Abrace | AZ201: =SUMIFS(Financeiros[Valor],Financeiros[idDet1],22,Financeiros[id_Grupo_TARIFA],3,Financeiros[idDet2],85, Financeiros[idDet3],85) -> 0 | BA201: =AZ201/Financeiros!$D$5 -> 0 | BB201: 0 | BE201: =Filtro063724[[#This Row],[Coluna1]]-Filtro063724[[#This Row],[Coluna2]] -> 0
AY202: Ajuste ref. equilíbrio econômico-financeiro TUSDg (A3a) | AZ202: =SUMIFS(Financeiros[Valor],Financeiros[idDet1],22,Financeiros[id_Grupo_TARIFA],4,Financeiros[idDet2],60, Financeiros[idDet3],137) -> 0 | BA202: =AZ202/Financeiros!$D$5 -> 0 | BB202: 0 | BE202: =Filtro063724[[#This Row],[Coluna1]]-Filtro063724[[#This Row],[Coluna2]] -> 0
AY203: Repasse de ultrapassagem de Supridas/Permissionárias de Energia | AZ203: =SUMIFS(Financeiros[Valor],Financeiros[idDet1],22,Financeiros[id_Grupo_TARIFA],2,Financeiros[idDet2],60, Financeiros[idDet3],187) -> 0 | BA203: =AZ203/Financeiros!$D$5 -> 0 | BB203: 0 | BE203: =Filtro063724[[#This Row],[Coluna1]]-Filtro063724[[#This Row],[Coluna2]] -> 0
AY204: Cálculo extraordinário de Neutralidade -Postergação da Data de Aniversário | AZ204: =SUMIFS(Financeiros[Valor],Financeiros[idDet1],22,Financeiros[idDet2],60, Financeiros[idDet3],999) -> -49606022.8 | BA204: =AZ204/Financeiros!$D$5 -> -0.02918655295 | BB204: 1 | BE204: =Filtro063724[[#This Row],[Coluna1]]-Filtro063724[[#This Row],[Coluna2]] -> 0
AY205: Ajuste CUSD | AZ205: =SUMIFS(Financeiros[Valor],Financeiros[idDet1],22,Financeiros[id_Grupo_TARIFA],1,Financeiros[idDet2],60, Financeiros[idDet3],119) -> 0 | BA205: =AZ205/Financeiros!$D$5 -> 0 | BB205: 0 | BE205: =Filtro063724[[#This Row],[Coluna1]]-Filtro063724[[#This Row],[Coluna2]] -> 0
AY206: Repasse de compensação DIC/FIC | AZ206: =Financeiros!D127 -> 0 | BA206: =AZ206/Financeiros!$D$5 -> 0 | BB206: 0 | BE206: =Filtro063724[[#This Row],[Coluna1]]-Filtro063724[[#This Row],[Coluna2]] -> 0
AY207: Compensação ref. acordos bilaterais de CCEAR | AZ207: =SUMIFS(Financeiros[Valor],Financeiros[idDet1],22,Financeiros[id_Grupo_TARIFA],2,Financeiros[idDet2],60, Financeiros[idDet3],230) -> 0 | BA207: =AZ207/Financeiros!$D$5 -> 0 | BB207: 0 | BE207: =Filtro063724[[#This Row],[Coluna1]]-Filtro063724[[#This Row],[Coluna2]] -> 0
AY208: Reversão do Risco Hidrológico | AZ208: =SUMIFS(Financeiros[Valor],Financeiros[idDet1],22,Financeiros[id_Grupo_TARIFA],2,Financeiros[idDet2],62, Financeiros[idDet3],220) -> -50257754.93 | BA208: =AZ208/Financeiros!$D$5 -> -0.02957001071 | BB208: 1 | BE208: =Filtro063724[[#This Row],[Coluna1]]-Filtro063724[[#This Row],[Coluna2]] -> 0
AY209: Ressarcimento de P&D | AZ209: =SUMIFS(Financeiros[Valor],Financeiros[idDet1],22,Financeiros[id_Grupo_TARIFA],3,Financeiros[idDet2],60, Financeiros[idDet3],231) -> 0 | BA209: =AZ209/Financeiros!$D$5 -> 0 | BB209: 0 | BE209: =Filtro063724[[#This Row],[Coluna1]]-Filtro063724[[#This Row],[Coluna2]] -> 0
AY210: Reversão Conta-Covid - CVA em processamento - Energia | AZ210: =SUMIFS(Financeiros[Valor],Financeiros[idDet1],19,Financeiros[id_Grupo_TARIFA],2,Financeiros[idDet2],60,Financeiros[idDet3],233) -> -26983106.45 | BA210: =AZ210/Financeiros!$D$5 -> -0.01587597273 | BB210: 1 | BE210: =Filtro063724[[#This Row],[Coluna1]]-Filtro063724[[#This Row],[Coluna2]] -> 0
AY211: Reversão Conta-Covid - CVA em processamento -Transporte | AZ211: =SUMIFS(Financeiros[Valor],Financeiros[idDet1],19,Financeiros[id_Grupo_TARIFA],1,Financeiros[idDet2],60,Financeiros[idDet3],233) -> -17634550.59 | BA211: =AZ211/Financeiros!$D$5 -> -0.01037558981 | BB211: 1 | BE211: =Filtro063724[[#This Row],[Coluna1]]-Filtro063724[[#This Row],[Coluna2]] -> 0
AY212: Reversão Conta-Covid - CVA em processamento - Encargos Setoriais | AZ212: =SUMIFS(Financeiros[Valor],Financeiros[idDet1],19,Financeiros[id_Grupo_TARIFA],3,Financeiros[idDet2],60,Financeiros[idDet3],233) -> -18098765.32 | BA212: =AZ212/Financeiros!$D$5 -> -0.01064871849 | BB212: 1 | BE212: =Filtro063724[[#This Row],[Coluna1]]-Filtro063724[[#This Row],[Coluna2]] -> 0
AY213: Reversão Conta-Covid - Saldo a Compensar CVA-Ano Anterior + Ajustes | AZ213: =SUMIFS(Financeiros[Valor],Financeiros[idDet1],19,Financeiros[idDet2],64, Financeiros[idDet3],236) -> -25382578.41 | BA213: =AZ213/Financeiros!$D$5 -> -0.01493427465 | BB213: 1 | BE213: =Filtro063724[[#This Row],[Coluna1]]-Filtro063724[[#This Row],[Coluna2]] -> 0
AY214: Reversão Conta-Covid - Neutralidade de Parcela A | AZ214: =SUMIFS(Financeiros[Valor],Financeiros[idDet1],20,Financeiros[idDet2],60, Financeiros[idDet3],234) -> -10564702.57 | BA214: =AZ214/Financeiros!$D$5 -> -0.006215923662 | BB214: 1 | BE214: =Filtro063724[[#This Row],[Coluna1]]-Filtro063724[[#This Row],[Coluna2]] -> 0
AY215: Reversão Conta-Covid - Sobrecontratação | AZ215: =SUMIFS(Financeiros[Valor],Financeiros[idDet1],22,Financeiros[idDet2],60, Financeiros[idDet3],235)-SUMIFS(Financeiros[Valor],Financeiros[idDet1],22,Financeiros[id_Grupo_TARIFA],4,Financeiros[idDet2],60, Financeiros[idDet3],235) -> -101990518.7 | BA215: =AZ215/Financeiros!$D$5 -> -0.06000786815 | BB215: 1 | BE215: =Filtro063724[[#This Row],[Coluna1]]-Filtro063724[[#This Row],[Coluna2]] -> 0
... 192 more rows

Sheet NT Revisao (hidden)
B2: Tabelas
B4: Custo Operacional
B5: Receitas Irrecuperáveis
B6: Remuneração do Capital e Quota de Reintegração
B7: CAIMI
B8: Parcela B Ajustada
B9: Outras Receitas
B10: Cálculo das Perdas
B11: Energia Requerida
B12: Transmissão
B13: Encargos Setoriais
B16: Custo Operacional | E16: Voltar
B17: Descrição | C17: Limite Inferior | D17: Centro | E17: Limite Superior
B18: 1. Eficiência | C18: ='VPB e Fator X'!C133 ->  | D18: ='VPB e Fator X'!C131 ->  | E18: ='VPB e Fator X'!C132 -> 
B19: 2. OPEX Benchmarking (Atualizado) - R$ | C19: ='VPB e Fator X'!C136 ->  | D19: =(E19+C19)/2 ->  | E19: ='VPB e Fator X'!C135 -> 
B21: Comparação com intervalo de CO eficientes
B22: Descrição | C22: Valor
B23: 3. OPEX nas tarifas - R$ | C23: ='VPB e Fator X'!C111 -> 
B24: 4. Meta estudo de eficiência - R$ | C24: ='VPB e Fator X'!C114 -> 
B25: 5. Variação Anual (%) | C25: ='VPB e Fator X'!C115 -> 
B26: 6. Meta do estudo de eficiência aplicado o limite de 5% a.a. | C26: ='VPB e Fator X'!C117 -> 
B28: Avaliação do prêmio de eficiência
B29: Descrição | C29: Reais
B30: 7. OPEX Real - R$ | C30: ='VPB e Fator X'!C118 -> 
B31: 8. Meta OPEX | C31: ='VPB e Fator X'!C114 -> 
B32: 9. Relação OPEX Real / Meta OPEX | C32: ='VPB e Fator X'!C119 -> 
B33: 10. Meta OPEX aplicada a regra de compartilhamento | C33: ='VPB e Fator X'!C120 -> 
B35: 11. Número de anos no ciclo | C35: 5
B36: 12. OPEX na revisão [ = 3. + (10. - 3.) / 11.] | C36: ='VPB e Fator X'!C121 -> 
G38: Receitas Irrecuperáveis | H38: Voltar
G39: Descrição | H39: Valor
G40: Receita Base (R$) | H40: =H42/H41 -> 
G41: % RI | H41: ='VPB e Fator X'!D213 -> 
G42: Receita Irrecuperáveis - RI (R$) | H42: =Resultado!D39 -> 16161239.51
J44: Remuneração do Capital e Quota de Reintegração | K44: Voltar
J45: Descrição | L45: Colunas1
J46: (1) Ativo Imobilizado em Serviço (Valor Novo de Reposição) | K46: =Entrada!G7 ->  | L46: =IF(K46=0,0,1) -> 
J47: (2) Índice de Aproveitamento Integral | K47: =Entrada!G8 -> 
J48: (3) Obrigações Especiais Bruta | K48: =Entrada!G9 -> 
J49: (4) Bens Totalmente Depreciados | K49: =Entrada!G10 -> 
J50: (5) Base de Remuneração Bruta = (1)-(2)-(3)-(4) | K50: =Entrada!G11 -> 
J51: (6) Depreciação Acumulada | K51: =Entrada!G12 -> 
J52: (7) AIS Líquido (Valor de Mercado em Uso) | K52: =Entrada!G13 -> 
J53: (8) Índice de Aproveitamento Depreciado | K53: =Entrada!G14 -> 
J54: (9) Valor da Base de Remuneração (VBR) = (1)-(6)-(8) | K54: =Entrada!G15 -> 
J55: (10) Almoxarifado em Operação | K55: =Entrada!G16 -> 
J56: (11) Ativo Diferido | K56: =Entrada!G17 -> 
J57: (12) Obrigações Especiais Líquida | K57: =Entrada!G18 -> 
J58: (13) Terrenos e Servidões | K58: =Entrada!G19 -> 
J59: (14) Base de Remuneração Líquida Total = (9)+(10)+(11)-(12)+(13) | K59: =Entrada!G20 -> 
J60: (15) Base de Remuneração Ativos Concessionária | K60: =K59-K66-K69 ->  | L60: =IF(K60=0,0,1) -> 
J61: (16) WACC antes de impostos | K61: ='VPB e Fator X'!F81 -> 0.1063543545 | L61: 1
J62: (17) Remuneração Ativos Concessionária | K62: =K60*K61 -> 
J63: (18) Base Obrigações Especiais | K63: ='VPB e Fator X'!G91 ->  | L63: =IF(K63=0,0,1) -> 
J64: (19) Taxa de Remuneração das Obrigações Especiais | K64: =K65/K63 ->  | L64: =IF(K63=0,0,1) -> 
J65: (20) Remuneração de Obrigações Especiais | K65: ='VPB e Fator X'!G95 ->  | L65: =IF(K65=0,0,1) -> 
J66: (21) Saldo RGR/PLPT | K66: ='VPB e Fator X'!C91 -> 
J67: (22) Taxa RGR/PLPT | K67: ='VPB e Fator X'!F82 -> 0.02281926149 | L67: =IF(K66=0,0,1) -> 
J68: (23) Remuneração RGR/PLPT | K68: =K66*K67 -> 
J69: (24) Saldo RGR/Demais Investimentos | K69: ='VPB e Fator X'!C92 ->  | L69: =IF(K69=0,0,1) -> 
J70: (25) Saldo RGR/Demais Investimentos | K70: ='VPB e Fator X'!F83 -> 0.02281926149 | L70: =IF(K69=0,0,1) -> 
J71: (23) Remuneração RGR Demais Investimentos | K71: =K69*K70 -> 
J72: (24) Remuneração do Capital = (17)+(20)+(23) | K72: =K62+K65+K68+K71 ->  | L72: =IF(K72=0,0,1) -> 
J73: (25) Taxa de Depreciação | K73: ='VPB e Fator X'!C76 -> 0 | L73: 0
J74: (29) Quota de Reintegração Regulatória = (5) * (25) | K74: =K50*K73 ->  | L74: =IF(K74=0,0,1) -> 
M76: CAIMI | N76: Voltar
M77: Descrição | N77: Valores (R$)
M78: ='VPB e Fator X'!B60 -> (1) Base de Anuidade Regulatória (BAR) | N78: ='VPB e Fator X'!C60 -> 
M79: ='VPB e Fator X'!B61 -> (2) Base de Anuidade - Infraestrutura de imóveis e móveis administrativos (BARA) | N79: ='VPB e Fator X'!C61 -> 
M80: ='VPB e Fator X'!B62 -> (3) Base de Anuidade - Veículos (BARV) | N80: ='VPB e Fator X'!C62 -> 
M81: ='VPB e Fator X'!B63 -> (4) Base de Anuidade - Sistemas de Informática (BARI) | N81: ='VPB e Fator X'!C63 -> 
M82: ='VPB e Fator X'!B64 -> (5) Anuidade - Infraestrutura de imóveis e móveis administrativos (CAL) | N82: ='VPB e Fator X'!C64 -> 
M83: ='VPB e Fator X'!B65 -> (6) Anuidade - Veículos (CAV) | N83: ='VPB e Fator X'!C65 -> 
M84: ='VPB e Fator X'!B66 -> (7) Anuidade - Sistemas de Informática (CAI) | N84: ='VPB e Fator X'!C66 -> 
M85: ='VPB e Fator X'!B67 -> (8) CAIMI = (5)+(6)+(7) | N85: ='VPB e Fator X'!C67 -> 
P87: Parcela B ajustada | Q87: Voltar
P88: Descrição | Q88: Valores
P89: Custo de Administração, Operação e Manutenção (CAOM) | Q89: =Resultado!G19 -> 
P90: Custos Operacionais (CO) | Q90: =Resultado!G20 -> 
P91: Custo Anual dos Ativos (CAA) | Q91: =Resultado!G21 -> 
P92: Remuneração do Capital (RC) | Q92: =Resultado!G22 -> 
P93: Quota de Reintegração Regulatória (QRR) | Q93: =Resultado!G23 -> 
P94: Custo anual das instalações móveis e imóveis (CAIMI) | Q94: =Resultado!G24 -> 
P95: Parcela B (VPB) | Q95: =Resultado!G25 -> 
P96: Índice de Produtividade da Parcela B | Q96: =Resultado!G26 -> 0.01098854806
P97: Mecanismo de Incentivo à Qualidade | Q97: =Resultado!G27 -> -0.006046124006
P98: Parcela B com ajustes | Q98: =Resultado!G28 -> 
P99: Outras Receitas (OR) | Q99: =Resultado!G29 -> 10763935.63
P100: Excedente de Reativos (ER) | Q100: =Resultado!G30 -> 3290985.705
P101: Ultrapassagem de Demanda (UD) | Q101: =Resultado!G31 -> 4580549.213
P102: Parcela B deduzido UDEROR | Q102: =Q98-SUM(Q99:Q101) -> 
S104: Outras Receitas | U104: Voltar
S105: Descrição das atividades | T105: Compartilhamento | U105: Receita Regulatória | V105: Colunas1
S106: Serviços Cobráveis | T106: 0.6 | U106: =UDEROR!D14 -> 2260515.943 | V106: =IF(U106=0,0,1) -> 1
S107: =UDEROR!B15 -> Arrecadação de convênios ou valores pela fatura e arredação por terceiros | T107: 0.6 | U107: =UDEROR!D15 -> 0 | V107: 0
S108: =UDEROR!B16 -> Receita proveniente da comercialização de resultados de projetos de P&D | T108: 0.5 | U108: =UDEROR!D16 -> 0 | V108: 0
S109: =UDEROR!B17 -> Veiculação de publicidade | T109: 0.6 | U109: =UDEROR!D17 -> 0 | V109: 0
S110: =UDEROR!B18 -> Aluguel ou cessão onerosa de imóveis e espaços físicos | T110: 0.6 | U110: =UDEROR!D18 -> 0 | V110: 0
S111: =UDEROR!B19 -> Compartilhamento de infraestrutura (Média 12 meses) | T111: 0.6 | U111: =UDEROR!D19 -> 8503419.691 | V111: 1
S112: =UDEROR!B20 -> Serviços de avaliação técnica e aferição de medidores. | T112: 0.6 | U112: =UDEROR!D20 -> 0 | V112: 0
S113: =UDEROR!B21 -> Operacionalização de serviço de créditos tributários | T113: 0.6 | U113: =UDEROR!D21 -> 0 | V113: 0
S114: Elaboração de projeto, construção, operação, manutenção ou reforma de: | V114: 0
S115: (1) redes de distribuição de energia elétrica destinadas à regularização fundiária de interesse específico e ao atendimento dos empreendimentos de múltiplas unidades consumidoras; | T115: 0.6 | U115: =UDEROR!D23 -> 0 | V115: 0
S116: (2) redes de energia elétrica destinadas ao acesso dos sistemas de distribuição ou transmissão; | T116: 0.6 | U116: =UDEROR!D24 -> 0 | V116: 0
S117: (3) subestações de energia; | T117: 0.6 | U117: =UDEROR!D25 -> 0 | V117: 0
S118: (4) instalações elétricas internas de unidades consumidoras; | T118: 0.6 | U118: =UDEROR!D26 -> 0 | V118: 0
S119: (5) banco de capacitores: | T119: 0.6 | U119: =UDEROR!D27 -> 0 | V119: 0
S120: (6) padrões de entrada de unidades consumidoras atendidas em baixa tensão; | T120: 0.6 | U120: =UDEROR!D28 -> 0 | V120: 0
S121: (7) sistemas de medição de energia elétrica; | T121: 0.6 | U121: =UDEROR!D29 -> 0 | V121: 0
S122: (8) geradores, incluindo-se unidades de microgeração e minigeração distribuída; | T122: 0.3 | U122: =UDEROR!D30 -> 0 | V122: 0
S123: (9) sistemas de iluminação pública. | T123: 0.6 | U123: =UDEROR!D31 -> 0 | V123: 0
S124: Eficientização do consumo de energia elétrica e instalação de cogeração qualificada, desde que não enquadráveis nos projetos de Pesquisa e Desenvolvimento (P&D) ou de Eficiência Energética estabelecidos em lei | T124: 0.3 | U124: =UDEROR!D32 -> 0 | V124: 0
S125: Serviços de comunicação de dados | T125: 0.3 | U125: =UDEROR!D33 -> 0 | V125: 0
S126: Serviços de consultoria | T126: 0.6 | U126: =UDEROR!D34 -> 0 | V126: 0
S127: Total | U127: =SUM(U106:U126) -> 10763935.63 | V127: 1
W129: Calculo das Perdas | X129: Voltar
W130: Cálculo do Ponto de Partida
W131: Descrição | X131: PNT
W132: a. Meta Ciclo Anterior Faturada | X132: 0.013
W133: b. Diferença entre Medido e Faturado | X133: 0.009223126897
W134: c. Meta Ciclo Anterior Medida [b + c] | X134: 0.0222231269
W135: d. Média Histórico Medida | X135: 0.04749172703
W136: =IF(AND(Q130="P",X135>2.5%),"e. Ponto de Partida [ = máximo (2,5% & mínimo ( c & d )) ]",IF(AND(Q130="P",X135<=2.5),"e. Ponto de Partida [ = Média Histórica ]",IF(AND(Q130="G",X135>7.5%),"e. Ponto de Partida [ = máximo (7,5% & mínimo ( c & d )) ]","e. Ponto de Partida [ = Média Histórica ]"))) -> e. Ponto de Partida [ = Média Histórica ] | X136: 0.025
W137: f. Ponto de Partida Faturado [e - b] | X137: 0.0157768731
W139: Cálculo do Ponto de Chegada
W140: Descrição | X140: Modelo C | Y140: Modelo G | Z140: Modelo K
W141: g. Empresa Benchmark | X141: UHENPAL | Y141: UHENPAL | Z141: UHENPAL
W142: h. Perda Benchmark (PNT/BT) | X142: 0 | Y142: 0 | Z142: 0
X143: 0.002562180881 | Y143: 0.002562180881 | Z143: 0.002562180881
W144: j. Probabilidade de Comparação | X144: 0.4523378651 | Y144: 0.5143975427 | Z144: 0.1598724855
W145: k. Meta baseada em cada Benchmark [ h x j + (1 - j) x i ] | X145: 0.001403209451 | Y145: 0.001244201332 | Z145: 0.002152558655
W146: l. Meta média dos Benchmarks [ média ( k ) ] | Y146: 0.001599989812
W147: m. Ponto de Partida (PNT/BT) | Y147: 0.025
W148: =IF(AND(Q130="P",X135>2.5%),"n. Meta = [ mínimo (l e m ) ] ",IF(AND(Q130="P",X135<=2.5),"n. Ponto de Chegada [ = Ponto de Partida ]",IF(AND(Q130="G",X135>7.5%),"n. Meta = [ mínimo (l e m) ] ","n. Meta [ = Ponto de Partida ]"))) -> n. Meta [ = Ponto de Partida ] | Y148: 0.001599989812
W149: o. Meta Faturado [ n + b ] | Y149: 0
W151: Descrição | X151: Ponto Partida | Y151: 2021 | Z151: 2022 | AA151: 2023 | AB151: 2024 | AC151: 2025
W152: Trajetória PNT/BT | X152: 0.025 | Y152: 0.02031999796 | Z152: 0.01563999592 | AA152: 0.01095999389 | AB152: 0.00627999185 | AC152: 0.001599989812
W153: Velocidade de Redução (a.a) | Y153: -0.004680002038 | Z153: -0.004680002038 | AA153: -0.004680002038 | AB153: -0.004680002038 | AC153: -0.004680002038
W154: Limite de Redução (a.a) | Y154: 0 | Z154: 0 | AA154: 0 | AB154: 0 | AC154: 0
W155: PNT/BT Medido Regulatório | X155: 0.025 | Y155: 0.025 | Z155: 0.025 | AA155: 0.025 | AB155: 0.025 | AC155: 0.025
W156: Diferença entre Medido e Faturado | X156: 0.009223126897 | Y156: 0.009223126897 | Z156: 0.009223126897 | AA156: 0.009223126897 | AB156: 0.009223126897 | AC156: 0.009223126897
W157: PNT/BT Faturado Regulatório | X157: 0.0157768731 | Y157: 0.0157768731 | Z157: 0.0157768731 | AA157: 0.0157768731 | AB157: 0.0157768731 | AC157: 0.0157768731
W158: PT/ Einjetada Regulatório | X158: 0.04504 | Y158: 0.04504 | Z158: 0.04504 | AA158: 0.04504 | AB158: 0.04504 | AC158: 0.04504
AE160: Energia Requerida | AF160: Voltar
AE161: Descrição | AF161: Energia (MWh)
AE162: Perdas na Rede Básica | AF162: =Energia!H18+Energia!H19 -> 91097.7321
AE163: Perdas na Distribuição | AF163: =AF164+AF165 -> 989327.4894
AE164: Perdas Técnicas | AF164: =Energia!H17 -> 487844.4602
AE165: Perdas Não Técnicas | AF165: =Energia!H16 -> 501483.0293
AE166: Energia Vendida | AF166: =Energia!D6 -> 3139797.097
AE167: Energia Requerida | AF167: =SUM(AF162:AF163,AF166) -> 4220222.319
AH169: Transmissão | AI169: Voltar
AH170: Descrição | AI170: Valor (R$) | AJ170: Colunas1
AH171: Rede Básica | AI171: =Resultado!D30 -> 46533404.32 | AJ171: =IF(AI171=0,0,1) -> 1
AH172: Rede Básica Fronteira | AI172: =Resultado!D31 -> 29756913.93 | AJ172: =IF(AI172=0,0,1) -> 1
AH173: Rede Básica ONS (A2) | AI173: =Resultado!D32 -> 316216.8 | AJ173: 1
AH174: Rede Básica Export. (A2) | AI174: =Resultado!D33 -> 12409372.8 | AJ174: 1
AH175: MUST Itaipu | AI175: =Resultado!D34 -> 0 | AJ175: 0
AH176: Transporte de Itaipu | AI176: =Resultado!D35 -> 0 | AJ176: 0
AH177: Conexão | AI177: =Resultado!D36 -> 3431183.576 | AJ177: 1
AH178: Uso do sistema de distribuição | AI178: =Resultado!D37 -> 0 | AJ178: 0
AH179: Total | AI179: =SUM(AI171:AI178) -> 92447091.43
AK181: Encargos Setoriais | AL181: Voltar
AK182: Descrição | AL182: Valor (R$) | AM182: Dispositivo Legal | AN182: Colunas1
AK183: Taxa de Fisc. de Serviços de E.E. – TFSEE | AL183: =Resultado!D22 -> 2434479.931 | AM183: =Encargos!D17 -> Conforme módulo 5.5 do PRORET | AN183: =IF(AL183=0,0,1) -> 1
AK184: Conta de Desenvolvimento Energético – CDE | AL184: =Resultado!D23 -> 182294365.2 | AM184: =Encargos!D10 -> REH 2.864/2021 e DSP 939/2021 | AN184: 1
AK185: Compensação financeira - CFURH | AL185: =Resultado!D24 -> 0 | AM185: =Encargos!D11 -> 0 | AN185: 0
AK186: Encargos Serv. Sist. - ESS e Energ. Reserv. - EER | AL186: =Resultado!D25 -> 24957046.14 | AM186: =Encargos!D12 -> DSP nº 2.690/2021 | AN186: 1
AK187: PROINFA | AL187: =Resultado!D26 -> 29123785.25 | AM187: =Encargos!D13 -> ReH 2.815/2020 | AN187: 1
AK188: P&D, Efic.Energ e Ressarc.ICMS Sist.Isol. | AL188: =Resultado!D27 -> 14565860.94 | AM188: Res. Normativa nº 316/2008 | AN188: 1
AK189: ONS | AL189: =Resultado!D28 -> 0 | AM189: =Encargos!D14 -> 0 | AN189: 0
AK190: Total | AL190: =SUM(AL183:AL189) -> 253375537.4
AO192: TabRevAvalRTE
AP193: Receita Verificada (R$) | AQ193: Receita Verificada (R$) | AR193: Receita Requerida (R$) | AS193: Variação | AT193: Participação na Revisão | AU193: Participação na Receita
AO194: PARCELA A [Encargos+Transmissão+Energia+RI] | AP194: =AP195+AP205+AP214+AP215 -> 1036086307 | AQ194: =AQ195+AQ205+AQ214+AQ215 ->  | AR194: =AR195+AR205+AR214+AR215 -> 1111050992 | AS194: =IFERROR(AR194/AQ194-1,0) -> 0 | AT194: =IFERROR((AR194-AQ194)/$AQ$223,0) -> 0 | AU194: =IFERROR(AR194/$AR$223,0) -> 0
AO195: Encargos Setoriais | AP195: =SUM(AP196:AP204) -> 145420037.6 | AQ195: =SUM(AQ196:AQ204) ->  | AR195: =SUM(AR196:AR204) -> 253375537.4 | AS195: =IFERROR(AR195/AQ195-1,0) -> 0 | AT195: 0 | AU195: 0 | AV195: Colunas1 | AW195: Colunas2
AO196: Taxa de Fisc. de Serviços de E.E. – TFSEE | AP196: =SUM(DADOS_MercadoBase[TFSEE]) -> 2326435.253 | AQ196: =AP196+AP196*($AQ$223-$AP$223)/$AP$194 ->  | AR196: =Resultado!D22 -> 2434479.931 | AS196: 0 | AT196: 0 | AU196: 0 | AV196: =IF(SUM(AP196:AR196)<>0,1,0) -> 
AM197: 2 | AO197: Conta de Desenvolvimento Energético – CDE (USO) | AP197: =SUM(DADOS_MercadoBase[CDE],DADOS_MercadoBase[RTE_CDE_E]) -> 69914513.4 | AR197: =Encargos!G22 -> 69888824.44 | AS197: 0 | AT197: 0 | AU197: 0 | AV197: =IF(SUM(AP197:AR197)<>0,1,0) -> 
AO198: Conta de Desenvolvimento Energético – CDE (Covid TUSD) | AP198: =SUM(DADOS_MercadoBase[CDE_E_Dec],DADOS_MercadoBase[RTE_CDE_E_Dec]) -> 0 | AR198: =Encargos!G23 -> 57284733.43 | AS198: 0 | AT198: 0 | AU198: 0
AO199: Conta de Desenvolvimento Energético – CDE (Covid TE) | AP199: =SUM(DADOS_MercadoBase[CDE_E_ACR],DADOS_MercadoBase[RTE_CDE_E_ACR]) -> 0.0009974116702 | AR199: =Encargos!G24 -> 55120807.31 | AT199: 0 | AU199: 0
AO200: Compensação financeira - CFURH | AP200: =SUM(DADOS_MercadoBase[CFURH]) -> 0 | AR200: =Resultado!D24 -> 0 | AS200: 0 | AT200: 0 | AU200: 0
AO201: Encargos Serv. Sist. - ESS e Energ. Reserv. - EER | AP201: =SUM(DADOS_MercadoBase[ESSERR]) -> 35927208.42 | AR201: =Resultado!D25 -> 24957046.14 | AS201: 0 | AT201: 0 | AU201: 0
AO202: PROINFA | AP202: =SUM(DADOS_MercadoBase[PROINFA]) -> 22511804.45 | AR202: =Resultado!D26 -> 29123785.25 | AS202: 0 | AT202: 0 | AU202: 0 | AV202: =IF(SUM(AP202:AR202)<>0,1,0) -> 
AO203: P&D, Efic.Energ e Ressarc.ICMS Sist.Isol. | AP203: =SUM(DADOS_MercadoBase[PeD],DADOS_MercadoBase[RTE_PeD]) -> 14740076.1 | AR203: =Resultado!D27 -> 14565860.94 | AS203: 0 | AT203: 0 | AU203: 0
AO204: ONS | AP204: =Resultado!C28 -> 0 | AR204: =Resultado!D28 -> 0 | AS204: 0 | AT204: 0 | AU204: 0 | AV204: =IF(SUM(AP204:AR204)<>0,1,0) -> 
AO205: Custos de Transmissão | AP205: =SUM(AP206:AP213) -> 98360031.78 | AQ205: =SUM(AQ206:AQ213) ->  | AR205: =SUM(AR206:AR213) -> 92447091.43 | AS205: 0 | AT205: 0 | AU205: 0
AO206: Rede Básica | AP206: =SUM(DADOS_MercadoBase[TUST_RB]) -> 62675400.05 | AQ206: =AP206+AP206*($AQ$223-$AP$223)/$AP$194 ->  | AR206: =Resultado!D30 -> 46533404.32 | AS206: 0 | AT206: 0 | AU206: 0
AO207: Rede Básica Fronteira | AP207: =SUM(DADOS_MercadoBase[TUST_FR]) -> 21850751.09 | AR207: =Resultado!D31 -> 29756913.93 | AS207: 0 | AT207: 0 | AU207: 0
AO208: Rede Básica ONS (A2) | AP208: =SUM(DADOS_MercadoBase[TUSDG_ONS]) -> 294912 | AR208: =Resultado!D32 -> 316216.8 | AS208: 0 | AT208: 0 | AU208: 0
AO209: Rede Básica Export. (A2) | AP209: =SUM(DADOS_MercadoBase[TUSDG_T]) -> 11586048 | AR209: =Resultado!D33 -> 12409372.8 | AS209: 0 | AT209: 0 | AU209: 0
AO210: MUST Itaipu | AP210: =SUM(DADOS_MercadoBase[TUST_ITAIPU]) -> 0 | AR210: =Resultado!D34 -> 0 | AS210: 0 | AT210: 0 | AU210: 0
AO211: Transporte de Itaipu | AP211: =SUM(DADOS_MercadoBase[ITAIPU]) -> 0 | AR211: =Resultado!D35 -> 0 | AS211: 0 | AT211: 0 | AU211: 0
AO212: Conexão | AP212: =SUM(DADOS_MercadoBase[Conexao_T]) -> 1952920.63 | AR212: =Resultado!D36 -> 3431183.576 | AS212: 0 | AT212: 0 | AU212: 0
AO213: Uso do sistema de distribuição | AP213: =SUM(DADOS_MercadoBase[CUSD],DADOS_MercadoBase[RTE_CUSD]) -> 0 | AR213: =Resultado!D37 -> 0 | AS213: 0 | AT213: 0 | AU213: 0
AM214: =Mercado!Z66*(1-((Entrada!G58*(1-Entrada!G65)-(SUM(Entrada!G58:G64)*(1-Entrada!G65)-Entrada!G66)*(1-(1-Entrada!G67)^('VPB e Fator X'!C7-1)))/('VPB e Fator X'!C104*(1-'VPB e Fator X'!C105)^('VPB e Fator X'!C7-1)))) ->  | AO214: Custos de Aquisição de Energia | AP214: =SUM(DADOS_MercadoBase[RTE_Energia],DADOS_MercadoBase[EnergiaRevenda],DADOS_MercadoBase[perdasnt],DADOS_MercadoBase[perdasrb_d],DADOS_MercadoBase[perdasrb_c],DADOS_MercadoBase[perdastec]) -> 779347819.8 | AR214: =Resultado!D38 -> 749067123.9 | AS214: 0 | AT214: 0 | AU214: 0
AM215: =(1-(1-Entrada!G67)^('VPB e Fator X'!C7-1)) ->  | AO215: Receitas Irrecuperáveis | AP215: =SUM(DADOS_MercadoBase[RI]) -> 12958417.62 | AR215: =Resultado!D39 -> 16161239.51 | AS215: 0 | AT215: 0 | AU215: 0 | AV215: =IF(SUM(AP215:AR215)<>0,1,0) -> 
AO216: PARCELA B | AP216: =SUM(AP217:AP222) ->  | AQ216: =AP216 ->  | AR216: =SUM(AR217:AR222) ->  | AS216: 0 | AT216: 0 | AU216: 0
AM217: =Mercado!Z66*(Entrada!G58*(1-Entrada!G65)-(SUM(Entrada!G58:G64)*(1-Entrada!G65)-Entrada!G66)*(1-(1-Entrada!G67)^('VPB e Fator X'!C7-1)))/('VPB e Fator X'!C104*(1-'VPB e Fator X'!C105)^('VPB e Fator X'!C7-1)) ->  | AO217: Custos Operacionais | AP217: =($AP$218-$AP$223-$AP$224)*'VPB e Fator X'!F102 ->  | AQ217: =AP217 ->  | AR217: =Resultado!G20*(1-Resultado!$G$26-Resultado!$G$27) ->  | AS217: 0 | AT217: 0 | AU217: 0
AM218: =($AM$214-$AM$221)*Entrada!G63/SUM(Entrada!$G$61:$G$64) ->  | AO218: Anuidades | AP218: =($AP$218-$AP$223-$AP$224)*'VPB e Fator X'!F103 ->  | AR218: =Resultado!G24*(1-Resultado!$G$26-Resultado!$G$27) ->  | AS218: 0 | AT218: 0 | AU218: 0
AM219: =($AM$214-$AM$221)*Entrada!G61/SUM(Entrada!$G$61:$G$64) ->  | AO219: Remuneração | AP219: =($AP$218-$AP$223-$AP$224)*'VPB e Fator X'!F104 ->  | AR219: =Resultado!G22*(1-Resultado!$G$26-Resultado!$G$27) ->  | AS219: 0 | AT219: 0 | AU219: 0
... 69 more rows

Sheet Apresentação (hidden)
B2: Efeito Médio | L2: Efeito Médio CP x Final | U2: Composição Tarifária - Tributos | Z2: Composição Tarifária - ICMS & PIS/COFINS | AD2: Composição Tarifária - sem Tributos
U19: =Z19 -> Custo de Distribuição | W19: =AB19 -> 0.2837992783 | Z19: Custo de Distribuição | AB19: =AF19/$AB$26 -> 0.2837992783 | AD19: Custo de Distribuição | AF19: ='Votos e NTs'!W24 -> 696048794.8
U20: =Z20 -> Custo de Energia | W20: =AB20 -> 0.3054163885 | Z20: Custo de Energia | AB20: =AF20/$AB$26 -> 0.3054163885 | AD20: Custo de Energia | AF20: ='Votos e NTs'!W25 -> 749067123.9 | AP20: Custos Operacionais | AS20: ='NT Revisao'!AT217 -> 0
U21: =Z21 -> Custo de Transporte | W21: =AB21 -> 0.03769336003 | Z21: Custo de Transporte | AB21: =AF21/$AB$26 -> 0.03769336003 | AD21: Custo de Transporte | AF21: ='Votos e NTs'!W26 -> 92447091.43 | AP21: Anuidades | AS21: ='NT Revisao'!AT218 -> 0
U22: =Z22 -> Encargos Setoriais | W22: =AB22 -> 0.1033085542 | Z22: Encargos Setoriais | AB22: =SUM(AF23:AF26/$AB$26) -> 0.1033085542 | AD22: Receitas Irrecuperáveis | AF22: ='Votos e NTs'!W27 -> 16161239.51 | AP22: Remuneração | AS22: ='NT Revisao'!AT219 -> 0
C23: Impacto da RTA na Tarifa | M23: Impacto da RTA na Tarifa | P23: CP | Q23: Final | U23: =Z23 -> Receitas Irrecuperáveis | W23: =AB23 -> 0.006589406005 | Z23: Receitas Irrecuperáveis | AB23: =AF22/$AB$26 -> 0.006589406005 | AD23: PROINFA | AF23: ='Votos e NTs'!W28 -> 29123785.25 | AP23: Depreciação | AS23: ='NT Revisao'!AT220 -> 0
C24: Encargos Setoriais | F24: ='Votos e NTs'!H24 -> 0.06351969602 | M24: Encargos Setoriais | P24: ='AP x Final'!I4 ->  | Q24: =F24 -> 0.06351969602 | U24: Tributos | W24: =AB24+AB25 -> 0.263193013 | Z24: ICMS | AB24: ='Votos e NTs'!R29 -> 0.2006745782 | AD24: CDE | AF24: ='Votos e NTs'!W29 -> 182294365.2 | AP24: UDEROR | AS24: ='NT Revisao'!AT221 -> 0
C25: Transporte | F25: ='Votos e NTs'!H25 -> -0.003477471972 | M25: Custos de Transporte | P25: ='AP x Final'!I14 ->  | Q25: -0.003477471972 | Z25: PIS/COFINS | AB25: ='Votos e NTs'!R30 -> 0.06251843471 | AD25: ESS/EER | AF25: ='Votos e NTs'!W30 -> 24957046.14 | AP25: Parcela B | AS25: =SUM(AS20:AS24) -> 0
C26: Compra de Energia | F26: ='Votos e NTs'!H26 -> -0.01780421955 | M26: Custos de Compra de Energia | P26: ='AP x Final'!I23 ->  | Q26: -0.01780421955 | Z26: TOTAL com tributos | AB26: =AF27/(1-AB24-AB25) -> 2452609461 | AD26: Outros | AF26: ='Votos e NTs'!W31 -> 17000340.87
C27: Receitas Irrecuperáveis | F27: ='Votos e NTs'!H27 -> 0.001884633737 | M27: Receitas Irrecuperáveis | P27: ='AP x Final'!I24 ->  | Q27: 0.001884633737 | AD27: TOTAL | AF27: =SUM(AF19:AF26) -> 1807099787
C28: Distribuição | F28: ='Votos e NTs'!H28 -> 0.01911546574 | M28: Distribuição | P28: ='AP x Final'!I25 ->  | Q28: 0.01911546574
C29: Componentes Financeiros | F29: ='Votos e NTs'!H29 -> -0.08766230325 | M29: Componentes Financeiros | P29: ='AP x Final'!I33 ->  | Q29: -0.08766230325
C30: Retirada dos Financeiros Anteriores | F30: ='Votos e NTs'!H30 -> 0.09372744041 | M30: Efeito da Retirada dos Financeiros Anteriores | P30: =P31-SUM(P24:P29) ->  | Q30: =F30 -> 0.09372744041
C31: Efeito Médio Consumidor | F31: =SUM(F24:F30) -> 0.06930324114 | G31: =IF(CAPA!C7="Reajuste",'Votos e NTs'!BP344,'NT Revisao'!AT278) -> 0.06930324114 | M31: Efeito Médio Consumidor | P31: ='AP x Final'!I71 -> 0 | Q31: =F31 -> 0.06930324114
C34: Efeito Subgrupo
C35: SUBGRUPO | D35: EFEITO
C36: Grupo A | D36: =Resultado!L8 -> 0.06847212772
C37: Grupo B | D37: =Resultado!L9 -> 0.06951117712
C38: Grupos A+B | D38: =Resultado!L10 -> 0.06930324114
F40: Compra de Energia
F41: Contratos | G41: Montantes (MWh) | J41: Preço (R$/MWh) | M41: Impacto Processo
G42: Processo Anterior | H42: Processo Atual | I42: Variação | J42: Processo Anterior | K42: Processo Atual | L42: Variação | N42: Colunas1
F43: CCEAR | G43: =(SUM('Votos e NTs'!BT350:BT353)+'Votos e NTs'!BT$363*SUM('Votos e NTs'!BT350:BT353)/SUM('Votos e NTs'!BT$350:BT$361)) -> 1976501.787 | H43: =(SUM('Votos e NTs'!BU350:BU353)+'Votos e NTs'!BU$363*SUM('Votos e NTs'!BU350:BU353)/SUM('Votos e NTs'!BU$350:BU$361)) -> 1567777.138 | I43: =IFERROR(H43/G43-1,"") -> -0.2067919452 | J43: =IFERROR(SUM('Votos e NTs'!BZ350:BZ353)/SUM('Votos e NTs'!BT350:BT353),"") -> 216.4643708 | K43: =IFERROR(SUM('Votos e NTs'!CA350:CA353)/SUM('Votos e NTs'!BU350:BU353),"") -> 220.565543 | L43: =IFERROR(K43/J43-1,"") -> 0.01894617667 | M43: =+((H43*K43)-(G43*J43))/LnkTxtRA -> -0.04827234531 | N43: =IF(G43+H43=0,0,1) -> 1
F44: Ajuste - CCEAR | G44: =('Votos e NTs'!BT354+'Votos e NTs'!BT$363*'Votos e NTs'!BT354/SUM('Votos e NTs'!$BT$350:$BT$361)) -> 0 | H44: =('Votos e NTs'!BU354+'Votos e NTs'!BU$363*'Votos e NTs'!BU354/SUM('Votos e NTs'!$BU$350:$BU$361)) -> 0 | J44: =IFERROR('Votos e NTs'!BZ354/'Votos e NTs'!BT354,"") ->  | K44: =IFERROR('Votos e NTs'!CA354/'Votos e NTs'!BU354,"") ->  | L44: =IFERROR(K44/J44-1,"") ->  | N44: 0
F45: Madeira e Belo Monte | G45: =('Votos e NTs'!BT355+'Votos e NTs'!BT$363*'Votos e NTs'!BT355/SUM('Votos e NTs'!$BT$350:$BT$361)) -> 591998.5194 | H45: =('Votos e NTs'!BU355+'Votos e NTs'!BU$363*'Votos e NTs'!BU355/SUM('Votos e NTs'!$BU$350:$BU$361)) -> 799018.3097 | I45: 0.3496964664 | J45: =IFERROR('Votos e NTs'!BZ355/'Votos e NTs'!BT355,"") -> 137.4649452 | K45: =IFERROR('Votos e NTs'!CA355/'Votos e NTs'!BU355,"") -> 149.3055689 | L45: =IFERROR(K45/J45-1,"") -> 0.08613558622 | M45: 0.02231019837 | N45: 1
F46: Cota Angra I e Angra II | G46: =('Votos e NTs'!BT356+'Votos e NTs'!BT$363*'Votos e NTs'!BT356/SUM('Votos e NTs'!$BT$350:$BT$361)) -> 131773.5364 | H46: =('Votos e NTs'!BU356+'Votos e NTs'!BU$363*'Votos e NTs'!BU356/SUM('Votos e NTs'!$BU$350:$BU$361)) -> 175100.9879 | I46: 0.3288023736 | J46: =IFERROR('Votos e NTs'!BZ356/'Votos e NTs'!BT356,"") -> 269.75 | K46: =IFERROR('Votos e NTs'!CA356/'Votos e NTs'!BU356,"") -> 249.64 | L46: =IFERROR(K46/J46-1,"") -> -0.07455050973 | M46: 0.004804781964 | N46: 1
F47: Cotas Lei n º 12.783/2013 | G47: =('Votos e NTs'!BT357+'Votos e NTs'!BT$363*'Votos e NTs'!BT357/SUM('Votos e NTs'!$BT$350:$BT$361)) -> 944122.3076 | H47: =('Votos e NTs'!BU357+'Votos e NTs'!BU$363*'Votos e NTs'!BU357/SUM('Votos e NTs'!$BU$350:$BU$361)) -> 1309405.441 | I47: 0.3869023434 | J47: =IFERROR('Votos e NTs'!BZ357/'Votos e NTs'!BT357,"") -> 114.7627696 | K47: =IFERROR('Votos e NTs'!CA357/'Votos e NTs'!BU357,"") -> 122.6490552 | L47: =IFERROR(K47/J47-1,"") -> 0.06871815302 | M47: 0.0307405638 | N47: 1
F48: Itaipu | G48: =('Votos e NTs'!BT358+'Votos e NTs'!BT$363*'Votos e NTs'!BT358/SUM('Votos e NTs'!$BT$350:$BT$361)) -> 0 | H48: =('Votos e NTs'!BU358+'Votos e NTs'!BU$363*'Votos e NTs'!BU358/SUM('Votos e NTs'!$BU$350:$BU$361)) -> 0 | J48: =IFERROR('Votos e NTs'!BZ358/'Votos e NTs'!BT358,"") ->  | K48: =IFERROR('Votos e NTs'!CA358/'Votos e NTs'!BU358,"") ->  | N48: 0
F49: Bilateral | G49: =('Votos e NTs'!BT359+'Votos e NTs'!BT$363*'Votos e NTs'!BT359/SUM('Votos e NTs'!$BT$350:$BT$361)) -> 502924.1537 | H49: =('Votos e NTs'!BU359+'Votos e NTs'!BU$363*'Votos e NTs'!BU359/SUM('Votos e NTs'!$BU$350:$BU$361)) -> 292516.8249 | I49: -0.4183679135 | J49: =IFERROR('Votos e NTs'!BZ359/'Votos e NTs'!BT359,"") -> 254.5183333 | K49: =IFERROR('Votos e NTs'!CA359/'Votos e NTs'!BU359,"") -> 272.3333068 | L49: 0.06999485349 | M49: -0.02844245704 | N49: 1
F50: Geração Própria | G50: =('Votos e NTs'!BT360+'Votos e NTs'!BT$363*'Votos e NTs'!BT360/SUM('Votos e NTs'!$BT$350:$BT$361)) -> 0 | H50: =('Votos e NTs'!BU360+'Votos e NTs'!BU$363*'Votos e NTs'!BU360/SUM('Votos e NTs'!$BU$350:$BU$361)) -> 0 | J50: =IFERROR('Votos e NTs'!BZ360/'Votos e NTs'!BT360,"") ->  | K50: =IFERROR('Votos e NTs'!CA360/'Votos e NTs'!BU360,"") ->  | N50: 0
F51: Montante de Reposição | G51: =('Votos e NTs'!BT361+'Votos e NTs'!BT$363*'Votos e NTs'!BT361/SUM('Votos e NTs'!$BT$350:$BT$361)) -> 0 | H51: =('Votos e NTs'!BU361+'Votos e NTs'!BU$363*'Votos e NTs'!BU361/SUM('Votos e NTs'!$BU$350:$BU$361)) -> 0 | J51: =IFERROR('Votos e NTs'!BZ361/'Votos e NTs'!BT361,"") ->  | K51: =IFERROR('Votos e NTs'!CA361/'Votos e NTs'!BU361,"") ->  | N51: 0
F52: Proinfa | G52: ='Votos e NTs'!BT362 -> 72902.01455 | H52: ='Votos e NTs'!BU362 -> 76403.61747 | I52: 0.04803163454 | J52: 0 | K52: 0 | M52: 0 | N52: 1
F53: Total | G53: =SUM(G43:G52) -> 4220222.319 | H53: =SUM(H43:H52) -> 4220222.319 | I53: 0 | J53: ='Votos e NTs'!BW364 -> 184.6650382 | K53: ='Votos e NTs'!BX364 -> 177.494707 | L53: -0.03882885047 | M53: =SUM(M43:M52) -> 
O55: Encargos Setoriais
O56: Encargos Setoriais | P56: Processo Anterior (mil R$) | Q56: Processo Atual (mil R$) | R56: Impacto Processo | S56: Colunas1
O57: TFSEE | P57: ='Votos e NTs'!BM268/1000 -> 2326.374643 | Q57: ='Votos e NTs'!BN268/1000 -> 2434.479931 | R57: ='Votos e NTs'!BP268 -> 6.360559755e-05 | S57: =IF(P57+Q57=0,0,1) -> 1
O58: CDE (USO) | P58: ='Votos e NTs'!BM269/1000 -> 69912.69192 | Q58: ='Votos e NTs'!BN269/1000 -> 69888.82444 | R58: ='Votos e NTs'!BP269 -> -1.40428365e-05 | S58: 1
O59: CDE Conta Covid (TUSD) | P59: ='Votos e NTs'!BM270/1000 -> 0 | Q59: ='Votos e NTs'!BN270/1000 -> 57284.73343 | R59: ='Votos e NTs'!BP270 -> 0.03370445384 | S59: 1
O60: CDE Conta Covid (TE) | P60: =IF('Votos e NTs'!BM271/1000<1,0,'Votos e NTs'!BM271/1000) -> 0 | Q60: ='Votos e NTs'!BN271/1000 -> 55120.80731 | R60: ='Votos e NTs'!BP271 -> 0.03243127085 | S60: 1
O61: Compensação financeira - CFURH | P61: ='Votos e NTs'!BM272/1000 -> 0 | Q61: ='Votos e NTs'!BN272/1000 -> 0 | R61: ='Votos e NTs'!BP272 -> 0 | S61: 0
O62: ESS/EER | P62: ='Votos e NTs'!BM273/1000 -> 35926.27241 | Q62: ='Votos e NTs'!BN273/1000 -> 24957.04614 | R62: ='Votos e NTs'!BP273 -> -0.006453932112 | S62: 1
O63: PROINFA | P63: ='Votos e NTs'!BM274/1000 -> 22511.21795 | Q63: ='Votos e NTs'!BN274/1000 -> 29123.78525 | R63: ='Votos e NTs'!BP274 -> 0.003890617204 | S63: 1
O64: P&D | P64: ='Votos e NTs'!BM275/1000 -> 14739.69208 | Q64: ='Votos e NTs'!BN275/1000 -> 14565.86094 | R64: ='Votos e NTs'!BP275 -> -0.0001022765228 | S64: 1
O65: ONS | P65: ='Votos e NTs'!BM276/1000 -> 0 | Q65: ='Votos e NTs'!BN276/1000 -> 0 | R65: ='Votos e NTs'!BP276 -> 0 | S65: 0
O66: Total de Encargos | P66: =SUM(P57:P65) -> 145416.249 | Q66: =SUM(Q57:Q65) -> 253375.5374 | R66: =SUM(R57:R65) -> 0.06351969602
T68: Custos de Transporte
T69: Custos de Transporte | U69: Processo Anterior (mil R$) | V69: Processo Atual (mil R$) | W69: Impacto Processo | X69: Colunas1
T70: Rede Básica | U70: ='Votos e NTs'!BM278/1000 -> 62673.76717 | V70: ='Votos e NTs'!BN278/1000 -> 46533.40432 | W70: ='Votos e NTs'!BP278 -> -0.009496458867 | X70: =IF(U70+V70=0,0,1) -> 1
T71: Rede Básica Fronteira | U71: ='Votos e NTs'!BM279/1000 -> 21850.18182 | V71: ='Votos e NTs'!BN279/1000 -> 29756.91393 | W71: ='Votos e NTs'!BP279 -> 0.004652061233 | X71: 1
T72: Rede Básica ONS (A2) | U72: ='Votos e NTs'!BM280/1000 -> 294.9043167 | V72: ='Votos e NTs'!BN280/1000 -> 316.2168 | W72: ='Votos e NTs'!BP280 -> 1.253956452e-05 | X72: 1
T73: Rede Básica Export. (A2) | U73: ='Votos e NTs'!BM281/1000 -> 11585.74615 | V73: ='Votos e NTs'!BN281/1000 -> 12409.3728 | W73: ='Votos e NTs'!BP281 -> 0.0004845948435 | X73: 1
T74: MUST Itaipu | U74: ='Votos e NTs'!BM282/1000 -> 0 | V74: ='Votos e NTs'!BN282/1000 -> 0 | W74: ='Votos e NTs'!BP282 -> 0 | X74: 0
T75: Transporte de Itaipu | U75: ='Votos e NTs'!BM283/1000 -> 0 | V75: ='Votos e NTs'!BN283/1000 -> 0 | W75: ='Votos e NTs'!BP283 -> 0 | X75: 0
T76: Conexão | U76: ='Votos e NTs'!BM284/1000 -> 1952.86975 | V76: ='Votos e NTs'!BN284/1000 -> 3431.183576 | W76: ='Votos e NTs'!BP284 -> 0.0008697912537 | X76: 1
T77: Uso do sistema de distribuição | U77: ='Votos e NTs'!BM285/1000 -> 0 | V77: ='Votos e NTs'!BN285/1000 -> 0 | W77: ='Votos e NTs'!BP285 -> 0 | X77: 0
T78: Total do Transporte | U78: =SUM(U70:U77) -> 98357.46921 | V78: =SUM(V70:V77) -> 92447.09143 | W78: =SUM(W70:W77) -> -0.003477471972
Y80: Parcela B - Reajuste
Y81: Descrição | AA81: Valor | AB81: Referência
Y82: (1) Parcela B Processo Anterior (mil R$) | AA82: ='Votos e NTs'!AQ160/1000 -> 663559.7842 | AB82: TUSD fio B aplicada ao Mercado
Y83: (2) Fator DR1/Fator PB | AA83: ='VPB1'!C38 -> 1.02037251 | AB83: SGT/ANEEL
Y84: (3) Parcela B Processo Anterior sem UDEROR (mil R$) | AA84: =AA82*AA83 -> 677078.1627 | AB84: SGT/ANEEL
Y85: (4) IPCA | AA85: 0.04005113905 | AB85: Indicador econômico oficial
Y86: (5) Fator X | AA86: =SUM(AA87:AA89) -> -0.006046124006 | AB86: Pd + T + Q
Y87: (5.1) Componente Pd do Fator X | AA87: ='VPB1'!F40 -> 0 | AB87: PRORET 2.5 A
Y88: (5.2) Componente T do Fator X | AA88: ='VPB1'!F41 -> 0 | AB88: REH nº 2.377/2018
Y89: (5.3) Componente Q do Fator X | AA89: ='VPB1'!F42 -> -0.006046124006 | AB89: PRORET 2.5 A
Y90: (6) UDEROR | AA90: =SUM(AA91:AA93) -> 18635.47055 | AB90: UD + ER + OR
Y91: (6.1) Outras Receitas (OR) | AA91: ='Votos e NTs'!AQ169/1000 -> 10763.93563 | AB91: Valores fiscalizados - SFF
Y92: (6.2) Excedente de Reativos (ER) | AA92: ='Votos e NTs'!AQ170/1000 -> 4580.549213 | AB92: Valores fiscalizados - SFF
Y93: (6.3) Ultrapassagem de Demanda (UD) | AA93: ='Votos e NTs'!AQ171/1000 -> 3290.985705 | AB93: Valores fiscalizados - SFF
Y94: (7) ONS | AB94: 0
Y95: Parcela B Atual (mil R$) | AA95: =AA84*(1+AA85-AA86)-AA90 -> 689654.1423
AD97: Financeiros
AD98: Componentes Financeiros | AF98: Valor (mil R$) | AG98: Impacto Processo
AD99: CVA em processamento - Energia | AF99: =SUMIFS(Financeiros[Valor],Financeiros[idDet1],19,Financeiros[id_Grupo_TARIFA],2,Financeiros[idDet2],60,Financeiros[idDet3],999)/1000 -> 178067.097 | AG99: =1000*AF99/Financeiros!$D$5 -> 0.1047688257
AD100: CVA em processamento -Transporte | AF100: =SUMIFS(Financeiros[Valor],Financeiros[idDet1],19,Financeiros[id_Grupo_TARIFA],1,Financeiros[idDet2],60,Financeiros[idDet3],999)/1000 -> 14669.79945 | AG100: =1000*AF100/Financeiros!$D$5 -> 0.008631227705
AD101: CVA em processamento - Encargos Setoriais | AF101: =SUMIFS(Financeiros[Valor],Financeiros[idDet1],19,Financeiros[id_Grupo_TARIFA],3,Financeiros[idDet2],60,Financeiros[idDet3],999)/1000 -> 83983.13994 | AG101: =1000*AF101/Financeiros!$D$5 -> 0.04941291848
AD102: Saldo a Compensar CVA-Ano Anterior + Ajustes | AF102: =SUMIFS(Financeiros[Valor],Financeiros[idDet1],19,Financeiros[idDet2],64, Financeiros[idDet3],999)/1000 -> -677.3794686 | AG102: =1000*AF102/Financeiros!$D$5 -> -0.0003985478096
AD103: Neutralidade de Parcela A | AF103: =('Votos e NTs'!AZ194+'Votos e NTs'!AZ195+'Votos e NTs'!AZ196+'Votos e NTs'!AZ197)/1000 -> 8241.232502 | AG103: =1000*AF103/Financeiros!$D$5 -> 0.004848870263
AD104: Sobrecontratação/exposição de energia | AF104: =SUMIFS(Financeiros[Valor],Financeiros[idDet1],22,Financeiros[id_Grupo_TARIFA],2,Financeiros[idDet2],60, Financeiros[idDet3],106)/1000+SUMIFS(Financeiros[Valor],Financeiros[idDet1],22,Financeiros[id_Grupo_TARIFA],2,Financeiros[idDet2],60, Financeiros[idDet3],101)/1000 -> -119300.5834 | AG104: =1000*AF104/Financeiros!$D$5 -> -0.07019254108
AD105: Previsão de Risco Hidrológico | AF105: =SUMIFS(Financeiros[Valor],Financeiros[idDet1],22,Financeiros[id_Grupo_TARIFA],2,Financeiros[idDet2],60, Financeiros[idDet3],220)/1000 -> 53631.10276 | AG105: =1000*AF105/Financeiros!$D$5 -> 0.03155477767
AD106: Reversão do Risco Hidrológico | AF106: =SUMIFS(Financeiros[Valor],Financeiros[idDet1],22,Financeiros[id_Grupo_TARIFA],2,Financeiros[idDet2],62, Financeiros[idDet3],220)/1000 -> -50257.75493 | AG106: =1000*AF106/Financeiros!$D$5 -> -0.02957001071
AD107: Reversão Conta-Covid - CVA em processamento | AF107: =SUMIFS(Financeiros[Valor],Financeiros[idDet1],19,Financeiros[idDet2],60,Financeiros[idDet3],233)/1000 -> -62716.42235 | AG107: =1000*AF107/Financeiros!$D$5 -> -0.03690028103
AD108: Reversão Conta-Covid - Saldo a Compensar | AF108: =SUMIFS(Financeiros[Valor],Financeiros[idDet1],19,Financeiros[idDet2],64,Financeiros[idDet3],236)/1000 -> -25382.57841 | AG108: =1000*AF108/Financeiros!$D$5 -> -0.01493427465
AD109: Reversão Conta-Covid - Neutralidade de Parcela A | AF109: =SUMIFS(Financeiros[Valor],Financeiros[idDet1],20,Financeiros[idDet2],60, Financeiros[idDet3],234)/1000 -> -10564.70257 | AG109: =1000*AF109/Financeiros!$D$5 -> -0.006215923662
AD110: Outro Financeiro Relevante | AF110: 0 | AG110: =1000*AF110/Financeiros!$D$5 -> 0
AD111: Diferimento (art 10 da ReH 2.706/2020) | AF111: ='Votos e NTs'!AZ220/1000 -> 0 | AG111: =1000*AF111/Financeiros!$D$5 -> 0
AD112: Outro Financeiro Relevante | AG112: =1000*AF112/Financeiros!$D$5 -> 0
AD113: Outros | AF113: =AF114-SUM(AF99:AF112) -> -218685.4754 | AG113: =1000*AF113/Financeiros!$D$5 -> -0.1286673441
AD114: Total | AF114: ='Votos e NTs'!AZ246/1000 -> -148992.5248 | AG114: =SUM(AG99:AG113) -> -0.08766230325
AI116: B1 x Inflação
AJ117: Variação
AI118: IGP-M | AJ118: ='Votos e NTs'!AD39 -> 1.332697095
AI119: IPCA | AJ119: ='Votos e NTs'!AE39 -> 0.7974325272
AI120: Tarifa B1 | AJ120: ='Votos e NTs'!AC39 -> 0.4038586113
AL122: Financeiros
AL123: Resultado Bandeiras Tarifárias | AM123: Valor (mil R$) | AN123: Impacto Processo
AL124: Usinas com contrato por disponibilidade - CCEAR-D | AM124: -66519.46164 | AN124: -0.01144423021
AL125: Risco Hidrológico das usinas que repactuaram | AM125: 128197.3185 | AN125: 0.02205549458
AL126: Risco Hidrológico das usinas cotistas - CCGF | AM126: 103147.5557 | AN126: 0.01774584977
AL127: Risco Hidrológico da UHE ITAIPU | AM127: 87452.43744 | AN127: 0.01504560924
AL128: Encargos de Energia de Reserva - EER e de Serviço do Sistema - ESS | AM128: -102050.9453 | AN128: -0.01755718527
AL129: Resultado Mercado de Curto Prazo - MCP | AM129: 28529.54764 | AN129: 0.004908318602
AL130: Custo Total | AM130: 178756.4523 | AN130: 0.03075385671
AL131: Recolhimento pelas Bandeiras Tarifárias | AM131: -162443.7101 | AN131: -0.0279473581
AL132: Previsão do Risco Hidrológico no Processo Tarifário de 2018 | AM132: -162780.8718 | AN132: -0.02800536451
AL133: Receita Total | AM133: =AM131+AM132 -> -325224.5819 | AN133: =AN132+AN131 -> -0.05595272261
AL134: Custo não coberto antecipadamente | AM134: -146468.1296 | AN134: -0.0251988659
AP136: Remuneração do Capital
AP137: Descrição | AQ137: Ciclo Anterior | AR137: Ciclo Atual
AP138: Base Líquida (mil R$) | AQ138: ='Avaliação Parcela B'!J125/1000 ->  | AR138: ='Avaliação Parcela B'!K125/1000 -> 
AP139: Remuneração | AQ139: ='Avaliação Parcela B'!G126 ->  | AR139: ='Avaliação Parcela B'!H126 -> 
AT141: Quota de Reintegração
AT142: Descrição | AU142: Ciclo Anterior | AV142: Ciclo Atual
AT143: Base Bruta (mil R$) | AU143: ='Avaliação Parcela B'!J158/1000 ->  | AV143: ='Avaliação Parcela B'!K158/1000 -> 
AT144: Depreciação | AU144: ='Avaliação Parcela B'!G159 ->  | AV144: ='Avaliação Parcela B'!H159 -> 
AX146: Parcela B - Revisão
AX147: Descrição | AY147: Processo Anterior (mil R$) | AZ147: Processo Atual (mil R$) | BA147: Variação | BB147: Participação na Revisão
AX148: ='NT Revisao'!AO217 -> Custos Operacionais | AY148: ='NT Revisao'!AQ217/1000 ->  | AZ148: ='NT Revisao'!AR217/1000 ->  | BA148: ='NT Revisao'!AS217 -> 0 | BB148: ='NT Revisao'!AT217 -> 0
AX149: ='NT Revisao'!AO218 -> Anuidades | AY149: ='NT Revisao'!AQ218/1000 ->  | AZ149: ='NT Revisao'!AR218/1000 ->  | BA149: ='NT Revisao'!AS218 -> 0 | BB149: ='NT Revisao'!AT218 -> 0
AX150: ='NT Revisao'!AO219 -> Remuneração | AY150: ='NT Revisao'!AQ219/1000 ->  | AZ150: ='NT Revisao'!AR219/1000 ->  | BA150: ='NT Revisao'!AS219 -> 0 | BB150: ='NT Revisao'!AT219 -> 0
AX151: ='NT Revisao'!AO220 -> Depreciação | AY151: ='NT Revisao'!AQ220/1000 ->  | AZ151: ='NT Revisao'!AR220/1000 ->  | BA151: ='NT Revisao'!AS220 -> 0 | BB151: ='NT Revisao'!AT220 -> 0
AX152: ='NT Revisao'!AO221 -> UD+ER+OR | AY152: ='NT Revisao'!AQ221/1000 ->  | AZ152: ='NT Revisao'!AR221/1000 -> -18635.47055 | BA152: ='NT Revisao'!AS221 -> 0 | BB152: ='NT Revisao'!#REF! -> 
AX155: PARCELA B | AY155: =SUM(AY148:AY154) ->  | AZ155: =SUM(AZ148:AZ154) ->  | BA155: =IF(ISERROR(AZ155/AY155-1),0,AZ155/AY155-1) -> 0 | BB155: =IF(ISERROR((AZ155-AY155)/$AP$183),0,(AZ155-AY155)/$AP$183) -> 0
BD159: Enel RJ | BE159: 683.87 | BG159: 1 | BH159: Enel RJ | BJ159: 714.44
BD160: Celpa | BE160: 683.6 | BG160: 2 | BH160: Celpa | BJ160: 703.21
BD161: AmE | BE161: 664.84 | BG161: =BG160+1 -> 3 | BH161: EMS | BJ161: 700.36
BD162: Light | BE162: 663.1 | BG162: =BG161+1 -> 4 | BH162: Light | BJ162: 694.05
BD163: ENF | BE163: 649.89 | BG163: 5 | BH163: AmE | BJ163: 693.49
BD164: Eflul | BE164: 648.12 | BG164: 6 | BH164: EMT | BJ164: 690.12
BD165: EFLJC | BE165: 639.05 | BG165: 7 | BH165: ENF | BJ165: 662.44
BD166: Sulgipe | BE166: 636.31 | BG166: 8 | BH166: Forcel | BJ166: 654.63
BD167: Cemar | BE167: 630.18 | BG167: 9 | BH167: ETO | BJ167: 647.35
BD168: Cemig-D | BE168: 628.33 | BG168: 10 | BH168: Cemig | BJ168: 644.23
BD169: EMT | BE169: 626.84 | BG169: 11 | BH169: Eflul | BJ169: 641.69
BD170: Forcel | BE170: 619.01 | BG170: 12 | BH170: EFLJC | BJ170: 639.85
BD171: Roraima Energia | BE171: 617.77 | BG171: 13 | BH171: Celpe 2021 | BI171: Celpe 2021 | BJ171: 628.4189439
BD172: EMS | BE172: 608.65 | BG172: 14 | BH172: Cemar | BJ172: 628.21
BD173: Hidropan | BE173: 600.74 | BG173: 15 | BH173: EMG | BJ173: 627.73
BD174: ETO | BE174: 600.08 | BG174: 16 | BH174: Coelba | BJ174: 624.64
BD175: EMG | BE175: 595.83 | BG175: 17 | BH175: Sulgipe | BJ175: 619.22
BD176: Ceron | BE176: 576.82 | BG176: 18 | BH176: Hidropan | BJ176: 602.62
BD177: Chesp | BE177: 573.14 | BG177: 19 | BH177: CPFL Paulista | BJ177: 601.57
BD178: Uhenpal | BE178: 572.49 | BG178: 20 | BH178: Chesp | BJ178: 599.53
BD179: Eletroacre | BE179: 569.84 | BG179: 21 | BH179: Enel CE | BJ179: 594.36
BD180: Cepisa | BE180: 569.48 | BG180: 22 | BH180: ELFSM | BJ180: 593.39
BD181: RGE | BE181: 560.27 | BG181: 23 | BH181: RGE (agrupada) | BJ181: 589.57
BD182: Cocel | BE182: 557.12 | BG182: 24 | BH182: ESE | BJ182: 585.6
BD183: Coelba | BE183: 552.13 | BG183: 25 | BH183: Ceal | BJ183: 583.31
BD184: Celpe | BE184: 549.33 | BG184: 26 | BH184: Eletroacre | BJ184: 581.91
BD185: CPFL Santa Cruz | BE185: 547.69 | BG185: 27 | BH185: Cepisa | BJ185: 581.82
BD186: EPB | BE186: 545.4 | BG186: 28 | BH186: Roraima Energia | BJ186: 574.69
BD187: Eletrocar | BE187: 541.57 | BG187: 29 | BH187: Celpe 2020 | BI187: Celpe 2020 | BJ187: 574.34
BD188: CEA | BE188: 537.18 | BG188: 30 | BH188: Uhenpal | BJ188: 571.71
BD189: Ceal | BE189: 535.25 | BG189: 31 | BH189: CPFL Santa Cruz | BJ189: 564.97
BD190: Celg-D | BE190: 533.68 | BG190: 32 | BH190: Cosern | BJ190: 563.55
BD191: Elektro | BE191: 531.87 | BG191: 33 | BH191: EPB | BJ191: 562.11
BD192: ESE | BE192: 530.72 | BG192: 34 | BH192: Cocel | BJ192: 561.58
BD193: Enel CE | BE193: 529.49 | BG193: 35 | BH193: Eletrocar | BJ193: 561.45
BD194: EDP ES | BE194: 525.81 | BG194: 36 | BH194: EDP ES | BJ194: 557
BD195: EDP SP | BE195: 525.73 | BG195: 37 | BH195: Elektro | BJ195: 555.05
BD196: CPFL Paulista | BE196: 523.02 | BG196: 38 | BH196: CEEE-D | BJ196: 548.97
BD197: CEB-DIS | BE197: 518.01 | BG197: 39 | BH197: Enel GO | BJ197: 547.39
BD198: ELFSM | BE198: 517.96 | BG198: 40 | BH198: EDP SP | BJ198: 546.11
BD199: Copel-DIS | BE199: 517.61 | BG199: 41 | BH199: Demei | BJ199: 537.88
BD200: Eletropaulo | BE200: 515.59 | BG200: 42 | BH200: Enel SP | BJ200: 534.19
BD201: CEEE-D | BE201: 515.07 | BG201: 43 | BH201: CPFL Piratininga | BJ201: 533.55
BD202: Ienergia | BE202: 510.62 | BG202: 44 | BH202: MuxEnergia | BJ202: 527.79
BD203: DMED | BE203: 507.42 | BG203: 45 | BH203: DMED | BJ203: 525.57
BD204: Demei | BE204: 507.03 | BG204: 46 | BH204: CEB-DIS | BJ204: 514.78
BD205: Cosern | BE205: 505.53 | BG205: 47 | BH205: Ceron | BJ205: 514.38
BD206: EBO | BE206: 497.66 | BG206: =BG205+1 -> 48 | BH206: ESS (agrupada) | BJ206: 513.89
BD207: Sul Sudeste | BE207: 497.35 | BG207: 49 | BH207: Copel-DIS | BJ207: 512.77
BD208: CPFL Piratininga | BE208: 490.18 | BG208: 50 | BH208: Ienergia | BJ208: 512.48
BD209: MuxEnergia | BE209: 485.22 | BG209: 51 | BH209: Cooperaliança | BJ209: 512
BD210: Celesc-DIS | BE210: 469.78 | BG210: 52 | BH210: Celesc-DIS | BJ210: 505.99
BD211: Cooperaliança | BE211: 467.6 | BG211: 53 | BH211: CEA | BJ211: 505.25
BG212: 54 | BH212: EBO | BJ212: 497.66
CE215: DEC | CV215: FEC
CG216: =CH216-1 -> 2012 | CH216: 2013 | CI216: 2014 | CJ216: 2015 | CK216: 2016 | CL216: 2017 | CM216: 2018 | CN216: 2019 | CO216: =CP216-1 -> 2020 | CP216: 2021 | CQ216: =CP216+1 -> 2022 | CR216: =CQ216+1 -> 2023 | CS216: 2024 | CT216: 2025 | CX216: =CY216-1 -> 2012 | CY216: 2013 | CZ216: 2014 | DA216: 2015 | DB216: 2016 | DC216: 2017 | DD216: 2018 | DE216: 2019 | DF216: =DG216-1 -> 2020 | DG216: 2021 | DH216: =DG216+1 -> 2022 | DI216: =DH216+1 -> 2023 | DJ216: 2024 | DK216: 2025
CE217: DEC Apurado | CH217: 23.76 | CI217: 25.51 | CJ217: 19.31 | CK217: 15.8 | CL217: 16.98 | CM217: 12.51 | CN217: 11.96 | CO217: 12.41 | CV217: FEC Apurado | CY217: 8.87 | CZ217: 8.84 | DA217: 8.12 | DB217: 7.13 | DC217: 7.56 | DD217: 8.97 | DE217: 5.69 | DF217: 5.56
CE218: DEC Limite | CH218: 16.39 | CI218: 16.39 | CJ218: 15.48 | CK218: 14.71 | CL218: 13.91 | CM218: 13.82 | CN218: 13.67 | CO218: 13.35 | CP218: 13.22 | CV218: FEC Limite | CY218: 12.48 | CZ218: 12.05 | DA218: 11.04 | DB218: 10.19 | DC218: 9.35 | DD218: 9.26 | DE218: 8.7 | DF218: 8.33 | DG218: 8.1
CE219: DEC Limite Proposto | CQ219: 12.92 | CR219: 12.33 | CS219: 11.86 | CT219: 11.48 | CV219: FEC Limite Proposto | DH219: 8.05 | DI219: 7.25 | DJ219: 7.05 | DK219: 6.68
DM239: Parcela B / Mercado
DM241: Grandes
DM242: Reg | DN242: Distribuidora | DO242: PB/Mcdo | DP242: Média | DQ242: Parcela B | DR242: Mercado | DS242: Proc.Tar
DM243: N | DN243: ETO | DO243: =DQ243/DR243 -> 265.4071894 | DP243: =$DP$280 -> 157.3788987 | DQ243: 639963261.2 | DR243: 2411250.662 | DS243: 2020
DM244: N | DN244: Eletroacre | DO244: =DQ244/DR244 -> 262.1465373 | DP244: 157.3788987 | DQ244: 287816729.4 | DR244: 1097923.064 | DS244: 2020
DM245: CO | DN245: EMT | DO245: =DQ245/DR245 -> 246.7591507 | DP245: 157.3788987 | DQ245: 2384063093 | DR245: 9661498.209 | DS245: 2021
DM246: N | DN246: Equatorial PA | DO246: 238.5668194 | DP246: 157.3788987 | DQ246: 2059159218 | DR246: 8631373.062 | DS246: 2020
DM247: N | DN247: Cemar | DO247: 234.2860346 | DP247: 157.3788987 | DQ247: 1473020968 | DR247: 6287276.026 | DS247: 2020
DM248: CO | DN248: EMS | DO248: =DQ248/DR248 -> 233.1547235 | DP248: 157.3788987 | DQ248: 1338673092 | DR248: 5741565.396 | DS248: 2021
DM249: NE | DN249: Equatorial PI | DO249: =DQ249/DR249 -> 225.4201543 | DP249: 157.3788987 | DQ249: 847371044 | DR249: 3759074.012 | DS249: 2020
DM250: NE | DN250: Coelba | DO250: =DQ250/DR250 -> 223.125744 | DP250: 157.3788987 | DQ250: 4496925221 | DR250: 20154219.5 | DS250: 2021
DM251: N | DN251: CEA | DO251: =DQ251/DR251 -> 202.1486891 | DP251: 157.3788987 | DQ251: 208334410.9 | DR251: 1030599.861 | DS251: 2020
DM252: N | DN252: Roraima Energia | DO252: 196.414686 | DP252: 157.3788987 | DQ252: 190096815.7 | DR252: 967834.023 | DS252: 2020
DM253: N | DN253: ERO | DO253: 194.5443248 | DP253: 157.3788987 | DQ253: 654751237.9 | DR253: 3365563.29 | DS253: 2020
DM254: NE | DN254: Enel CE | DO254: 193.8478817 | DP254: 157.3788987 | DQ254: 2304543823 | DR254: 11888413.76 | DS254: 2021
DM255: NE | DN255: ESE | DO255: 182.1170686 | DP255: 157.3788987 | DQ255: 582360670.1 | DR255: 3197727.015 | DS255: 2021
DM256: NE | DN256: Equatorial AL | DO256: 180.3999249 | DP256: 157.3788987 | DQ256: 709645473.4 | DR256: 3933734.861 | DS256: 2021
... 45 more rows

Sheet AP x Final (hidden)
C1: Prencher valores conforme CP | F1: Prencher valores conforme CP
B2: Descrição | C2: CP XX/2021 Receita Verificada (R$) | D2: Final Receita Verificada (R$) | E2: Variação Receita Verificada Final/CP | F2: CP XX/2021 Receita Requerida (R$) | G2: Final Receita Requerida (R$) | H2: Variação Receita Requerida Final/CP | I2: CP Participação na Revisão % | J2: Final Participação na Revisão % | K2: Variação Total | M2: Variação de Custos | N2: Variação de Receita Verificada | O2: Simulação sem var. mercado
B3: PARCELA A [Encargos+Transmissão+Energia] | C3: =C4+C14+C23+C24 -> 0 | D3: =D4+D14+D23+D24 ->  | E3: =IF(ISERROR(D3/C3-1),"-",D3/C3-1) -> - | F3: =F4+F14+F23+F24 -> 0 | G3: =G4+G14+G23+G24 -> 1111050992 | H3: =IF(ISERROR(G3/F3-1),"-",G3/F3-1) -> - | I3: =IFERROR((F3-C3)/$C$31,"") ->  | J3: =IFERROR((G3-D3)/$D$31,"") ->  | K3: =J3-I3 ->  | L3: =IF(G3+D3<>0,1,0) ->  | M3: =(G3-C3)/$C$31-I3 ->  | N3: =K3-M3 ->  | O3: =(G3-C3)/$C$31 -> 
B4: Encargos Setoriais | C4: =SUM(C5:C13) -> 0 | D4: =SUM(D5:D13) ->  | E4: =IF(ISERROR(D4/C4-1),"-",D4/C4-1) -> - | F4: =SUM(F5:F13) -> 0 | G4: =SUM(G5:G13) -> 253375537.4 | H4: =IF(ISERROR(G4/F4-1),"-",G4/F4-1) -> - | I4: =IFERROR((F4-C4)/$C$31,"") ->  | K4: =J4-I4 ->  | N4: =K4-M4 ->  | O4: =(G4-C4)/$C$31 -> 
B5: Taxa de Fisc. de Serviços de E.E. – TFSEE | D5: ='NT Revisao'!AQ196 ->  | E5: =IF(ISERROR(D5/C5-1),"-",D5/C5-1) -> - | G5: ='NT Revisao'!AR196 -> 2434479.931 | H5: =IF(ISERROR(G5/F5-1),"-",G5/F5-1) -> - | N5: =K5-M5 -> 
B6: Conta de Desenvolvimento Energético – CDE (USO) | D6: ='NT Revisao'!AQ197 ->  | E6: =IF(ISERROR(D6/C6-1),"-",D6/C6-1) -> - | G6: ='NT Revisao'!AR197 -> 69888824.44 | H6: =IF(ISERROR(G6/F6-1),"-",G6/F6-1) -> -
B7: Conta de Desenvolvimento Energético – CDE Conta-Covid (TUSD) | D7: ='NT Revisao'!AQ198 ->  | E7: - | G7: ='NT Revisao'!AR198 -> 57284733.43 | H7: =IF(ISERROR(G7/F7-1),"-",G7/F7-1) -> -
B8: Conta de Desenvolvimento Energético – CDE Conta-Covid (TE) | D8: ='NT Revisao'!AQ199 ->  | G8: ='NT Revisao'!AR199 -> 55120807.31 | H8: =IF(ISERROR(G8/F8-1),"-",G8/F8-1) -> -
B9: Compensação financeira - CFURH | D9: ='NT Revisao'!AQ200 ->  | E9: - | G9: ='NT Revisao'!AR200 -> 0 | H9: =IF(ISERROR(G9/F9-1),"-",G9/F9-1) -> -
B10: Encargos Serv. Sist. - ESS e Energ. Reserv. - EER | D10: ='NT Revisao'!AQ201 ->  | E10: - | G10: ='NT Revisao'!AR201 -> 24957046.14 | H10: - | K10: =J10-I10 -> 
B11: PROINFA | D11: ='NT Revisao'!AQ202 ->  | E11: - | G11: ='NT Revisao'!AR202 -> 29123785.25 | H11: - | K11: =J11-I11 -> 
B12: P&D, Efic.Energ | D12: ='NT Revisao'!AQ203 ->  | E12: - | G12: ='NT Revisao'!AR203 -> 14565860.94 | H12: - | K12: =J12-I12 -> 
B13: ONS | D13: ='NT Revisao'!AQ204 ->  | E13: - | G13: ='NT Revisao'!AR204 -> 0 | H13: -
B14: Custos de Transmissão | C14: =SUM(C15:C22) -> 0 | D14: =SUM(D15:D22) ->  | E14: - | F14: =SUM(F15:F22) -> 0 | G14: =SUM(G15:G22) -> 92447091.43 | H14: - | K14: =J14-I14 -> 
B15: Rede Básica | D15: ='NT Revisao'!AQ206 ->  | E15: =IF(ISERROR(D15/C15-1),"-",D15/C15-1) -> - | G15: ='NT Revisao'!AR206 -> 46533404.32 | H15: - | K15: =J15-I15 -> 
B16: Rede Básica Fronteira | D16: ='NT Revisao'!AQ207 ->  | E16: - | G16: ='NT Revisao'!AR207 -> 29756913.93 | H16: - | K16: =J16-I16 -> 
B17: Rede Básica ONS (A2) | D17: ='NT Revisao'!AQ208 ->  | E17: - | G17: ='NT Revisao'!AR208 -> 316216.8 | H17: -
B18: Rede Básica Export. (A2) | D18: ='NT Revisao'!AQ209 ->  | E18: - | G18: ='NT Revisao'!AR209 -> 12409372.8 | H18: -
B19: MUST Itaipu | D19: ='NT Revisao'!AQ210 ->  | E19: - | G19: ='NT Revisao'!AR210 -> 0 | H19: - | K19: =J19-I19 -> 
B20: Transporte de Itaipu | D20: ='NT Revisao'!AQ211 ->  | E20: - | G20: ='NT Revisao'!AR211 -> 0 | H20: - | K20: =J20-I20 -> 
B21: Conexão | D21: ='NT Revisao'!AQ212 ->  | E21: - | G21: ='NT Revisao'!AR212 -> 3431183.576 | H21: - | K21: =J21-I21 -> 
B22: Uso do sistema de distribuição | D22: ='NT Revisao'!AQ213 ->  | E22: - | G22: ='NT Revisao'!AR213 -> 0 | H22: =IF(ISERROR(G22/F22-1),"-",G22/F22-1) -> - | K22: =J22-I22 -> 
B23: Custo de Aquisição de Energia | D23: ='NT Revisao'!AQ214 ->  | E23: - | G23: ='NT Revisao'!AR214 -> 749067123.9 | H23: -
B24: Receitas Irrecuperáveis | D24: ='NT Revisao'!AQ215 ->  | E24: - | G24: ='NT Revisao'!AR215 -> 16161239.51 | H24: -
B25: PARCELA B | C25: =SUM(C26:C30) -> 0 | D25: =SUM(D26:D30) ->  | E25: - | F25: =SUM(F26:F30) -> 0 | G25: =SUM(G26:G30) ->  | H25: =IF(ISERROR(G25/F25-1),"-",G25/F25-1) -> -
B26: Custos Operacionais | D26: ='NT Revisao'!AQ217 ->  | E26: - | G26: ='NT Revisao'!AR217 ->  | H26: -
B27: Anuidades | D27: ='NT Revisao'!AQ218 ->  | E27: - | G27: ='NT Revisao'!AR218 ->  | H27: -
B28: Remuneração | D28: ='NT Revisao'!AQ219 ->  | E28: - | G28: ='NT Revisao'!AR219 ->  | H28: - | K28: =J28-I28 -> 
B29: Depreciação | D29: ='NT Revisao'!AQ220 ->  | E29: - | G29: ='NT Revisao'!AR220 ->  | H29: -
B30: OR, UD e ER | D30: ='NT Revisao'!AQ221 ->  | E30: =IF(ISERROR(D30/C30-1),"-",D30/C30-1) -> - | G30: ='NT Revisao'!AR221+'NT Revisao'!AR222 -> -18635470.55 | H30: -
B31: Reposicionamento Tarifário | C31: =C25+C3 -> 0 | D31: =D25+D3 ->  | E31: =IF(ISERROR(D31/C31-1),"-",D31/C31-1) -> - | F31: =F25+F3 -> 0 | G31: =G25+G3 ->  | H31: - | K31: =J31-I31 ->  | M31: =(G31-C31)/$C$31-I31 -> 
L32: 0
B33: Componentes Financeiros do Processo Atual | F33: =SUM(F34:F69) -> 0 | G33: =SUM(G34:G69) -> -148992524.8 | I33: =SUM(I34:I69) ->  | J33: =SUM(J34:J69) -> -0.08766230325 | K33: =J33-I33 ->  | L33: 1 | M33: =G33/$C$31-I33 ->  | N33: =K33-M33 ->  | O33: =(G33-C33)/$C$31 -> 
B34: ='NT Revisao'!AO226 -> CVA em processamento - Energia | G34: ='NT Revisao'!AR226 -> 178067097 | I34: =F34/$C$31 ->  | J34: ='NT Revisao'!AT226 -> 0.1047688257 | K34: =J34-I34 ->  | L34: 1 | M34: =G34/$C$31-I34 ->  | N34: =K34-M34 ->  | O34: =K34-N34 -> 
B35: ='NT Revisao'!AO227 -> CVA em processamento - Transporte | G35: ='NT Revisao'!AR227 -> 14669799.45 | I35: =F35/$C$31 ->  | J35: ='NT Revisao'!AT227 -> 0.008631227705 | K35: =J35-I35 ->  | L35: 1
B36: ='NT Revisao'!AO228 -> CVA em processamento - Encargos Setoriais | G36: ='NT Revisao'!AR228 -> 83983139.94 | J36: ='NT Revisao'!AT228 -> 0.04941291848 | L36: 1
B37: ='NT Revisao'!AO229 -> Saldo a Compensar CVA-Ano Anterior + Ajustes | G37: ='NT Revisao'!AR229 -> -677379.4686 | J37: ='NT Revisao'!AT229 -> -0.0003985478096 | L37: 1
B38: ='NT Revisao'!AO230 -> Neutralidade de Parcela A- Energia | G38: ='NT Revisao'!AR230 -> 1827445.826 | J38: ='NT Revisao'!AT230 -> 0.001075209045 | L38: 1
B39: ='NT Revisao'!AO231 -> Neutralidade de Parcela A - Transporte | G39: ='NT Revisao'!AR231 -> 2615492.797 | J39: ='NT Revisao'!AT231 -> 0.001538869974 | L39: 1
B40: ='NT Revisao'!AO232 -> Neutralidade de Parcela A - Encargos Setoriais | G40: ='NT Revisao'!AR232 -> 1218669.103 | J40: ='NT Revisao'!AT232 -> 0.0007170248351 | L40: 1
B41: ='NT Revisao'!AO233 -> Neutralidade de Parcela A - Receita Irrecuperável | G41: ='NT Revisao'!AR233 -> 2579624.775 | J41: ='NT Revisao'!AT233 -> 0.001517766409 | L41: 1
B42: ='NT Revisao'!AO234 -> Sobrecontratação/exposição de energia | G42: ='NT Revisao'!AR234 -> -119300583.4 | J42: ='NT Revisao'!AT234 -> -0.07019254108 | L42: 1
B43: ='NT Revisao'!AO235 -> Garantias financeiras na contratação regulada de energia (CCEAR) | G43: ='NT Revisao'!AR235 -> 211156.3673 | J43: ='NT Revisao'!AT235 -> 0.0001242374644 | L43: 1
B44: ='NT Revisao'!AO236 -> Previsão de Risco Hidrológico | G44: ='NT Revisao'!AR236 -> 53631102.76 | J44: ='NT Revisao'!AT236 -> 0.03155477767 | L44: 1
B45: ='NT Revisao'!AO237 -> Ajuste Liminar Abrace | G45: ='NT Revisao'!AR237 -> 0 | J45: ='NT Revisao'!AT237 -> 0 | L45: 0
B46: ='NT Revisao'!AO238 -> Ajuste ref. equilíbrio econômico-financeiro TUSDg (A3a) | G46: ='NT Revisao'!AR238 -> 0 | J46: ='NT Revisao'!AT238 -> 0 | L46: 0
B47: ='NT Revisao'!AO239 -> Repasse de ultrapassagem de Supridas/Permissionárias de Energia | G47: ='NT Revisao'!AR239 -> 0 | J47: ='NT Revisao'!AT239 -> 0 | L47: 0
B48: ='NT Revisao'!AO240 -> Cálculo extraordinário de Neutralidade -Postergação da Data de Aniversário | G48: ='NT Revisao'!AR240 -> -49606022.8 | J48: ='NT Revisao'!AT240 -> -0.02918655295 | L48: 1
B49: ='NT Revisao'!AO241 -> Ajuste CUSD | G49: ='NT Revisao'!AR241 -> 0 | J49: ='NT Revisao'!AT241 -> 0 | L49: 0
B50: ='NT Revisao'!AO242 -> Repasse de compensação DIC/FIC | G50: ='NT Revisao'!AR242 -> 0 | J50: ='NT Revisao'!AT242 -> 0 | L50: 0
B51: ='NT Revisao'!AO243 -> Compensação ref. acordos bilaterais de CCEAR | G51: ='NT Revisao'!AR243 -> 0 | J51: ='NT Revisao'!AT243 -> 0 | L51: 0
B52: ='NT Revisao'!AO244 -> Reversão do Risco Hidrológico | G52: ='NT Revisao'!AR244 -> -50257754.93 | J52: ='NT Revisao'!AT244 -> -0.02957001071 | L52: 1
B53: Ressarcimento de P&D | F53: 0 | G53: 0 | I53: 0 | J53: 0 | K53: 0
B54: ='NT Revisao'!AO246 -> Reversão Conta-Covid - CVA em processamento - Energia | G54: ='NT Revisao'!AR246 -> -26983106.45 | I54: =F54/$C$31 ->  | J54: ='NT Revisao'!AT246 -> -0.01587597273 | L54: 1
B55: ='NT Revisao'!AO247 -> Reversão Conta-Covid - CVA em processamento -Transporte | G55: ='NT Revisao'!AR247 -> -17634550.59 | J55: ='NT Revisao'!AT247 -> -0.01037558981 | L55: 1
B56: ='NT Revisao'!AO248 -> Reversão Conta-Covid - CVA em processamento - Encargos Setoriais | G56: ='NT Revisao'!AR248 -> -18098765.32 | J56: ='NT Revisao'!AT248 -> -0.01064871849 | L56: 1
B57: ='NT Revisao'!AO249 -> Reversão Conta-Covid - Saldo a Compensar CVA-Ano Anterior + Ajustes | G57: ='NT Revisao'!AR249 -> -25382578.41 | J57: ='NT Revisao'!AT249 -> -0.01493427465 | K57: =J57-I57 ->  | L57: 1
B58: ='NT Revisao'!AO250 -> Reversão Conta-Covid - Neutralidade de Parcela A | G58: ='NT Revisao'!AR250 -> -10564702.57 | J58: ='NT Revisao'!AT250 -> -0.006215923662 | L58: 1
B59: ='NT Revisao'!AO251 -> Reversão Conta-Covid - Sobrecontratação | G59: ='NT Revisao'!AR251 -> -101990518.7 | J59: ='NT Revisao'!AT251 -> -0.06000786815 | L59: 1
B60: ='NT Revisao'!AO252 -> Reversão Conta Covid - Parcela B | G60: ='NT Revisao'!AR252 -> -67300090.19 | J60: ='NT Revisao'!AT252 -> -0.03959716049 | L60: 1
B61: ='NT Revisao'!AO253 -> Reversão Conta Covid - Diferimento | G61: ='NT Revisao'!AR253 -> 0 | J61: ='NT Revisao'!AT253 -> 0 | L61: 1
B62: ='NT Revisao'!AO254 -> Reversão Conta Covid - Postergação | G62: ='NT Revisao'!AR254 -> 0 | J62: ='NT Revisao'!AT254 -> 0 | L62: 1
B63: ='NT Revisao'!AO255 -> Conselho de Consumidores | G63: ='NT Revisao'!AR255 -> 0 | J63: ='NT Revisao'!AT255 -> 0 | L63: 1
B64: ='NT Revisao'!AO256 -> Conta Covid - Postergação TUSD | G64: ='NT Revisao'!AR256 -> 0 | J64: ='NT Revisao'!AT256 -> 0 | L64: 1
B65: ='NT Revisao'!AO257 -> 0 | G65: ='NT Revisao'!AR257 -> 0 | J65: ='NT Revisao'!AT257 -> 0 | L65: 1
B66: ='NT Revisao'!AO258 -> 0 | G66: ='NT Revisao'!AR258 -> 0 | J66: ='NT Revisao'!AT258 -> 0 | L66: 1
B67: ='NT Revisao'!AO259 -> 0 | G67: ='NT Revisao'!AR259 -> 0 | J67: ='NT Revisao'!AT259 -> 0 | L67: 1
B68: ='NT Revisao'!AO260 -> 0 | G68: ='NT Revisao'!AR260 -> 0 | J68: ='NT Revisao'!AT260 -> 0 | L68: 1
B69: ='NT Revisao'!AO261 -> 0 | G69: ='NT Revisao'!AR261 -> 0 | J69: ='NT Revisao'!AT261 -> 0 | L69: 1
B70: Efeito da retirada dos Componentes Financeiros do Processo Anterior | I70: =I71-I31-I33 ->  | J70: =J71-J31-J33 ->  | K70: =J70-I70 ->  | L70: 1 | O70: =J70-I70 -> 
B71: Efeito Médio a ser percebido pelos Consumidores | J71: ='NT Revisao'!AT278 -> 0.06930324114 | K71: =J71-I71 -> 0.06930324114 | L71: 1 | M71: =((G31+G33)/C31-1)-((F31+F33)/C31-1) ->  | N71: =K71-M71 ->  | O71: =K71-N71 -> 

Sheet Mitigação Efeito 2021
G1: Valor Base | H1: Valor corrigido | K1: Observação
C2: Reperfilamento dos custos de Transmissão - RBSE (NA)
C3: Financeiro de Reperfilamento de custos da RBSE - ciclo 2021/2022 - RB | H3: 0
C4: Financeiro de Reperfilamento de custos da RBSE - ciclo 2021/2022 - RB Fronteira | H4: 0
C5: Financeiro de Reperfilamento de custos da RBSE - ciclo 2021/2022 - Must Itaipu | H5: 0
C6: Financeiro de Reperfilamento de custos da RBSE - ciclo 2021/2022 - Conexão | H6: 0
C7: Financeiro de Reperfilamento de custos da RBSE - ciclo 2021/2022 - Transporte de Itaipu | H7: 0
C8: Subtotal | H8: 0 | J8: 0
C11: Antecipação da reversão dos créditos de Ultrapassagem de Demanda e Excedente de Reativos (NA)
C14: Reversão de créditos de rescisão contratual e migração de consumidores (REN 376 e 414)
C15: Artigo | D15: REN | E15: Créditos | F15: Data Base | G15: R$ (Líquida) | H15: Valor Corrigido | K15: Ref.: Planilha auxiliar
C16: 70 | D16: 414/2010 | E16: Rescisão Contratual | F16: 2020-12-01 | G16: 239010.87 | H16: =G16*VLOOKUP(DATE(YEAR(LnkTxtDRPData),MONTH(LnkTxtDRPData)-1,1),Índices!$B$7:$F$405,5)/VLOOKUP(EDATE('Mitigação Efeito 2021'!F16,-1),Índices!$B$7:$F$405,5) -> 248072.4337
C17: 9 | D17: 376/2009 | E17: Migração Frustrada | F17: 2020-12-01 | H17: =G17*VLOOKUP(DATE(YEAR(LnkTxtDRPData),MONTH(LnkTxtDRPData)-1,1),Índices!$B$7:$F$405,5)/VLOOKUP(EDATE('Mitigação Efeito 2021'!F17,-1),Índices!$B$7:$F$405,5) -> 0
C18: 9/70 | D18: 414/2010 e 376/2009 | E18: Rescisão Contratual / Migração Frustrada | F18: 2020-12-01 | H18: =G18*VLOOKUP(DATE(YEAR(LnkTxtDRPData),MONTH(LnkTxtDRPData)-1,1),Índices!$B$7:$F$405,5)/VLOOKUP(EDATE('Mitigação Efeito 2021'!F18,-1),Índices!$B$7:$F$405,5) -> 0
C19: 88 | D19: 414/2010 | E19: Créditos com mais de 60 meses | F19: 2020-12-01 | G19: 111730.71 | H19: =G19*VLOOKUP(DATE(YEAR(LnkTxtDRPData),MONTH(LnkTxtDRPData)-1,1),Índices!$B$7:$F$405,5)/VLOOKUP(EDATE('Mitigação Efeito 2021'!F19,-1),Índices!$B$7:$F$405,5) -> 115966.7305
C20: Subtotal | F20: 2020-12-01 | G20: =SUM(G16:G19) -> 350741.58 | H20: =-SUM(H16:H19) -> -364039.1642 | I20: =H20/LnkTxtRA -> -0.0002141886759
C23: Diferimento Itaipu TUSD (Decreto 10.665/2021) | F23: 2021-07-01
C24: Diferimento Itaipu TE (Decreto 10.665/2021) | F24: 2021-10-01 | K24: Carta
C27: Ressarcimemento de créditos de PIS/COFINS | F27: 2021-12-01 | H27: =(235052000/5)*0 -> 0 | I27: =H27/LnkTxtRA -> 0
C29: Diferimento do RTA de 2021 - Parcela B | F29: 2021-10-01 | H29: 0 | I29: 0
C31: Diferimento do RTA de 2021 | F31: 2021-10-01 | H31: 0 | I31: 0
C33: Financeiro de Bandeira Escassez Hídrica
C34: Financeiro de Bandeira Escassez Hídrica - Energia | H34: =-117783877.34 -> -117783877.3 | I34: =H34/LnkTxtRA -> -0.06930016113
C35: Financeiro de Bandeira Escassez Hídrica - ESS/EER | H35: =-34195189.36 -> -34195189.36 | I35: =H35/LnkTxtRA -> -0.02011932521
C36: Financeiro de Bandeira Escassez Hídrica - Sobrecontratção/Exposição | H36: =102009004.74 -> 102009004.7 | I36: =H36/LnkTxtRA -> 0.06001874471
C37: Subtotal | H37: =H34+H35+H36 -> -49970061.96 | I37: =I34+I35+I36 -> -0.02940074163
C38: Total | H38: =H20+H27+H37 -> -50334101.12 | I38: =I20+I27+I37 -> -0.0296149303

Sheet Mercado
B2: DADOS DE MERCADO DE ENERGIA E RECEITA VERIFICADA | G2: Anexo II | H2: =Resultado!$D$6 -> 0.06323810398
G3: Anexo I | H3: =Resultado!$D$8 -> -0.02442419927
M5: TipoMercado | R5: AnoMes
B6: Dados de Mercado | M6: Regular | R6: =DATE(YEAR(R8),MONTH(R8)-1,1) -> 44166
R7: AnoMes
B8: Descrição | C8: MERCADO (MWh) | D8: RECEITA (R$) | F8: DESCRIÇÃO | G8: POR DENTRO | J8: Critérios | L8: Para º de consumidores | R8: =DATE(YEAR(R10),MONTH(R10)-1,1) -> 44197
B9: FORNECIMENTO | C9: =SUM(C10:C16) -> 3139797.097 | D9: =SUM(D10:D16) -> 1624252548 | F9: ICMS | G9: =SUM(INDIRECT("DADOS_MercadoBase[ICMS]"))/SUM(INDIRECT("DADOS_MercadoBase[ICMS]"),INDIRECT("DADOS_MercadoBase[PisPasep]"),INDIRECT("DADOS_MercadoBase[Cofins]"),INDIRECT("DADOS_MercadoBase[FinTotAj]")) -> 0.2006745782 | J9: Subgrupo | K9: OPÇÃO | M9: AnoMes | N9: Subgrupo | O9: OPÇÃO | R9: AnoMes
B10: A1 | C10: =DSUM(Mercado_Receita!A:AAA,"TUSD_E",J9:K10) -> 0 | D10: =DSUM(Mercado_Receita!A:AAA,"total",J9:K10) -> 0 | F10: PIS/COFINS | G10: =SUM( INDIRECT("DADOS_MercadoBase[Cofins]"), INDIRECT("DADOS_MercadoBase[PisPasep]"))/SUM( INDIRECT("DADOS_MercadoBase[ICMS]"), INDIRECT("DADOS_MercadoBase[PisPasep]"), INDIRECT("DADOS_MercadoBase[Cofins]"), INDIRECT("DADOS_MercadoBase[FinTotAj]")) -> 0.06251843471 | J10: A1 | K10: Cativo | M10: =DMAX(MercadoBase,"AnoMes",M5:M6) -> 44470 | N10: A1 | O10: Suprimento | R10: =DATE(YEAR(R12),MONTH(R12)-1,1) -> 44228
B11: A2 | C11: =DSUM(Mercado_Receita!A:AAA,"TUSD_E",J11:K12) -> 0 | D11: =DSUM(Mercado_Receita!A:AAA,"total",J11:K12) -> 0 | J11: Subgrupo | K11: OPÇÃO | M11: AnoMes | N11: Subgrupo | O11: OPÇÃO | P11: Subgrupo | R11: AnoMes
B12: A3 | C12: =DSUM(Mercado_Receita!A:AAA,"TUSD_E",J13:K14) -> 34019.136 | D12: =DSUM(Mercado_Receita!A:AAA,"total",J13:K14) -> 9513139.027 | F12: MWh Ano Anterior | G12: =BD!C45 -> 3365563.29 | J12: A2 | K12: Cativo | M12: =$M$10 -> 44470 | N12: A2 | O12: Livre | P12: A1 | R12: =DATE(YEAR(R14),MONTH(R14)-1,1) -> 44256
B13: A3a | C13: =DSUM(Mercado_Receita!A:AAA,"TUSD_E",J15:K16) -> 25975.357 | D13: =DSUM(Mercado_Receita!A:AAA,"total",J15:K16) -> 10823614.49 | F13: Variação | G13: =C24/G12-1 -> 0.006060162072 | J13: Subgrupo | K13: OPÇÃO | M13: AnoMes | N13: Subgrupo | O13: OPÇÃO | R13: AnoMes
B14: A4 | C14: =DSUM(Mercado_Receita!A:AAA,"TUSD_E",J17:K18) -> 571133.123 | D14: =DSUM(Mercado_Receita!A:AAA,"total",J17:K18) -> 247298610.2 | F14: R$ Ano Anterior | G14: =BD!C46 -> 1687931794 | J14: ="=A3" -> =A3 | K14: Cativo | M14: =$M$10 -> 44470 | N14: ="=A3" -> =A3 | O14: Distribuição | R14: =DATE(YEAR(R16),MONTH(R16)-1,1) -> 44287
B15: As | C15: =DSUM(Mercado_Receita!A:AAA,"TUSD_E",J19:K20) -> 0 | D15: =DSUM(Mercado_Receita!A:AAA,"total",J19:K20) -> 0 | F15: Variação | G15: =D24/G14-1 -> 0.006924038134 | J15: Subgrupo | K15: OPÇÃO | M15: AnoMes | N15: Subgrupo | O15: OPÇÃO | R15: AnoMes
B16: BT | C16: =DSUM(Mercado_Receita!A:AAA,"TUSD_E",J21:K22) -> 2508669.481 | D16: =DSUM(Mercado_Receita!A:AAA,"total",J21:K22) -> 1356617184 | J16: ="=A3a" -> =A3a | K16: Cativo | M16: =$M$10 -> 44470 | N16: ="=A3a" -> =A3a | O16: Geração | R16: =DATE(YEAR(R18),MONTH(R18)-1,1) -> 44317
B17: SUPRIMENTO (Mercado TE) | C17: =DSUM(Mercado_Receita!A:AAA,"TE_E",O9:P10) -> 0 | D17: =DSUM(Mercado_Receita!A:AAA,"total",O9:P10) -> 0 | F17: Parâmetros de cálculo de RI | J17: Subgrupo | K17: OPÇÃO | M17: AnoMes | N17: Subgrupo | O17: OPÇÃO | R17: AnoMes
B18: LIVRES A1 | C18: =DSUM(Mercado_Receita!A:AAA,"TUSD_E",O11:P12) -> 0 | D18: =DSUM(Mercado_Receita!A:AAA,"total",O11:P12) -> 15.729 | F18: RR sem RI | G18: =SUM(Resultado!D19,Resultado!D29,Resultado!D38,Resultado!D45) -> 1790938548 | J18: A4 | K18: Cativo | M18: =$M$10 -> 44470 | N18: A4 | O18: Livre | R18: =DATE(YEAR(R20),MONTH(R20)-1,1) -> 44348
B19: DEMAIS LIVRES | C19: =DSUM(Mercado_Receita!A:AAA,"TUSD_E",O19:P20)+DSUM(Mercado_Receita!A:AAA,"TUSD_E",O17:P18)-C18 -> 240011.742 | D19: =DSUM(Mercado_Receita!A:AAA,"total",O19:P20)+DSUM(Mercado_Receita!A:AAA,"TOTAL",O17:P18)-D18 -> 46205400.05 | F19: Financeiros | G19: =Financeiros!D8 -> -148992524.8 | J19: Subgrupo | K19: OPÇÃO | M19: AnoMes | N19: Subgrupo | O19: OPÇÃO | R19: AnoMes
B20: DISTRIBUIÇÃO | C20: =DSUM(Mercado_Receita!A:AAA,"TUSD_E",O13:P14) -> 6150.31 | D20: =DSUM(Mercado_Receita!A:AAA,"total",O13:P14) -> 683629.4561 | F20: Receita Bandeiras | G20: =SUM(TabBand[Fat Bandeiras]) -> 177007328 | J20: AS | K20: Cativo | M20: =$M$10 -> 44470 | N20: AS | O20: erc | R20: =DATE(YEAR(R22),MONTH(R22)-1,1) -> 44378
B21: GERADOR | D21: =DSUM(Mercado_Receita!A:AAA,"total",O15:P16) -> 28477504.8 | J21: Subgrupo | K21: OPÇÃO | M21: AnoMes | N21: Subgrupo | R21: AnoMes
B22: CDE Baixa Renda | J22: ="=B*" -> =B* | K22: Cativo | M22: =$M$10 -> 44470 | N22: ="=B*" -> =B* | R22: =DATE(YEAR(R24),MONTH(R24)-1,1) -> 44409
B23: AJUSTE ECONÔMICO - BOLHA | J23: Subclasse | K23: OPÇÃO | R23: AnoMes
B24: TOTAL | C24: =SUM(C10:C23) -> 3385959.149 | D24: =SUM(D10:D23) -> 1699619098 | J24: ="=Residencial baixa renda*" -> =Residencial baixa renda* | K24: Cativo | R24: =DATE(YEAR(R26),MONTH(R26)-1,1) -> 44440 | T24: 119414.803
B25: ENERGIA DESTINADA APE/PIE | J25: Classe | L25: AnoMes | R25: AnoMes
B26: MERCADO TOTAL BAIXA RENDA | C26: =DSUM(Mercado_Receita!A:AAA,"TUSD_E",J23:K24) -> 211877.234 | J26: Residencial | L26: =$M$10 -> 44470 | R26: =DATE(YEAR(R28),MONTH(R28)-1,1) -> 44470
J27: Classe | L27: AnoMes | R27: AnoMes
B28: ="Fonte: SAMP - "&TEXT(L26,"mmmm/aa") -> Fonte: SAMP - outubro/21 | J28: Industrial | L28: =$M$10 -> 44470 | R28: =B65 -> 44501
B29: DESCRIÇÃO - Tipo | C29: RECEITA (R$) | D29: % Total | E29: nº de consumidores | F29: MWh mensal | G29: Percentual RI | H29: Reais RI (c/tributos) | J29: Classe | L29: AnoMes
B30: Residencial | C30: =DSUM(Mercado_Receita!A:AAA,"total",J25:K26) -> 823977847.5 | D30: =IFERROR(C30/$C$38,0) -> 0.4848014761 | E30: =DSUM(Mercado_Receita!$A:$AAA,"UC",$J$25:$L$26) -> 496856 | F30: =DSUM(Mercado_Receita!$A:$AAA,"TUSD_E",$J$25:$L$26) -> 141411.007 | G30: =BD!M67 -> 0.00855 | H30: =G30*C30/$D$24*SUM($G$18:$G$20)/(1-SUM($G$9:$G$10)) -> 10232879.83 | J30: Comercial | L30: =$M$10 -> 44470
B31: Industrial | C31: =DSUM(Mercado_Receita!A:AAA,"total",J27:K28) -> 153483505 | D31: 0.09030464838 | E31: =DSUM(Mercado_Receita!$A:$AAA,"UC",$J$27:$L$28) -> 1547 | F31: =DSUM(Mercado_Receita!$A:$AAA,"TUSD_E",$J$27:$L$28) -> 41111.094 | G31: =BD!M68 -> 0.005 | H31: =G31*C31/$D$24*SUM($G$18:$G$20)/(1-SUM($G$9:$G$10)) -> 1114674.166 | J31: Classe | L31: AnoMes
B32: Comercial | C32: =DSUM(Mercado_Receita!A:AAA,"total",J29:K30) -> 311795361.2 | D32: 0.1834501398 | E32: =DSUM(Mercado_Receita!$A:$AAA,"UC",$J$29:$L$30) -> 44290 | F32: =DSUM(Mercado_Receita!$A:$AAA,"TUSD_E",$J$29:$L$30) -> 56019.056 | G32: =BD!M69 -> 0.00481 | H32: 2178366.498 | J32: Rural | L32: =$M$10 -> 44470
B33: Rural | C33: =DSUM(Mercado_Receita!A:AAA,"total",J31:K32) -> 210931851.2 | D33: 0.1241053666 | E33: =DSUM(Mercado_Receita!$A:$AAA,"UC",$J$31:$L$32) -> 126717 | F33: =DSUM(Mercado_Receita!$A:$AAA,"TUSD_E",$J$31:$L$32) -> 34846.375 | G33: =BD!M70 -> 0.00808 | H33: 2475538.861 | J33: Classe | L33: AnoMes
B34: Iluminação Pública | C34: =DSUM(Mercado_Receita!A:AAA,"total",J33:K34) -> 51037277.33 | D34: 0.03002865606 | E34: =DSUM(Mercado_Receita!$A:$AAA,"UC",$J$33:$L$34) -> 168 | F34: =DSUM(Mercado_Receita!$A:$AAA,"TUSD_E",$J$33:$L$34) -> 12503.791 | G34: =BD!M71 -> 0.0001 | H34: 7413.165935 | J34: Iluminação Pública | L34: =$M$10 -> 44470
B35: Poder Público | C35: =DSUM(Mercado_Receita!A:AAA,"total",J35:K36) -> 91657486.19 | D35: 0.05392825151 | E35: =DSUM(Mercado_Receita!$A:$AAA,"UC",$J$35:$L$36) -> 4773 | F35: =DSUM(Mercado_Receita!$A:$AAA,"TUSD_E",$J$35:$L$36) -> 18832.53 | G35: =BD!M72 -> 0.00112 | H35: 149108.4267 | J35: Classe | L35: AnoMes
B36: Serviço Público | C36: =DSUM(Mercado_Receita!A:AAA,"total",J37:K38) -> 24926867.56 | D36: 0.01466614937 | E36: =DSUM(Mercado_Receita!$A:$AAA,"UC",$J$37:$L$38) -> 317 | F36: =DSUM(Mercado_Receita!$A:$AAA,"TUSD_E",$J$37:$L$38) -> 4832.903 | G36: =BD!M73 -> 9e-05 | H36: 3258.565379 | J36: Poder Público | L36: =$M$10 -> 44470
B37: Demais | C37: =D24-SUM(C30:C36) -> 31808901.96 | D37: 0.01871531215 | E37: =DSUM(Mercado_Receita!A:AAA,"UC",$J$39:$L$40)-SUM(E$30:E$36) -> 165 | F37: =DSUM(Mercado_Receita!B:AAB,"TUSD_E",$J$39:$L$40)-SUM(F$30:F$36) -> 1024.921 | G37: =BD!M74 -> 0 | H37: 0 | J37: Classe | L37: AnoMes
B38: TOTAL | C38: =SUM(C30:C37) -> 1699619098 | D38: =SUM(D30:D37) -> 1 | E38: =SUM(E30:E37) -> 674833 | F38: =SUM(F30:F37) -> 310581.677 | H38: =SUM(H30:H37) -> 16161239.51 | J38: Serviço público | L38: =$M$10 -> 44470
J39: Classe | L39: AnoMes
B40: nº de consumidores | J40: * | L40: =$M$10 -> 44470
B41: A1 | C41: =DSUM(Mercado_Receita!A:AAA,"UC",L9:N10) -> 0
B42: A2 | C42: =DSUM(Mercado_Receita!A:AAA,"UC",L11:N12) -> 0
B43: A3 | C43: =DSUM(Mercado_Receita!A:AAA,"UC",L13:N14) -> 3
B44: A3a | C44: =DSUM(Mercado_Receita!A:AAA,"UC",L15:N16) -> 29
B45: A4 | C45: =DSUM(Mercado_Receita!A:AAA,"UC",L17:N18) -> 2206
B46: As | C46: =DSUM(Mercado_Receita!A:AAA,"UC",L19:N20) -> 0
B47: BT | C47: =DSUM(Mercado_Receita!A:AAA,"UC",L21:N22) -> 672595
B52: Arrecadação dos Encargos
B53: Competência | D53: PeD | E53: ONS | F53: ESSERR | G53: PROINFA | H53: CDE | I53: TFSEE | J53: CFURH | K53: CVA_Energia | L53: CVA_RB | M53: CVA_CDE | N53: CVA_CFURH | O53: CVA_TranItaipu | P53: CVA_ESSERR | Q53: CVA_PROINFA | R53: Fator Selic | S53: RTE_Energia | T53: RTE_CDE_USO | U53: RTE_CDE_E | V53: RTE_CUSD | W53: RTE_PeD | X53: CVA_CDE_E | Y53: CVA_CCC | Z53: DISTRIBUICAO | AA53: cDE_E_ACR | AB53: CDE_E_Dec
B54: =DATE(YEAR(B55),MONTH(B55)-1,1) -> 44166 | D54: =DSUM(MercadoBase,D$53,INDIRECT("r"&5+2*(ROW()-54)&":r"&6+2*(ROW()-54))) -> 1319403.494 | E54: -41.24812249 | F54: 3217668.1 | G54: 2028516.557 | H54: 6306989.59 | I54: 207124.6947 | J54: 0 | K54: -3409536.075 | L54: 1441953.672 | M54: 2333667.935 | N54: 0 | O54: 0 | P54: -2973754.59 | Q54: -443081.4294 | R54: =VLOOKUP(CAPA!$C$15,Índices!B:F,5,FALSE)/VLOOKUP(DATE(YEAR(B54),MONTH(B54),1),Índices!B:F,5,FALSE) -> 1.036208755 | S54: =DSUM(MercadoBase,S$53,INDIRECT("r"&5+2*(ROW()-54)&":r"&6+2*(ROW()-54))) -> 0 | T54: 0 | U54: 0 | V54: 0 | W54: 0 | X54: -1203453.166 | Y54: 0 | Z54: =DSUM(MercadoBase,Z$53,INDIRECT("r"&5+2*(ROW()-54)&":r"&6+2*(ROW()-54))) -> 59538768.96 | AA54: =DSUM(MercadoBase,AA$53,INDIRECT("r"&5+2*(ROW()-54)&":r"&6+2*(ROW()-54))) -> 8.932894748e-05 | AB54: 0
B55: 44197 | D55: 1087178.008 | E55: 51.57969639 | F55: 2649310.212 | G55: 1694195.396 | H55: 5244487.803 | I55: 172238.3157 | J55: 0 | K55: -2809027.167 | L55: 1253555.742 | M55: 1940528.496 | N55: 0 | O55: 0 | P55: -2448480.75 | Q55: -370056.8847 | R55: =VLOOKUP(CAPA!$C$15,Índices!B:F,5,FALSE)/VLOOKUP(DATE(YEAR(B55),MONTH(B55),1),Índices!B:F,5,FALSE) -> 1.034662079 | S55: 0 | T55: 0 | U55: 0 | V55: 0 | W55: 0 | X55: -990879.3149 | Y55: 0 | Z55: 49751996.3 | AA55: 7.35501877e-05 | AB55: 0
B56: 44228 | D56: 1090331.882 | E56: 54.55437643 | F56: 2658507.618 | G56: 1676560.085 | H56: 5188185.221 | I56: 175535.2783 | J56: 0 | K56: -2807239.392 | L56: 1395555.874 | M56: 1919695.811 | N56: 0 | O56: 0 | P56: -2456980.952 | Q56: -366204.8685 | R56: =VLOOKUP(CAPA!$C$15,Índices!B:F,5,FALSE)/VLOOKUP(DATE(YEAR(B56),MONTH(B56),1),Índices!B:F,5,FALSE) -> 1.033272045 | S56: 0 | T56: 0 | U56: 0 | V56: 0 | W56: 0 | X56: -994319.2743 | Y56: 0 | Z56: 49004437.98 | AA56: 7.380552622e-05 | AB56: 0
B57: 44256 | D57: 1093085.275 | E57: 65.41759042 | F57: 2603456.92 | G57: 1625095.007 | H57: 5071189.386 | I57: 173256.0717 | J57: 0 | K57: -2774592.627 | L57: 1147558.519 | M57: 1876405.834 | N57: 0 | O57: 0 | P57: -2406103.341 | Q57: -354963.5402 | R57: =VLOOKUP(CAPA!$C$15,Índices!B:F,5,FALSE)/VLOOKUP(DATE(YEAR(B57),MONTH(B57),1),Índices!B:F,5,FALSE) -> 1.031198513 | S57: 0 | T57: 0 | U57: 0 | V57: 0 | W57: 0 | X57: -973729.5385 | Y57: 0 | Z57: 48325622.53 | AA57: 7.227720798e-05 | AB57: 0
B58: 44287 | D58: 1190701.825 | E58: 8.503229798 | F58: 2925733.218 | G58: 1838902.648 | H58: 5696774.206 | I58: 187940.8294 | J58: 0 | K58: -3090775.593 | L58: 1351999.178 | M58: 2107880.33 | N58: 0 | O58: 0 | P58: -2703949.667 | Q58: -401664.7588 | R58: =VLOOKUP(CAPA!$C$15,Índices!B:F,5,FALSE)/VLOOKUP(DATE(YEAR(B58),MONTH(B58),1),Índices!B:F,5,FALSE) -> 1.029060282 | S58: 0 | T58: 0 | U58: 0 | V58: 0 | W58: 0 | X58: -1094265.411 | Y58: 0 | Z58: 53574681.43 | AA58: 8.122424714e-05 | AB58: 0
B59: 44317 | D59: 1192990.655 | E59: 11.74441941 | F59: 2916260.369 | G59: 1823326.459 | H59: 5663693.43 | I59: 188483.4891 | J59: 0 | K59: -3085759.504 | L59: 1351941.808 | M59: 2095640.014 | N59: 0 | O59: 0 | P59: -2695194.901 | Q59: -398262.5091 | R59: =VLOOKUP(CAPA!$C$15,Índices!B:F,5,FALSE)/VLOOKUP(DATE(YEAR(B59),MONTH(B59),1),Índices!B:F,5,FALSE) -> 1.026285961 | S59: 0 | T59: 0 | U59: 0 | V59: 0 | W59: 0 | X59: -1090722.432 | Y59: 0 | Z59: 53838167.07 | AA59: 8.096126175e-05 | AB59: 0
B60: 44348 | D60: 1201726.368 | E60: 5.641053051 | F60: 2929339.898 | G60: 1846658.2 | H60: 5728389.872 | I60: 189929.3804 | J60: 0 | K60: -3103277.306 | L60: 1362645.025 | M60: 2119578.537 | N60: 0 | O60: 0 | P60: -2707282.944 | Q60: -403358.7756 | R60: =VLOOKUP(CAPA!$C$15,Índices!B:F,5,FALSE)/VLOOKUP(DATE(YEAR(B60),MONTH(B60),1),Índices!B:F,5,FALSE) -> 1.023136961 | S60: 0 | T60: 0 | U60: 0 | V60: 0 | W60: 0 | X60: -1095614.36 | Y60: 0 | Z60: 54318580.89 | AA60: 8.132437583e-05 | AB60: 0
B61: 44378 | D61: 1159194.115 | E61: 21.53317475 | F61: 2828662.779 | G61: 1788450.751 | H61: 5543603.48 | I61: 183587.6595 | J61: 0 | K61: -2995604.125 | L61: 1335304.033 | M61: 2051205.175 | N61: 0 | O61: 0 | P61: -2614237.597 | Q61: -390644.7362 | R61: =VLOOKUP(CAPA!$C$15,Índices!B:F,5,FALSE)/VLOOKUP(DATE(YEAR(B61),MONTH(B61),1),Índices!B:F,5,FALSE) -> 1.019511413 | S61: 0 | T61: 0 | U61: 0 | V61: 0 | W61: 0 | X61: -1057959.7 | Y61: 0 | Z61: 52558638.11 | AA61: 7.852937622e-05 | AB61: 0
B62: 44409 | D62: 1279523.384 | E62: -27.36000806 | F62: 3120150.576 | G62: 1960613.212 | H62: 6083109.529 | I62: 201439.3263 | J62: 0 | K62: -3304564.908 | L62: 1430093.723 | M62: 2250829.409 | N62: 0 | O62: 0 | P62: -2883629.326 | Q62: -428249.5509 | R62: =VLOOKUP(CAPA!$C$15,Índices!B:F,5,FALSE)/VLOOKUP(DATE(YEAR(B62),MONTH(B62),1),Índices!B:F,5,FALSE) -> 1.015166981 | S62: 0 | T62: 0 | U62: 0 | V62: 0 | W62: 0 | X62: -1166980.239 | Y62: 0 | Z62: =DSUM(MercadoBase,Z$53,INDIRECT("r"&5+2*(ROW()-54)&":r"&6+2*(ROW()-54))) -> 57695049.53 | AA62: 8.662166457e-05 | AB62: 0
B63: 44440 | D63: 1377458.302 | E63: -65.43728958 | F63: 3351005.014 | G63: 2099015.204 | H63: 6526487.75 | I63: 216506.5879 | J63: 0 | K63: =DSUM(MercadoBase,K$53,INDIRECT("r"&5+2*(ROW()-54)&":r"&6+2*(ROW()-54)))*IF(VLOOKUP("MesesAdin",TabPostergacao[#All],2,FALSE)>2,0,1) -> -3551642.085 | L63: =DSUM(MercadoBase,L$53,INDIRECT("r"&5+2*(ROW()-54)&":r"&6+2*(ROW()-54)))*IF(VLOOKUP("MesesAdin",TabPostergacao[#All],2,FALSE)>2,0,1) -> 1507002.688 | M63: =DSUM(MercadoBase,M$53,INDIRECT("r"&5+2*(ROW()-54)&":r"&6+2*(ROW()-54)))*IF(VLOOKUP("MesesAdin",TabPostergacao[#All],2,FALSE)>2,0,1) -> 2414885.101 | N63: =DSUM(MercadoBase,N$53,INDIRECT("r"&5+2*(ROW()-54)&":r"&6+2*(ROW()-54)))*IF(VLOOKUP("MesesAdin",TabPostergacao[#All],2,FALSE)>2,0,1) -> 0 | O63: =DSUM(MercadoBase,O$53,INDIRECT("r"&5+2*(ROW()-54)&":r"&6+2*(ROW()-54)))*IF(VLOOKUP("MesesAdin",TabPostergacao[#All],2,FALSE)>2,0,1) -> 0 | P63: =DSUM(MercadoBase,P$53,INDIRECT("r"&5+2*(ROW()-54)&":r"&6+2*(ROW()-54)))*IF(VLOOKUP("MesesAdin",TabPostergacao[#All],2,FALSE)>2,0,1) -> -3096983.975 | Q63: =DSUM(MercadoBase,Q$53,INDIRECT("r"&5+2*(ROW()-54)&":r"&6+2*(ROW()-54)))*IF(VLOOKUP("MesesAdin",TabPostergacao[#All],2,FALSE)>2,0,1) -> -458480.1902 | R63: =VLOOKUP(CAPA!$C$15,Índices!B:F,5,FALSE)/VLOOKUP(DATE(YEAR(B63),MONTH(B63),1),Índices!B:F,5,FALSE) -> 1.010699695 | S63: 0 | T63: 0 | U63: 0 | V63: 0 | W63: 0 | X63: -1253323.049 | Y63: 0 | Z63: 61932670.8 | AA63: 9.303064877e-05 | AB63: 0
B64: 44470 | D64: =DSUM(MercadoBase,D$53,INDIRECT("r"&5+2*(ROW()-54)&":r"&6+2*(ROW()-54))) -> 1374241.395 | E64: -58.02083043 | F64: 3363556.859 | G64: 2065235.466 | H64: 6430801.565 | I64: 215196.8101 | J64: 0 | K64: =DSUM(MercadoBase,K$53,INDIRECT("r"&5+2*(ROW()-54)&":r"&6+2*(ROW()-54)))*IF(VLOOKUP("MesesAdin",TabPostergacao[#All],2,FALSE)>1,0,1) -> -3556045.827 | L64: =DSUM(MercadoBase,L$53,INDIRECT("r"&5+2*(ROW()-54)&":r"&6+2*(ROW()-54)))*IF(VLOOKUP("MesesAdin",TabPostergacao[#All],2,FALSE)>1,0,1) -> 1493057.537 | M64: =DSUM(MercadoBase,M$53,INDIRECT("r"&5+2*(ROW()-54)&":r"&6+2*(ROW()-54)))*IF(VLOOKUP("MesesAdin",TabPostergacao[#All],2,FALSE)>1,0,1) -> 2379479.971 | N64: =DSUM(MercadoBase,N$53,INDIRECT("r"&5+2*(ROW()-54)&":r"&6+2*(ROW()-54)))*IF(VLOOKUP("MesesAdin",TabPostergacao[#All],2,FALSE)>1,0,1) -> 0 | O64: =DSUM(MercadoBase,O$53,INDIRECT("r"&5+2*(ROW()-54)&":r"&6+2*(ROW()-54)))*IF(VLOOKUP("MesesAdin",TabPostergacao[#All],2,FALSE)>1,0,1) -> 0 | P64: =DSUM(MercadoBase,P$53,INDIRECT("r"&5+2*(ROW()-54)&":r"&6+2*(ROW()-54)))*IF(VLOOKUP("MesesAdin",TabPostergacao[#All],2,FALSE)>1,0,1) -> -3108584.334 | Q64: =DSUM(MercadoBase,Q$53,INDIRECT("r"&5+2*(ROW()-54)&":r"&6+2*(ROW()-54)))*IF(VLOOKUP("MesesAdin",TabPostergacao[#All],2,FALSE)>1,0,1) -> -451101.806 | R64: =VLOOKUP(CAPA!$C$15,Índices!B:F,5,FALSE)/VLOOKUP(DATE(YEAR(B64),MONTH(B64),1),Índices!B:F,5,FALSE) -> 1.005867491 | S64: =DSUM(MercadoBase,S$53,INDIRECT("r"&5+2*(ROW()-54)&":r"&6+2*(ROW()-54))) -> 0 | T64: 0 | U64: 0 | V64: 0 | W64: 0 | X64: -1258017.616 | Y64: 0 | Z64: =DSUM(MercadoBase,Z$53,INDIRECT("r"&5+2*(ROW()-54)&":r"&6+2*(ROW()-54))) -> 61510585.3 | AA64: =DSUM(MercadoBase,AA$53,INDIRECT("r"&5+2*(ROW()-54)&":r"&6+2*(ROW()-54))) -> 9.337911326e-05 | AB64: 0
B65: =DATE(YEAR(CAPA!$C$10),MONTH(CAPA!$C$10)-1,1) -> 44501 | D65: 1374241.395 | E65: -58.02083043 | F65: 3363556.859 | G65: 2065235.466 | H65: 6430801.565 | I65: 215196.8101 | J65: 0 | K65: =DSUM(MercadoBase,K$53,INDIRECT("r"&5+2*(ROW()-54)&":r"&6+2*(ROW()-54)))*IF(VLOOKUP("MesesAdin",TabPostergacao[#All],2,FALSE)>0,0,1) -> -3556045.827 | L65: =DSUM(MercadoBase,L$53,INDIRECT("r"&5+2*(ROW()-54)&":r"&6+2*(ROW()-54)))*IF(VLOOKUP("MesesAdin",TabPostergacao[#All],2,FALSE)>0,0,1) -> 1493057.537 | M65: =DSUM(MercadoBase,M$53,INDIRECT("r"&5+2*(ROW()-54)&":r"&6+2*(ROW()-54)))*IF(VLOOKUP("MesesAdin",TabPostergacao[#All],2,FALSE)>0,0,1) -> 2379479.971 | N65: =DSUM(MercadoBase,N$53,INDIRECT("r"&5+2*(ROW()-54)&":r"&6+2*(ROW()-54)))*IF(VLOOKUP("MesesAdin",TabPostergacao[#All],2,FALSE)>0,0,1) -> 0 | O65: =DSUM(MercadoBase,O$53,INDIRECT("r"&5+2*(ROW()-54)&":r"&6+2*(ROW()-54)))*IF(VLOOKUP("MesesAdin",TabPostergacao[#All],2,FALSE)>0,0,1) -> 0 | P65: =DSUM(MercadoBase,P$53,INDIRECT("r"&5+2*(ROW()-54)&":r"&6+2*(ROW()-54)))*IF(VLOOKUP("MesesAdin",TabPostergacao[#All],2,FALSE)>0,0,1) -> -3108584.334 | Q65: =DSUM(MercadoBase,Q$53,INDIRECT("r"&5+2*(ROW()-54)&":r"&6+2*(ROW()-54)))*IF(VLOOKUP("MesesAdin",TabPostergacao[#All],2,FALSE)>0,0,1) -> -451101.806 | R65: =VLOOKUP(CAPA!$C$15,Índices!B:F,5,FALSE)/VLOOKUP(DATE(YEAR(B65),MONTH(B65),1),Índices!B:F,5,FALSE) -> 1 | S65: 0 | T65: 0 | U65: 0 | V65: 0 | W65: 0 | X65: -1258017.616 | Y65: 0 | Z65: 61510585.3 | AA65: 9.337911326e-05 | AB65: 0
B66: Total Bruto | D66: =SUM(D54:D65) -> 14740076.1 | E66: =SUM(E54:E65) -> -31.11354072 | F66: 35927208.42 | G66: =SUM(G54:G65) -> 22511804.45 | H66: 69914513.4 | I66: 2326435.253 | J66: 0 | K66: -38044110.44 | L66: 16563725.34 | M66: 25869276.58 | N66: 0 | O66: 0 | P66: -33203766.71 | Q66: -4917170.856 | S66: =SUM(S54:S65) -> 0 | T66: 0 | U66: 0 | V66: 0 | W66: 0 | X66: -13437281.72 | Y66: 0 | Z66: 663559784.2 | AA66: 0.0009974116702 | AB66: 0
B67: Total Atualizado pelo SELIC | D67: =SUMPRODUCT(D54:D65,$R$54:$R$65) -> 15054505.2 | E67: -27.31224251 | F67: 36692784.95 | G67: 22993763.31 | H67: 71410454.66 | I67: 2376177.841 | J67: 0 | K67: -38855064.64 | L67: 16920605.53 | M67: 26422794.25 | N67: 0 | O67: 0 | P67: -33911309.15 | Q67: -5022443.361 | R67: 12.53756368 | S67: 0 | T67: 0 | U67: 0 | V67: 0 | W67: 0 | X67: -13723618.12 | Y67: 0 | Z67: 677731258.7 | AA67: 0.001018665617 | AB67: 0

Sheet Mercado_Receita
A1: Código | B1: TipoMercado | C1: Modalidade | D1: Subgrupo | E1: Classe | F1: Subclasse | G1: Detalhe | H1: Agente | I1: Posto | J1: OPÇÃO | K1: AnoMes | L1: D | M1: Daj | N1: TUSD_E | O1: TUSD_Eaj | P1: TE_E | Q1: TE_Eaj | R1: TUSD/KW | S1: TUSD/MWh | T1: TE | U1: ReceitaD | V1: ReceitaE | W1: Total | X1: Total com Tar de aplicação | Y1: CCC | Z1: CDE | AA1: CFURH | AB1: Conexao_D | AC1: Conexao_T | AD1: CUSD | AE1: DISTRIBUICAO | AF1: EnergiaRevenda | AG1: ESSERR | AH1: ITAIPU | AI1: ONS | AJ1: OUTROS | AK1: PeD | AL1: PROINFA | AM1: RGR | AN1: TFSEE | AO1: TUST_FR | AP1: TUST_RB | AQ1: TUSDG_ONS | AR1: TUSDG_T | AS1: TUST_CI | AT1: TUST_ITAIPU | AU1: CVA_CCC | AV1: CVA_CDE | AW1: CVA_PROINFA | AX1: CVA_TranItaipu | AY1: CVA_ESSERR | AZ1: CVA_CFURH | BA1: CVA_CDE_E | BB1: CVA_Energia | BC1: CVA_RB | BD1: perdasnt | BE1: perdasrb_d | BF1: perdasrb_c | BG1: perdastec | BH1: RI | BI1: PisPasep | BJ1: Cofins | BK1: ICMS | BL1: UC | BM1: total_dummy | BN1: Subs_CarFI | BO1: Subs_GerFI | BP1: Subs_Dist | BQ1: Subs_AguaEsgoto | BR1: Subs_Rural | BS1: Subs_Irrigante | BT1: Subs_BaixaRenda | BU1: CDE_E | BV1: DespesaEnergia | BW1: RTE_CUSD | BX1: RTE_Energia | BY1: RTE_CDE_USO | BZ1: RTE_CDE_E | CA1: RTE_PeD | CB1: Dif_Subs_Car | CC1: Dif_Subs_Ger | CD1: Dif_Subs_D | CE1: Dif_Subs_Agua | CF1: Dif_Subs_Ru | CG1: Dif_Subs_Irr | CH1: dif_subs_baixa | CI1: FinTotAj | CJ1: FinAj | CK1: RTE_CDE_E_Dec | CL1: RTE_CDE_E_ACR | CM1: CDE_E_Dec | CN1: CDE_E_ACR | CO1: FinPostTUSD | CP1: FinPostTE | CQ1: FinPostQtddias | CR1: FinCT_Geral | CS1: finCT_TUST_FR | CT1: finCT_TUST_RB | CU1: FINCT_TUSDG_ONS | CV1: FINCT_TUSDG_T | CW1: FINCT_TUST_CI | CX1: FINCT_TUST_ITAIPU | CY1: FinCT_Itaipu | CZ1: FinCT_CUSD | DA1: FinCT_Conexao_D | DB1: FinCT_Conexao_T | DC1: FinCT_EnergiaRevenda | DD1: FINCT_perdasrb_c | DE1: FINCT_perdasrb_d | DF1: FinCT_perdasnt | DG1: FinCT_perdastec | DH1: FinCT_CCC | DI1: FinCT_CDE | DJ1: FinCT_CDE_E | DK1: FinCT_CFURH | DL1: FinCT_ONS | DM1: FinCT_ESSERR | DN1: FinCT_Ped | DO1: finCT_PROINFA | DP1: finCT_TFSEE | DQ1: FINCT_Liminar | DR1: FinCT_Posterg | DS1: FINCT_RGR | DT1: Tipo_ato | DU1: DIST_D | DV1: DIST_E | DW1: FIN_RI | DX1: FINCT_RI | DY1: Fin_TUSD | DZ1: Fin_TE | EA1: CVA_TUSD | EB1: CVA_TE | EC1: FinCT_ParcelaB | ED1: CVA_EnergiaRevenda | EE1: CVA_perdasnt | EF1: CVA_perdasrb_d | EG1: CVA_perdasrb_c | EH1: CVA_perdastec | EI1: CVA_TUST_RB | EJ1: CVA_TUST_FR | EK1: CVA_TUSDG_ONS | EL1: CVA_TUSDG_T | EM1: CVA_TUST_CI | EN1: CVA_TUST_ITAIPU | EO1: CVA_liminar | EP1: idsreag | EQ1: FinCTAn3En | ER1: An3En | ES1: CVA_An3En | ET1: Fin_An3En | EU1: FIN_CFURH | EV1: TEAngra | EW1: TUSDAngra | EX1: teCheia | EY1: tusdcheia | EZ1: AngraIII_TE | FA1: AngraIII_TUSD | FB1: AngraIII_Desc_TE | FC1: AngraIII_Desc_TUSD
A2: 17 | B2: Regular | C2: Verde | D2: A4 | E2: Residencial | F2: Residencial | G2: Não se aplica | H2: Não se aplica | I2: Ponta | J2: CATIVO | K2: 2020-12-01 | L2: 0 | M2: 0 | N2: 0.393 | O2: 0.393 | P2: 0.393 | Q2: 0.393 | S2: 1230.71 | T2: 326.38 | V2: 611.93637 | W2: 611.93637 | X2: 594.31425 | Y2: 0 | Z2: 8.211782883 | AA2: 0 | AB2: 0 | AC2: 1.340428112 | AD2: 0 | AE2: 396.6149077 | AF2: 121.2685506 | AG2: 4.606322513 | AH2: 0 | AI2: -0.000752355048 | AJ2: 0 | AK2: 4.864576403 | AL2: 2.870349384 | AM2: 0 | AN2: 0.1660055617 | AO2: 13.35443773 | AP2: 42.82086447 | AQ2: 0 | AR2: 0 | AS2: 0 | AT2: 0 | AU2: 0 | AV2: 3.038466154 | AW2: -0.6269598853 | AX2: 0 | AY2: -4.257142841 | AZ2: 0 | BA2: -1.722829466 | BB2: -6.637502785 | BC2: 9.83389015 | BD2: 7.801813238 | BE2: 0.1992296571 | BF2: 1.671381363 | BG2: 5.030750226 | BH2: 1.113876647 | BI2: 0 | BJ2: 0 | BK2: 0 | BL2: 0 | BU2: 1.27880791e-10 | BV2: 135.9717251 | CI2: 589.7775 | CJ2: -22.18887 | CM2: 0 | CN2: 1.27880791e-10 | CO2: 6.28014 | CP2: -23.90226 | CR2: -12.86190821 | CS2: 0.5376876236 | CT2: 0.4155068761 | CU2: 0 | CV2: 0 | CW2: 0 | CX2: 0 | CY2: 0 | CZ2: 0 | DA2: 0 | DB2: -0.02728041012 | DC2: -11.85206521 | DD2: -0.1633508508 | DE2: -0.01947151901 | DF2: -0.7625027166 | DG2: -0.4916755371 | DH2: 0 | DI2: -0.3848077225 | DJ2: 0.01433699065 | DK2: 0 | DL2: 0 | DM2: 0.08222391067 | DN2: -0.002487131324 | DO2: -0.2018737975 | DP2: -0.006148718919 | DQ2: 0 | DR2: 0 | DS2: 0 | DV2: 396.6149077 | DW2: 1.083936226 | DX2: -0.02994042066 | DY2: -5.32908 | DZ2: -11.91969 | EA2: 11.60922 | EB2: -11.98257 | EC2: -4.355505262 | ED2: -5.91976267 | EE2: -0.380847982 | EF2: -0.009725458756 | EG2: -0.08158901013 | EH2: -0.2455776642 | EI2: 7.376893611 | EJ2: 2.45699654 | EK2: 0 | EL2: 0 | EM2: 0 | EN2: 0 | EO2: 0 | EP2: 120 | EQ2: 0 | ER2: 0 | ES2: 0 | EU2: 0 | EV2: -21.87114946 | EX2: -21.87114946 | EZ2: 0 | FA2: 0 | FB2: 0 | FC2: 0
A3: 18 | B3: Regular | C3: Verde | D3: A4 | E3: Residencial | F3: Residencial | G3: Não se aplica | H3: Não se aplica | I3: Fora ponta | J3: CATIVO | K3: 2020-12-01 | L3: 0 | M3: 0 | N3: 6.648 | O3: 6.648 | P3: 6.648 | Q3: 6.648 | S3: 65.18 | T3: 197.21 | V3: 1744.36872 | W3: 1744.36872 | X3: 1463.82312 | Y3: 0 | Z3: 138.91077 | AA3: 0 | AB3: 0 | AC3: 0 | AD3: 0 | AE3: 0 | AF3: 1192.664247 | AG3: 77.92069228 | AH3: 0 | AI3: -0.01272686096 | AJ3: 0 | AK3: 15.94570796 | AL3: 48.55491782 | AM3: 0 | AN3: 2.808155151 | AO3: 0 | AP3: 0 | AQ3: 0 | AR3: 0 | AS3: 0 | AT3: 0 | AU3: 0 | AV3: 51.39878624 | AW3: -10.60567256 | AX3: 0 | AY3: -72.01395829 | AZ3: 0 | BA3: -29.14343585 | BB3: -70.36159631 | BC3: 0 | BD3: 131.9757109 | BE3: 3.370174963 | BF3: 28.27313818 | BG3: 85.10032443 | BH3: 18.84237137 | BI3: 0 | BJ3: 0 | BK3: 0 | BL3: 0 | BU3: 2.163235365e-09 | BV3: 1441.383595 | CI3: 1464.2635 | CJ3: -280.13522 | CM3: 0 | CN3: 2.163235365e-09 | CO3: -2.06088 | CP3: -278.48472 | CR3: -149.2752999 | CS3: 0 | CT3: 0 | CU3: 0 | CV3: 0 | CW3: 0 | CX3: 0 | CY3: 0 | CZ3: 0 | DA3: 0 | DB3: 0 | DC3: -116.5638936 | DD3: -2.76324798 | DE3: -0.3293808101 | DF3: -12.89851924 | DG3: -8.317198398 | DH3: 0 | DI3: -6.509419183 | DJ3: 0.2425249717 | DK3: 0 | DL3: 0 | DM3: 1.390902183 | DN3: -0.008152625524 | DO3: -3.414903322 | DP3: -0.104011917 | DQ3: 0 | DR3: 0 | DS3: 0 | DV3: 0 | DW3: 18.3358983 | DX3: -0.5064730702 | DY3: -32.10984 | DZ3: -117.73608 | EA3: 30.04896 | EB3: -160.74864 | EC3: 0 | ED3: -58.22028261 | EE3: -6.442436092 | EF3: -0.1645161573 | EG3: -1.380162187 | EH3: -4.154199266 | EI3: 0 | EJ3: 0 | EK3: 0 | EL3: 0 | EM3: 0 | EN3: 0 | EO3: 0 | EP3: 120 | EQ3: 0 | ER3: 0 | ES3: 0 | EU3: 0 | EV3: -21.87114946 | EX3: -21.87114946 | EZ3: 0 | FA3: 0 | FB3: 0 | FC3: 0
A4: 19 | B4: Regular | C4: Verde | D4: A4 | E4: Residencial | F4: Residencial | G4: Não se aplica | H4: Não se aplica | I4: Não se aplica | J4: CATIVO | K4: 2020-12-01 | L4: 190 | M4: 190 | N4: 0 | O4: 0 | P4: 0 | Q4: 0 | R4: 17.12 | U4: 3252.8 | W4: 3252.8 | X4: 3391.5 | Y4: 0 | Z4: 0 | AA4: 0 | AB4: 0 | AC4: 20.30935042 | AD4: 0 | AE4: 2374.204108 | AI4: 0 | AJ4: 0 | AK4: 0 | AL4: 0 | AM4: 0 | AN4: 0 | AO4: 217.6767642 | AP4: 641.1187354 | AQ4: 0 | AR4: 0 | AU4: 0 | AV4: 0 | AW4: 0 | AZ4: 0 | BB4: 0 | BC4: 150.4966084 | BD4: 0 | BE4: 0 | BG4: 0 | BH4: 0 | BI4: 74.4 | BJ4: 342.75 | BK4: 882.51 | BL4: 4 | BV4: 0 | CI4: 3391.5 | CJ4: 138.67 | CO4: 138.7 | CP4: 0 | CR4: 14.57196418 | CS4: 8.764285279 | CT4: 6.221015065 | CU4: 0 | CV4: 0 | CZ4: 0 | DA4: 0 | DB4: -0.4133361601 | DE4: 0 | DF4: 0 | DG4: 0 | DH4: 0 | DI4: 0 | DK4: 0 | DL4: 0 | DN4: 0 | DO4: 0 | DP4: 0 | DQ4: 0 | DR4: 0 | DS4: 0 | DU4: 2374.204108 | DW4: 0 | DX4: 0 | DY4: -11.4 | EA4: 150.1 | EC4: -26.07279324 | EE4: 0 | EF4: 0 | EH4: 0 | EI4: 110.4476699 | EJ4: 40.04893856 | EK4: 0 | EL4: 0 | EO4: 0 | EP4: 120 | EU4: 0 | EV4: -21.87114946 | EX4: -21.87114946 | EZ4: 0 | FA4: 0 | FB4: 0 | FC4: 0
A5: 1 | B5: Regular | C5: Convencional | D5: B1 | E5: Residencial | F5: Residencial | G5: Não se aplica | H5: Não se aplica | I5: Não se aplica | J5: CATIVO | K5: 2020-12-01 | L5: 0 | M5: 0 | N5: 114334.346 | O5: 114334.346 | P5: 114334.346 | Q5: 114334.346 | S5: 352.04 | T5: 207.97 | V5: 64028377.1 | W5: 64028377.1 | X5: 58811300.9 | Y5: 0 | Z5: 2684303.472 | AA5: 0 | AB5: 0 | AC5: 61339.31079 | AD5: 0 | AE5: 25749793.68 | AF5: 21742514.42 | AG5: 1340104 | AH5: 0 | AI5: -218.880464 | AJ5: 0 | AK5: 582964.1347 | AL5: 835062.3909 | AM5: 0 | AN5: 87492.62666 | AO5: 639866.5726 | AP5: 1975166.453 | AQ5: 0 | AR5: 0 | AS5: 0 | AT5: 0 | AU5: 0 | AV5: 993227.0938 | AW5: -182399.6144 | AX5: 0 | AY5: -1238518.174 | AZ5: 0 | BA5: -501217.7614 | BB5: -1443655.74 | BC5: 457993.4423 | BD5: 3498826.28 | BE5: 146517.6547 | BF5: 486250.1147 | BG5: 3699718.882 | BH5: 499532.707 | BI5: 987902.67 | BJ5: 4557540.72 | BK5: 17649046.75 | BL5: 410760 | BU5: 3.720398627e-05 | BV5: 29573827.35 | CI5: 58811302.95 | CJ5: -5217074.18 | CM5: 0 | CN5: 3.720398627e-05 | CO5: -248105.5308 | CP5: -4968970.677 | CR5: -3006654.056 | CS5: 25762.84705 | CT5: 19165.77941 | CU5: 0 | CV5: 0 | CW5: 0 | CX5: 0 | CY5: 0 | CZ5: 0 | DA5: 0 | DB5: -1248.37844 | DC5: -2124983.745 | DD5: -47523.18751 | DE5: -14319.76212 | DF5: -341954.423 | DG5: -361588.4682 | DH5: 0 | DI5: -125787.6298 | DJ5: 4171.018957 | DK5: 0 | DL5: 0 | DM5: 23921.16298 | DN5: -298.0543915 | DO5: -58730.55625 | DP5: -3240.659911 | DQ5: 0 | DR5: 0 | DS5: 0 | DV5: 25749793.68 | DW5: 486105.5295 | DX5: -13427.17744 | DY5: -1158206.925 | DZ5: -2143768.987 | EA5: 910101.3942 | EB5: -2825201.69 | EC5: -282776.4657 | ED5: -1061367.721 | EE5: -170796.312 | EF5: -7152.305675 | EG5: -23736.45322 | EH5: -180602.9479 | EI5: 340268.5343 | EJ5: 117724.9081 | EK5: 0 | EL5: 0 | EM5: 0 | EN5: 0 | EO5: 0 | EP5: 120 | EQ5: 0 | ER5: 0 | ES5: 0 | EU5: 0 | EV5: -21.87114946 | EX5: -21.87114946 | EZ5: 0 | FA5: 0 | FB5: 0 | FC5: 0
A6: 2 | B6: Refaturamento - Regular | C6: Convencional | D6: B1 | E6: Residencial | F6: Residencial | G6: Não se aplica | H6: Não se aplica | I6: Não se aplica | J6: CATIVO | K6: 2020-12-01 | L6: 0 | M6: 0 | N6: -566.943 | O6: -566.943 | P6: -566.943 | Q6: -566.943 | S6: 352.04 | T6: 207.97 | V6: -317493.7494 | W6: -317493.7494 | X6: -291624.1403 | Y6: 0 | Z6: -13310.49782 | AA6: 0 | AB6: 0 | AC6: -304.1596344 | AD6: 0 | AE6: -127683.9881 | AF6: -107813.328 | AG6: -6645.094923 | AH6: 0 | AI6: 1.085349689 | AJ6: 0 | AK6: -2890.709983 | AL6: -4140.774786 | AM6: 0 | AN6: -433.8445443 | AO6: -3172.868757 | AP6: -9794.141774 | AQ6: 0 | AR6: 0 | AS6: 0 | AT6: 0 | AU6: 0 | AV6: -4925.0568 | AW6: 904.4542449 | AX6: 0 | AY6: 6141.367261 | AZ6: 0 | BA6: 2485.359048 | BB6: 7158.57085 | BC6: -2271.025158 | BD6: -17349.42419 | BE6: -726.5284806 | BF6: -2411.139858 | BG6: -18345.57852 | BH6: -2477.003467 | BI6: -3963.72 | BJ6: -18264.73 | BK6: -86149.39 | BL6: -167 | BU6: -1.844812196e-07 | BV6: -146645.9991 | CI6: -291622.5972 | CJ6: 25871.12223 | CM6: 0 | CN6: -1.844812196e-07 | CO6: 1230.26631 | CP6: 24639.34278 | CR6: 14908.91871 | CS6: -127.7487151 | CT6: -95.03622366 | CU6: 0 | CV6: 0 | CW6: 0 | CX6: 0 | CY6: 0 | CZ6: 0 | DA6: 0 | DB6: 6.190260779 | DC6: 10537.03197 | DD6: 235.6504361 | DE6: 71.00656261 | DF6: 1695.629294 | DG6: 1792.98748 | DH6: 0 | DI6: 623.7357252 | DJ6: -20.68258649 | DK6: 0 | DL6: 0 | DM6: -118.6164646 | DN6: 1.477944789 | DO6: 291.2237566 | DP6: 16.06926979 | DQ6: 0 | DR6: 0 | DS6: 0 | DV6: -127683.9881 | DW6: -2410.422912 | DX6: 66.58055539 | DY6: 5743.13259 | DZ6: 10630.18125 | EA6: -4512.86628 | EB6: 14009.16153 | EC6: 1402.187037 | ED6: 5262.941724 | EE6: 846.9176317 | EF6: 35.46571768 | EG6: 117.7005551 | EH6: 895.5452206 | EI6: -1687.269577 | EJ6: -583.7555808 | EK6: 0 | EL6: 0 | EM6: 0 | EN6: 0 | EO6: 0 | EP6: 120 | EQ6: 0 | ER6: 0 | ES6: 0 | EU6: 0 | EV6: -21.87114946 | EX6: -21.87114946 | EZ6: 0 | FA6: 0 | FB6: 0 | FC6: 0
A7: 3 | B7: Sistema de Compensação | C7: Convencional | D7: B1 | E7: Residencial | F7: Residencial | G7: Não se aplica | H7: Não se aplica | I7: Não se aplica | J7: CATIVO | K7: 2020-12-01 | L7: 0 | M7: 0 | N7: 652.706 | O7: 652.706 | P7: 652.706 | Q7: 652.706 | S7: 352.04 | T7: 207.97 | V7: 365521.8871 | W7: 365521.8871 | X7: 335738.9123 | Y7: 0 | Z7: 15324.0128 | AA7: 0 | AB7: 0 | AC7: 350.1706844 | AD7: 0 | AE7: 146999.0901 | AF7: 124122.5416 | AG7: 7650.316393 | AH7: 0 | AI7: -1.249533471 | AJ7: 0 | AK7: 3327.995496 | AL7: 4767.16098 | AM7: 0 | AN7: 499.4733812 | AO7: 3652.837189 | AP7: 11275.72807 | AQ7: 0 | AR7: 0 | AS7: 0 | AT7: 0 | AU7: 0 | AV7: 5670.083454 | AW7: -1041.273483 | AX7: 0 | AY7: -7070.388487 | AZ7: 0 | BA7: -2861.326028 | BB7: -8241.467211 | BC7: 2614.569272 | BD7: 19973.91848 | BE7: 836.4324076 | BF7: 2775.879501 | BG7: 21120.76377 | BH7: 2851.706477 | BI7: 5698.31 | BJ7: 26310.78 | BK7: 104748.61 | BL7: 3183 | BU7: 2.123881923e-07 | BV7: 168829.5357 | CI7: 335740.9698 | CJ7: -29780.94726 | CM7: 0 | CN7: 2.123881923e-07 | CO7: -1416.37202 | CP7: -28366.60276 | CR7: -17164.23114 | CS7: 147.0736086 | CT7: 109.4126101 | CU7: 0 | CV7: 0 | CW7: 0 | CX7: 0 | CY7: 0 | CZ7: 0 | DA7: 0 | DB7: -7.126678258 | DC7: -12130.99728 | DD7: -271.2979145 | DE7: -81.74791726 | DF7: -1952.131721 | DG7: -2064.217543 | DH7: 0 | DI7: -718.0899142 | DJ7: 23.81129726 | DK7: 0 | DL7: 0 | DM7: 136.5598978 | DN7: -1.701517492 | DO7: -335.2779614 | DP7: -18.50011166 | DQ7: 0 | DR7: 0 | DS7: 0 | DV7: 146999.0901 | DW7: 2775.054101 | DX7: -76.65237597 | DY7: -6611.91178 | DZ7: -12238.2375 | EA7: 5195.53976 | EB7: -16128.36526 | EC7: -1614.29966 | ED7: -6059.081144 | EE7: -975.0331509 | EF7: -40.83071266 | EG7: -135.5054363 | EH7: -1031.016767 | EI7: 1942.507407 | EJ7: 672.0618654 | EK7: 0 | EL7: 0 | EM7: 0 | EN7: 0 | EO7: 0 | EP7: 120 | EQ7: 0 | ER7: 0 | ES7: 0 | EU7: 0 | EV7: -21.87114946 | EX7: -21.87114946 | EZ7: 0 | FA7: 0 | FB7: 0 | FC7: 0
A8: 4 | B8: Sistema de Compensação | C8: Convencional | D8: B1 | E8: Residencial | F8: Residencial | G8: Não se aplica | H8: Não se aplica | I8: Não se aplica | J8: CATIVO | K8: 2020-12-01 | L8: 0 | M8: 0 | N8: -18.208 | O8: -18.208 | P8: -18.208 | Q8: -18.208 | S8: 352.04 | T8: 207.97 | V8: -10196.66208 | W8: -10196.66208 | X8: -9365.83104 | Y8: 0 | Z8: -427.4813241 | AA8: 0 | AB8: 0 | AC8: -9.768422262 | AD8: 0 | AE8: -4100.712164 | AF8: -3462.543989 | AG8: -213.4145555 | AH8: 0 | AI8: 0.03485720283 | AJ8: 0 | AK8: -92.83834067 | AL8: -132.9855511 | AM8: 0 | AN8: -13.93339624 | AO8: -101.900181 | AP8: -314.5496698 | AQ8: 0 | AR8: 0 | AS8: 0 | AT8: 0 | AU8: 0 | AV8: -158.1736334 | AW8: 29.04754603 | AX8: 0 | AY8: 197.2367859 | AZ8: 0 | BA8: 79.82004812 | BB8: 229.9054015 | BC8: -72.93647876 | BD8: -557.1959008 | BE8: -23.33326379 | BF8: -77.43641695 | BG8: -589.1884963 | BH8: -79.55169944 | BI8: -92.7 | BJ8: -426.84 | BK8: -1608.49 | BL8: 0 | BU8: -5.92481792e-09 | BV8: -4709.698067 | CI8: -9366.8598 | CJ8: 829.77228 | CM8: 0 | CN8: -5.92481792e-09 | CO8: 39.51136 | CP8: 791.31968 | CR8: 478.8163747 | CS8: -4.102790942 | CT8: -3.052193184 | CU8: 0 | CV8: 0 | CW8: 0 | CX8: 0 | CY8: 0 | CZ8: 0 | DA8: 0 | DB8: 0.1988070551 | DC8: 338.4084081 | DD8: 7.568173768 | DE8: 2.280454106 | DF8: 54.45700571 | DG8: 57.58377128 | DH8: 0 | DI8: 20.03196103 | DJ8: -0.6642440861 | DK8: 0 | DL8: 0 | DM8: -3.80949864 | DN8: 0.04746582764 | DO8: 9.352972275 | DP8: 0.5160823298 | DQ8: 0 | DR8: 0 | DS8: 0 | DV8: -4100.712164 | DW8: -77.41339144 | DX8: 2.138308 | DY8: 184.44704 | DZ8: 341.4 | EA8: -144.93568 | EB8: 449.91968 | EC8: 45.03278383 | ED8: 169.0251805 | EE8: 27.19969422 | EF8: 1.139020656 | EG8: 3.780083197 | EH8: 28.76142289 | EI8: -54.18852417 | EJ8: -18.74795458 | EK8: 0 | EL8: 0 | EM8: 0 | EN8: 0 | EO8: 0 | EP8: 120 | EQ8: 0 | ER8: 0 | ES8: 0 | EU8: 0 | EV8: -21.87114946 | EX8: -21.87114946 | EZ8: 0 | FA8: 0 | FB8: 0 | FC8: 0
A9: 5 | B9: Regular | C9: Convencional | D9: B1 | E9: Residencial | F9: Residencial baixa renda – faixa 01 | G9: Não se aplica | H9: Não se aplica | I9: Não se aplica | J9: CATIVO | K9: 2020-12-01 | L9: 0 | M9: 0 | N9: 2318.809 | O9: 2318.809 | P9: 2318.809 | Q9: 2318.809 | S9: 321.25 | T9: 207.97 | V9: 1227160.099 | W9: 1227160.099 | X9: 1108668.959 | Y9: 0 | Z9: 0 | AA9: 0 | AB9: 0 | AC9: 1244.019412 | AD9: 0 | AE9: 522230.2434 | AF9: 440958.8184 | AG9: 27178.58041 | AH9: 0 | AI9: -4.439103451 | AJ9: 0 | AK9: 11802.57442 | AL9: 0 | AM9: 0 | AN9: 1774.433468 | AO9: 12977.1011 | AP9: 40058.24941 | AQ9: 0 | AR9: 0 | AS9: 0 | AT9: 0 | AU9: 0 | AV9: 0 | AW9: 0 | AX9: 0 | AY9: -25118.3235 | AZ9: 0 | BA9: -10165.17168 | BB9: -29278.70794 | BC9: 9288.541486 | BD9: 70959.51612 | BE9: 2971.51703 | BF9: 9861.613607 | BG9: 75033.80866 | BH9: 10130.99718 | BI9: 6237.05 | BJ9: 29425.29 | BK9: 99312.75 | BL9: 4226 | BT9: 720639.461 | BU9: 7.545321351e-07 | BV9: 599785.2738 | CI9: 388029.6654 | CJ9: -41483.35567 | CM9: 0 | CN9: 7.545321351e-07 | CO9: -17715.70076 | CP9: -100775.4391 | CR9: -57235.58218 | CS9: 522.4949781 | CT9: 388.7001881 | CU9: 0 | CV9: 0 | CW9: 0 | CX9: 0 | CY9: 0 | CZ9: 0 | DA9: 0 | DB9: -25.31829903 | DC9: -43096.68621 | DD9: -963.8153255 | DE9: -290.4183603 | DF9: -6935.160092 | DG9: -7333.357156 | DH9: 0 | DI9: 0 | DJ9: 84.59222127 | DK9: 0 | DL9: 0 | DM9: 485.143878 | DN9: -6.03434916 | DO9: 0 | DP9: -65.72365725 | DQ9: 0 | DR9: 0 | DS9: 0 | DV9: 522230.2434 | DW9: 9858.681282 | DX9: -272.3158961 | DY9: -19733.06459 | DZ9: -43477.66875 | EA9: 2017.36383 | EB9: -57297.77039 | EC9: -5734.974981 | ED9: -21525.54426 | EE9: -3463.911234 | EF9: -145.0555441 | EG9: -481.3977888 | EH9: -3662.799113 | EI9: 6900.96867 | EJ9: 2387.572815 | EK9: 0 | EL9: 0 | EM9: 0 | EN9: 0 | EO9: 0 | EP9: 120 | EQ9: 0 | ER9: 0 | ES9: 0 | EU9: 0 | EV9: -21.87114946 | EX9: -21.87114946 | EZ9: 0 | FA9: 0 | FB9: 0 | FC9: 0
A10: 6 | B10: Refaturamento - Regular | C10: Convencional | D10: B1 | E10: Residencial | F10: Residencial baixa renda – faixa 01 | G10: Não se aplica | H10: Não se aplica | I10: Não se aplica | J10: CATIVO | K10: 2020-12-01 | L10: 0 | M10: 0 | N10: 29.994 | O10: 29.994 | P10: 29.994 | Q10: 29.994 | S10: 321.25 | T10: 207.97 | V10: 15873.42468 | W10: 15873.42468 | X10: 14340.73128 | Y10: 0 | Z10: 0 | AA10: 0 | AB10: 0 | AC10: 16.09150139 | AD10: 0 | AE10: 6755.094499 | AF10: 5703.841411 | AG10: 351.5573472 | AH10: 0 | AI10: -0.05742019671 | AJ10: 0 | AK10: 152.6673465 | AL10: 0 | AM10: 0 | AN10: 22.95245424 | AO10: 167.8599533 | AP10: 518.1570076 | AQ10: 0 | AR10: 0 | AS10: 0 | AT10: 0 | AU10: 0 | AV10: 0 | AW10: 0 | AX10: 0 | AY10: -324.9077414 | AZ10: 0 | BA10: -131.4873969 | BB10: -378.722683 | BC10: 120.1481076 | BD10: 917.8676323 | BE10: 38.43683624 | BF10: 127.5608463 | BG10: 970.5689675 | BH10: 131.0453467 | BI10: 114.26 | BJ10: 530.27 | BK10: 3289.1 | BL10: 131 | BT10: 9321.53532 | BU10: 9.759940065e-09 | BV10: 7758.275694 | CI10: 5018.5266 | CJ10: -537.29202 | CM10: 0 | CN10: 9.759940065e-09 | CO10: -229.15416 | CP10: -1303.53924 | CR10: -740.34733 | CS10: 6.758518866 | CT10: 5.027871395 | CU10: 0 | CV10: 0 | CW10: 0 | CX10: 0 | CY10: 0 | CZ10: 0 | DA10: 0 | DB10: -0.3274944427 | DC10: -557.459457 | DD10: -12.46703669 | DE10: -3.756587239 | DF10: -89.70691066 | DG10: -94.85762499 | DH10: 0 | DI10: 0 | DJ10: 1.094207882 | DK10: 0 | DL10: 0 | DM10: 6.275379075 | DN10: -0.07805484139 | DO10: 0 | DP10: -0.8501413336 | DQ10: 0 | DR10: 0 | DS10: 0 | DV10: 6755.094499 | DW10: 127.5229165 | DX10: -3.522430259 | DY10: -255.24894 | DZ10: -562.3875 | EA10: 26.09478 | EB10: -741.15174 | EC10: -74.18240984 | ED10: -278.4348234 | EE10: -44.80599892 | EF10: -1.876306324 | EG10: -6.226923079 | EH10: -47.37863127 | EI10: 89.26464159 | EJ10: 30.88346605 | EK10: 0 | EL10: 0 | EM10: 0 | EN10: 0 | EO10: 0 | EP10: 120 | EQ10: 0 | ER10: 0 | ES10: 0 | EU10: 0 | EV10: -21.87114946 | EX10: -21.87114946 | EZ10: 0 | FA10: 0 | FB10: 0 | FC10: 0
A11: 7 | B11: Sistema de Compensação | C11: Convencional | D11: B1 | E11: Residencial | F11: Residencial baixa renda – faixa 01 | G11: Não se aplica | H11: Não se aplica | I11: Não se aplica | J11: CATIVO | K11: 2020-12-01 | L11: 0 | M11: 0 | N11: 0.15 | O11: 0.15 | P11: 0.15 | Q11: 0.15 | S11: 321.25 | T11: 207.97 | V11: 79.383 | W11: 79.383 | X11: 71.718 | Y11: 0 | Z11: 0 | AA11: 0 | AB11: 0 | AC11: 0.08047360168 | AD11: 0 | AE11: 33.78222894 | AF11: 28.52491204 | AG11: 1.758138364 | AH11: 0 | AI11: -0.0002871584153 | AJ11: 0 | AK11: 0.7634894305 | AL11: 0 | AM11: 0 | AN11: 0.1147852282 | AO11: 0.8394676599 | AP11: 2.591303299 | AQ11: 0 | AR11: 0 | AS11: 0 | AT11: 0 | AU11: 0 | AV11: 0 | AW11: 0 | AX11: 0 | AY11: -1.62486368 | AZ11: 0 | BA11: -0.6575684983 | BB11: -1.893992213 | BC11: 0.6008607103 | BD11: 4.590256213 | BE11: 0.1922226257 | BF11: 0.637931818 | BG11: 4.8538156 | BH11: 0.6553578051 | BI11: 0.38 | BJ11: 1.78 | BK11: 6.7 | BL11: 0 | BT11: 46.617 | BU11: 4.880946222e-11 | BV11: 38.7991383 | CI11: 25.101 | CJ11: -2.7135 | CM11: 0 | CN11: 4.880946222e-11 | CO11: -1.146 | CP11: -6.519 | CR11: -3.702477145 | CS11: 0.0337993542 | CT11: 0.02514438585 | CU11: 0 | CV11: 0 | CW11: 0 | CX11: 0 | CY11: 0 | CZ11: 0 | DA11: 0 | DB11: -0.001637799773 | DC11: -2.787854856 | DD11: -0.06234765297 | DE11: -0.01878669353 | DF11: -0.4486242782 | DG11: -0.4743830015 | DH11: 0 | DI11: 0 | DJ11: 0.005472133837 | DK11: 0 | DL11: 0 | DM11: 0.03138317201 | DN11: -0.0003903522774 | DO11: 0 | DP11: -0.004251556979 | DQ11: 0 | DR11: 0 | DS11: 0 | DV11: 33.78222894 | DW11: 0.6377421307 | DX11: -0.01761567443 | DY11: -1.2765 | DZ11: -2.8125 | EA11: 0.1305 | EB11: -3.7065 | EC11: -0.3709862464 | ED11: -1.392452608 | EE11: -0.2240748095 | EF11: -0.009383408301 | EG11: -0.03114084356 | EH11: -0.2369405445 | EI11: 0.4464124904 | EJ11: 0.1544482199 | EK11: 0 | EL11: 0 | EM11: 0 | EN11: 0 | EO11: 0 | EP11: 120 | EQ11: 0 | ER11: 0 | ES11: 0 | EU11: 0 | EV11: -21.87114946 | EX11: -21.87114946 | EZ11: 0 | FA11: 0 | FB11: 0 | FC11: 0
A12: 8 | B12: Regular | C12: Convencional | D12: B1 | E12: Residencial | F12: Residencial baixa renda – faixa 02 | G12: Não se aplica | H12: Não se aplica | I12: Não se aplica | J12: CATIVO | K12: 2020-12-01 | L12: 0 | M12: 0 | N12: 4772.738 | O12: 4772.738 | P12: 4772.738 | Q12: 4772.738 | S12: 321.25 | T12: 207.97 | V12: 2525828.404 | W12: 2525828.404 | X12: 2281941.493 | Y12: 0 | Z12: 0 | AA12: 0 | AB12: 0 | AC12: 2560.529445 | AD12: 0 | AE12: 1074891.519 | AF12: 907612.8776 | AG12: 55940.89185 | AH12: 0 | AI12: -9.136879203 | AJ12: 0 | AK12: 24292.90012 | AL12: 0 | AM12: 0 | AN12: 3652.265471 | AO12: 26710.39467 | AP12: 82450.74483 | AQ12: 0 | AR12: 0 | AS12: 0 | AT12: 0 | AU12: 0 | AV12: 0 | AW12: 0 | AX12: 0 | AY12: -51700.3242 | AZ12: 0 | BA12: -20922.68106 | BB12: -60263.52406 | BC12: 19118.3383 | BD12: 146053.935 | BE12: 6116.188201 | BF12: 20297.8762 | BG12: 154439.9344 | BH12: 20852.34067 | BI12: 23587.36 | BJ12: 108992.16 | BK12: 357306.28 | BL12: 11444 | BT12: 912786.1425 | BU12: 1.553031834e-06 | BV12: 1234520.811 | CI12: 1369155.924 | CJ12: -146331.6033 | CM12: 0 | CN12: 1.553031834e-06 | CO12: -36463.71832 | CP12: -207423.1935 | CR12: -117806.3558 | CS12: 1075.436414 | CT12: 800.050439 | CU12: 0 | CV12: 0 | CW12: 0 | CX12: 0 | CY12: 0 | CZ12: 0 | DA12: 0 | DB12: -52.11192809 | DC12: -88704.67207 | DD12: -1983.793417 | DE12: -597.7597741 | DF12: -14274.44093 | DG12: -15094.03852 | DH12: 0 | DI12: 0 | DJ12: 174.1137407 | DK12: 0 | DL12: 0 | DM12: 998.5577174 | DN12: -12.42032765 | DO12: 0 | DP12: -135.277117 | DQ12: 0 | DR12: 0 | DS12: 0 | DV12: 1074891.519 | DW12: 20291.84068 | DX12: -560.4999917 | DY12: -40616.00038 | DZ12: -89488.8375 | EA12: 4152.28206 | EB12: -117934.356 | EC12: -11804.13437 | ED12: -44305.40982 | EE12: -7129.669056 | EF12: -298.5636624 | EG12: -990.8472495 | EH12: -7539.034269 | EI12: 14204.06571 | EJ12: 4914.272587 | EK12: 0 | EL12: 0 | EM12: 0 | EN12: 0 | EO12: 0 | EP12: 120 | EQ12: 0 | ER12: 0 | ES12: 0 | EU12: 0 | EV12: -21.87114946 | EX12: -21.87114946 | EZ12: 0 | FA12: 0 | FB12: 0 | FC12: 0
A13: 9 | B13: Refaturamento - Regular | C13: Convencional | D13: B1 | E13: Residencial | F13: Residencial baixa renda – faixa 02 | G13: Não se aplica | H13: Não se aplica | I13: Não se aplica | J13: CATIVO | K13: 2020-12-01 | L13: 0 | M13: 0 | N13: -8.723 | O13: -8.723 | P13: -8.723 | Q13: -8.723 | S13: 321.25 | T13: 207.97 | V13: -4616.38606 | W13: -4616.38606 | X13: -4170.64076 | Y13: 0 | Z13: 0 | AA13: 0 | AB13: 0 | AC13: -4.679808183 | AD13: 0 | AE13: -1964.54922 | AF13: -1658.818718 | AG13: -102.2416063 | AH13: 0 | AI13: 0.01669921904 | AJ13: 0 | AK13: -44.39945535 | AL13: 0 | AM13: 0 | AN13: -6.675143639 | AO13: -48.81784265 | AP13: -150.6929245 | AQ13: 0 | AR13: 0 | AS13: 0 | AT13: 0 | AU13: 0 | AV13: 0 | AW13: 0 | AX13: 0 | AY13: 94.49123919 | AZ13: 0 | BA13: 38.23980007 | BB13: 110.1419605 | BC13: -34.94205317 | BD13: -266.9386996 | BE13: -11.17838643 | BF13: -37.09786166 | BG13: -282.2655565 | BH13: -38.11124089 | BI13: -82.94 | BJ13: -384.15 | BK13: -625.35 | BL13: -21 | BT13: -1668.27375 | BU13: -2.838432926e-09 | BV13: -2256.299222 | CI13: -2501.5064 | CJ13: 268.27779 | CM13: 0 | CN13: -2.838432926e-09 | CO13: 66.64372 | CP13: 379.10158 | CR13: 215.3113876 | CS13: -1.965545111 | CT13: -1.462229852 | CU13: 0 | CV13: 0 | CW13: 0 | CX13: 0 | CY13: 0 | CZ13: 0 | DA13: 0 | DB13: 0.09524351614 | DC13: 162.1230527 | DD13: 3.625723846 | DE13: 1.092508851 | DF13: 26.08899719 | DG13: 27.58695282 | DH13: 0 | DI13: 0 | DJ13: -0.3182228231 | DK13: 0 | DL13: 0 | DM13: -1.825036063 | DN13: 0.02270028611 | DO13: 0 | DP13: 0.2472422102 | DQ13: 0 | DR13: 0 | DS13: 0 | DV13: -1964.54922 | DW13: -37.08683071 | DX13: 1.024410187 | DY13: 74.23273 | DZ13: 163.55625 | EA13: -7.58901 | EB13: 215.54533 | EC13: 21.57408685 | ED13: 80.97576064 | EE13: 13.03069709 | EF13: 0.5456764707 | EG13: 1.810943856 | EH13: 13.77888246 | EI13: -25.96037436 | EJ13: -8.981678814 | EK13: 0 | EL13: 0 | EM13: 0 | EN13: 0 | EO13: 0 | EP13: 120 | EQ13: 0 | ER13: 0 | ES13: 0 | EU13: 0 | EV13: -21.87114946 | EX13: -21.87114946 | EZ13: 0 | FA13: 0 | FB13: 0 | FC13: 0
A14: 10 | B14: Sistema de Compensação | C14: Convencional | D14: B1 | E14: Residencial | F14: Residencial baixa renda – faixa 02 | G14: Não se aplica | H14: Não se aplica | I14: Não se aplica | J14: CATIVO | K14: 2020-12-01 | L14: 0 | M14: 0 | N14: 0.2 | O14: 0.2 | P14: 0.2 | Q14: 0.2 | S14: 321.25 | T14: 207.97 | V14: 105.844 | W14: 105.844 | X14: 95.624 | Y14: 0 | Z14: 0 | AA14: 0 | AB14: 0 | AC14: 0.1072981356 | AD14: 0 | AE14: 45.04297192 | AF14: 38.03321605 | AG14: 2.344184485 | AH14: 0 | AI14: -0.000382877887 | AJ14: 0 | AK14: 1.017985907 | AL14: 0 | AM14: 0 | AN14: 0.153046971 | AO14: 1.119290213 | AP14: 3.455071065 | AQ14: 0 | AR14: 0 | AS14: 0 | AT14: 0 | AU14: 0 | AV14: 0 | AW14: 0 | AX14: 0 | AY14: -2.166484906 | AZ14: 0 | BA14: -0.8767579978 | BB14: -2.525322951 | BC14: 0.8011476138 | BD14: 6.120341617 | BE14: 0.2562968343 | BF14: 0.8505757574 | BG14: 6.471754134 | BH14: 0.8738104068 | BI14: 1.07 | BJ14: 4.98 | BK14: 16.24 | BL14: 1 | BT14: 38.25 | BU14: 6.507928295e-11 | BV14: 51.73218439 | CI14: 57.374 | CJ14: -6.162 | CM14: 0 | CN14: 6.507928295e-11 | CO14: -1.528 | CP14: -8.692 | CR14: -4.936636194 | CS14: 0.0450658056 | CT14: 0.0335258478 | CU14: 0 | CV14: 0 | CW14: 0 | CX14: 0 | CY14: 0 | CZ14: 0 | DA14: 0 | DB14: -0.002183733031 | DC14: -3.717139808 | DD14: -0.08313020396 | DE14: -0.02504892471 | DF14: -0.5981657042 | DG14: -0.6325106687 | DH14: 0 | DI14: 0 | DJ14: 0.00729617845 | DK14: 0 | DL14: 0 | DM14: 0.04184422935 | DN14: -0.0005204697032 | DO14: 0 | DP14: -0.005668742639 | DQ14: 0 | DR14: 0 | DS14: 0 | DV14: 45.04297192 | DW14: 0.8503228409 | DX14: -0.02348756591 | DY14: -1.702 | DZ14: -3.75 | EA14: 0.174 | EB14: -4.942 | EC14: -0.4946483286 | ED14: -1.856603477 | EE14: -0.2987664127 | EF14: -0.01251121107 | EG14: -0.04152112475 | EH14: -0.3159207259 | EI14: 0.5952166539 | EJ14: 0.2059309598 | EK14: 0 | EL14: 0 | EM14: 0 | EN14: 0 | EO14: 0 | EP14: 120 | EQ14: 0 | ER14: 0 | ES14: 0 | EU14: 0 | EV14: -21.87114946 | EX14: -21.87114946 | EZ14: 0 | FA14: 0 | FB14: 0 | FC14: 0
A15: 11 | B15: Regular | C15: Convencional | D15: B1 | E15: Residencial | F15: Residencial baixa renda – faixa 03 | G15: Não se aplica | H15: Não se aplica | I15: Não se aplica | J15: CATIVO | K15: 2020-12-01 | L15: 0 | M15: 0 | N15: 5530.355 | O15: 5530.355 | P15: 5530.355 | Q15: 5530.355 | S15: 321.25 | T15: 207.97 | V15: 2926774.473 | W15: 2926774.473 | X15: 2644173.333 | Y15: 0 | Z15: 0 | AA15: 0 | AB15: 0 | AC15: 2966.983903 | AD15: 0 | AE15: 1245518.125 | AF15: 1051685.933 | AG15: 64820.86194 | AH15: 0 | AI15: -10.58725318 | AJ15: 0 | AK15: 28149.11726 | AL15: 0 | AM15: 0 | AN15: 4232.020406 | AO15: 30950.36114 | AP15: 95538.8477 | AQ15: 0 | AR15: 0 | AS15: 0 | AT15: 0 | AU15: 0 | AV15: 0 | AW15: 0 | AX15: 0 | AY15: -59907.15317 | AZ15: 0 | BA15: -24243.91488 | BB15: -69829.66205 | BC15: 22153.15356 | BD15: 169238.3093 | BE15: 7087.062395 | BF15: 23519.92946 | BG15: 178955.4892 | BH15: 24162.40876 | BI15: 49061.99 | BJ15: 226117.12 | BK15: 669066.93 | BL15: 31803 | BT15: 264406.2725 | BU15: 1.799557689e-06 | BV15: 1430486.723 | CI15: 2379769.212 | CJ15: -254394.2084 | CM15: 0 | CN15: 1.799557689e-06 | CO15: -42251.9122 | CP15: -240349.2283 | CR15: -136506.7533 | CS15: 1246.149517 | CT15: 927.0492001 | CU15: 0 | CV15: 0 | CW15: 0 | CX15: 0 | CY15: 0 | CZ15: 0 | DA15: 0 | DB15: -60.38409443 | DC15: -102785.5136 | DD15: -2298.697696 | DE15: -692.6472301 | DF15: -16540.34347 | DG15: -17490.0427 | DH15: 0 | DI15: 0 | DJ15: 201.7522848 | DK15: 0 | DL15: 0 | DM15: 1157.067215 | DN15: -14.39191113 | DO15: 0 | DP15: -156.750796 | DQ15: 0 | DR15: 0 | DS15: 0 | DV15: 1245518.125 | DW15: 23512.93587 | DX15: -649.4728878 | DY15: -47063.32105 | DZ15: -103694.1562 | EA15: 4811.40885 | EB15: -136655.072 | EC15: -13677.90429 | ED15: -51338.3816 | EE15: -8261.421622 | EF15: -345.9571934 | EG15: -1148.132799 | EH15: -8735.768832 | EI15: 16458.79699 | EJ15: 5694.356567 | EK15: 0 | EL15: 0 | EM15: 0 | EN15: 0 | EO15: 0 | EP15: 120 | EQ15: 0 | ER15: 0 | ES15: 0 | EU15: 0 | EV15: -21.87114946 | EX15: -21.87114946 | EZ15: 0 | FA15: 0 | FB15: 0 | FC15: 0
A16: 12 | B16: Refaturamento - Regular | C16: Convencional | D16: B1 | E16: Residencial | F16: Residencial baixa renda – faixa 03 | G16: Não se aplica | H16: Não se aplica | I16: Não se aplica | J16: CATIVO | K16: 2020-12-01 | L16: 0 | M16: 0 | N16: -9.825 | O16: -9.825 | P16: -9.825 | Q16: -9.825 | S16: 321.25 | T16: 207.97 | V16: -5199.5865 | W16: -5199.5865 | X16: -4697.529 | Y16: 0 | Z16: 0 | AA16: 0 | AB16: 0 | AC16: -5.27102091 | AD16: 0 | AE16: -2212.735996 | AF16: -1868.381739 | AG16: -115.1580628 | AH16: 0 | AI16: 0.0188088762 | AJ16: 0 | AK16: -50.0085577 | AL16: 0 | AM16: 0 | AN16: -7.518432449 | AO16: -54.98513172 | AP16: -169.7303661 | AQ16: 0 | AR16: 0 | AS16: 0 | AT16: 0 | AU16: 0 | AV16: 0 | AW16: 0 | AX16: 0 | AY16: 106.428571 | AZ16: 0 | BA16: 43.07073664 | BB16: 124.05649 | BC16: -39.35637653 | BD16: -300.6617819 | BE16: -12.59058198 | BF16: -41.78453408 | BG16: -317.9249218 | BH16: -42.92593624 | BI16: -87.82 | BJ16: -406.18 | BK16: -1083.37 | BL16: -52 | BT16: -469.73325 | BU16: -3.197019775e-09 | BV16: -2541.343558 | CI16: -4229.9473 | CJ16: 449.76845 | CM16: 0 | CN16: -3.197019775e-09 | CO16: 75.063 | CP16: 426.9945 | CR16: 242.512253 | CS16: -2.2138577 | CT16: -1.646957273 | CU16: 0 | CV16: 0 | CW16: 0 | CX16: 0 | CY16: 0 | CZ16: 0 | DA16: 0 | DB16: 0.1072758851 | DC16: 182.6044931 | DD16: 4.083771269 | DE16: 1.230528426 | DF16: 29.38489022 | DG16: 31.0720866 | DH16: 0 | DI16: 0 | DJ16: -0.3584247663 | DK16: 0 | DL16: 0 | DM16: -2.055597767 | DN16: 0.02556807417 | DO16: 0 | DP16: 0.2784769821 | DQ16: 0 | DR16: 0 | DS16: 0 | DV16: -2212.735996 | DW16: -41.77210956 | DX16: 1.153826675 | DY16: 83.61075 | DZ16: 184.21875 | EA16: -8.54775 | EB16: 242.77575 | EC16: 24.29959914 | ED16: 91.20564579 | EE16: 14.67690003 | EF16: 0.6146132437 | EG16: 2.039725253 | EH16: 15.51960566 | EI16: -29.24001812 | EJ16: -10.1163584 | EK16: 0 | EL16: 0 | EM16: 0 | EN16: 0 | EO16: 0 | EP16: 120 | EQ16: 0 | ER16: 0 | ES16: 0 | EU16: 0 | EV16: -21.87114946 | EX16: -21.87114946 | EZ16: 0 | FA16: 0 | FB16: 0 | FC16: 0
A17: 13 | B17: Sistema de Compensação | C17: Convencional | D17: B1 | E17: Residencial | F17: Residencial baixa renda – faixa 03 | G17: Não se aplica | H17: Não se aplica | I17: Não se aplica | J17: CATIVO | K17: 2020-12-01 | L17: 0 | M17: 0 | N17: 0.185 | O17: 0.185 | P17: 0.185 | Q17: 0.185 | S17: 321.25 | T17: 207.97 | V17: 97.9057 | W17: 97.9057 | X17: 88.4522 | Y17: 0 | Z17: 0 | AA17: 0 | AB17: 0 | AC17: 0.0992507754 | AD17: 0 | AE17: 41.66474903 | AF17: 35.18072485 | AG17: 2.168370649 | AH17: 0 | AI17: -0.0003541620455 | AJ17: 0 | AK17: 0.9416369642 | AL17: 0 | AM17: 0 | AN17: 0.1415684481 | AO17: 1.035343447 | AP17: 3.195940735 | AQ17: 0 | AR17: 0 | AS17: 0 | AT17: 0 | AU17: 0 | AV17: 0 | AW17: 0 | AX17: 0 | AY17: -2.003998538 | AZ17: 0 | BA17: -0.8110011479 | BB17: -2.33592373 | BC17: 0.7410615427 | BD17: 5.661315996 | BE17: 0.2370745717 | BF17: 0.7867825756 | BG17: 5.986372574 | BH17: 0.8082746263 | BI17: 1.35 | BJ17: 6.19 | BK17: 21.52 | BL17: 1 | BT17: 8.84485 | BU17: 6.019833673e-11 | BV17: 47.85227057 | CI17: 81.7589 | CJ17: -6.38845 | CM17: 0 | CN17: 6.019833673e-11 | CO17: -1.4134 | CP17: -8.0401 | CR17: -4.566388479 | CS17: 0.04168587018 | CT17: 0.03101140922 | CU17: 0 | CV17: 0 | CW17: 0 | CX17: 0 | CY17: 0 | CZ17: 0 | DA17: 0 | DB17: -0.002019953054 | DC17: -3.438354322 | DD17: -0.07689543866 | DE17: -0.02317025536 | DF17: -0.5533032764 | DG17: -0.5850723686 | DH17: 0 | DI17: 0 | DJ17: 0.006748965066 | DK17: 0 | DL17: 0 | DM17: 0.03870591215 | DN17: -0.0004814344755 | DO17: 0 | DP17: -0.005243586941 | DQ17: 0 | DR17: 0 | DS17: 0 | DV17: 41.66474903 | DW17: 0.7865486279 | DX17: -0.02172599846 | DY17: -1.57435 | DZ17: -3.46875 | EA17: 0.16095 | EB17: -4.57135 | EC17: -0.4575497039 | ED17: -1.717358216 | EE17: -0.2763589318 | EF17: -0.01157287024 | EG17: -0.03840704039 | EH17: -0.2922266715 | EI17: 0.5505754049 | EJ17: 0.1904861379 | EK17: 0 | EL17: 0 | EM17: 0 | EN17: 0 | EO17: 0 | EP17: 120 | EQ17: 0 | ER17: 0 | ES17: 0 | EU17: 0 | EV17: -21.87114946 | EX17: -21.87114946 | EZ17: 0 | FA17: 0 | FB17: 0 | FC17: 0
A18: 14 | B18: Regular | C18: Convencional | D18: B1 | E18: Residencial | F18: Residencial baixa renda – faixa 04 | G18: Não se aplica | H18: Não se aplica | I18: Não se aplica | J18: CATIVO | K18: 2020-12-01 | L18: 0 | M18: 0 | N18: 4528.4 | O18: 4528.4 | P18: 4528.4 | Q18: 4528.4 | S18: 321.25 | T18: 207.97 | V18: 2396519.848 | W18: 2396519.848 | X18: 2165118.608 | Y18: 0 | Z18: 0 | AA18: 0 | AB18: 0 | AC18: 2429.444386 | AD18: 0 | AE18: 1019862.97 | AF18: 861148.0779 | AG18: 53077.02511 | AH18: 0 | AI18: -8.669121118 | AJ18: 0 | AK18: 23049.23691 | AL18: 0 | AM18: 0 | AN18: 3465.289517 | AO18: 25342.96901 | AP18: 78229.71906 | AQ18: 0 | AR18: 0 | AS18: 0 | AT18: 0 | AU18: 0 | AV18: 0 | AW18: 0 | AX18: 0 | AY18: -49053.55125 | AZ18: 0 | BA18: -19851.55459 | BB18: -57178.36226 | BC18: 18139.58427 | BD18: 138576.7749 | BE18: 5803.072922 | BF18: 19258.7363 | BG18: 146533.4571 | BH18: 19784.81523 | BI18: 49820.95 | BJ18: 229726.59 | BK18: 710539.15 | BL18: 30277 | BU18: 1.473525125e-06 | BV18: 1171320.119 | CI18: 2165118.608 | CJ18: -231401.27 | CM18: 0 | CN18: 1.473525125e-06 | CO18: -34596.976 | CP18: -196804.264 | CR18: -111775.3167 | CS18: 1020.37997 | CT18: 759.092246 | CU18: 0 | CV18: 0 | CW18: 0 | CX18: 0 | CY18: 0 | CZ18: 0 | DA18: 0 | DB18: -49.44408329 | DC18: -84163.47953 | DD18: -1882.234078 | DE18: -567.1577533 | DF18: -13543.66787 | DG18: -14321.30656 | DH18: 0 | DI18: 0 | DJ18: 165.2000725 | DK18: 0 | DL18: 0 | DM18: 947.4370409 | DN18: -11.78447502 | DO18: 0 | DP18: -128.3516708 | DQ18: 0 | DR18: 0 | DS18: 0 | DV18: 1019862.97 | DW18: 19253.00976 | DX18: -531.8054673 | DY18: -38536.684 | DZ18: -84907.5 | EA18: 3939.708 | EB18: -111896.764 | EC18: -11199.82746 | ED18: -42037.21592 | EE18: -6764.669117 | EF18: -283.278841 | EG18: -940.1213066 | EH18: -7153.077077 | EI18: 13476.89548 | EJ18: 4662.688793 | EK18: 0 | EL18: 0 | EM18: 0 | EN18: 0 | EO18: 0 | EP18: 120 | EQ18: 0 | ER18: 0 | ES18: 0 | EU18: 0 | EV18: -21.87114946 | EX18: -21.87114946 | EZ18: 0 | FA18: 0 | FB18: 0 | FC18: 0
A19: 15 | B19: Refaturamento - Regular | C19: Convencional | D19: B1 | E19: Residencial | F19: Residencial baixa renda – faixa 04 | G19: Não se aplica | H19: Não se aplica | I19: Não se aplica | J19: CATIVO | K19: 2020-12-01 | L19: 0 | M19: 0 | N19: -38.546 | O19: -38.546 | P19: -38.546 | Q19: -38.546 | S19: 321.25 | T19: 207.97 | V19: -20399.31412 | W19: -20399.31412 | X19: -18429.61352 | Y19: 0 | Z19: 0 | AA19: 0 | AB19: 0 | AC19: -20.67956967 | AD19: 0 | AE19: -8681.131978 | AF19: -7330.14173 | AG19: -451.7946758 | AH19: 0 | AI19: 0.07379205516 | AJ19: 0 | AK19: -196.1964239 | AL19: 0 | AM19: 0 | AN19: -29.49674271 | AO19: -215.7208028 | AP19: -665.8958464 | AQ19: 0 | AR19: 0 | AS19: 0 | AT19: 0 | AU19: 0 | AV19: 0 | AW19: 0 | AX19: 0 | AY19: 417.546636 | AZ19: 0 | BA19: 168.9775689 | BB19: 486.7054924 | BC19: -154.4051796 | BD19: -1179.57344 | BE19: -49.39608887 | BF19: -163.9314657 | BG19: -1247.301174 | BH19: -168.4094797 | BI19: -91.37 | BJ19: -421.81 | BK19: -5154.07 | BL19: -68 | BU19: -1.25427302e-08 | BV19: -9970.343898 | CI19: -18431.526 | CJ19: 1967.75812 | CM19: 0 | CN19: -1.25427302e-08 | CO19: 294.49144 | CP19: 1675.20916 | CR19: 951.4378936 | CS19: -8.685532714 | CT19: -6.461436647 | CU19: 0 | CV19: 0 | CW19: 0 | CX19: 0 | CY19: 0 | CZ19: 0 | DA19: 0 | DB19: 0.4208708671 | DC19: 716.4043552 | DD19: 16.02168421 | DE19: 4.82767926 | DF19: 115.2844762 | DG19: 121.9037812 | DH19: 0 | DI19: 0 | DJ19: -1.406192473 | DK19: 0 | DL19: 0 | DM19: -8.064638322 | DN19: 0.1003101259 | DO19: 0 | DP19: 1.092536769 | DQ19: 0 | DR19: 0 | DS19: 0 | DV19: -8681.131978 | DW19: -163.8827211 | DX19: 4.526758577 | DY19: 328.02646 | DZ19: 722.7375 | EA19: -33.53502 | EB19: 952.47166 | EC19: 95.33357237 | ED19: 357.8231881 | EE19: 57.58125073 | EF19: 2.411285709 | EG19: 8.002366373 | EH19: 60.88740151 | EI19: -114.7161057 | EJ19: -39.68907389 | EK19: 0 | EL19: 0 | EM19: 0 | EN19: 0 | EO19: 0 | EP19: 120 | EQ19: 0 | ER19: 0 | ES19: 0 | EU19: 0 | EV19: -21.87114946 | EX19: -21.87114946 | EZ19: 0 | FA19: 0 | FB19: 0 | FC19: 0
A20: 16 | B20: Sistema de Compensação | C20: Convencional | D20: B1 | E20: Residencial | F20: Residencial baixa renda – faixa 04 | G20: Não se aplica | H20: Não se aplica | I20: Não se aplica | J20: CATIVO | K20: 2020-12-01 | L20: 0 | M20: 0 | N20: 0.526 | O20: 0.526 | P20: 0.526 | Q20: 0.526 | S20: 321.25 | T20: 207.97 | V20: 278.36972 | W20: 278.36972 | X20: 251.49112 | Y20: 0 | Z20: 0 | AA20: 0 | AB20: 0 | AC20: 0.2821940965 | AD20: 0 | AE20: 118.4630161 | AF20: 100.0273582 | AG20: 6.165205196 | AH20: 0 | AI20: -0.001006968843 | AJ20: 0 | AK20: 2.677302936 | AL20: 0 | AM20: 0 | AN20: 0.4025135336 | AO20: 2.943733261 | AP20: 9.086836901 | AQ20: 0 | AR20: 0 | AS20: 0 | AT20: 0 | AU20: 0 | AV20: 0 | AW20: 0 | AX20: 0 | AY20: -5.697855304 | AZ20: 0 | BA20: -2.305873534 | BB20: -6.641599362 | BC20: 2.107018224 | BD20: 16.09649845 | BE20: 0.6740606742 | BF20: 2.237014242 | BG20: 17.02071337 | BH20: 2.29812137 | BI20: 5.18 | BJ20: 23.84 | BK20: 79.33 | BL20: 3 | BU20: 1.711585142e-10 | BV20: 136.055645 | CI20: 253.4036 | CJ20: -24.99612 | CM20: 0 | CN20: 1.711585142e-10 | CO20: -4.01864 | CP20: -22.85996 | CR20: -12.98335319 | CS20: 0.1185230687 | CT20: 0.08817297972 | CU20: 0 | CV20: 0 | CW20: 0 | CX20: 0 | CY20: 0 | CZ20: 0 | DA20: 0 | DB20: -0.005743217871 | DC20: -9.776077695 | DD20: -0.2186324364 | DE20: -0.06587867199 | DF20: -1.573175802 | DG20: -1.663503059 | DH20: 0 | DI20: 0 | DJ20: 0.01918894932 | DK20: 0 | DL20: 0 | DM20: 0.1100503232 | DN20: -0.00136883532 | DO20: 0 | DP20: -0.01490879314 | DQ20: 0 | DR20: 0 | DS20: 0 | DV20: 118.4630161 | DW20: 2.236349072 | DX20: -0.06177229834 | DY20: -4.47626 | DZ20: -9.8625 | EA20: 0.45762 | EB20: -12.99746 | EC20: -1.300925104 | ED20: -4.882867144 | EE20: -0.7857556655 | EF20: -0.03290448511 | EG20: -0.1092005581 | EH20: -0.8308715092 | EI20: 1.5654198 | EJ20: 0.5415984244 | EK20: 0 | EL20: 0 | EM20: 0 | EN20: 0 | EO20: 0 | EP20: 120 | EQ20: 0 | ER20: 0 | ES20: 0 | EU20: 0 | EV20: -21.87114946 | EX20: -21.87114946 | EZ20: 0 | FA20: 0 | FB20: 0 | FC20: 0
A21: 20 | B21: Regular | C21: Branca | D21: B1 | E21: Residencial | F21: Residencial | G21: Não se aplica | H21: Não se aplica | I21: Ponta | J21: CATIVO | K21: 2020-12-01 | L21: 0 | M21: 0 | N21: 11.53 | O21: 11.53 | P21: 11.53 | Q21: 11.53 | S21: 878.67 | T21: 326.38 | V21: 13894.2265 | W21: 13894.2265 | X21: 13214.3024 | Y21: 0 | Z21: 270.6974773 | AA21: 0 | AB21: 0 | AC21: 19.17754528 | AD21: 0 | AE21: 8049.854492 | AF21: 3557.82796 | AG21: 135.1422356 | AH21: 0 | AI21: -0.02207291019 | AJ21: 0 | AK21: 110.8745403 | AL21: 84.21152264 | AM21: 0 | AN21: 8.823157876 | AO21: 200.0336251 | AP21: 617.4732849 | AQ21: 0 | AR21: 0 | AS21: 0 | AT21: 0 | AU21: 0 | AV21: 100.1615769 | AW21: -18.39401394 | AX21: 0 | AY21: -124.8978549 | AZ21: 0 | BA21: -50.54509857 | BB21: -212.2281754 | BC21: 143.1770806 | BD21: 352.8376942 | BE21: 14.7755125 | BF21: 49.03569241 | BG21: 373.0966258 | BH21: 50.37516995 | BI21: 0 | BJ21: 0 | BK21: 0 | BL21: 0 | BU21: 3.751820662e-09 | BV21: 4347.573485 | CI21: 13214.3024 | CJ21: -679.9541 | CM21: 0 | CN21: 3.751820662e-09 | CO21: 21.3305 | CP21: -701.2546 | CR21: -427.4089261 | CS21: 8.053922347 | CT21: 5.991574409 | CU21: 0 | CV21: 0 | CW21: 0 | CX21: 0 | CY21: 0 | CZ21: 0 | DA21: 0 | DB21: -0.3903016474 | DC21: -347.7208954 | DD21: -4.792456258 | DE21: -1.44407051 | DF21: -34.48425285 | DG21: -36.46424005 | DH21: 0 | DI21: -12.68500169 | DJ21: 0.4206246876 | DK21: 0 | DL21: 0 | DM21: 2.412319822 | DN21: -0.05668726717 | DO21: -5.92265874 | DP21: -0.3268030131 | DQ21: 0 | DR21: 0 | DS21: 0 | DV21: 8049.854492 | DW21: 49.02111178 | DX21: -1.354058175 | DY21: -167.4156 | DZ21: -349.7049 | EA21: 188.7461 | EB21: -351.5497 | EC21: -88.40107347 | ED21: -173.6764977 | EE21: -17.22388369 | EF21: -0.721271318 | EG21: -2.393692842 | EH21: -18.21282985 | EI21: 106.374189 | EJ21: 36.80289162 | EK21: 0 | EL21: 0 | EM21: 0 | EN21: 0 | EO21: 0 | EP21: 120 | EQ21: 0 | ER21: 0 | ES21: 0 | EU21: 0 | EV21: -21.87114946 | EX21: -21.87114946 | EZ21: 0 | FA21: 0 | FB21: 0 | FC21: 0
A22: 21 | B22: Refaturamento - Regular | C22: Branca | D22: B1 | E22: Residencial | F22: Residencial | G22: Não se aplica | H22: Não se aplica | I22: Ponta | J22: CATIVO | K22: 2020-12-01 | L22: 0 | M22: 0 | N22: -0.634 | O22: -0.634 | P22: -0.634 | Q22: -0.634 | S22: 878.67 | T22: 326.38 | V22: -764.0017 | W22: -764.0017 | X22: -726.61472 | Y22: 0 | Z22: -14.8848396 | AA22: 0 | AB22: 0 | AC22: -1.054515499 | AD22: 0 | AE22: -442.6372722 | AF22: -195.6342521 | AG22: -7.431064818 | AH22: 0 | AI22: 0.001213722902 | AJ22: 0 | AK22: -6.096657291 | AL22: -4.630538192 | AM22: 0 | AN22: -0.485158898 | AO22: -10.99924703 | AP22: -33.95299763 | AQ22: 0 | AR22: 0 | AS22: 0 | AT22: 0 | AU22: 0 | AV22: -5.507583674 | AW22: 1.011431469 | AX22: 0 | AY22: 6.867757153 | AZ22: 0 | BA22: 2.779322853 | BB22: 11.66978866 | BC22: -7.872876767 | BD22: -19.40148293 | BE22: -0.8124609647 | BF22: -2.696325151 | BG22: -20.5154606 | BH22: -2.76997899 | BI22: 0 | BJ22: 0 | BK22: 0 | BL22: 0 | BU22: -2.06301327e-10 | BV22: -239.0599817 | CI22: -722.0304 | CJ22: 41.9413 | CM22: 0 | CN22: -2.06301327e-10 | CO22: -1.1729 | CP22: 38.55988 | CR22: 23.50193054 | CS22: -0.4428609513 | CT22: -0.3294586448 | CU22: 0 | CV22: 0 | CW22: 0 | CX22: 0 | CY22: 0 | CZ22: 0 | DA22: 0 | DB22: 0.02146151296 | DC22: 19.12012556 | DD22: 0.2635227465 | DE22: 0.07940509133 | DF22: 1.896185282 | DG22: 2.00505882 | DH22: 0 | DI22: 0.6975100667 | DJ22: -0.02312888569 | DK22: 0 | DL22: 0 | DM22: -0.132646207 | DN22: 0.003117062219 | DO22: 0.3256691796 | DP22: 0.01796991417 | DQ22: 0 | DR22: 0 | DS22: 0 | DV22: -442.6372722 | DW22: -2.695523406 | DX22: 0.07445558393 | DY22: 9.20568 | DZ22: 19.22922 | EA22: -10.37858 | EB22: 19.33066 | EC22: 4.860908983 | ED22: 9.549947921 | EE22: 0.9470895284 | EF22: 0.03966053908 | EG22: 0.1316219655 | EH22: 1.001468701 | EI22: -5.849196517 | EJ22: -2.023680251 | EK22: 0 | EL22: 0 | EM22: 0 | EN22: 0 | EO22: 0 | EP22: 120 | EQ22: 0 | ER22: 0 | ES22: 0 | EU22: 0 | EV22: -21.87114946 | EX22: -21.87114946 | EZ22: 0 | FA22: 0 | FB22: 0 | FC22: 0
A23: 22 | B23: Sistema de Compensação | C23: Branca | D23: B1 | E23: Residencial | F23: Residencial | G23: Não se aplica | H23: Não se aplica | I23: Ponta | J23: CATIVO | K23: 2020-12-01 | L23: 0 | M23: 0 | N23: 0.112 | O23: 0.112 | P23: 0.112 | Q23: 0.112 | S23: 878.67 | T23: 326.38 | V23: 134.9656 | W23: 134.9656 | X23: 128.36096 | Y23: 0 | Z23: 2.629498479 | AA23: 0 | AB23: 0 | AC23: 0.1862866497 | AD23: 0 | AE23: 78.19459698 | AF23: 34.55999406 | AG23: 1.312743312 | AH23: 0 | AI23: -0.0002144116167 | AJ23: 0 | AK23: 1.077012014 | AL23: 0.818013056 | AM23: 0 | AN23: 0.08570630374 | AO23: 1.943084649 | AP23: 5.99800589 | AQ23: 0 | AR23: 0 | AS23: 0 | AT23: 0 | AU23: 0 | AV23: 0.9729485356 | AW23: -0.1786755907 | AX23: 0 | AY23: -1.213231548 | AZ23: 0 | BA23: -0.4909844787 | BB23: -2.061539952 | BC23: 1.39079211 | BD23: 3.427391305 | BE23: 0.1435262272 | BF23: 0.4763224241 | BG23: 3.624182315 | BH23: 0.4893338278 | BI23: 0 | BJ23: 0 | BK23: 0 | BL23: 0 | BU23: 3.644439845e-11 | BV23: 42.23141633 | CI23: 126.0688 | CJ23: -8.9268 | CM23: 0 | CN23: 3.644439845e-11 | CO23: 0.2072 | CP23: -6.81184 | CR23: -4.151760601 | CS23: 0.07823411127 | CT23: 0.05820089625 | CU23: 0 | CV23: 0 | CW23: 0 | CX23: 0 | CY23: 0 | CZ23: 0 | DA23: 0 | DB23: -0.003791308283 | DC23: -3.377687795 | DD23: -0.04655291422 | DE23: -0.01402739784 | DF23: -0.3349727944 | DG23: -0.3542059745 | DH23: 0 | DI23: -0.123219444 | DJ23: 0.004085859932 | DK23: 0 | DL23: 0 | DM23: 0.02343276843 | DN23: -0.0005506482154 | DO23: -0.05753146391 | DP23: -0.003174495878 | DQ23: 0 | DR23: 0 | DS23: 0 | DV23: 78.19459698 | DW23: 0.4761807909 | DX23: -0.01315303691 | DY23: -1.62624 | DZ23: -3.39696 | EA23: 1.83344 | EB23: -3.41488 | EC23: -0.8587094734 | ED23: -1.687057046 | EE23: -0.1673091911 | EF23: -0.007006278198 | EG23: -0.02325182986 | EH23: -0.1769156065 | EI23: 1.033296546 | EJ23: 0.3574955648 | EK23: 0 | EL23: 0 | EM23: 0 | EN23: 0 | EO23: 0 | EP23: 120 | EQ23: 0 | ER23: 0 | ES23: 0 | EU23: 0 | EV23: -21.87114946 | EX23: -21.87114946 | EZ23: 0 | FA23: 0 | FB23: 0 | FC23: 0
A24: 23 | B24: Regular | C24: Branca | D24: B1 | E24: Residencial | F24: Residencial | G24: Não se aplica | H24: Não se aplica | I24: Fora ponta | J24: CATIVO | K24: 2020-12-01 | L24: 0 | M24: 0 | N24: 144.291 | O24: 144.291 | P24: 144.291 | Q24: 144.291 | S24: 256.75 | T24: 197.21 | V24: 65502.34236 | W24: 65502.34236 | X24: 59039.54847 | Y24: 0 | Z24: 3387.615759 | AA24: 0 | AB24: 0 | AC24: 48.00201888 | AD24: 0 | AE24: 20147.81534 | AF24: 25886.08857 | AG24: 1691.223618 | AH24: 0 | AI24: -0.276229166 | AJ24: 0 | AK24: 617.7575507 | AL24: 1053.856445 | AM24: 0 | AN24: 110.4165024 | AO24: 500.6654778 | AP24: 1545.46444 | AQ24: 0 | AR24: 0 | AS24: 0 | AT24: 0 | AU24: 0 | AV24: 1253.46176 | AW24: -230.189997 | AX24: 0 | AY24: -1563.021368 | AZ24: 0 | BA24: -632.5414413 | BB24: -1746.088613 | BC24: 358.3565305 | BD24: 4415.551061 | BE24: 184.9066326 | BF24: 613.652133 | BG24: 4669.079379 | BH24: 630.4148871 | BI24: 0 | BJ24: 0 | BK24: 0 | BL24: 0 | BU24: 4.695177408e-08 | BV24: 35769.27778 | CI24: 59039.1393 | CJ24: -6463.23306 | CM24: 0 | CN24: 4.695177408e-08 | CO24: -418.4439 | CP24: -6044.34999 | CR24: -3663.515127 | CS24: 20.15821529 | CT24: 14.99621994 | CU24: 0 | CV24: 0 | CW24: 0 | CX24: 0 | CY24: 0 | CZ24: 0 | DA24: 0 | DB24: -0.9769377038 | DC24: -2529.951981 | DD24: -59.9747013 | DE24: -18.07167198 | DF24: -431.5496381 | DG24: -456.3279845 | DH24: 0 | DI24: -158.7451499 | DJ24: 5.263864423 | DK24: 0 | DL24: 0 | DM24: 30.18872848 | DN24: -0.3158433597 | DO24: -74.11850409 | DP24: -4.089742721 | DQ24: 0 | DR24: 0 | DS24: 0 | DV24: 20147.81534 | DW24: 613.4696652 | DX24: -16.94522186 | DY24: -1347.67794 | DZ24: -2555.39361 | EA24: 929.23404 | EB24: -3488.95638 | EC24: -221.2572297 | ED24: -1263.637605 | EE24: -215.5465223 | EF24: -9.026275781 | EG24: -29.95562306 | EH24: -227.9225873 | EI24: 266.2423307 | EJ24: 92.11419986 | EK24: 0 | EL24: 0 | EM24: 0 | EN24: 0 | EO24: 0 | EP24: 120 | EQ24: 0 | ER24: 0 | ES24: 0 | EU24: 0 | EV24: -21.87114946 | EX24: -21.87114946 | EZ24: 0 | FA24: 0 | FB24: 0 | FC24: 0
A25: 34 | B25: Regular | C25: Azul | D25: A3 | E25: Industrial | F25: Não se aplica | G25: Não se aplica | H25: Não se aplica | I25: Ponta | J25: CATIVO | K25: 2020-12-01 | L25: 5184 | M25: 5184 | N25: 249.936 | O25: 249.936 | P25: 249.936 | Q25: 249.936 | R25: 10.11 | S25: 33.88 | T25: 326.38 | U25: 52410.24 | V25: 90041.94336 | W25: 142452.1834 | X25: 133288.477 | Y25: 0 | Z25: 4283.576984 | AA25: 0 | AB25: 0 | AC25: 370.1193758 | AD25: 0 | AE25: 22252.91505 | AF25: 77123.09531 | AG25: 2929.480467 | AH25: 0 | AI25: -0.4784748378 | AJ25: 0 | AK25: 496.6403674 | AL25: 1825.454564 | AM25: 0 | AN25: 8.231906991 | AO25: 7485.489649 | AP25: 22308.05535 | AQ25: 0 | AR25: 0 | AS25: 0 | AT25: 0 | AU25: 0 | AV25: 1584.979032 | AW25: -398.7273432 | AX25: 0 | AY25: -2707.412858 | AZ25: 0 | BA25: -1095.666935 | BB25: -3919.628586 | BC25: 5220.290122 | BD25: 1424.727179 | BE25: 26.06704883 | BF25: 1062.947512 | BG25: 658.219332 | BH25: 203.410449 | BI25: 0 | BJ25: 0 | BK25: 0 | BL25: 0 | BU25: 8.132827832e-08 | BV25: 80295.05638 | CI25: 133289.6834 | CJ25: -9162.52996 | CM25: 0 | CN25: 8.132827832e-08 | CO25: 6037.40112 | CP25: -15201.10752 | CR25: -7605.507209 | CS25: 301.387091 | CT25: 216.4634112 | CU25: 0 | CV25: 0 | CW25: 0 | CX25: 0 | CY25: 0 | CZ25: 0 | DA25: 0 | DB25: -7.532674281 | DC25: -7537.551579 | DD25: -103.8861533 | DE25: -2.547637959 | DF25: -139.2443412 | DG25: -64.33043364 | DH25: 0 | DI25: -200.7302831 | DJ25: 9.117888285 | DK25: 0 | DL25: 0 | DM25: 52.29189653 | DN25: -0.2539192957 | DO25: -128.3855711 | DP25: -0.304903533 | DQ25: 0 | DR25: 0 | DS25: 0 | DU25: 22252.91505 | DV25: 0 | DW25: 197.9428827 | DX25: -5.467566292 | DY25: -280.66176 | DZ25: -7580.55888 | EA25: 6318.06288 | EB25: -7620.54864 | EC25: -244.3747996 | ED25: -3764.788302 | EE25: -69.54850809 | EF25: -1.272471237 | EG25: -51.88811918 | EH25: -32.13118497 | EI25: 3843.083344 | EJ25: 1377.206778 | EK25: 0 | EL25: 0 | EM25: 0 | EN25: 0 | EO25: 0 | EP25: 120 | EQ25: 0 | ER25: 0 | ES25: 0 | EU25: 0 | EV25: -21.87114946 | EX25: -21.87114946 | EZ25: 0 | FA25: 0 | FB25: 0 | FC25: 0
A26: 35 | B26: Refaturamento - Regular | C26: Azul | D26: A3 | E26: Industrial | F26: Não se aplica | G26: Não se aplica | H26: Não se aplica | I26: Ponta | J26: CATIVO | K26: 2020-12-01 | L26: 5376 | M26: 5376 | N26: 0 | O26: 0 | P26: 0 | Q26: 0 | R26: 10.11 | U26: 54351.36 | W26: 54351.36 | X26: 60049.92 | Y26: 0 | Z26: 0 | AA26: 0 | AB26: 0 | AC26: 383.8275008 | AD26: 0 | AE26: 23077.09709 | AI26: 0 | AJ26: 0 | AK26: 0 | AL26: 0 | AM26: 0 | AN26: 0 | AO26: 7762.730007 | AP26: 23134.27963 | AQ26: 0 | AR26: 0 | AU26: 0 | AV26: 0 | AW26: 0 | AZ26: 0 | BB26: 0 | BC26: 5413.634201 | BD26: 0 | BE26: 0 | BG26: 0 | BH26: 0 | BI26: 0 | BJ26: 0 | BK26: 0 | BL26: 0 | BV26: 0 | CI26: 60049.92 | CJ26: 5698.53 | CO26: 5698.56 | CP26: 0 | CR26: 529.2184882 | CS26: 312.5495759 | CT26: 224.4805745 | CU26: 0 | CV26: 0 | CZ26: 0 | DA26: 0 | DB26: -7.811662218 | DE26: 0 | DF26: 0 | DG26: 0 | DH26: 0 | DI26: 0 | DK26: 0 | DL26: 0 | DN26: 0 | DO26: 0 | DP26: 0 | DQ26: 0 | DR26: 0 | DS26: 0 | DU26: 23077.09709 | DW26: 0 | DX26: 0 | DY26: 268.8 | EA26: 5429.76 | EC26: -253.4257181 | EE26: 0 | EF26: 0 | EH26: 0 | EI26: 3985.419764 | EJ26: 1428.214437 | EK26: 0 | EL26: 0 | EO26: 0 | EP26: 120 | EU26: 0 | EV26: -21.87114946 | EX26: -21.87114946 | EZ26: 0 | FA26: 0 | FB26: 0 | FC26: 0
A27: 36 | B27: Regular | C27: Azul | D27: A3 | E27: Industrial | F27: Não se aplica | G27: Não se aplica | H27: Não se aplica | I27: Fora ponta | J27: CATIVO | K27: 2020-12-01 | L27: 6528 | M27: 6528 | N27: 2459.64 | O27: 2459.64 | P27: 2459.64 | Q27: 2459.64 | R27: 4.82 | S27: 33.88 | T27: 197.21 | U27: 31464.96 | V27: 568398.2076 | W27: 599863.1676 | X27: 507584.5068 | Y27: 0 | Z27: 42155.02086 | AA27: 0 | AB27: 0 | AC27: 351.2170039 | AD27: 0 | AE27: 2802.417968 | AF27: 441264.2431 | AG27: 28829.24963 | AH27: 0 | AI27: -4.70870883 | AJ27: 0 | AK27: 4887.477247 | AL27: 17964.44315 | AM27: 0 | AN27: 81.01084963 | AO27: 7668.666959 | AP27: 20630.84342 | AQ27: 0 | AR27: 0 | AS27: 0 | AT27: 0 | AU27: 0 | AV27: 15597.90437 | AW27: -3923.90741 | AX27: 0 | AY27: -26643.86468 | AZ27: 0 | BA27: -10782.54521 | BB27: -23064.24917 | BC27: 4965.052817 | BD27: 14020.85317 | BE27: 256.5278951 | BF27: 10460.55078 | BG27: 6477.588653 | BH27: 2001.778362 | BI27: 0 | BJ27: 0 | BK27: 0 | BL27: 0 | BU27: 8.003580376e-07 | BV27: 472479.7636 | CI27: 507584.5068 | CJ27: -92278.6908 | CM27: 0 | CN27: 8.003580376e-07 | CO27: 10755.6588 | CP27: -103034.3196 | CR27: -48315.56841 | CS27: 308.7623302 | CT27: 200.188796 | CU27: 0 | CV27: 0 | CW27: 0 | CX27: 0 | CY27: 0 | CZ27: 0 | DA27: 0 | DB27: -7.147972967 | DC27: -43126.53659 | DD27: -1022.351874 | DE27: -25.07150722 | DF27: -1370.314606 | DG27: -633.0808999 | DH27: 0 | DI27: -1975.402638 | DJ27: 89.72986181 | DK27: 0 | DL27: 0 | DM27: 514.6087014 | DN27: -2.498839929 | DO27: -1263.452588 | DP27: -3.000579852 | DQ27: 0 | DR27: 0 | DS27: 0 | DU27: 2802.417968 | DV27: 0 | DW27: 1947.971608 | DX27: -53.80675355 | DY27: -4855.8624 | DZ27: -43560.2244 | EA27: 15611.5212 | EB27: -59474.0952 | EC27: -30.77530866 | ED27: -21540.45366 | EE27: -684.4323844 | EF27: -12.52249038 | EG27: -510.6350964 | EH27: -316.2055399 | EI27: 3554.144432 | EJ27: 1410.908385 | EK27: 0 | EL27: 0 | EM27: 0 | EN27: 0 | EO27: 0 | EP27: 120 | EQ27: 0 | ER27: 0 | ES27: 0 | EU27: 0 | EV27: -21.87114946 | EX27: -21.87114946 | EZ27: 0 | FA27: 0 | FB27: 0 | FC27: 0
A28: 37 | B28: Refaturamento - Regular | C28: Azul | D28: A3 | E28: Industrial | F28: Não se aplica | G28: Não se aplica | H28: Não se aplica | I28: Fora ponta | J28: CATIVO | K28: 2020-12-01 | L28: 7488 | M28: 7488 | N28: 0 | O28: 0 | P28: 0 | Q28: 0 | R28: 4.82 | U28: 36092.16 | W28: 36092.16 | X28: 42307.2 | Y28: 0 | Z28: 0 | AA28: 0 | AB28: 0 | AC28: 402.8665633 | AD28: 0 | AE28: 3214.538257 | AI28: 0 | AJ28: 0 | AK28: 0 | AL28: 0 | AM28: 0 | AN28: 0 | AO28: 8796.4121 | AP28: 23664.79098 | AQ28: 0 | AR28: 0 | AU28: 0 | AV28: 0 | AW28: 0 | AZ28: 0 | BB28: 0 | BC28: 5695.207643 | BD28: 0 | BE28: 0 | BG28: 0 | BH28: 0 | BI28: 0 | BJ28: 0 | BK28: 0 | BL28: 0 | BV28: 0 | CI28: 42307.2 | CJ28: 6215.01 | CO28: 6215.04 | CP28: 0 | CR28: 575.5977345 | CS28: 354.1685552 | CT28: 229.6283248 | CU28: 0 | CV28: 0 | CZ28: 0 | DA28: 0 | DB28: -8.199145463 | DE28: 0 | DF28: 0 | DG28: 0 | DH28: 0 | DI28: 0 | DK28: 0 | DL28: 0 | DN28: 0 | DO28: 0 | DP28: 0 | DQ28: 0 | DR28: 0 | DS28: 0 | DU28: 3214.538257 | DW28: 0 | DX28: 0 | DY28: 524.16 | EA28: 5690.88 | EC28: -35.30108934 | EE28: 0 | EF28: 0 | EH28: 0 | EI28: 4076.81273 | EJ28: 1618.394913 | EK28: 0 | EL28: 0 | EO28: 0 | EP28: 120 | EU28: 0 | EV28: -21.87114946 | EX28: -21.87114946 | EZ28: 0 | FA28: 0 | FB28: 0 | FC28: 0
A29: 38 | B29: Regular | C29: Azul | D29: A3 | E29: Industrial | F29: Não se aplica | G29: Não se aplica | H29: Não se aplica | I29: Não se aplica | J29: CATIVO | K29: 2020-12-01 | L29: 0 | M29: 0 | N29: 0 | O29: 0 | P29: 0 | Q29: 0 | AA29: 0 | AZ29: 0 | BI29: 12079.87 | BJ29: 55643.18 | BK29: 104099.92 | BL29: 1 | CJ29: -0.03 | CO29: 0 | CP29: 0 | DK29: 0 | EP29: 120 | EU29: 0 | EV29: -21.87114946 | EX29: -21.87114946 | EZ29: 0 | FA29: 0 | FB29: 0 | FC29: 0
A30: 39 | B30: Refaturamento - Regular | C30: Azul | D30: A3 | E30: Industrial | F30: Não se aplica | G30: Não se aplica | H30: Não se aplica | I30: Não se aplica | J30: CATIVO | K30: 2020-12-01 | L30: 0 | M30: 0 | N30: 0 | O30: 0 | P30: 0 | Q30: 0 | AA30: 0 | AZ30: 0 | BI30: 1958.22 | BJ30: 9016.36 | BK30: 124641.37 | BL30: 0 | CJ30: -0.03 | CO30: 0 | CP30: 0 | DK30: 0 | EP30: 120 | EU30: 0 | EV30: -21.87114946 | EX30: -21.87114946 | EZ30: 0 | FA30: 0 | FB30: 0 | FC30: 0
A31: 43 | B31: Regular | C31: Verde | D31: A3a | E31: Industrial | F31: Não se aplica | G31: Não se aplica | H31: Não se aplica | I31: Ponta | J31: CATIVO | K31: 2020-12-01 | L31: 0 | M31: 0 | N31: 46.597 | O31: 46.597 | P31: 46.597 | Q31: 46.597 | S31: 1230.71 | T31: 326.38 | V31: 72555.72273 | W31: 72555.72273 | X31: 70466.31325 | Y31: 0 | Z31: 973.6499924 | AA31: 0 | AB31: 0 | AC31: 158.9311163 | AD31: 0 | AE31: 47025.61032 | AF31: 14378.50039 | AG31: 546.1598223 | AH31: 0 | AI31: -0.0892048045 | AJ31: 0 | AK31: 576.7803223 | AL31: 340.3299497 | AM31: 0 | AN31: 19.68285282 | AO31: 1583.401362 | AP31: 5077.159851 | AQ31: 0 | AR31: 0 | AS31: 0 | AT31: 0 | AU31: 0 | AV31: 360.2631231 | AW31: -74.33702233 | AX31: 0 | AY31: -504.7584859 | AZ31: 0 | BA31: -204.2714621 | BB31: -786.9916471 | BC31: 1165.979082 | BD31: 925.0409451 | BE31: 23.62214843 | BF31: 198.1713928 | BG31: 596.4831254 | BH31: 132.0694914 | BI31: 0 | BJ31: 0 | BK31: 0 | BL31: 0 | BU31: 1.516249674e-08 | BV31: 16121.818 | CI31: 70470.85 | CJ31: -2084.90273 | CM31: 0 | CN31: 1.516249674e-08 | CO31: 744.62006 | CP31: -2834.02954 | CR31: -1525.003402 | CS31: 63.75223969 | CT31: 49.26558245 | CU31: 0 | CV31: 0 | CW31: 0 | CX31: 0 | CY31: 0 | CZ31: 0 | DA31: 0 | DB31: -3.234568118 | DC31: -1405.268913 | DD31: -19.36809057 | DE31: -2.308687968 | DF31: -90.40798749 | DG31: -58.29670484 | DH31: 0 | DI31: -45.62566271 | DJ31: 1.699900136 | DK31: 0 | DL31: 0 | DM31: 9.749077774 | DN31: -0.2948927692 | DO31: -23.93565735 | DP31: -0.7290378002 | DQ31: 0 | DR31: 0 | DS31: 0 | DV31: 47025.61032 | DW31: 128.5195327 | DX31: -3.549958732 | DY31: -631.85532 | DZ31: -1413.28701 | EA31: 1376.47538 | EB31: -1420.74253 | EC31: -516.4210653 | ED31: -701.8910462 | EE31: -45.15616645 | EF31: -1.15312265 | EG31: -9.67379925 | EH31: -29.11751252 | EI31: 874.659317 | EJ31: 291.3197653 | EK31: 0 | EL31: 0 | EM31: 0 | EN31: 0 | EO31: 0 | EP31: 120 | EQ31: 0 | ER31: 0 | ES31: 0 | EU31: 0 | EV31: -21.87114946 | EX31: -21.87114946 | EZ31: 0 | FA31: 0 | FB31: 0 | FC31: 0
A32: 44 | B32: Regular | C32: Verde | D32: A3a | E32: Industrial | F32: Não se aplica | G32: Não se aplica | H32: Não se aplica | I32: Fora ponta | J32: CATIVO | K32: 2020-12-01 | L32: 0 | M32: 0 | N32: 1927.656 | O32: 1927.656 | P32: 1927.656 | Q32: 1927.656 | S32: 65.18 | T32: 197.21 | V32: 505797.6578 | W32: 505797.6578 | X32: 424450.5746 | Y32: 0 | Z32: 40278.60699 | AA32: 0 | AB32: 0 | AC32: 0 | AD32: 0 | AE32: 0 | AF32: 345825.2694 | AG32: 22593.90644 | AH32: 0 | AI32: -3.690284281 | AJ32: 0 | AK32: 4623.622086 | AL32: 14078.998 | AM32: 0 | AN32: 814.2534785 | AO32: 0 | AP32: 0 | AQ32: 0 | AR32: 0 | AS32: 0 | AT32: 0 | AU32: 0 | AV32: 14903.6069 | AW32: -3075.22388 | AX32: 0 | AY32: -20881.18814 | AZ32: 0 | BA32: -8450.439075 | BB32: -20402.06879 | BC32: 0 | BD32: 38267.71526 | BE32: 977.2169056 | BF32: 8198.087311 | BG32: 24675.71465 | BH32: 5463.539445 | BI32: 0 | BJ32: 0 | BK32: 0 | BL32: 0 | BU32: 6.272523513e-07 | BV32: 417944.0036 | CI32: 424451.4554 | CJ32: -81346.23244 | CM32: 0 | CN32: 6.272523513e-07 | CO32: -597.57336 | CP32: -80749.50984 | CR32: -43283.90908 | CS32: 0 | CT32: 0 | CU32: 0 | CV32: 0 | CW32: 0 | CX32: 0 | CY32: 0 | CZ32: 0 | DA32: 0 | DB32: 0 | DC32: -33798.90025 | DD32: -801.2321822 | DE32: -95.50735484 | DF32: -3740.058363 | DG32: -2411.65725 | DH32: 0 | DI32: -1887.473066 | DJ32: 70.32261083 | DK32: 0 | DL32: 0 | DM32: 403.3063988 | DN32: -2.363937651 | DO32: -990.1863535 | DP32: -30.15932549 | DQ32: 0 | DR32: 0 | DS32: 0 | DV32: 0 | DW32: 5316.682368 | DX32: -146.8570777 | DY32: -9310.57848 | DZ32: -34138.78776 | EA32: 8713.00512 | EB32: -46610.72208 | EC32: 0 | ED32: -16881.56996 | EE32: -1868.05063 | EF32: -47.70315248 | EG32: -400.1922263 | EH32: -1204.552819 | EI32: 0 | EJ32: 0 | EK32: 0 | EL32: 0 | EM32: 0 | EN32: 0 | EO32: 0 | EP32: 120 | EQ32: 0 | ER32: 0 | ES32: 0 | EU32: 0 | EV32: -21.87114946 | EX32: -21.87114946 | EZ32: 0 | FA32: 0 | FB32: 0 | FC32: 0
A33: 45 | B33: Regular | C33: Verde | D33: A3a | E33: Industrial | F33: Não se aplica | G33: Não se aplica | H33: Não se aplica | I33: Não se aplica | J33: CATIVO | K33: 2020-12-01 | L33: 8657 | M33: 8657 | N33: 0 | O33: 0 | P33: 0 | Q33: 0 | R33: 17.12 | U33: 148207.84 | W33: 148207.84 | X33: 154527.45 | Y33: 0 | Z33: 0 | AA33: 0 | AB33: 0 | AC33: 925.3581399 | AD33: 0 | AE33: 108176.2366 | AI33: 0 | AJ33: 0 | AK33: 0 | AL33: 0 | AM33: 0 | AN33: 0 | AO33: 9918.040776 | AP33: 29211.39417 | AQ33: 0 | AR33: 0 | AU33: 0 | AV33: 0 | AW33: 0 | AZ33: 0 | BB33: 0 | BC33: 6857.100733 | BD33: 0 | BE33: 0 | BG33: 0 | BH33: 0 | BI33: 12331.38 | BJ33: 56801.95 | BK33: 184498.63 | BL33: 19 | BV33: 0 | CI33: 154527.45 | CJ33: 6319.58 | CO33: 6319.61 | CP33: 0 | CR33: 663.9447049 | CS33: 399.328514 | CT33: 283.4490917 | CU33: 0 | CV33: 0 | CZ33: 0 | DA33: 0 | DB33: -18.83290073 | DE33: 0 | DF33: 0 | DG33: 0 | DH33: 0 | DI33: 0 | DK33: 0 | DL33: 0 | DN33: 0 | DO33: 0 | DP33: 0 | DQ33: 0 | DR33: 0 | DS33: 0 | DU33: 108176.2366 | DW33: 0 | DX33: 0 | DY33: -519.42 | EA33: 6839.03 | EC33: -1187.958795 | EE33: 0 | EF33: 0 | EH33: 0 | EI33: 5032.344622 | EJ33: 1824.756111 | EK33: 0 | EL33: 0 | EO33: 0 | EP33: 120 | EU33: 0 | EV33: -21.87114946 | EX33: -21.87114946 | EZ33: 0 | FA33: 0 | FB33: 0 | FC33: 0
A34: 46 | B34: Sistema de Compensação | C34: Verde | D34: A3a | E34: Industrial | F34: Não se aplica | G34: Não se aplica | H34: Não se aplica | I34: Não se aplica | J34: CATIVO | K34: 2020-12-01 | L34: 3120 | M34: 3120 | N34: 0 | O34: 0 | P34: 0 | Q34: 0 | R34: 17.12 | U34: 53414.4 | W34: 53414.4 | X34: 55692 | Y34: 0 | Z34: 0 | AA34: 0 | AB34: 0 | AC34: 333.5009121 | AD34: 0 | AE34: 38986.93061 | AI34: 0 | AJ34: 0 | AK34: 0 | AL34: 0 | AM34: 0 | AN34: 0 | AO34: 3574.481601 | AP34: 10527.8445 | AQ34: 0 | AR34: 0 | AU34: 0 | AV34: 0 | AW34: 0 | AZ34: 0 | BB34: 0 | BC34: 2471.312728 | BD34: 0 | BE34: 0 | BG34: 0 | BH34: 0 | BI34: 570.21 | BJ34: 2626.6 | BK34: 3735.11 | BL34: 3 | BV34: 0 | CI34: 55692 | CJ34: 2277.57 | CO34: 2277.6 | CP34: 0 | CR34: 239.2869908 | CS34: 143.9187898 | CT34: 102.1556158 | CU34: 0 | CV34: 0 | CZ34: 0 | DA34: 0 | DB34: -6.78741484 | DE34: 0 | DF34: 0 | DG34: 0 | DH34: 0 | DI34: 0 | DK34: 0 | DL34: 0 | DN34: 0 | DO34: 0 | DP34: 0 | DQ34: 0 | DR34: 0 | DS34: 0 | DU34: 38986.93061 | DW34: 0 | DX34: 0 | DY34: -187.2 | EA34: 2464.8 | EC34: -428.14271 | EE34: 0 | EF34: 0 | EH34: 0 | EI34: 1813.667 | EJ34: 657.645728 | EK34: 0 | EL34: 0 | EO34: 0 | EP34: 120 | EU34: 0 | EV34: -21.87114946 | EX34: -21.87114946 | EZ34: 0 | FA34: 0 | FB34: 0 | FC34: 0
A35: 40 | B35: Regular | C35: Azul | D35: A4 | E35: Industrial | F35: Não se aplica | G35: Não se aplica | H35: Não se aplica | I35: Ponta | J35: CATIVO | K35: 2020-12-01 | L35: 478 | M35: 478 | N35: 18.757 | O35: 18.757 | P35: 18.757 | Q35: 18.757 | R35: 48.05 | S35: 65.18 | T35: 326.38 | U35: 22967.9 | V35: 7344.49092 | W35: 30312.39092 | X35: 29490.81551 | Y35: 0 | Z35: 391.9298004 | AA35: 0 | AB35: 0 | AC35: 67.7688922 | AD35: 0 | AE35: 20058.06392 | AF35: 5787.873291 | AG35: 219.8493419 | AH35: 0 | AI35: -0.03590820263 | AJ35: 0 | AK35: 44.99001869 | AL35: 136.9952758 | AM35: 0 | AN35: 7.923069519 | AO35: 675.3745183 | AP35: 2165.568847 | AQ35: 0 | AR35: 0 | AS35: 0 | AT35: 0 | AU35: 0 | AV35: 145.0191085 | AW35: -29.92337549 | AX35: 0 | AY35: -203.1837869 | AZ35: 0 | BA35: -82.22674882 | BB35: -316.7929765 | BC35: 497.3275769 | BD35: 372.3628776 | BE35: 9.508780352 | BF35: 79.77124741 | BG35: 240.1063155 | BH35: 53.16280984 | BI35: 0 | BJ35: 0 | BK35: 0 | BL35: 0 | BU35: 6.103460552e-09 | BV35: 6489.622511 | CI35: 29491.8068 | CJ35: -820.61412 | CM35: 0 | CN35: 6.103460552e-09 | CO35: 319.22533 | CP35: -1140.80074 | CR35: -611.1392416 | CS35: 27.19249788 | CT35: 21.01332511 | CU35: 0 | CV35: 0 | CW35: 0 | CX35: 0 | CY35: 0 | CZ35: 0 | DA35: 0 | DB35: -1.379233363 | DC35: -565.672232 | DD35: -7.796366178 | DE35: -0.9293315066 | DF35: -36.39252788 | DG35: -23.46655992 | DH35: 0 | DI35: -18.36600115 | DJ35: 0.6842720959 | DK35: 0 | DL35: 0 | DM35: 3.924361049 | DN35: -0.02300222578 | DO35: -9.634979183 | DP35: -0.2934644294 | DQ35: 0 | DR35: 0 | DS35: 0 | DU35: 20058.06392 | DV35: 0 | DW35: 51.73382137 | DX35: -1.428988474 | DY35: -262.67631 | DZ35: -568.89981 | EA35: 581.90164 | EB35: -571.90093 | EC35: -220.2716067 | ED35: -282.5368662 | EE35: -18.1770117 | EF35: -0.4641741218 | EG35: -3.894058685 | EH35: -11.72086577 | EI35: 373.0697918 | EJ35: 124.2577851 | EK35: 0 | EL35: 0 | EM35: 0 | EN35: 0 | EO35: 0 | EP35: 120 | EQ35: 0 | ER35: 0 | ES35: 0 | EU35: 0 | EV35: -21.87114946 | EX35: -21.87114946 | EZ35: 0 | FA35: 0 | FB35: 0 | FC35: 0
A36: 41 | B36: Regular | C36: Azul | D36: A4 | E36: Industrial | F36: Não se aplica | G36: Não se aplica | H36: Não se aplica | I36: Fora ponta | J36: CATIVO | K36: 2020-12-01 | L36: 645 | M36: 645 | N36: 210.522 | O36: 210.522 | P36: 210.522 | Q36: 210.522 | R36: 17.12 | S36: 65.18 | T36: 197.21 | U36: 11042.4 | V36: 55238.86758 | W36: 66281.26758 | X36: 57868.08918 | Y36: 0 | Z36: 4398.88284 | AA36: 0 | AB36: 0 | AC36: 68.94490011 | AD36: 0 | AE36: 8059.798155 | AF36: 37768.05995 | AG36: 2467.512031 | AH36: 0 | AI36: -0.4030210926 | AJ36: 0 | AK36: 504.9522159 | AL36: 1537.587005 | AM36: 0 | AN36: 88.92575792 | AO36: 738.955331 | AP36: 2176.429391 | AQ36: 0 | AR36: 0 | AS36: 0 | AT36: 0 | AU36: 0 | AV36: 1627.643694 | AW36: -335.8494885 | AX36: 0 | AY36: -2280.463677 | AZ36: 0 | BA36: -922.884236 | BB36: -2228.138384 | BC36: 510.8963813 | BD36: 4179.270551 | BE36: 106.7232211 | BF36: 895.324548 | BG36: 2694.869209 | BH36: 596.6807621 | BI36: 0 | BJ36: 0 | BK36: 0 | BL36: 0 | BU36: 6.850310403e-08 | BV36: 45644.24748 | CI36: 57867.6488 | CJ36: -8413.64878 | CM36: 0 | CN36: 6.850310403e-08 | CO36: 405.58818 | CP36: -8818.76658 | CR36: -4677.628089 | CS36: 29.75244213 | CT36: 21.11870904 | CU36: 0 | CV36: 0 | CW36: 0 | CX36: 0 | CY36: 0 | CZ36: 0 | DA36: 0 | DB36: -1.403167491 | DC36: -3691.225032 | DD36: -87.50368399 | DE36: -10.43049141 | DF36: -408.4569896 | DG36: -263.3804514 | DH36: 0 | DI36: -206.1335658 | DJ36: 7.680030398 | DK36: 0 | DL36: 0 | DM36: 44.04565425 | DN36: -0.2581689276 | DO36: -108.1396325 | DP36: -3.293741996 | DQ36: 0 | DR36: 0 | DS36: 0 | DU36: 8059.798155 | DV36: 0 | DW36: 580.6422958 | DX36: -16.03846626 | DY36: -1055.52126 | DZ36: -3728.34462 | EA36: 1461.10944 | EB36: -5090.42196 | EC36: -88.51027178 | ED36: -1843.659798 | EE36: -204.0124144 | EF36: -5.209727807 | EG36: -43.70555112 | EH36: -131.5508932 | EI36: 374.9407741 | EJ36: 135.9556072 | EK36: 0 | EL36: 0 | EM36: 0 | EN36: 0 | EO36: 0 | EP36: 120 | EQ36: 0 | ER36: 0 | ES36: 0 | EU36: 0 | EV36: -21.87114946 | EX36: -21.87114946 | EZ36: 0 | FA36: 0 | FB36: 0 | FC36: 0
A37: 42 | B37: Regular | C37: Azul | D37: A4 | E37: Industrial | F37: Não se aplica | G37: Não se aplica | H37: Não se aplica | I37: Não se aplica | J37: CATIVO | K37: 2020-12-01 | L37: 0 | M37: 0 | N37: 0 | O37: 0 | P37: 0 | Q37: 0 | AA37: 0 | AZ37: 0 | BI37: 1605.46 | BJ37: 7395.23 | BK37: 25032.22 | BL37: 4 | CJ37: -0.03 | CO37: 0 | CP37: 0 | DK37: 0 | EP37: 120 | EU37: 0 | EV37: -21.87114946 | EX37: -21.87114946 | EZ37: 0 | FA37: 0 | FB37: 0 | FC37: 0
A38: 24 | B38: Sistema de Compensação | C38: Branca | D38: B1 | E38: Residencial | F38: Residencial | G38: Não se aplica | H38: Não se aplica | I38: Fora ponta | J38: CATIVO | K38: 2020-12-01 | L38: 0 | M38: 0 | N38: 1.578 | O38: 1.578 | P38: 1.578 | Q38: 1.578 | S38: 256.75 | T38: 197.21 | V38: 716.34888 | W38: 716.34888 | X38: 645.67026 | Y38: 0 | Z38: 37.04775535 | AA38: 0 | AB38: 0 | AC38: 0.5249612643 | AD38: 0 | AE38: 220.3412036 | AF38: 283.0962968 | AG38: 18.49561559 | AH38: 0 | AI38: -0.003020906529 | AJ38: 0 | AK38: 6.75594053 | AL38: 11.52521966 | AM38: 0 | AN38: 1.207540601 | AO38: 5.475394335 | AP38: 16.90155926 | AQ38: 0 | AR38: 0 | AS38: 0 | AT38: 0 | AU38: 0 | AV38: 13.7081499 | AW38: -2.517411448 | AX38: 0 | AY38: -17.09356591 | AZ38: 0 | BA38: -6.917620602 | BB38: -19.09563197 | BC38: 3.919070525 | BD38: 48.28949536 | BE38: 2.022182023 | BF38: 6.711042726 | BG38: 51.06214012 | BH38: 6.89436411 | BI38: 0 | BJ38: 0 | BK38: 0 | BL38: 0 | BU38: 5.134755425e-10 | BV38: 391.1811571 | CI38: 646.4886 | CJ38: -69.89028 | CM38: 0 | CN38: 5.134755425e-10 | CO38: -4.5762 | CP38: -66.10242 | CR38: -40.06505513 | CS38: 0.2204549399 | CT38: 0.1640021559 | CU38: 0 | CV38: 0 | CW38: 0 | CX38: 0 | CY38: 0 | CZ38: 0 | DA38: 0 | DB38: -0.01068401838 | DC38: -27.66814442 | DD38: -0.6558973092 | DE38: -0.197636016 | DF38: -4.719527406 | DG38: -4.990509176 | DH38: 0 | DI38: -1.736073952 | DJ38: 0.05756684797 | DK38: 0 | DL38: 0 | DM38: 0.3301509695 | DN38: -0.003454136583 | DO38: -0.8105772325 | DP38: -0.04472637942 | DQ38: 0 | DR38: 0 | DS38: 0 | DV38: 220.3412036 | DW38: 6.709047215 | DX38: -0.185316895 | DY38: -14.73852 | DZ38: -27.94638 | EA38: 10.16232 | EB38: -38.15604 | EC38: -2.419720623 | ED38: -13.81943531 | EE38: -2.357266996 | EF38: -0.09871345532 | EG38: -0.3276016743 | EH38: -2.492614528 | EI38: 2.91168817 | EJ38: 1.007382355 | EK38: 0 | EL38: 0 | EM38: 0 | EN38: 0 | EO38: 0 | EP38: 120 | EQ38: 0 | ER38: 0 | ES38: 0 | EU38: 0 | EV38: -21.87114946 | EX38: -21.87114946 | EZ38: 0 | FA38: 0 | FB38: 0 | FC38: 0
A39: 25 | B39: Regular | C39: Branca | D39: B1 | E39: Residencial | F39: Residencial | G39: Não se aplica | H39: Não se aplica | I39: Não se aplica | J39: CATIVO | K39: 2020-12-01 | L39: 0 | M39: 0 | N39: 0 | O39: 0 | P39: 0 | Q39: 0 | AA39: 0 | AZ39: 0 | BI39: 1388.53 | BJ39: 6400.51 | BK39: 25535.65 | BL39: 273 | CJ39: -0.03 | CO39: 0 | CP39: 0 | DK39: 0 | EP39: 120 | EU39: 0 | EV39: -21.87114946 | EX39: -21.87114946 | EZ39: 0 | FA39: 0 | FB39: 0 | FC39: 0
A40: 26 | B40: Refaturamento - Regular | C40: Branca | D40: B1 | E40: Residencial | F40: Residencial | G40: Não se aplica | H40: Não se aplica | I40: Não se aplica | J40: CATIVO | K40: 2020-12-01 | L40: 0 | M40: 0 | N40: 0 | O40: 0 | P40: 0 | Q40: 0 | AA40: 0 | AZ40: 0 | BI40: -9.57 | BJ40: -44.12 | BK40: -189.31 | BL40: -2 | CJ40: -0.03 | CO40: 0 | CP40: 0 | DK40: 0 | EP40: 120 | EU40: 0 | EV40: -21.87114946 | EX40: -21.87114946 | EZ40: 0 | FA40: 0 | FB40: 0 | FC40: 0
A41: 27 | B41: Sistema de Compensação | C41: Branca | D41: B1 | E41: Residencial | F41: Residencial | G41: Não se aplica | H41: Não se aplica | I41: Não se aplica | J41: CATIVO | K41: 2020-12-01 | L41: 0 | M41: 0 | N41: 0 | O41: 0 | P41: 0 | Q41: 0 | AA41: 0 | AZ41: 0 | BI41: 15.89 | BJ41: 73.3 | BK41: 291.03 | BL41: 5 | CJ41: -0.03 | CO41: 0 | CP41: 0 | DK41: 0 | EP41: 120 | EU41: 0 | EV41: -21.87114946 | EX41: -21.87114946 | EZ41: 0 | FA41: 0 | FB41: 0 | FC41: 0
A42: 28 | B42: Regular | C42: Branca | D42: B1 | E42: Residencial | F42: Residencial | G42: Não se aplica | H42: Não se aplica | I42: Intermediário | J42: CATIVO | K42: 2020-12-01 | L42: 0 | M42: 0 | N42: 7.893 | O42: 7.893 | P42: 7.893 | Q42: 7.893 | S42: 567.71 | T42: 197.21 | V42: 6037.51356 | W42: 6037.51356 | X42: 5702.77143 | Y42: 0 | Z42: 185.3092098 | AA42: 0 | AB42: 0 | AC42: 7.876610288 | AD42: 0 | AE42: 3306.374753 | AF42: 1416.01969 | AG42: 92.5132407 | AH42: 0 | AI42: -0.01511027581 | AJ42: 0 | AK42: 54.84652253 | AL42: 57.64800938 | AM42: 0 | AN42: 6.039998709 | AO42: 82.16140102 | AP42: 253.6197856 | AQ42: 0 | AR42: 0 | AS42: 0 | AT42: 0 | AU42: 0 | AV42: 68.56681064 | AW42: -12.59184319 | AX42: 0 | AY42: -85.50032683 | AZ42: 0 | BA42: -34.60125438 | BB42: -95.51446331 | BC42: 58.80827339 | BD42: 241.5392819 | BE42: 10.11475457 | BF42: 33.56797226 | BG42: 255.4077769 | BH42: 34.48492771 | BI42: 0 | BJ42: 0 | BK42: 0 | BL42: 0 | BU42: 2.568353902e-09 | BV42: 1956.649476 | CI42: 5700.6039 | CJ42: -336.93966 | CM42: 0 | CN42: 2.568353902e-09 | CO42: -4.10436 | CP42: -330.63777 | CR42: -196.6730709 | CS42: 3.308051552 | CT42: 2.460967712 | CU42: 0 | CV42: 0 | CW42: 0 | CX42: 0 | CY42: 0 | CZ42: 0 | DA42: 0 | DB42: -0.1603048736 | DC42: -138.3933231 | DD42: -3.280733499 | DE42: -0.9885558137 | DF42: -23.60660952 | DG42: -24.96203354 | DH42: 0 | DI42: -8.683670279 | DJ42: 0.2879436825 | DK42: 0 | DL42: 0 | DM42: 1.651382511 | DN42: -0.02804159969 | DO42: -4.054427184 | DP42: -0.2237169282 | DQ42: 0 | DR42: 0 | DS42: 0 | DV42: 3306.374753 | DW42: 33.55799092 | DX42: -0.9269367886 | DY42: -94.16349 | DZ42: -139.78503 | EA42: 90.05913 | EB42: -190.85274 | EC42: -36.30961004 | ED42: -69.12344925 | EE42: -11.79081648 | EF42: -0.4937549448 | EG42: -1.638631188 | EH42: -12.46781145 | EI42: 43.69192914 | EJ42: 15.11634425 | EK42: 0 | EL42: 0 | EM42: 0 | EN42: 0 | EO42: 0 | EP42: 120 | EQ42: 0 | ER42: 0 | ES42: 0 | EU42: 0 | EV42: -21.87114946 | EX42: -21.87114946 | EZ42: 0 | FA42: 0 | FB42: 0 | FC42: 0
A43: 29 | B43: Sistema de Compensação | C43: Branca | D43: B1 | E43: Residencial | F43: Residencial | G43: Não se aplica | H43: Não se aplica | I43: Intermediário | J43: CATIVO | K43: 2020-12-01 | L43: 0 | M43: 0 | N43: 0.188 | O43: 0.188 | P43: 0.188 | Q43: 0.188 | S43: 567.71 | T43: 197.21 | V43: 143.80496 | W43: 143.80496 | X43: 135.83188 | Y43: 0 | Z43: 4.413801018 | AA43: 0 | AB43: 0 | AC43: 0.1876096204 | AD43: 0 | AE43: 78.75312981 | AF43: 33.72756895 | AG43: 2.203533416 | AH43: 0 | AI43: -0.0003599052138 | AJ43: 0 | AK43: 1.306365924 | AL43: 1.373093344 | AM43: 0 | AN43: 0.1438641527 | AO43: 1.956967362 | AP43: 6.040861484 | AQ43: 0 | AR43: 0 | AS43: 0 | AT43: 0 | AU43: 0 | AV43: 1.633163613 | AW43: -0.2999197416 | AX43: 0 | AY43: -2.036495812 | AZ43: 0 | BA43: -0.8241525179 | BB43: -2.275018257 | BC43: 1.400729177 | BD43: 5.75312112 | BE43: 0.2409190242 | BF43: 0.7995412119 | BG43: 6.083448886 | BH43: 0.8213817824 | BI43: 0 | BJ43: 0 | BK43: 0 | BL43: 0 | BU43: 6.117452598e-11 | BV43: 46.60459919 | CI43: 137.2769 | CJ43: -6.55806 | CM43: 0 | CN43: 6.117452598e-11 | CO43: -0.09776 | CP43: -7.87532 | CR43: -4.684471979 | CS43: 0.07879306876 | CT43: 0.05861674012 | CU43: 0 | CV43: 0 | CW43: 0 | CX43: 0 | CY43: 0 | CZ43: 0 | DA43: 0 | DB43: -0.003818233401 | DC43: -3.296331528 | DD43: -0.07814239172 | DE43: -0.02354598923 | DF43: -0.562275762 | DG43: -0.5945600286 | DH43: 0 | DI43: -0.2068326381 | DJ43: 0.006858407743 | DK43: 0 | DL43: 0 | DM43: 0.03933357559 | DN43: -0.0006679109011 | DO43: -0.09657067156 | DP43: -0.005328618081 | DQ43: 0 | DR43: 0 | DS43: 0 | DV43: 78.75312981 | DW43: 0.7993034705 | DX43: -0.02207831195 | DY43: -2.24284 | DZ43: -3.32948 | EA43: 2.14508 | EB43: -4.54584 | EC43: -0.8648431125 | ED43: -1.646421951 | EE43: -0.280840428 | EF43: -0.0117605384 | EG43: -0.03902985726 | EH43: -0.2969654824 | EI43: 1.040679422 | EJ43: 0.3600497553 | EK43: 0 | EL43: 0 | EM43: 0 | EN43: 0 | EO43: 0 | EP43: 120 | EQ43: 0 | ER43: 0 | ES43: 0 | EU43: 0 | EV43: -21.87114946 | EX43: -21.87114946 | EZ43: 0 | FA43: 0 | FB43: 0 | FC43: 0
A44: 30 | B44: Regular | C44: Convencional | D44: B3 | E44: Industrial | F44: Não se aplica | G44: Não se aplica | H44: Não se aplica | I44: Não se aplica | J44: CATIVO | K44: 2020-12-01 | L44: 0 | M44: 0 | N44: 1792.534 | O44: 1792.534 | P44: 1792.534 | Q44: 1792.534 | S44: 352.04 | T44: 207.97 | V44: 1003836.965 | W44: 1003836.965 | X44: 922043.6389 | Y44: 0 | Z44: 42084.51273 | AA44: 0 | AB44: 0 | AC44: 961.6777807 | AD44: 0 | AE44: 403705.2931 | AF44: 340879.1645 | AG44: 21010.15196 | AH44: 0 | AI44: -3.431608152 | AJ44: 0 | AK44: 9139.712333 | AL44: 13092.10907 | AM44: 0 | AN44: 1371.709495 | AO44: 10031.82882 | AP44: 30966.66178 | AQ44: 0 | AR44: 0 | AS44: 0 | AT44: 0 | AU44: 0 | AV44: 15571.81545 | AW44: -2859.661351 | AX44: 0 | AY44: -19417.48928 | AZ44: 0 | BA44: -7858.092604 | BB44: -22633.63625 | BC44: 7180.421683 | BD44: 54854.6022 | BE44: 2297.103948 | BF44: 7623.429823 | BG44: 58004.19662 | BH44: 7831.674319 | BI44: 14796.35 | BJ44: 68172.16 | BK44: 232004.39 | BL44: 931 | BU44: 5.832841369e-07 | BV44: 463658.4971 | CI44: 922041.5814 | CJ44: -81795.41394 | CM44: 0 | CN44: 5.832841369e-07 | CO44: -3889.79878 | CP44: -77903.52764 | CR44: -47138.32554 | CS44: 403.9099439 | CT44: 300.4811103 | CU44: 0 | CV44: 0 | CW44: 0 | CX44: 0 | CY44: 0 | CZ44: 0 | DA44: 0 | DB44: -19.57207852 | DC44: -33315.49744 | DD44: -745.0685851 | DE44: -224.505246 | DF44: -5361.161812 | DG44: -5668.984395 | DH44: 0 | DI44: -1972.098596 | DJ44: 65.39323971 | DK44: 0 | DL44: 0 | DM44: 375.036019 | DN44: -4.672897072 | DO44: -920.7777243 | DP44: -50.80706959 | DQ44: 0 | DR44: 0 | DS44: 0 | DV44: 403705.2931 | DW44: 7621.163017 | DX44: -210.5113023 | DY44: -18158.36942 | DZ44: -33610.0125 | EA44: 14268.57064 | EB44: -44293.51514 | EC44: -4433.369735 | ED44: -16640.12428 | EE44: -2677.744764 | EF44: -112.1338561 | EG44: -372.1401392 | EH44: -2831.493213 | EI44: 5334.730448 | EJ44: 1845.691236 | EK44: 0 | EL44: 0 | EM44: 0 | EN44: 0 | EO44: 0 | EP44: 120 | EQ44: 0 | ER44: 0 | ES44: 0 | EU44: 0 | EV44: -21.87114946 | EX44: -21.87114946 | EZ44: 0 | FA44: 0 | FB44: 0 | FC44: 0
A45: 31 | B45: Refaturamento - Regular | C45: Convencional | D45: B3 | E45: Industrial | F45: Não se aplica | G45: Não se aplica | H45: Não se aplica | I45: Não se aplica | J45: CATIVO | K45: 2020-12-01 | L45: 0 | M45: 0 | N45: -231.321 | O45: -231.321 | P45: -231.321 | Q45: -231.321 | S45: 352.04 | T45: 207.97 | V45: -129542.0732 | W45: -129542.0732 | X45: -118986.896 | Y45: 0 | Z45: -5430.876943 | AA45: 0 | AB45: 0 | AC45: -124.1015601 | AD45: 0 | AE45: -52096.92654 | AF45: -43989.40785 | AG45: -2711.295496 | AH45: 0 | AI45: 0.4428384785 | AJ45: 0 | AK45: -1179.451769 | AL45: -1689.496412 | AM45: 0 | AN45: -177.0148919 | AO45: -1294.576657 | AP45: -3996.152469 | AQ45: 0 | AR45: 0 | AS45: 0 | AT45: 0 | AU45: 0 | AV45: -2009.494895 | AW45: 369.0305029 | AX45: 0 | AY45: 2505.767275 | AZ45: 0 | BA45: 1014.062684 | BB45: 2920.801152 | BC45: -926.6113358 | BD45: -7078.817716 | BE45: -296.4342 | BF45: -983.7801739 | BG45: -7485.26319 | BH45: -1010.653486 | BI45: -1172.34 | BJ45: -4184.69 | BK45: -19043.07 | BL45: -2 | BU45: -7.527102406e-08 | BV45: -59833.70313 | CI45: -118986.3816 | CJ45: 10555.66161 | CM45: 0 | CN45: -7.527102406e-08 | CO45: 501.96657 | CP45: 10053.21066 | CR45: 6083.055943 | CS45: -52.12333609 | CT45: -38.7761632 | CU45: 0 | CV45: 0 | CW45: 0 | CX45: 0 | CY45: 0 | CZ45: 0 | DA45: 0 | DB45: 2.525716542 | DC45: 4299.262488 | DD45: 96.14880955 | DE45: 28.97171157 | DF45: 691.8414443 | DG45: 731.565002 | DH45: 0 | DI45: 254.4932589 | DJ45: -8.438796476 | DK45: 0 | DL45: 0 | DM45: -48.39724488 | DN45: 0.6030229963 | DO45: 118.8235336 | DP45: 6.55649608 | DQ45: 0 | DR45: 0 | DS45: 0 | DV45: -52096.92654 | DW45: -983.4876494 | DX45: 27.16583617 | DY45: 2343.28173 | DZ45: 4337.26875 | EA45: -1841.31516 | EB45: 5715.94191 | EC45: 572.1127301 | ED45: 2147.356864 | EE45: 345.5547268 | EF45: 14.47052928 | EG45: 48.02354049 | EH45: 365.3954912 | EI45: -688.430558 | EJ45: -238.1807778 | EK45: 0 | EL45: 0 | EM45: 0 | EN45: 0 | EO45: 0 | EP45: 120 | EQ45: 0 | ER45: 0 | ES45: 0 | EU45: 0 | EV45: -21.87114946 | EX45: -21.87114946 | EZ45: 0 | FA45: 0 | FB45: 0 | FC45: 0
A46: 32 | B46: Sistema de Compensação | C46: Convencional | D46: B3 | E46: Industrial | F46: Não se aplica | G46: Não se aplica | H46: Não se aplica | I46: Não se aplica | J46: CATIVO | K46: 2020-12-01 | L46: 0 | M46: 0 | N46: 49.574 | O46: 49.574 | P46: 49.574 | Q46: 49.574 | S46: 352.04 | T46: 207.97 | V46: 27761.93574 | W46: 27761.93574 | X46: 25499.87412 | Y46: 0 | Z46: 1163.881764 | AA46: 0 | AB46: 0 | AC46: 26.59598886 | AD46: 0 | AE46: 11164.80145 | AF46: 9427.293263 | AG46: 581.0530083 | AH46: 0 | AI46: -0.09490394185 | AJ46: 0 | AK46: 252.7662511 | AL46: 362.0730289 | AM46: 0 | AN46: 37.93575269 | AO46: 277.4384651 | AP46: 856.4084649 | AQ46: 0 | AR46: 0 | AS46: 0 | AT46: 0 | AU46: 0 | AV46: 430.6513455 | AW46: -79.08628334 | AX46: 0 | AY46: -537.0066138 | AZ46: 0 | BA46: -217.3220049 | BB46: -625.9517999 | BC46: 198.580459 | BD46: 1517.049077 | BE46: 63.52829631 | BF46: 210.832213 | BG46: 1604.153697 | BH46: 216.5913855 | BI46: 419.99 | BJ46: 1935.28 | BK46: 6586.37 | BL46: 36 | BU46: 1.613120187e-08 | BV46: 12822.85655 | CI46: 25497.8166 | CJ46: -2264.14914 | CM46: 0 | CN46: 1.613120187e-08 | CO46: -107.57558 | CP46: -2154.48604 | CR46: -1303.649108 | CS46: 11.17046123 | CT46: 8.310051895 | CU46: 0 | CV46: 0 | CW46: 0 | CX46: 0 | CY46: 0 | CZ46: 0 | DA46: 0 | DB46: -0.5412819064 | DC46: -921.3674442 | DD46: -20.60548365 | DE46: -6.208876968 | DF46: -148.2673331 | DG46: -156.7804195 | DH46: 0 | DI46: -54.54000638 | DJ46: 1.808503752 | DK46: 0 | DL46: 0 | DM46: 10.37192913 | DN46: -0.1292328064 | DO46: -25.46486421 | DP46: -1.405111238 | DQ46: 0 | DR46: 0 | DS46: 0 | DV46: 11164.80145 | DW46: 210.7695226 | DX46: -5.821862962 | DY46: -502.18462 | DZ46: -929.5125 | EA46: 394.60904 | EB46: -1224.97354 | EC46: -122.6084812 | ED46: -460.1963038 | EE46: -74.05523072 | EF46: -3.101153887 | EG46: -10.29184119 | EH46: -78.30727034 | EI46: 147.536352 | EJ46: 51.04410702 | EK46: 0 | EL46: 0 | EM46: 0 | EN46: 0 | EO46: 0 | EP46: 120 | EQ46: 0 | ER46: 0 | ES46: 0 | EU46: 0 | EV46: -21.87114946 | EX46: -21.87114946 | EZ46: 0 | FA46: 0 | FB46: 0 | FC46: 0
A47: 33 | B47: Sistema de Compensação | C47: Convencional | D47: B3 | E47: Industrial | F47: Não se aplica | G47: Não se aplica | H47: Não se aplica | I47: Não se aplica | J47: CATIVO | K47: 2020-12-01 | L47: 0 | M47: 0 | N47: -3.127 | O47: -3.127 | P47: -3.127 | Q47: -3.127 | S47: 352.04 | T47: 207.97 | V47: -1751.15127 | W47: -1751.15127 | X47: -1608.46626 | Y47: 0 | Z47: -73.41465842 | AA47: 0 | AB47: 0 | AC47: -1.67760635 | AD47: 0 | AE47: -704.246866 | AF47: -594.649333 | AG47: -36.65132442 | AH47: 0 | AI47: 0.005986295763 | AJ47: 0 | AK47: -15.94384289 | AL47: -22.83863238 | AM47: 0 | AN47: -2.392889391 | AO47: -17.50010248 | AP47: -54.0200361 | AQ47: 0 | AR47: 0 | AS47: 0 | AT47: 0 | AU47: 0 | AV47: -27.16437563 | AW47: 4.98855868 | AX47: 0 | AY47: 33.87299151 | AZ47: 0 | BA47: 13.70811129 | BB47: 39.48342434 | BC47: -12.52594294 | BD47: -95.69154118 | BE47: -4.007201004 | BF47: -13.29875197 | BG47: -101.1858759 | BH47: -13.66202571 | BI47: -24.15 | BJ47: -111.15 | BK47: -397.15 | BL47: 0 | BU47: -1.017514589e-09 | BV47: -808.832703 | CI47: -1610.0094 | CJ47: 141.11187 | CM47: 0 | CN47: -1.017514589e-09 | CO47: 6.78559 | CP47: 135.89942 | CR47: 82.23082181 | CS47: -0.7046038706 | CT47: -0.5241766304 | CU47: 0 | CV47: 0 | CW47: 0 | CX47: 0 | CY47: 0 | CZ47: 0 | DA47: 0 | DB47: 0.03414266594 | DC47: 58.1174809 | DD47: 1.299740739 | DE47: 0.3916399379 | DF47: 9.352320785 | DG47: 9.889304306 | DH47: 0 | DI47: 3.440242869 | DJ47: -0.1140757501 | DK47: 0 | DL47: 0 | DM47: -0.6542345258 | DN47: 0.00815167196 | DO47: 1.606257925 | DP47: 0.08863079116 | DQ47: 0 | DR47: 0 | DS47: 0 | DV47: -704.246866 | DW47: -13.29479762 | DX47: 0.367228093 | DY47: 31.67651 | DZ47: 58.63125 | EA47: -24.89092 | EB47: 77.26817 | EC47: 7.733826617 | ED47: 29.02799536 | EE47: 4.671212863 | EF47: 0.195612785 | EG47: 0.6491827855 | EH47: 4.93942055 | EI47: -9.306212384 | EJ47: -3.219730557 | EK47: 0 | EL47: 0 | EM47: 0 | EN47: 0 | EO47: 0 | EP47: 120 | EQ47: 0 | ER47: 0 | ES47: 0 | EU47: 0 | EV47: -21.87114946 | EX47: -21.87114946 | EZ47: 0 | FA47: 0 | FB47: 0 | FC47: 0
A48: 63 | B48: Sistema de Compensação | C48: Verde | D48: A3a | E48: Comercial | F48: Não se aplica | G48: Não se aplica | H48: Não se aplica | I48: Não se aplica | J48: CATIVO | K48: 2020-12-01 | L48: 3737 | M48: 3737 | N48: 0 | O48: 0 | P48: 0 | Q48: 0 | R48: 17.12 | U48: 63977.44 | W48: 63977.44 | X48: 66705.45 | Y48: 0 | Z48: 0 | AA48: 0 | AB48: 0 | AC48: 399.4528553 | AD48: 0 | AE48: 46696.84606 | AI48: 0 | AJ48: 0 | AK48: 0 | AL48: 0 | AM48: 0 | AN48: 0 | AO48: 4281.358251 | AP48: 12609.79323 | AQ48: 0 | AR48: 0 | AU48: 0 | AV48: 0 | AW48: 0 | AZ48: 0 | BB48: 0 | BC48: 2960.030662 | BD48: 0 | BE48: 0 | BG48: 0 | BH48: 0 | BI48: 823.29 | BJ48: 3792.31 | BK48: 15027.39 | BL48: 2 | BV48: 0 | CI48: 66705.45 | CJ48: 2727.98 | CO48: 2728.01 | CP48: 0 | CR48: 286.6075271 | CS48: 172.3796531 | CT48: 122.3575437 | CU48: 0 | CV48: 0 | CZ48: 0 | DA48: 0 | DB48: -8.129669634 | DE48: 0 | DF48: 0 | DG48: 0 | DH48: 0 | DI48: 0 | DK48: 0 | DL48: 0 | DN48: 0 | DO48: 0 | DP48: 0 | DQ48: 0 | DR48: 0 | DS48: 0 | DU48: 46696.84606 | DW48: 0 | DX48: 0 | DY48: -224.22 | EA48: 2952.23 | EC48: -512.8106754 | EE48: 0 | EF48: 0 | EH48: 0 | EI48: 2172.331276 | EJ48: 787.6993864 | EK48: 0 | EL48: 0 | EO48: 0 | EP48: 120 | EU48: 0 | EV48: -21.87114946 | EX48: -21.87114946 | EZ48: 0 | FA48: 0 | FB48: 0 | FC48: 0
A49: 47 | B49: Regular | C49: Verde | D49: A4 | E49: Industrial | F49: Não se aplica | G49: Não se aplica | H49: Não se aplica | I49: Ponta | J49: CATIVO | K49: 2020-12-01 | L49: 0 | M49: 0 | N49: 665.887 | O49: 665.887 | P49: 665.887 | Q49: 665.887 | S49: 1230.71 | T49: 326.38 | V49: 1036845.989 | W49: 1036845.989 | X49: 1006987.616 | Y49: 0 | Z49: 13913.79 | AA49: 0 | AB49: 0 | AC49: 2271.179781 | AD49: 0 | AE49: 672011.9874 | AF49: 205473.6675 | AG49: 7804.809871 | AH49: 0 | AI49: -1.274767038 | AJ49: 0 | AK49: 8242.387245 | AL49: 4863.430891 | AM49: 0 | AN49: 281.2746704 | AO49: 22627.34473 | AP49: 72554.34345 | AQ49: 0 | AR49: 0 | AS49: 0 | AT49: 0 | AU49: 0 | AV49: 5148.282728 | AW49: -1062.301367 | AX49: 0 | AY49: -7213.170674 | AZ49: 0 | BA49: -2919.108764 | BB49: -11246.37867 | BC49: 16662.23819 | BD49: 13219.15016 | BE49: 337.5685463 | BF49: 2831.936697 | BG49: 8523.947012 | BH49: 1887.318012 | BI49: 0 | BJ49: 0 | BK49: 0 | BL49: 0 | BU49: 2.166772424e-07 | BV49: 230386.2699 | CI49: 1006992.153 | CJ49: -29853.86633 | CM49: 0 | CN49: 2.166772424e-07 | CO49: 10640.87426 | CP49: -40499.24734 | CR49: -21792.818 | CS49: 911.0412178 | CT49: 704.0219521 | CU49: 0 | CV49: 0 | CW49: 0 | CX49: 0 | CY49: 0 | CZ49: 0 | DA49: 0 | DB49: -46.22308003 | DC49: -20081.77137 | DD49: -276.7766106 | DE49: -32.99193735 | DF49: -1291.960932 | DG49: -833.0797668 | DH49: 0 | DI49: -652.0062592 | DJ49: 24.2921519 | DK49: 0 | DL49: 0 | DM49: 139.3176417 | DN49: -4.214118106 | DO49: -342.0486956 | DP49: -10.41819846 | DQ49: 0 | DR49: 0 | DS49: 0 | DV49: 672011.9874 | DW49: 1836.587893 | DX49: -50.73011932 | DY49: -9029.42772 | DZ49: -20196.35271 | EA49: 19670.30198 | EB49: -20302.89463 | EC49: -7379.832906 | ED49: -10030.2621 | EE49: -645.2969979 | EF49: -16.47851541 | EG49: -138.241886 | EH49: -416.0991707 | EI49: 12499.17953 | EJ49: 4163.058664 | EK49: 0 | EL49: 0 | EM49: 0 | EN49: 0 | EO49: 0 | EP49: 120 | EQ49: 0 | ER49: 0 | ES49: 0 | EU49: 0 | EV49: -21.87114946 | EX49: -21.87114946 | EZ49: 0 | FA49: 0 | FB49: 0 | FC49: 0
A50: 48 | B50: Refaturamento - Regular | C50: Verde | D50: A4 | E50: Industrial | F50: Não se aplica | G50: Não se aplica | H50: Não se aplica | I50: Ponta | J50: CATIVO | K50: 2020-12-01 | L50: 0 | M50: 0 | N50: -0.146 | O50: -0.146 | P50: -0.146 | Q50: -0.146 | S50: 1230.71 | T50: 326.38 | V50: -227.33514 | W50: -227.33514 | X50: -220.7885 | Y50: 0 | Z50: -3.050687789 | AA50: 0 | AB50: 0 | AC50: -0.4979707489 | AD50: 0 | AE50: -147.3429428 | AF50: -45.05142083 | AG50: -1.711254674 | AH50: 0 | AI50: 0.0002795008575 | AJ50: 0 | AK50: -1.807196323 | AL50: -1.066338448 | AM50: 0 | AN50: -0.06167127738 | AO50: -4.961190609 | AP50: -15.90800563 | AQ50: 0 | AR50: 0 | AS50: 0 | AT50: 0 | AU50: 0 | AV50: -1.128794042 | AW50: 0.232916395 | AX50: 0 | AY50: 1.581533982 | AZ50: 0 | BA50: 0.6400333384 | BB50: 2.465840729 | BC50: -3.653302702 | BD50: -2.898383544 | BE50: -0.07401407109 | BF50: -0.6209203029 | BG50: -1.868930109 | BH50: -0.4138065915 | BI50: 0 | BJ50: 0 | BK50: 0 | BL50: 0 | BU50: -4.750787656e-11 | BV50: -50.51366885 | CI50: -226.8375 | CJ50: 0.46764 | CM50: 0 | CN50: -4.750787656e-11 | CO50: -2.33308 | CP50: 8.87972 | CR50: 4.778215265 | CS50: -0.1997516362 | CT50: -0.1543613331 | CU50: 0 | CV50: 0 | CW50: 0 | CX50: 0 | CY50: 0 | CZ50: 0 | DA50: 0 | DB50: 0.01013470707 | DC50: 4.403057305 | DD50: 0.06068504889 | DE50: 0.007233694086 | DF50: 0.2832707293 | DG50: 0.1826580876 | DH50: 0 | DI50: 0.1429565585 | DJ50: -0.005326210268 | DK50: 0 | DL50: 0 | DM50: -0.03054628742 | DN50: 0.000923972451 | DO50: 0.07499637259 | DP50: 0.002284256901 | DQ50: 0 | DR50: 0 | DS50: 0 | DV50: -147.3429428 | DW50: -0.4026836872 | DX50: 0.01112290437 | DY50: 1.97976 | DZ50: 4.42818 | EA50: -4.31284 | EB50: 4.45154 | EC50: 1.618075746 | ED50: 2.199199364 | EE50: 0.1414855098 | EF50: 0.003613020301 | EG50: 0.03031042107 | EH50: 0.09123241469 | EI50: -2.740525362 | EJ50: -0.9127773404 | EK50: 0 | EL50: 0 | EM50: 0 | EN50: 0 | EO50: 0 | EP50: 120 | EQ50: 0 | ER50: 0 | ES50: 0 | EU50: 0 | EV50: -21.87114946 | EX50: -21.87114946 | EZ50: 0 | FA50: 0 | FB50: 0 | FC50: 0
A51: 49 | B51: Sistema de Compensação | C51: Verde | D51: A4 | E51: Industrial | F51: Não se aplica | G51: Não se aplica | H51: Não se aplica | I51: Ponta | J51: CATIVO | K51: 2020-12-01 | L51: 0 | M51: 0 | N51: 25.504 | O51: 25.504 | P51: 25.504 | Q51: 25.504 | S51: 1230.71 | T51: 326.38 | V51: 39712.02336 | W51: 39712.02336 | X51: 38568.424 | Y51: 0 | Z51: 532.9091874 | AA51: 0 | AB51: 0 | AC51: 86.98798616 | AD51: 0 | AE51: 25738.59187 | AF51: 7869.804361 | AG51: 298.9304055 | AH51: 0 | AI51: -0.04882458815 | AJ51: 0 | AK51: 315.6899659 | AL51: 186.2732588 | AM51: 0 | AN51: 10.77304286 | AO51: 866.6452416 | AP51: 2778.888874 | AQ51: 0 | AR51: 0 | AS51: 0 | AT51: 0 | AU51: 0 | AV51: 197.1833099 | AW51: -40.68698452 | AX51: 0 | AY51: -276.2701553 | AZ51: 0 | BA51: -111.8041799 | BB51: -430.7452189 | BC51: 638.1769323 | BD51: 506.3039308 | BE51: 12.92914294 | BF51: 108.4654206 | BG51: 326.4739282 | BH51: 72.2857761 | BI51: 0 | BJ51: 0 | BK51: 0 | BL51: 0 | BU51: 8.298910162e-09 | BV51: 8823.976784 | CI51: 38562.375 | CJ51: -1149.67836 | CM51: 0 | CN51: 8.298910162e-09 | CO51: 407.55392 | CP51: -1551.15328 | CR51: -834.6822063 | CS51: 34.8936009 | CT51: 26.9645989 | CU51: 0 | CV51: 0 | CW51: 0 | CX51: 0 | CY51: 0 | CZ51: 0 | DA51: 0 | DB51: -1.77038061 | DC51: -769.1477637 | DD51: -10.60076361 | DE51: -1.263617356 | DF51: -49.48312795 | DG51: -31.90761552 | DH51: 0 | DI51: -24.97235662 | DJ51: 0.9304086759 | DK51: 0 | DL51: 0 | DM51: 5.335976126 | DN51: -0.1614040643 | DO51: -13.10073621 | DP51: -0.3990252604 | DQ51: 0 | DR51: 0 | DS51: 0 | DV51: 25738.59187 | DW51: 70.34277231 | DX51: -1.943003788 | DY51: -345.83424 | DZ51: -773.53632 | EA51: 753.38816 | EB51: -777.61696 | EC51: -282.6534509 | ED51: -384.1669902 | EE51: -24.7153866 | EF51: -0.6311402038 | EG51: -5.294773828 | EH51: -15.93692811 | EI51: 478.7284851 | EJ51: 159.4484472 | EK51: 0 | EL51: 0 | EM51: 0 | EN51: 0 | EO51: 0 | EP51: 120 | EQ51: 0 | ER51: 0 | ES51: 0 | EU51: 0 | EV51: -21.87114946 | EX51: -21.87114946 | EZ51: 0 | FA51: 0 | FB51: 0 | FC51: 0
A52: 50 | B52: Regular | C52: Verde | D52: A4 | E52: Industrial | F52: Não se aplica | G52: Não se aplica | H52: Não se aplica | I52: Fora ponta | J52: CATIVO | K52: 2020-12-01 | L52: 0 | M52: 0 | N52: 15595.788 | O52: 15595.788 | P52: 15595.788 | Q52: 15595.788 | S52: 65.18 | T52: 197.21 | V52: 4092178.813 | W52: 4092178.813 | X52: 3434036.56 | Y52: 0 | Z52: 325875.8904 | AA52: 0 | AB52: 0 | AC52: 0 | AD52: 0 | AE52: 0 | AF52: 2797914.974 | AG52: 182797.0213 | AH52: 0 | AI52: -29.85641178 | AJ52: 0 | AK52: 37407.62348 | AL52: 113906.7697 | AM52: 0 | AN52: 6587.754573 | AO52: 0 | AP52: 0 | AQ52: 0 | AR52: 0 | AS52: 0 | AT52: 0 | AU52: 0 | AV52: 120578.3053 | AW52: -24880.2378 | AX52: 0 | AY52: -168940.1965 | AZ52: 0 | BA52: -68368.6593 | BB52: -165063.8597 | BC52: 0 | BD52: 309606.6801 | BE52: 7906.217546 | BF52: 66326.99595 | BG52: 199639.9847 | BH52: 44203.01284 | BI52: 0 | BJ52: 0 | BK52: 0 | BL52: 0 | BU52: 5.074813501e-06 | BV52: 3381394.852 | CI52: 3434037 | CJ52: -658141.8432 | CM52: 0 | CN52: 5.074813501e-06 | CO52: -4834.69428 | CP52: -653307.5593 | CR52: -350190.4229 | CS52: 0 | CT52: 0 | CU52: 0 | CV52: 0 | CW52: 0 | CX52: 0 | CY52: 0 | CZ52: 0 | DA52: 0 | DB52: 0 | DC52: -273451.5303 | DD52: -6482.405187 | DE52: -772.7065713 | DF52: -30259.11124 | DG52: -19511.62199 | DH52: 0 | DI52: -15270.68616 | DJ52: 568.9482616 | DK52: 0 | DL52: 0 | DM52: 3262.96865 | DN52: -19.12554442 | DO52: -8011.14745 | DP52: -244.0053861 | DQ52: 0 | DR52: 0 | DS52: 0 | DV52: 0 | DW52: 43014.85901 | DX52: -1188.153825 | DY52: -75327.65604 | DZ52: -276201.4055 | EA52: 70492.96176 | EB52: -377106.1538 | EC52: 0 | ED52: -136581.1048 | EE52: -15113.54806 | EF52: -385.9445113 | EG52: -3237.773296 | EH52: -9745.489029 | EI52: 0 | EJ52: 0 | EK52: 0 | EL52: 0 | EM52: 0 | EN52: 0 | EO52: 0 | EP52: 120 | EQ52: 0 | ER52: 0 | ES52: 0 | EU52: 0 | EV52: -21.87114946 | EX52: -21.87114946 | EZ52: 0 | FA52: 0 | FB52: 0 | FC52: 0
A53: 51 | B53: Refaturamento - Regular | C53: Verde | D53: A4 | E53: Industrial | F53: Não se aplica | G53: Não se aplica | H53: Não se aplica | I53: Fora ponta | J53: CATIVO | K53: 2020-12-01 | L53: 0 | M53: 0 | N53: -1.22 | O53: -1.22 | P53: -1.22 | Q53: -1.22 | S53: 65.18 | T53: 197.21 | V53: -320.1158 | W53: -320.1158 | X53: -268.6318 | Y53: 0 | Z53: -25.49204864 | AA53: 0 | AB53: 0 | AC53: 0 | AD53: 0 | AE53: 0 | AF53: -218.8703943 | AG53: -14.29952536 | AH53: 0 | AI53: 0.002335555111 | AJ53: 0 | AK53: -2.92625808 | AL53: -8.91049936 | AM53: 0 | AN53: -0.5153353315 | AO53: 0 | AP53: 0 | AQ53: 0 | AR53: 0 | AS53: 0 | AT53: 0 | AU53: 0 | AV53: -9.432388571 | AW53: 1.946287685 | AX53: 0 | AY53: 13.21555793 | AZ53: 0 | BA53: 5.348223786 | BB53: 12.91232664 | BC53: 0 | BD53: -24.21936934 | BE53: -0.6184737447 | BF53: -5.18851212 | BG53: -15.61708722 | BH53: -3.457835902 | BI53: 0 | BJ53: 0 | BK53: 0 | BL53: 0 | BU53: -3.96983626e-10 | BV53: -264.5138367 | CI53: -268.6318 | CJ53: 51.454 | CM53: 0 | CN53: -3.96983626e-10 | CO53: 0.3782 | CP53: 51.1058 | CR53: 27.39408332 | CS53: 0 | CT53: 0 | CU53: 0 | CV53: 0 | CW53: 0 | CX53: 0 | CY53: 0 | CZ53: 0 | DA53: 0 | DB53: 0 | DC53: 21.39108757 | DD53: 0.5070942441 | DE53: 0.06044593688 | DF53: 2.367056779 | DG53: 1.526321006 | DH53: 0 | DI53: 1.194568502 | DJ53: -0.04450668854 | DK53: 0 | DL53: 0 | DM53: -0.255249799 | DN53: 0.001496119606 | DO53: 0.6266820175 | DP53: 0.01908762616 | DQ53: 0 | DR53: 0 | DS53: 0 | DV53: 0 | DW53: -3.364891085 | DX53: 0.09294481733 | DY53: 5.8926 | DZ53: 21.6062 | EA53: -5.5144 | EB53: 29.4996 | EC53: 0 | ED53: 10.68422755 | EE53: 1.182276178 | EF53: 0.03019099156 | EG53: 0.253278861 | EH53: 0.7623530543 | EI53: 0 | EJ53: 0 | EK53: 0 | EL53: 0 | EM53: 0 | EN53: 0 | EO53: 0 | EP53: 120 | EQ53: 0 | ER53: 0 | ES53: 0 | EU53: 0 | EV53: -21.87114946 | EX53: -21.87114946 | EZ53: 0 | FA53: 0 | FB53: 0 | FC53: 0
A54: 52 | B54: Sistema de Compensação | C54: Verde | D54: A4 | E54: Industrial | F54: Não se aplica | G54: Não se aplica | H54: Não se aplica | I54: Fora ponta | J54: CATIVO | K54: 2020-12-01 | L54: 0 | M54: 0 | N54: 678.205 | O54: 678.205 | P54: 678.205 | Q54: 678.205 | S54: 65.18 | T54: 197.21 | V54: 177954.21 | W54: 177954.21 | X54: 149333.959 | Y54: 0 | Z54: 14171.17611 | AA54: 0 | AB54: 0 | AC54: 0 | AD54: 0 | AE54: 0 | AF54: 121671.308 | AG54: 7949.188194 | AH54: 0 | AI54: -1.298348487 | AJ54: 0 | AK54: 1626.723656 | AL54: 4953.39772 | AM54: 0 | AN54: 286.4778676 | AO54: 0 | AP54: 0 | AQ54: 0 | AR54: 0 | AS54: 0 | AT54: 0 | AU54: 0 | AV54: 5243.518927 | AW54: -1081.952491 | AX54: 0 | AY54: -7346.60448 | AZ54: 0 | BA54: -2973.108289 | BB54: -7178.036466 | BC54: 0 | BD54: 13463.68638 | BE54: 343.8131033 | BF54: 2884.323658 | BG54: 8681.628389 | BH54: 1922.230818 | BI54: 0 | BJ54: 0 | BK54: 0 | BL54: 0 | BU54: 2.206854755e-07 | BV54: 147044.7595 | CI54: 149335.0599 | CJ54: -28619.18005 | CM54: 0 | CN54: 2.206854755e-07 | CO54: -210.24355 | CP54: -28410.00745 | CR54: -15228.5281 | CS54: 0 | CT54: 0 | CU54: 0 | CV54: 0 | CW54: 0 | CX54: 0 | CY54: 0 | CZ54: 0 | DA54: 0 | DB54: 0 | DC54: -11891.42832 | DD54: -281.8965999 | DE54: -33.60224313 | DF54: -1315.860445 | DG54: -848.4906047 | DH54: 0 | DI54: -664.0674845 | DJ54: 24.74152353 | DK54: 0 | DL54: 0 | DM54: 141.8948278 | DN54: -0.8317014732 | DO54: -348.3761293 | DP54: -10.6109209 | DQ54: 0 | DR54: 0 | DS54: 0 | DV54: 0 | DW54: 1870.562261 | DX54: -51.66855724 | DY54: -3275.73015 | DZ54: -12011.01055 | EA54: 3065.4866 | EB54: -16398.9969 | EC54: 0 | ED54: -5939.423401 | EE54: -657.234111 | EF54: -16.78334543 | EG54: -140.7991721 | EH54: -423.796437 | EI54: 0 | EJ54: 0 | EK54: 0 | EL54: 0 | EM54: 0 | EN54: 0 | EO54: 0 | EP54: 120 | EQ54: 0 | ER54: 0 | ES54: 0 | EU54: 0 | EV54: -21.87114946 | EX54: -21.87114946 | EZ54: 0 | FA54: 0 | FB54: 0 | FC54: 0
A55: 53 | B55: Regular | C55: Verde | D55: A4 | E55: Industrial | F55: Não se aplica | G55: Não se aplica | H55: Não se aplica | I55: Não se aplica | J55: CATIVO | K55: 2020-12-01 | L55: 84220 | M55: 84220 | N55: 0 | O55: 0 | P55: 0 | Q55: 0 | R55: 17.12 | U55: 1441846.4 | W55: 1441846.4 | X55: 1503327 | Y55: 0 | Z55: 0 | AA55: 0 | AB55: 0 | AC55: 9002.386801 | AD55: 0 | AE55: 1052397.21 | AI55: 0 | AJ55: 0 | AK55: 0 | AL55: 0 | AM55: 0 | AN55: 0 | AO55: 96488.08989 | AP55: 284184.3152 | AQ55: 0 | AR55: 0 | AU55: 0 | AV55: 0 | AW55: 0 | AZ55: 0 | BB55: 0 | BC55: 66709.60191 | BD55: 0 | BE55: 0 | BG55: 0 | BH55: 0 | BI55: 105759.55 | BJ55: 487163.72 | BK55: 1463761.37 | BL55: 451 | BV55: 0 | CI55: 1503327 | CJ55: 61480.57 | CO55: 61480.6 | CP55: 0 | CR55: 6459.214861 | CS55: 3884.884769 | CT55: 2757.546783 | CU55: 0 | CV55: 0 | CZ55: 0 | DA55: 0 | DB55: -183.2166916 | DE55: 0 | DF55: 0 | DG55: 0 | DH55: 0 | DI55: 0 | DK55: 0 | DL55: 0 | DN55: 0 | DO55: 0 | DP55: 0 | DQ55: 0 | DR55: 0 | DS55: 0 | DU55: 1052397.21 | DW55: 0 | DX55: 0 | DY55: -5053.2 | EA55: 66533.8 | EC55: -11557.10867 | EE55: 0 | EF55: 0 | EH55: 0 | EI55: 48957.38294 | EJ55: 17752.21898 | EK55: 0 | EL55: 0 | EO55: 0 | EP55: 120 | EU55: 0 | EV55: -21.87114946 | EX55: -21.87114946 | EZ55: 0 | FA55: 0 | FB55: 0 | FC55: 0
A56: 54 | B56: Refaturamento - Regular | C56: Verde | D56: A4 | E56: Industrial | F56: Não se aplica | G56: Não se aplica | H56: Não se aplica | I56: Não se aplica | J56: CATIVO | K56: 2020-12-01 | L56: -1594 | M56: -1594 | N56: 0 | O56: 0 | P56: 0 | Q56: 0 | R56: 17.12 | U56: -27289.28 | W56: -27289.28 | X56: -28452.9 | Y56: 0 | Z56: 0 | AA56: 0 | AB56: 0 | AC56: -170.3847609 | AD56: 0 | AE56: -19918.32288 | AI56: 0 | AJ56: 0 | AK56: 0 | AL56: 0 | AM56: 0 | AN56: 0 | AO56: -1826.193485 | AP56: -5378.648759 | AQ56: 0 | AR56: 0 | AU56: 0 | AV56: 0 | AW56: 0 | AZ56: 0 | BB56: 0 | BC56: -1262.587336 | BD56: 0 | BE56: 0 | BG56: 0 | BH56: 0 | BI56: -131.01 | BJ56: -604.1 | BK56: -108.08 | BL56: -11 | BV56: 0 | CI56: -28452.9 | CJ56: -1163.65 | CO56: -1163.62 | CP56: 0 | CR56: -122.25111 | CS56: -73.52774071 | CT56: -52.19104217 | CU56: 0 | CV56: 0 | CZ56: 0 | DA56: 0 | DB56: 3.467672838 | DE56: 0 | DF56: 0 | DG56: 0 | DH56: 0 | DI56: 0 | DK56: 0 | DL56: 0 | DN56: 0 | DO56: 0 | DP56: 0 | DQ56: 0 | DR56: 0 | DS56: 0 | DU56: -19918.32288 | DW56: 0 | DX56: 0 | DY56: 95.64 | EA56: -1259.26 | EC56: 218.7370127 | EE56: 0 | EF56: 0 | EH56: 0 | EI56: -926.59782 | EJ56: -335.9895162 | EK56: 0 | EL56: 0 | EO56: 0 | EP56: 120 | EU56: 0 | EV56: -21.87114946 | EX56: -21.87114946 | EZ56: 0 | FA56: 0 | FB56: 0 | FC56: 0
A57: 55 | B57: Sistema de Compensação | C57: Verde | D57: A4 | E57: Industrial | F57: Não se aplica | G57: Não se aplica | H57: Não se aplica | I57: Não se aplica | J57: CATIVO | K57: 2020-12-01 | L57: 17373 | M57: 17373 | N57: 0 | O57: 0 | P57: 0 | Q57: 0 | R57: 17.12 | U57: 297425.76 | W57: 297425.76 | X57: 310108.05 | Y57: 0 | Z57: 0 | AA57: 0 | AB57: 0 | AC57: 1857.022867 | AD57: 0 | AE57: 217089.7261 | AI57: 0 | AJ57: 0 | AK57: 0 | AL57: 0 | AM57: 0 | AN57: 0 | AO57: 19903.67592 | AP57: 58621.87258 | AQ57: 0 | AR57: 0 | AU57: 0 | AV57: 0 | AW57: 0 | AZ57: 0 | BB57: 0 | BC57: 13760.93462 | BD57: 0 | BE57: 0 | BG57: 0 | BH57: 0 | BI57: 7624.35 | BJ57: 35120.21 | BK57: 104186.1 | BL57: 44 | BV57: 0 | CI57: 310108.05 | CJ57: 12682.26 | CO57: 12682.29 | CP57: 0 | CR57: 1332.414388 | CS57: 801.3785692 | CT57: 568.8299722 | CU57: 0 | CV57: 0 | CZ57: 0 | DA57: 0 | DB57: -37.79415321 | DE57: 0 | DF57: 0 | DG57: 0 | DH57: 0 | DI57: 0 | DK57: 0 | DL57: 0 | DN57: 0 | DO57: 0 | DP57: 0 | DQ57: 0 | DR57: 0 | DS57: 0 | DU57: 217089.7261 | DW57: 0 | DX57: 0 | DY57: -1042.38 | EA57: 13724.67 | EC57: -2384.013878 | EE57: 0 | EF57: 0 | EH57: 0 | EI57: 10098.98615 | EJ57: 3661.948472 | EK57: 0 | EL57: 0 | EO57: 0 | EP57: 120 | EU57: 0 | EV57: -21.87114946 | EX57: -21.87114946 | EZ57: 0 | FA57: 0 | FB57: 0 | FC57: 0
A58: 60 | B58: Regular | C58: Azul | D58: A4 | E58: Comercial | F58: Não se aplica | G58: Não se aplica | H58: Não se aplica | I58: Ponta | J58: CATIVO | K58: 2020-12-01 | L58: 2279 | M58: 2279 | N58: 46.589 | O58: 46.589 | P58: 46.589 | Q58: 46.589 | R58: 48.05 | S58: 65.18 | T58: 326.38 | U58: 109505.95 | V58: 18242.38884 | W58: 127748.3388 | X58: 126450.0733 | Y58: 0 | Z58: 973.4828314 | AA58: 0 | AB58: 0 | AC58: 323.1073333 | AD58: 0 | AE58: 95632.48469 | AF58: 14376.03181 | AG58: 546.0660549 | AH58: 0 | AI58: -0.08918948939 | AJ58: 0 | AK58: 111.7470801 | AL58: 340.2715202 | AM58: 0 | AN58: 19.67947357 | AO58: 3220.03876 | AP58: 10324.96109 | AQ58: 0 | AR58: 0 | AS58: 0 | AT58: 0 | AU58: 0 | AV58: 360.2012714 | AW58: -74.32425979 | AX58: 0 | AY58: -504.6718265 | AZ58: 0 | BA58: -204.2363918 | BB58: -786.8565325 | BC58: 2371.149682 | BD58: 924.8821296 | BE58: 23.61809286 | BF58: 198.1373698 | BG58: 596.3807183 | BH58: 132.0468171 | BI58: 0 | BJ58: 0 | BK58: 0 | BL58: 0 | BU58: 1.515989357e-08 | BV58: 16119.05012 | CI58: 126450.4037 | CJ58: -1297.96514 | CM58: 0 | CN58: 1.515989357e-08 | CO58: 1535.27741 | CP58: -2833.54298 | CR58: -1411.009288 | CS58: 129.6479135 | CT58: 100.1869622 | CU58: 0 | CV58: 0 | CW58: 0 | CX58: 0 | CY58: 0 | CZ58: 0 | DA58: 0 | DB58: -6.575884591 | DC58: -1405.027649 | DD58: -19.36476536 | DE58: -2.308291601 | DF58: -90.39246581 | DG58: -58.28669618 | DH58: 0 | DI58: -45.61782947 | DJ58: 1.699608289 | DK58: 0 | DL58: 0 | DM58: 9.747404005 | DN58: -0.05713337403 | DO58: -23.93154796 | DP58: -0.7289126354 | DQ58: 0 | DR58: 0 | DS58: 0 | DU58: 95632.48469 | DV58: 0 | DW58: 128.4974678 | DX58: -3.549349258 | DY58: -1045.46487 | DZ58: -1413.04437 | EA58: 2580.74228 | EB58: -1420.49861 | EC58: -1050.207095 | ED58: -701.7705421 | EE58: -45.14841382 | EF58: -1.152924677 | EG58: -9.672138405 | EH58: -29.11251348 | EI58: 1778.715597 | EJ58: 592.4340843 | EK58: 0 | EL58: 0 | EM58: 0 | EN58: 0 | EO58: 0 | EP58: 120 | EQ58: 0 | ER58: 0 | ES58: 0 | EU58: 0 | EV58: -21.87114946 | EX58: -21.87114946 | EZ58: 0 | FA58: 0 | FB58: 0 | FC58: 0
A59: 61 | B59: Regular | C59: Azul | D59: A4 | E59: Comercial | F59: Não se aplica | G59: Não se aplica | H59: Não se aplica | I59: Fora ponta | J59: CATIVO | K59: 2020-12-01 | L59: 1771 | M59: 1771 | N59: 410.137 | O59: 410.137 | P59: 410.137 | Q59: 410.137 | R59: 17.12 | S59: 65.18 | T59: 197.21 | U59: 30319.52 | V59: 107615.8474 | W59: 137935.3674 | X59: 121920.416 | Y59: 0 | Z59: 8569.862586 | AA59: 0 | AB59: 0 | AC59: 189.3045242 | AD59: 0 | AE59: 22130.08145 | AF59: 73579.3827 | AG59: 4807.183961 | AH59: 0 | AI59: -0.7851619397 | AJ59: 0 | AK59: 983.7432049 | AL59: 2995.512685 | AM59: 0 | AN59: 173.2443335 | AO59: 2028.976576 | AP59: 5975.901475 | AQ59: 0 | AR59: 0 | AS59: 0 | AT59: 0 | AU59: 0 | AV59: 3170.960288 | AW59: -654.298846 | AX59: 0 | AY59: -4442.7781 | AZ59: 0 | BA59: -1797.954475 | BB59: -4340.838452 | BC59: 1402.786808 | BD59: 8142.015969 | BE59: 207.9171854 | BF59: 1744.262947 | BG59: 5250.119098 | BH59: 1162.447904 | BI59: 0 | BJ59: 0 | BK59: 0 | BL59: 0 | BU59: 1.334571094e-07 | BV59: 88923.6979 | CI59: 121921.0766 | CJ59: -16014.32083 | CM59: 0 | CN59: 1.334571094e-07 | CO59: 1165.68753 | CP59: -17180.63893 | CR59: -9073.458504 | CS59: 81.69236436 | CT59: 57.98640884 | CU59: 0 | CV59: 0 | CW59: 0 | CX59: 0 | CY59: 0 | CZ59: 0 | DA59: 0 | DB59: -3.852728103 | DC59: -7191.210233 | DD59: -170.4738623 | DE59: -20.32058624 | DF59: -795.7521035 | DG59: -513.1153429 | DH59: 0 | DI59: -401.5874933 | DJ59: 14.9621637 | DK59: 0 | DL59: 0 | DM59: 85.80933346 | DN59: -0.5029623006 | DO59: -210.6766251 | DP59: -6.416837484 | DQ59: 0 | DR59: 0 | DS59: 0 | DU59: 22130.08145 | DV59: 0 | DW59: 1131.201914 | DX59: -31.24599061 | DY59: -2087.22171 | DZ59: -7263.52627 | EA59: 3252.90924 | EB59: -9917.11266 | EC59: -243.025878 | ED59: -3591.80085 | EE59: -397.455086 | EF59: -10.1495432 | EG59: -85.14674771 | EH59: -256.2862251 | EI59: 1029.488544 | EJ59: 373.2982642 | EK59: 0 | EL59: 0 | EM59: 0 | EN59: 0 | EO59: 0 | EP59: 120 | EQ59: 0 | ER59: 0 | ES59: 0 | EU59: 0 | EV59: -21.87114946 | EX59: -21.87114946 | EZ59: 0 | FA59: 0 | FB59: 0 | FC59: 0
A60: 62 | B60: Regular | C60: Azul | D60: A4 | E60: Comercial | F60: Não se aplica | G60: Não se aplica | H60: Não se aplica | I60: Não se aplica | J60: CATIVO | K60: 2020-12-01 | L60: 0 | M60: 0 | N60: 0 | O60: 0 | P60: 0 | Q60: 0 | AA60: 0 | AZ60: 0 | BI60: 4100.46 | BJ60: 18888 | BK60: 63787.75 | BL60: 14 | CJ60: -0.03 | CO60: 0 | CP60: 0 | DK60: 0 | EP60: 120 | EU60: 0 | EV60: -21.87114946 | EX60: -21.87114946 | EZ60: 0 | FA60: 0 | FB60: 0 | FC60: 0
A61: 64 | B61: Regular | C61: Verde | D61: A4 | E61: Comercial | F61: Não se aplica | G61: Não se aplica | H61: Não se aplica | I61: Ponta | J61: CATIVO | K61: 2020-12-01 | L61: 0 | M61: 0 | N61: 920.618 | O61: 920.618 | P61: 920.618 | Q61: 920.618 | S61: 1230.71 | T61: 326.38 | V61: 1433485.082 | W61: 1433485.082 | X61: 1392204.571 | Y61: 0 | Z61: 19236.42528 | AA61: 0 | AB61: 0 | AC61: 3140.005718 | AD61: 0 | AE61: 929086.0639 | AF61: 284076.3626 | AG61: 10790.49216 | AH61: 0 | AI61: -1.762421373 | AJ61: 0 | AK61: 11395.46208 | AL61: 6723.906639 | AM61: 0 | AN61: 388.8745756 | AO61: 31283.29709 | AP61: 100309.5639 | AQ61: 0 | AR61: 0 | AS61: 0 | AT61: 0 | AU61: 0 | AV61: 7117.726804 | AW61: -1468.678259 | AX61: 0 | AY61: -9972.525008 | AZ61: 0 | BA61: -4035.795972 | BB61: -15548.61206 | BC61: 23036.27553 | BD61: 18276.05521 | BE61: 466.7033295 | BF61: 3915.276763 | BG61: 11784.73082 | BH61: 2609.299977 | BI61: 0 | BJ61: 0 | BK61: 0 | BL61: 0 | BU61: 2.995657966e-07 | BV61: 318519.1287 | CI61: 1392207.595 | CJ61: -41277.51662 | CM61: 0 | CN61: 2.995657966e-07 | CO61: 14711.47564 | CP61: -55991.98676 | CR61: -30129.52727 | CS61: 1259.554465 | CT61: 973.3412449 | CU61: 0 | CV61: 0 | CW61: 0 | CX61: 0 | CY61: 0 | CZ61: 0 | DA61: 0 | DB61: -63.90543664 | DC61: -27763.9302 | DD61: -382.6558105 | DE61: -45.61280124 | DF61: -1786.192687 | DG61: -1151.769337 | DH61: 0 | DI61: -901.4272668 | DJ61: 33.58496606 | DK61: 0 | DL61: 0 | DM61: 192.6127537 | DN61: -5.826203218 | DO61: -472.8973325 | DP61: -14.40361658 | DQ61: 0 | DR61: 0 | DS61: 0 | DV61: 929086.0639 | DW61: 2539.163361 | DX61: -70.13661626 | DY61: -12483.58008 | DZ61: -27922.34394 | EA61: 27195.05572 | EB61: -28069.64282 | EC61: -10202.94286 | ED61: -13867.27753 | EE61: -892.1514185 | EF61: -22.78227071 | EG61: -191.1254741 | EH61: -575.275364 | EI61: 17280.66423 | EJ61: 5755.611299 | EK61: 0 | EL61: 0 | EM61: 0 | EN61: 0 | EO61: 0 | EP61: 120 | EQ61: 0 | ER61: 0 | ES61: 0 | EU61: 0 | EV61: -21.87114946 | EX61: -21.87114946 | EZ61: 0 | FA61: 0 | FB61: 0 | FC61: 0
A62: 65 | B62: Refaturamento - Regular | C62: Verde | D62: A4 | E62: Comercial | F62: Não se aplica | G62: Não se aplica | H62: Não se aplica | I62: Ponta | J62: CATIVO | K62: 2020-12-01 | L62: 0 | M62: 0 | N62: -0.189 | O62: -0.189 | P62: -0.189 | Q62: -0.189 | S62: 1230.71 | T62: 326.38 | V62: -294.29001 | W62: -294.29001 | X62: -285.81525 | Y62: 0 | Z62: -3.949178028 | AA62: 0 | AB62: 0 | AC62: -0.6446333667 | AD62: 0 | AE62: -190.7384671 | AF62: -58.31998997 | AG62: -2.215254338 | AH62: 0 | AI62: 0.0003618196032 | AJ62: 0 | AK62: -2.339452774 | AL62: -1.380397032 | AM62: 0 | AN62: -0.07983473578 | AO62: -6.422363185 | AP62: -20.59324016 | AQ62: 0 | AR62: 0 | AS62: 0 | AT62: 0 | AU62: 0 | AV62: -1.461247082 | AW62: 0.3015150593 | AX62: 0 | AY62: 2.047328237 | AZ62: 0 | BA62: 0.8285363079 | BB62: 3.192081492 | BC62: -4.729275416 | BD62: -3.752017053 | BE62: -0.09581273586 | BF62: -0.8037940907 | BG62: -2.419368429 | BH62: -0.5356811356 | BI62: 0 | BJ62: 0 | BK62: 0 | BL62: 0 | BU62: -6.149992239e-11 | BV62: -65.39098228 | CI62: -287.3275 | CJ62: 6.93251 | CM62: 0 | CN62: -6.149992239e-11 | CO62: -3.02022 | CP62: 11.49498 | CR62: 6.185497843 | CS62: -0.2585825976 | CT62: -0.1998239175 | CU62: 0 | CV62: 0 | CW62: 0 | CX62: 0 | CY62: 0 | CZ62: 0 | DA62: 0 | DB62: 0.01311958654 | DC62: 5.699848155 | DD62: 0.07855804274 | DE62: 0.009364165631 | DF62: 0.3666997797 | DG62: 0.2364546476 | DH62: 0 | DI62: 0.1850602024 | DJ62: -0.006894888635 | DK62: 0 | DL62: 0 | DM62: -0.03954279673 | DN62: 0.001196101324 | DO62: 0.09708434534 | DP62: 0.002957017496 | DQ62: 0 | DR62: 0 | DS62: 0 | DV62: -190.7384671 | DW62: -0.5212823074 | DX62: 0.01439882826 | DY62: 2.56284 | DZ62: 5.73237 | EA62: -5.58306 | EB62: 5.76261 | EC62: 2.094632301 | ED62: 2.846908765 | EE62: 0.1831558997 | EF62: 0.00467712902 | EG62: 0.03923746289 | EH62: 0.1181022355 | EI62: -3.547666393 | EJ62: -1.181609023 | EK62: 0 | EL62: 0 | EM62: 0 | EN62: 0 | EO62: 0 | EP62: 120 | EQ62: 0 | ER62: 0 | ES62: 0 | EU62: 0 | EV62: -21.87114946 | EX62: -21.87114946 | EZ62: 0 | FA62: 0 | FB62: 0 | FC62: 0
A63: 66 | B63: Sistema de Compensação | C63: Verde | D63: A4 | E63: Comercial | F63: Não se aplica | G63: Não se aplica | H63: Não se aplica | I63: Ponta | J63: CATIVO | K63: 2020-12-01 | L63: 0 | M63: 0 | N63: 74.787 | O63: 74.787 | P63: 74.787 | Q63: 74.787 | S63: 1230.71 | T63: 326.38 | V63: 116450.0898 | W63: 116450.0898 | X63: 113096.6408 | Y63: 0 | Z63: 1562.683477 | AA63: 0 | AB63: 0 | AC63: 255.0804 | AD63: 0 | AE63: 75474.90866 | AF63: 23077.12746 | AG63: 876.5726254 | AH63: 0 | AI63: -0.1431714427 | AJ63: 0 | AK63: 925.7177493 | AL63: 546.2209145 | AM63: 0 | AN63: 31.59047823 | AO63: 2541.318918 | AP63: 8148.712445 | AQ63: 0 | AR63: 0 | AS63: 0 | AT63: 0 | AU63: 0 | AV63: 578.2131508 | AW63: -119.3090304 | AX63: 0 | AY63: -810.1245335 | AZ63: 0 | BA63: -327.8505019 | BB63: -1263.10158 | BC63: 1871.366775 | BD63: 1484.667192 | BE63: 37.9129475 | BF63: 318.0600458 | BG63: 957.3402472 | BH63: 211.9681751 | BI63: 0 | BJ63: 0 | BK63: 0 | BL63: 0 | BU63: 2.433542167e-08 | BV63: 25875.10789 | CI63: 113101.1775 | CJ63: -3348.94233 | CM63: 0 | CN63: 2.433542167e-08 | CO63: 1195.09626 | CP63: -4548.54534 | CR63: -2447.591678 | CS63: 102.3207234 | CT63: 79.07000697 | CU63: 0 | CV63: 0 | CW63: 0 | CX63: 0 | CY63: 0 | CZ63: 0 | DA63: 0 | DB63: -5.191399571 | DC63: -2255.420867 | DD63: -31.08529282 | DE63: -3.705385477 | DF63: -145.1025208 | DG63: -93.56472873 | DH63: 0 | DI63: -73.22802834 | DJ63: 2.728296489 | DK63: 0 | DL63: 0 | DM63: 15.6470219 | DN63: -0.4732953952 | DO63: -38.41612135 | DP63: -1.170087129 | DQ63: 0 | DR63: 0 | DS63: 0 | DV63: 75474.90866 | DW63: 206.2705816 | DX63: -5.697593487 | DY63: -1014.11172 | DZ63: -2268.28971 | EA63: 2209.20798 | EB63: -2280.25563 | EC63: -828.8426768 | ED63: -1126.517279 | EE63: -72.4744988 | EF63: -1.850732529 | EG63: -15.52620178 | EH63: -46.73286711 | EI63: 1403.80596 | EJ63: 467.5608148 | EK63: 0 | EL63: 0 | EM63: 0 | EN63: 0 | EO63: 0 | EP63: 120 | EQ63: 0 | ER63: 0 | ES63: 0 | EU63: 0 | EV63: -21.87114946 | EX63: -21.87114946 | EZ63: 0 | FA63: 0 | FB63: 0 | FC63: 0
A64: 67 | B64: Sistema de Compensação | C64: Verde | D64: A4 | E64: Comercial | F64: Não se aplica | G64: Não se aplica | H64: Não se aplica | I64: Ponta | J64: CATIVO | K64: 2020-12-01 | L64: 0 | M64: 0 | N64: -0.598 | O64: -0.598 | P64: -0.598 | Q64: -0.598 | S64: 1230.71 | T64: 326.38 | V64: -931.13982 | W64: -931.13982 | X64: -904.3255 | Y64: 0 | Z64: -12.49528286 | AA64: 0 | AB64: 0 | AC64: -2.039633615 | AD64: 0 | AE64: -603.5005466 | AF64: -184.5256826 | AG64: -7.00911161 | AH64: 0 | AI64: 0.001144804882 | AJ64: 0 | AK64: -7.402078089 | AL64: -4.367605424 | AM64: 0 | AN64: -0.2525987936 | AO64: -20.32049304 | AP64: -65.15744771 | AQ64: 0 | AR64: 0 | AS64: 0 | AT64: 0 | AU64: 0 | AV64: -4.623416693 | AW64: 0.954000029 | AX64: 0 | AY64: 6.47778987 | AZ64: 0 | BA64: 2.621506413 | BB64: 10.0998134 | BC64: -14.96352751 | BD64: -11.87146136 | BE64: -0.3031535241 | BF64: -2.543221515 | BG64: -7.654932914 | BH64: -1.69490645 | BI64: 0 | BJ64: 0 | BK64: 0 | BL64: 0 | BU64: -1.94587056e-10 | BV64: -206.8984519 | CI64: -907.35 | CJ64: 23.75982 | CM64: 0 | CN64: -1.94587056e-10 | CO64: -9.55604 | CP64: 36.37036 | CR64: 19.57104609 | CS64: -0.8181608115 | CT64: -0.632247104 | CU64: 0 | CV64: 0 | CW64: 0 | CX64: 0 | CY64: 0 | CZ64: 0 | DA64: 0 | DB64: 0.04151064949 | DC64: 18.03444019 | DD64: 0.2485593098 | DE64: 0.02962841824 | DF64: 1.160245864 | DG64: 0.7481475094 | DH64: 0 | DI64: 0.585534397 | DJ64: -0.02181557356 | DK64: 0 | DL64: 0 | DM64: -0.1251142457 | DN64: 0.003784489902 | DO64: 0.3071769234 | DP64: 0.009356065938 | DQ64: 0 | DR64: 0 | DS64: 0 | DV64: -603.5005466 | DW64: -1.649348253 | DX64: 0.04555819735 | DY64: 8.10888 | DZ64: 18.13734 | EA64: -17.66492 | EB64: 18.23302 | EC64: 6.627460932 | ED64: 9.007679585 | EE64: 0.5795091431 | EF64: 0.01479853521 | EG64: 0.124148163 | EH64: 0.3736779725 | EI64: -11.22489155 | EJ64: -3.738635956 | EK64: 0 | EL64: 0 | EM64: 0 | EN64: 0 | EO64: 0 | EP64: 120 | EQ64: 0 | ER64: 0 | ES64: 0 | EU64: 0 | EV64: -21.87114946 | EX64: -21.87114946 | EZ64: 0 | FA64: 0 | FB64: 0 | FC64: 0
A65: 68 | B65: Regular | C65: Verde | D65: A4 | E65: Comercial | F65: Não se aplica | G65: Não se aplica | H65: Não se aplica | I65: Fora ponta | J65: CATIVO | K65: 2020-12-01 | L65: 0 | M65: 0 | N65: 16289.805 | O65: 16289.805 | P65: 16289.805 | Q65: 16289.805 | S65: 65.18 | T65: 197.21 | V65: 4274281.934 | W65: 4274281.934 | X65: 3586852.163 | Y65: 0 | Z65: 340377.4602 | AA65: 0 | AB65: 0 | AC65: 0 | AD65: 0 | AE65: 0 | AF65: 2922422.986 | AG65: 190931.5407 | AH65: 0 | AI65: -31.18503059 | AJ65: 0 | AK65: 39072.27336 | AL65: 118975.6533 | AM65: 0 | AN65: 6880.911524 | AO65: 0 | AP65: 0 | AQ65: 0 | AR65: 0 | AS65: 0 | AT65: 0 | AU65: 0 | AV65: 125944.0742 | AW65: -25987.41546 | AX65: 0 | AY65: -176458.0833 | AZ65: 0 | BA65: -71411.08408 | BB65: -172409.2484 | BC65: 0 | BD65: 323384.2654 | BE65: 8258.046475 | BF65: 69278.56613 | BG65: 208524.0208 | BH65: 46170.05948 | BI65: 0 | BJ65: 0 | BK65: 0 | BL65: 0 | BU65: 5.300644144e-06 | BV65: 3531867.885 | CI65: 3586853.264 | CJ65: -687428.7 | CM65: 0 | CN65: 5.300644144e-06 | CO65: -5049.83955 | CP65: -682379.9315 | CR65: -365773.9962 | CS65: 0 | CT65: 0 | CU65: 0 | CV65: 0 | CW65: 0 | CX65: 0 | CY65: 0 | CZ65: 0 | DA65: 0 | DB65: 0 | DC65: -285620.2011 | DD65: -6770.87406 | DE65: -807.0922335 | DF65: -31605.65029 | DG65: -20379.89471 | DH65: 0 | DI65: -15950.23603 | DJ65: 594.2666209 | DK65: 0 | DL65: 0 | DM65: 3408.171682 | DN65: -19.97663659 | DO65: -8367.645789 | DP65: -254.8636952 | DQ65: 0 | DR65: 0 | DS65: 0 | DV65: 0 | DW65: 44929.03247 | DX65: -1241.027008 | DY65: -78679.75815 | DZ65: -288492.4466 | EA65: 73629.9186 | EB65: -393887.4849 | EC65: 0 | ED65: -142659.0028 | EE65: -15786.10524 | EF65: -403.1191518 | EG65: -3381.855128 | EH65: -10179.16606 | EI65: 0 | EJ65: 0 | EK65: 0 | EL65: 0 | EM65: 0 | EN65: 0 | EO65: 0 | EP65: 120 | EQ65: 0 | ER65: 0 | ES65: 0 | EU65: 0 | EV65: -21.87114946 | EX65: -21.87114946 | EZ65: 0 | FA65: 0 | FB65: 0 | FC65: 0
A66: 69 | B66: Refaturamento - Regular | C66: Verde | D66: A4 | E66: Comercial | F66: Não se aplica | G66: Não se aplica | H66: Não se aplica | I66: Fora ponta | J66: CATIVO | K66: 2020-12-01 | L66: 0 | M66: 0 | N66: -3.089 | O66: -3.089 | P66: -3.089 | Q66: -3.089 | S66: 65.18 | T66: 197.21 | V66: -810.52271 | W66: -810.52271 | X66: -680.16691 | Y66: 0 | Z66: -64.54503136 | AA66: 0 | AB66: 0 | AC66: 0 | AD66: 0 | AE66: 0 | AF66: -554.1726622 | AG66: -36.20592937 | AH66: 0 | AI66: 0.005913548965 | AJ66: 0 | AK66: -7.409189515 | AL66: -22.56109223 | AM66: 0 | AN66: -1.304812163 | AO66: 0 | AP66: 0 | AQ66: 0 | AR66: 0 | AS66: 0 | AT66: 0 | AU66: 0 | AV66: -23.8824986 | AW66: 4.927936605 | AX66: 0 | AY66: 33.46135938 | AZ66: 0 | BA66: 13.54152728 | BB66: 32.6935877 | BC66: 0 | BD66: -61.32264909 | BE66: -1.565955244 | BF66: -13.13714257 | BG66: -39.54195279 | BH66: -8.755127132 | BI66: 0 | BJ66: 0 | BK66: 0 | BL66: 0 | BU66: -1.005149525e-09 | BV66: -669.7403619 | CI66: -680.3871 | CJ66: 130.10561 | CM66: 0 | CN66: -1.005149525e-09 | CO66: 0.95759 | CP66: 129.39821 | CR66: 69.3609208 | CS66: 0 | CT66: 0 | CU66: 0 | CV66: 0 | CW66: 0 | CX66: 0 | CY66: 0 | CZ66: 0 | DA66: 0 | DB66: 0 | DC66: 54.16153239 | DD66: 1.283946 | DE66: 0.1530471303 | DF66: 5.993310157 | DG66: 3.864594743 | DH66: 0 | DI66: 3.024608282 | DJ66: -0.1126894762 | DK66: 0 | DL66: 0 | DM66: -0.6462841223 | DN66: 0.003788125789 | DO66: 1.586738321 | DP66: 0.04832924362 | DQ66: 0 | DR66: 0 | DS66: 0 | DV66: 0 | DW66: -8.519793902 | DX66: 0.2353332301 | DY66: 14.91987 | DZ66: 54.70619 | EA66: -13.96228 | EB66: 74.69202 | EC66: 0 | ED66: 27.05211387 | EE66: 2.99348452 | EF66: 0.07644260075 | EG66: 0.6412937718 | EH66: 1.930252938 | EI66: 0 | EJ66: 0 | EK66: 0 | EL66: 0 | EM66: 0 | EN66: 0 | EO66: 0 | EP66: 120 | EQ66: 0 | ER66: 0 | ES66: 0 | EU66: 0 | EV66: -21.87114946 | EX66: -21.87114946 | EZ66: 0 | FA66: 0 | FB66: 0 | FC66: 0
A67: 56 | B67: Regular | C67: Convencional | D67: B3 | E67: Comercial | F67: Não se aplica | G67: Não se aplica | H67: Não se aplica | I67: Não se aplica | J67: CATIVO | K67: 2020-12-01 | L67: 0 | M67: 0 | N67: 35691.919 | O67: 35691.919 | P67: 35691.919 | Q67: 35691.919 | S67: 352.04 | T67: 207.97 | V67: 19987831.56 | W67: 19987831.56 | X67: 18359209.3 | Y67: 0 | Z67: 837962.9171 | AA67: 0 | AB67: 0 | AC67: 19148.38182 | AD67: 0 | AE67: 8038350.526 | AF67: 6787392.333 | AG67: 418342.2138 | AH67: 0 | AI67: -68.32823265 | AJ67: 0 | AK67: 181984.7614 | AL67: 260682.6405 | AM67: 0 | AN67: 27312.70045 | AO67: 199748.0781 | AP67: 616590.583 | AQ67: 0 | AR67: 0 | AS67: 0 | AT67: 0 | AU67: 0 | AV67: 310057.1457 | AW67: -56939.95278 | AX67: 0 | AY67: -386630.019 | AZ67: 0 | BA67: -156465.8772 | BB67: -450668.1111 | BC67: 142972.4787 | BD67: 1092233.686 | BE67: 45738.62925 | BF67: 151793.4052 | BG67: 1154946.622 | BH67: 155939.8513 | BI67: 311187.21 | BJ67: 1434213.99 | BK67: 5742699.6 | BL67: 41937 | BU67: 1.161402248e-05 | BV67: 9232104.676 | CI67: 18359209.81 | CJ67: -1628621.78 | CM67: 0 | CN67: 1.161402248e-05 | CO67: -77451.46423 | CP67: -1551170.8 | CR67: -938591.5675 | CS67: 8042.425416 | CT67: 5983.009221 | CU67: 0 | CV67: 0 | CW67: 0 | CX67: 0 | CY67: 0 | CZ67: 0 | DA67: 0 | DB67: -389.7081123 | DC67: -663359.2647 | DD67: -14835.38253 | DE67: -4470.220959 | DF67: -106748.4093 | DG67: -112877.5978 | DH67: 0 | DI67: -39267.30726 | DJ67: 1302.073051 | DK67: 0 | DL67: 0 | DM67: 7467.504222 | DN67: -93.04407269 | DO67: -18334.00312 | DP67: -1011.641516 | DQ67: 0 | DR67: 0 | DS67: 0 | DV67: 8038350.526 | DW67: 151748.2698 | DX67: -4191.581499 | DY67: -361559.1395 | DZ67: -669223.4813 | EA67: 284107.6752 | EB67: -881947.3185 | EC67: -88274.74039 | ED67: -331328.7045 | EE67: -53317.73302 | EF67: -2232.74566 | EG67: -7409.843107 | EH67: -56379.0848 | EI67: 106222.123 | EJ67: 36750.35569 | EK67: 0 | EL67: 0 | EM67: 0 | EN67: 0 | EO67: 0 | EP67: 120 | EQ67: 0 | ER67: 0 | ES67: 0 | EU67: 0 | EV67: -21.87114946 | EX67: -21.87114946 | EZ67: 0 | FA67: 0 | FB67: 0 | FC67: 0
